Workbook

Sheet Instructions
A3: Instructions
A4: Step 1 | B4: To display individual budget pages, on the Main Budget worksheet click the GoTo button below the name of the budget you want to open.
A7: Step 2 | B7: Enter each segment of a project on a separate line according to the account description. When you enter an account number the account description will fill in automatically. It is not necessary to enter the items in any particular sequence, but if you start each line of a project with the same word they can be sorted accordingly (such as Conf. Travel, Conf. Food, Conf. Speaker, etc.)
B12: Current data on the form is for illustration only (current fiscal year line items). You can delete any data you don't need. For additional lines you may use open lines at the bottom or insert new lines into the form.
A15: Step 3 | B15: Enter a detailed description of each item (how many at how much each). Use as many lines as necessary to describe each item.
A18: Step 4 | B18: Enter the amount of income or expense for each line.
A20: Step 5 | B20: Enter the month when the item is most likely to occur. If it will occur somewhat evenly throughout the year leave the month space blank.
A23: Step 6 | B23: Assign Rank from 1 to 3 to each budget item using the following guidelines
B25: 1 | C25: This item is required by a governmental or other oversight agency.This item is necessary to maintain ministry at the current level.
B27: 2 | C27: This item will make a conservative advancement in ministry.
B29: 3 | C29: This item will make a somewhat aggressive advance in ministry. If donations or funding is available
A31: Click the GoTo Main BGT button below to continue
C39: InterAct Ministries Inc. Budget for 2021-2022

Sheet Main_BGT
I1: Program Ministries | O1: Program Ministries | W1: Management & General and Fund Raising
I2: Alaska - 200 | K2: Russia - 300 | R2: Other - 400-600 | W2: Management & General - 700-799 | AE2: Development
A3: InterAct Ministries Inc. | D3: Prior Year Total | F3: Current Year Total | I3: 2-780 | J3: 2-946 | K3: 3-790 | L3: 3-978 | M3: 3-601 | O3: 2-941 | P3: 1-900 | Q3: 1-968 | R3: 500 | S3: 400 & 600 | T3: 9-954 | U3: 9-795 | V3: 9-930 | X3: 7-700 | Y3: 7-710 | Z3: 7-720 | AA3: 7-750 | AB3: 7-755 | AC3: 7-758 | AD3: 7-760 | AE3: 8-730 | AF3: 5 | AG3: ='S5'!$C$1 -> 5
A4: 2019-2020 Draft Budget | D4: InterAct Inc. | E4: Operational Ministries | F4: InterAct Inc. | G4: Operational Ministries | I4: ='S1'!$B$1 -> AK Field Office | J4: ='S2'!$B$1 -> AK Field Ministries | K4: ='S6'!$B$1 -> RU Field Office | L4: ='S7'!$B$1 -> RU Field Ministries | M4: ='S8'!$B$1 -> RU EnGage! | O4: Counseling & Prof. Educator | P4: ='S3'!$B$1 -> AK LEaD | Q4: ='S4'!$B$1 -> AK EnGage! | R4: Home Ministry | S4: ='S13'!$B$1 -> Other Programs | T4: ='S15'!$B$1 -> Alaska Properties | U4: ='S16'!$B$1 -> Member Care | V4: ='S17'!$B$1 -> AK Hospitality | X4: ='S18'!$B$1 -> Admin | Y4: ='S9'!$B$1 -> Communications | Z4: ='S19'!$B$1 -> Board | AA4: ='S20'!$B$1 -> Executive Director | AB4: ='S21'!$B$1 -> Information Systems | AC4: ='S22'!$B$1 -> HR | AD4: ='S25'!B1 -> Mobilization | AE4: ='S23'!$B$1 -> Development | AG4: ='S5'!$B$1 -> 0
D5: 2020-2021 | F5: 2021-2022
C6: Total Income | D6: =SUM(D14:D27) -> 2346569 | E6: =SUM(E14:E27) -> 441871 | F6: =SUM(I6:AE6) -> 2544463.4 | G6: =SUM(X6:AE6) -> 560267.4 | H6: =C6 -> Total Income | I6: ='S1'!$E$2 -> 81000 | J6: ='S2'!$E$2 -> 467181 | K6: ='S6'!$E$2 -> 0 | L6: ='S7'!$E$2 -> 162300 | M6: ='S8'!$E$2 -> 23800 | N6: =C6 -> Total Income | O6: ='S11'!$E$2 -> 11000 | P6: ='S3'!$E$2 -> 69960 | Q6: ='S4'!$E$2 -> 9400 | R6: ='S10'!$E$2 -> 13500 | S6: ='S13'!$E$2 -> 802000 | T6: ='S15'!$E$2 -> 205865 | U6: ='S16'!$E$2 -> 108000 | V6: ='S17'!$E$2 -> 30190 | W6: =C6 -> Total Income | X6: ='S18'!$E$2 -> 295398.4 | Y6: ='S9'!$E$2 -> 5500 | Z6: ='S19'!$E$2 -> 0 | AA6: ='S20'!$E$2 -> 120991 | AB6: ='S21'!$E$2 -> 0 | AC6: ='S22'!$E$2 -> 27000 | AD6: ='S25'!$E$2 -> 5378 | AE6: ='S23'!$E$2 -> 106000 | AF6: ='S12'!$E$2 -> 0 | AG6: ='S5'!$E$2 -> 0
C7: Total Expenditure | D7: =SUM(D29:D80) -> 2346323 | E7: =SUM(E29:E80) -> 572514 | F7: =SUM(I7:AE7) -> 2523584.715 | G7: =SUM(X7:AE7) -> 634704.9655 | H7: =C7 -> Total Expenditure | I7: ='S1'!$E$3 -> 109475 | J7: ='S2'!$E$3 -> 433581 | K7: ='S6'!$E$3 -> 5955 | L7: ='S7'!$E$3 -> 113550 | M7: ='S8'!$E$3 -> 19500 | N7: =C7 -> Total Expenditure | O7: ='S11'!$E$3 -> 10200 | P7: ='S3'!$E$3 -> 37894 | Q7: ='S4'!$E$3 -> 6585 | R7: ='S10'!$E$3 -> 0 | S7: ='S13'!$E$3 -> 802000 | T7: ='S15'!$E$3 -> 227119 | U7: ='S16'!$E$3 -> 107100 | V7: ='S17'!$E$3 -> 15920.75 | W7: =C7 -> Total Expenditure | X7: ='S18'!$E$3 -> 177566.2 | Y7: ='S9'!$E$3 -> 98496.6405 | Z7: ='S19'!$E$3 -> 19450 | AA7: ='S20'!$E$3 -> 137992.875 | AB7: ='S21'!$E$3 -> 23613 | AC7: ='S22'!$E$3 -> 93400 | AD7: ='S25'!$E$3 -> 18965 | AE7: ='S23'!$E$3 -> 65221.25 | AF7: ='S12'!$E$3 -> 0 | AG7: ='S5'!$E$3 -> 0
C9: Net Surplus (Deficit) | D9: =+D6-D7 -> 246 | E9: =+E6-E7 -> -130643 | F9: =SUM(I9:AE9) -> 20878.6845 | G9: -74437.5655 | H9: =C9 -> Net Surplus (Deficit) | I9: =I6-I7 -> -28475 | J9: =J6-J7 -> 33600 | K9: =K6-K7 -> -5955 | L9: 48750 | M9: 4300 | N9: =C9 -> Net Surplus (Deficit) | O9: =O6-O7 -> 800 | P9: =P6-P7 -> 32066 | Q9: =Q6-Q7 -> 2815 | R9: =R6-R7 -> 13500 | S9: =S6-S7 -> 0 | T9: =T6-T7 -> -21254 | U9: 900 | V9: 14269.25 | W9: =C9 -> Net Surplus (Deficit) | X9: 117832.2 | Y9: =Y6-Y7 -> -92996.6405 | Z9: =Z6-Z7 -> -19450 | AA9: =AA6-AA7 -> -17001.875 | AB9: -23613 | AC9: =AC6-AC7 -> -66400 | AD9: =AD6-AD7 -> -13587 | AE9: =AE6-AE7 -> 40778.75 | AF9: =AF6-AF7 -> 0 | AG9: =AG6-AG7 -> 0
F10: =SUM(I10:AE10) -> 0 | G10: 0
A11: 6900 | C11: <--Highest or last Income | F11: =SUM(I11:AE11) -> 0 | G11: 0 | H11: <--Highest or last Income | N11: <--Highest or last Income | W11: <--Highest or last Income
C12: Account No | F12: =SUM(I12:AE12) -> 0 | G12: 0 | H12: Account No | N12: Account No | W12: Account No
G13: 0
B14: 3100 | C14: Beginning Fund Balances | D14: 195785 | E14: 30000 | F14: =SUM(I14:AE14) -> 271700 | G14: 74000 | H14: =C14 -> Beginning Fund Balances | I14: =SUM(IF(S1AccNO=B14,IF(S1FieldRank<=S1Choice,S1Amount,0),0)) -> 0 | J14: =SUM(IF(S_2AccNO=$B14,IF(S_2FieldRank<=S_2Choice,S_2Amount,0),0)) -> 53000 | K14: =SUM(IF(S_6AccNO=$B14,IF(S_6FieldRank<=s_6Choice,S_6Amount,0),0)) -> 0 | L14: =SUM(IF(S_7AccNO=$B14,IF(S_7FieldRank<=S_7Choice,S_7Amount,0),0)) -> 61500 | M14: =SUM(IF(S_8AccNO=$B14,IF(S_8FieldRank<=S_8Choice,S_8Amount,0),0)) -> 8200 | N14: =C14 -> Beginning Fund Balances | O14: =SUM(IF(S_11AccNO=$B14,IF(S_11FieldRank<=S_11Choice,S_11Amount,0),0)) -> 11000 | P14: =SUM(IF(S_3AccNO=$B14,IF(S_3FieldRank<=S_3Choice,S_3Amount,0),0)) -> 30000 | Q14: =SUM(IF(S_4AccNO=$B14,IF(S_4FieldRank<=S_4Choice,S_4Amount,0),0)) -> 4000 | R14: =SUM(IF(S_10AccNO=$B14,IF(S_10FieldRank<=S_10Choice,S_10Amount,0),0)) -> 0 | S14: =SUM(IF(S_13AccNO=$B14,IF(S_13FieldRank<=S_13Choice,S_13Amount,0),0)) -> 0 | T14: =SUM(IF(S_15AccNO=$B14,IF(S_15FieldRank<=S_15Choice,S_15Amount,0),0)) -> 30000 | U14: =SUM(IF(S_16AccNO=$B14,IF(S_16FieldRank<=S_16Choice,S_16Amount,0),0)) -> 0 | V14: =SUM(IF(S_17AccNO=$B14,IF(S_17FieldRank<=S_17Choice,S_17Amount,0),0)) -> 0 | W14: =C14 -> Beginning Fund Balances | X14: =SUM(IF(S_18AccNO=$B14,IF(S_18FieldRank<=S_18Choice,S_18Amount,0),0)) -> 74000 | Y14: =SUM(IF(S_9AccNO=$B14,IF(S_9FieldRank<=S_9Choice,S_9Amount,0),0)) -> 0 | Z14: =SUM(IF(S_19AccNO=$B14,IF(S_19FieldRank<=S_19Choice,S_19Amount,0),0)) -> 0 | AA14: =SUM(IF(S_20AccNo=$B14,IF(S_20FieldRank<=S_20Choice,S_20Amount,0),0)) -> 0 | AB14: =SUM(IF(S_21AccNo=$B14,IF(S_21FieldRank<=S_21Choice,S_21Amount,0),0)) -> 0 | AC14: =SUM(IF(S_22AccNo=$B14,IF(S_22FieldRank<=S_22Choice,S_22Amount,0),0)) -> 0 | AD14: =SUM(IF(S_23AccNo=$B14,IF(S_23FieldRank<=S_23Choice,S_23Amount,0),0)) -> 0 | AE14: =SUM(IF(S_23AccNo=$B14,IF(S_23FieldRank<=S_23Choice,S_23Amount,0),0)) -> 0 | AF14: =SUM(IF(S_12AccNO=$B14,IF(S_12FieldRank<=S_12Choice,S_12Amount,0),0)) -> 0 | AG14: =SUM(IF(S_5AccNO=$B14,IF(S_5FieldRank<=S_5Choice,S_5Amount,0),0)) -> 0
B15: 4100 | C15: Operations Assessment | D15: 14341 | E15: 89843 | F15: 11842.4 | G15: =SUM(X15:AE15) -> 94226.4 | H15: Operations Assessment | I15: =SUM(IF(S1AccNO=B15,IF(S1FieldRank<=S1Choice,S1Amount,0),0)) -> -9000 | J15: =SUM(IF(S_2AccNO=$B15,IF(S_2FieldRank<=S_2Choice,S_2Amount,0),0)) -> -43159 | K15: =SUM(IF(S_6AccNO=$B15,IF(S_6FieldRank<=s_6Choice,S_6Amount,0),0)) -> 0 | L15: =SUM(IF(S_7AccNO=$B15,IF(S_7FieldRank<=S_7Choice,S_7Amount,0),0)) -> -11200 | M15: =SUM(IF(S_8AccNO=$B15,IF(S_8FieldRank<=S_8Choice,S_8Amount,0),0)) -> -1950 | N15: Operations Assessment | O15: =SUM(IF(S_11AccNO=$B15,IF(S_11FieldRank<=S_11Choice,S_11Amount,0),0)) -> 0 | P15: =-(P19*0.1) -> -240 | Q15: =SUM(IF(S_4AccNO=$B15,IF(S_4FieldRank<=S_4Choice,S_4Amount,0),0)) -> -600 | R15: =SUM(IF(S_10AccNO=$B15,IF(S_10FieldRank<=S_10Choice,S_10Amount,0),0)) -> -1500 | S15: =SUM(IF(S_13AccNO=$B15,IF(S_13FieldRank<=S_13Choice,S_13Amount,0),0)) -> -4000 | T15: =-(T19*0.1) -> -5235 | U15: =SUM(IF(S_16AccNO=$B15,IF(S_16FieldRank<=S_16Choice,S_16Amount,0),0)) -> -5500 | V15: =SUM(IF(S_17AccNO=$B15,IF(S_17FieldRank<=S_17Choice,S_17Amount,0),0)) -> 0 | W15: Operations Assessment | X15: =SUM(IF(S_18AccNO=$B15,IF(S_18FieldRank<=S_18Choice,S_18Amount,0),0)) -> 94226.4 | Y15: =SUM(IF(S_9AccNO=$B15,IF(S_9FieldRank<=S_9Choice,S_9Amount,0),0)) -> 0 | Z15: =SUM(IF(S_19AccNO=$B15,IF(S_19FieldRank<=S_19Choice,S_19Amount,0),0)) -> 0 | AA15: =SUM(IF(S_20AccNo=$B15,IF(S_20FieldRank<=S_20Choice,S_20Amount,0),0)) -> 0 | AB15: =SUM(IF(S_21AccNo=$B15,IF(S_21FieldRank<=S_21Choice,S_21Amount,0),0)) -> 0 | AC15: =SUM(IF(S_22AccNo=$B15,IF(S_22FieldRank<=S_22Choice,S_22Amount,0),0)) -> 0 | AE15: =SUM(IF(S_23AccNo=$B15,IF(S_23FieldRank<=S_23Choice,S_23Amount,0),0)) -> 0 | AF15: 0 | AG15: =SUM(IF(S_5AccNO=$B15,IF(S_5FieldRank<=S_5Choice,S_5Amount,0),0)) -> 0 | AH15: =SUM(I15:V15) -> -82384
B16: 4400 | C16: Inter-fund Transfers | D16: 5000 | E16: 5000 | F16: 0 | G16: 0 | H16: Inter-fund Transfers | I16: =SUM(IF(S1AccNO=B16,IF(S1FieldRank<=S1Choice,S1Amount,0),0)) -> 0 | J16: =SUM(IF(S_2AccNO=$B16,IF(S_2FieldRank<=S_2Choice,S_2Amount,0),0)) -> 0 | K16: =SUM(IF(S_6AccNO=$B16,IF(S_6FieldRank<=s_6Choice,S_6Amount,0),0)) -> 0 | L16: =SUM(IF(S_7AccNO=$B16,IF(S_7FieldRank<=S_7Choice,S_7Amount,0),0)) -> 0 | M16: =SUM(IF(S_8AccNO=$B16,IF(S_8FieldRank<=S_8Choice,S_8Amount,0),0)) -> 0 | N16: Inter-fund Transfers | O16: =SUM(IF(S_11AccNO=$B16,IF(S_11FieldRank<=S_11Choice,S_11Amount,0),0)) -> 0 | P16: =SUM(IF(S_3AccNO=$B16,IF(S_3FieldRank<=S_3Choice,S_3Amount,0),0)) -> 0 | Q16: =SUM(IF(S_4AccNO=$B16,IF(S_4FieldRank<=S_4Choice,S_4Amount,0),0)) -> 0 | R16: =SUM(IF(S_10AccNO=$B16,IF(S_10FieldRank<=S_10Choice,S_10Amount,0),0)) -> 0 | S16: =SUM(IF(S_13AccNO=$B16,IF(S_13FieldRank<=S_13Choice,S_13Amount,0),0)) -> 0 | T16: =SUM(IF(S_15AccNO=$B16,IF(S_15FieldRank<=S_15Choice,S_15Amount,0),0)) -> 0 | U16: =SUM(IF(S_16AccNO=$B16,IF(S_16FieldRank<=S_16Choice,S_16Amount,0),0)) -> 0 | V16: =SUM(IF(S_17AccNO=$B16,IF(S_17FieldRank<=S_17Choice,S_17Amount,0),0)) -> 0 | W16: Inter-fund Transfers | X16: =SUM(IF(S_18AccNO=$B16,IF(S_18FieldRank<=S_18Choice,S_18Amount,0),0)) -> 0 | Y16: =SUM(IF(S_9AccNO=$B16,IF(S_9FieldRank<=S_9Choice,S_9Amount,0),0)) -> 0 | Z16: =SUM(IF(S_19AccNO=$B16,IF(S_19FieldRank<=S_19Choice,S_19Amount,0),0)) -> 0 | AA16: =SUM(IF(S_20AccNo=$B16,IF(S_20FieldRank<=S_20Choice,S_20Amount,0),0)) -> 0 | AB16: =SUM(IF(S_21AccNo=$B16,IF(S_21FieldRank<=S_21Choice,S_21Amount,0),0)) -> 0 | AC16: =SUM(IF(S_22AccNo=$B16,IF(S_22FieldRank<=S_22Choice,S_22Amount,0),0)) -> 0 | AE16: =SUM(IF(S_23AccNo=$B16,IF(S_23FieldRank<=S_23Choice,S_23Amount,0),0)) -> 0 | AF16: 0 | AG16: =SUM(IF(S_5AccNO=$B16,IF(S_5FieldRank<=S_5Choice,S_5Amount,0),0)) -> 0
B17: 5001 | C17: Cash Gifts - Staff Support | D17: 1572726 | E17: 41950 | F17: 1628512 | G17: 41172 | H17: Cash Gifts - Staff Support | I17: =SUM(IF(S1AccNO=B17,IF(S1FieldRank<=S1Choice,S1Amount,0),0)) -> 90000 | J17: =SUM(IF(S_2AccNO=$B17,IF(S_2FieldRank<=S_2Choice,S_2Amount,0),0)) -> 457340 | K17: =SUM(IF(S_6AccNO=$B17,IF(S_6FieldRank<=s_6Choice,S_6Amount,0),0)) -> 0 | L17: =SUM(IF(S_7AccNO=$B17,IF(S_7FieldRank<=S_7Choice,S_7Amount,0),0)) -> 109000 | M17: =SUM(IF(S_8AccNO=$B17,IF(S_8FieldRank<=S_8Choice,S_8Amount,0),0)) -> 0 | N17: Cash Gifts - Staff Support | O17: =SUM(IF(S_11AccNO=$B17,IF(S_11FieldRank<=S_11Choice,S_11Amount,0),0)) -> 0 | P17: =SUM(IF(S_3AccNO=$B17,IF(S_3FieldRank<=S_3Choice,S_3Amount,0),0)) -> 0 | Q17: =SUM(IF(S_4AccNO=$B17,IF(S_4FieldRank<=S_4Choice,S_4Amount,0),0)) -> 0 | R17: =SUM(IF(S_10AccNO=$B17,IF(S_10FieldRank<=S_10Choice,S_10Amount,0),0)) -> 15000 | S17: =SUM(IF(S_13AccNO=$B17,IF(S_13FieldRank<=S_13Choice,S_13Amount,0),0)) -> 806000 | T17: =SUM(IF(S_15AccNO=$B17,IF(S_15FieldRank<=S_15Choice,S_15Amount,0),0)) -> 0 | U17: =SUM(IF(S_16AccNO=$B17,IF(S_16FieldRank<=S_16Choice,S_16Amount,0),0)) -> 110000 | V17: =SUM(IF(S_17AccNO=$B17,IF(S_17FieldRank<=S_17Choice,S_17Amount,0),0)) -> 0 | W17: Cash Gifts - Staff Support | X17: =SUM(IF(S_18AccNO=$B17,IF(S_18FieldRank<=S_18Choice,S_18Amount,0),0)) -> 14172 | Y17: =SUM(IF(S_9AccNO=$B17,IF(S_9FieldRank<=S_9Choice,S_9Amount,0),0)) -> 0 | Z17: =SUM(IF(S_19AccNO=$B17,IF(S_19FieldRank<=S_19Choice,S_19Amount,0),0)) -> 0 | AA17: =SUM(IF(S_20AccNo=$B17,IF(S_20FieldRank<=S_20Choice,S_20Amount,0),0)) -> 0 | AB17: =SUM(IF(S_21AccNo=$B17,IF(S_21FieldRank<=S_21Choice,S_21Amount,0),0)) -> 0 | AC17: =SUM(IF(S_22AccNo=$B17,IF(S_22FieldRank<=S_22Choice,S_22Amount,0),0)) -> 27000 | AD17: =GETPIVOTDATA("Amount",'S25'!$J$5,"Acc_NO",7001) -> 0 | AE17: =SUM(IF(S_23AccNo=$B17,IF(S_23FieldRank<=S_23Choice,S_23Amount,0),0)) -> 0 | AF17: 0 | AG17: =SUM(IF(S_5AccNO=$B17,IF(S_5FieldRank<=S_5Choice,S_5Amount,0),0)) -> 0
B18: 5002 | C18: Gifts-in-kind - Staff support | D18: 0 | E18: 0 | F18: 0 | G18: 0 | H18: Gifts-in-kind - Staff support | I18: =SUM(IF(S1AccNO=B18,IF(S1FieldRank<=S1Choice,S1Amount,0),0)) -> 0 | J18: =SUM(IF(S_2AccNO=$B18,IF(S_2FieldRank<=S_2Choice,S_2Amount,0),0)) -> 0 | K18: =SUM(IF(S_6AccNO=$B18,IF(S_6FieldRank<=s_6Choice,S_6Amount,0),0)) -> 0 | L18: =SUM(IF(S_7AccNO=$B18,IF(S_7FieldRank<=S_7Choice,S_7Amount,0),0)) -> 0 | M18: =SUM(IF(S_8AccNO=$B18,IF(S_8FieldRank<=S_8Choice,S_8Amount,0),0)) -> 0 | N18: Gifts-in-kind - Staff support | O18: =SUM(IF(S_11AccNO=$B18,IF(S_11FieldRank<=S_11Choice,S_11Amount,0),0)) -> 0 | P18: =SUM(IF(S_3AccNO=$B18,IF(S_3FieldRank<=S_3Choice,S_3Amount,0),0)) -> 0 | Q18: =SUM(IF(S_4AccNO=$B18,IF(S_4FieldRank<=S_4Choice,S_4Amount,0),0)) -> 0 | R18: =SUM(IF(S_10AccNO=$B18,IF(S_10FieldRank<=S_10Choice,S_10Amount,0),0)) -> 0 | S18: =SUM(IF(S_13AccNO=$B18,IF(S_13FieldRank<=S_13Choice,S_13Amount,0),0)) -> 0 | T18: =SUM(IF(S_15AccNO=$B18,IF(S_15FieldRank<=S_15Choice,S_15Amount,0),0)) -> 0 | U18: =SUM(IF(S_16AccNO=$B18,IF(S_16FieldRank<=S_16Choice,S_16Amount,0),0)) -> 0 | V18: =SUM(IF(S_17AccNO=$B18,IF(S_17FieldRank<=S_17Choice,S_17Amount,0),0)) -> 0 | W18: Gifts-in-kind - Staff support | X18: =SUM(IF(S_18AccNO=$B18,IF(S_18FieldRank<=S_18Choice,S_18Amount,0),0)) -> 0 | Y18: =SUM(IF(S_9AccNO=$B18,IF(S_9FieldRank<=S_9Choice,S_9Amount,0),0)) -> 0 | Z18: =SUM(IF(S_19AccNO=$B18,IF(S_19FieldRank<=S_19Choice,S_19Amount,0),0)) -> 0 | AA18: =SUM(IF(S_20AccNo=$B18,IF(S_20FieldRank<=S_20Choice,S_20Amount,0),0)) -> 0 | AB18: =SUM(IF(S_21AccNo=$B18,IF(S_21FieldRank<=S_21Choice,S_21Amount,0),0)) -> 0 | AC18: =SUM(IF(S_22AccNo=$B18,IF(S_22FieldRank<=S_22Choice,S_22Amount,0),0)) -> 0 | AE18: =SUM(IF(S_23AccNo=$B18,IF(S_23FieldRank<=S_23Choice,S_23Amount,0),0)) -> 0 | AF18: 0 | AG18: =SUM(IF(S_5AccNO=$B18,IF(S_5FieldRank<=S_5Choice,S_5Amount,0),0)) -> 0
B19: 5004 | C19: Cash Gifts - Programs | D19: 256838 | E19: 176478 | F19: 318619 | G19: 242369 | H19: Cash Gifts - Programs | I19: =SUM(IF(S1AccNO=B19,IF(S1FieldRank<=S1Choice,S1Amount,0),0)) -> 0 | J19: =SUM(IF(S_2AccNO=$B19,IF(S_2FieldRank<=S_2Choice,S_2Amount,0),0)) -> 0 | K19: =SUM(IF(S_6AccNO=$B19,IF(S_6FieldRank<=s_6Choice,S_6Amount,0),0)) -> 0 | L19: =SUM(IF(S_7AccNO=$B19,IF(S_7FieldRank<=S_7Choice,S_7Amount,0),0)) -> 3000 | M19: =SUM(IF(S_8AccNO=$B19,IF(S_8FieldRank<=S_8Choice,S_8Amount,0),0)) -> 0 | N19: Cash Gifts - Programs | O19: =SUM(IF(S_11AccNO=$B19,IF(S_11FieldRank<=S_11Choice,S_11Amount,0),0)) -> 0 | P19: =SUM(IF(S_3AccNO=$B19,IF(S_3FieldRank<=S_3Choice,S_3Amount,0),0)) -> 2400 | Q19: =SUM(IF(S_4AccNO=$B19,IF(S_4FieldRank<=S_4Choice,S_4Amount,0),0)) -> 0 | S19: =SUM(IF(S_13AccNO=$B19,IF(S_13FieldRank<=S_13Choice,S_13Amount,0),0)) -> 0 | T19: =SUM(IF(S_15AccNO=$B19,IF(S_15FieldRank<=S_15Choice,S_15Amount,0),0)) -> 52350 | U19: =SUM(IF(S_16AccNO=$B19,IF(S_16FieldRank<=S_16Choice,S_16Amount,0),0)) -> 3500 | V19: =SUM(IF(S_17AccNO=$B19,IF(S_17FieldRank<=S_17Choice,S_17Amount,0),0)) -> 15000 | W19: Cash Gifts - Programs | X19: =SUM(IF(S_18AccNO=$B19,IF(S_18FieldRank<=S_18Choice,S_18Amount,0),0)) -> 5000 | Y19: =SUM(IF(S_9AccNO=$B19,IF(S_9FieldRank<=S_9Choice,S_9Amount,0),0)) -> 5000 | Z19: =SUM(IF(S_19AccNO=$B19,IF(S_19FieldRank<=S_19Choice,S_19Amount,0),0)) -> 0 | AA19: =SUM(IF(S_20AccNo=$B19,IF(S_20FieldRank<=S_20Choice,S_20Amount,0),0)) -> 120991 | AB19: =SUM(IF(S_21AccNo=$B19,IF(S_21FieldRank<=S_21Choice,S_21Amount,0),0)) -> 0 | AC19: =SUM(IF(S_22AccNo=$B19,IF(S_22FieldRank<=S_22Choice,S_22Amount,0),0)) -> 0 | AD19: ='S25'!E7 -> 5378 | AE19: =SUM(IF(S_23AccNo=$B19,IF(S_23FieldRank<=S_23Choice,S_23Amount,0),0)) -> 106000 | AF19: 0 | AG19: =SUM(IF(S_5AccNO=$B19,IF(S_5FieldRank<=S_5Choice,S_5Amount,0),0)) -> 0
B20: 5005 | C20: Gifts-in-Kind - Programs | E20: 0 | F20: 0 | G20: 0 | H20: Gifts-in-Kind - Programs | I20: =SUM(IF(S1AccNO=B20,IF(S1FieldRank<=S1Choice,S1Amount,0),0)) -> 0 | J20: =SUM(IF(S_2AccNO=$B20,IF(S_2FieldRank<=S_2Choice,S_2Amount,0),0)) -> 0 | K20: =SUM(IF(S_6AccNO=$B20,IF(S_6FieldRank<=s_6Choice,S_6Amount,0),0)) -> 0 | L20: =SUM(IF(S_7AccNO=$B20,IF(S_7FieldRank<=S_7Choice,S_7Amount,0),0)) -> 0 | M20: =SUM(IF(S_8AccNO=$B20,IF(S_8FieldRank<=S_8Choice,S_8Amount,0),0)) -> 0 | N20: Gifts-in-Kind - Programs | O20: =SUM(IF(S_11AccNO=$B20,IF(S_11FieldRank<=S_11Choice,S_11Amount,0),0)) -> 0 | P20: =SUM(IF(S_3AccNO=$B20,IF(S_3FieldRank<=S_3Choice,S_3Amount,0),0)) -> 0 | Q20: =SUM(IF(S_4AccNO=$B20,IF(S_4FieldRank<=S_4Choice,S_4Amount,0),0)) -> 0 | S20: =SUM(IF(S_13AccNO=$B20,IF(S_13FieldRank<=S_13Choice,S_13Amount,0),0)) -> 0 | T20: =SUM(IF(S_15AccNO=$B20,IF(S_15FieldRank<=S_15Choice,S_15Amount,0),0)) -> 0 | U20: =SUM(IF(S_16AccNO=$B20,IF(S_16FieldRank<=S_16Choice,S_16Amount,0),0)) -> 0 | V20: =SUM(IF(S_17AccNO=$B20,IF(S_17FieldRank<=S_17Choice,S_17Amount,0),0)) -> 0 | W20: Gifts-in-Kind - Programs | X20: =SUM(IF(S_18AccNO=$B20,IF(S_18FieldRank<=S_18Choice,S_18Amount,0),0)) -> 0 | Y20: =SUM(IF(S_9AccNO=$B20,IF(S_9FieldRank<=S_9Choice,S_9Amount,0),0)) -> 0 | Z20: =SUM(IF(S_19AccNO=$B20,IF(S_19FieldRank<=S_19Choice,S_19Amount,0),0)) -> 0 | AA20: =SUM(IF(S_20AccNo=$B20,IF(S_20FieldRank<=S_20Choice,S_20Amount,0),0)) -> 0 | AB20: =SUM(IF(S_21AccNo=$B20,IF(S_21FieldRank<=S_21Choice,S_21Amount,0),0)) -> 0 | AC20: =SUM(IF(S_22AccNo=$B20,IF(S_22FieldRank<=S_22Choice,S_22Amount,0),0)) -> 0 | AE20: =SUM(IF(S_23AccNo=$B20,IF(S_23FieldRank<=S_23Choice,S_23Amount,0),0)) -> 0 | AF20: 0 | AG20: =SUM(IF(S_5AccNO=$B20,IF(S_5FieldRank<=S_5Choice,S_5Amount,0),0)) -> 0
B21: 6200 | C21: Program Fees | D21: 83279 | E21: 2000 | F21: 78540 | G21: 2000 | H21: Program Fees | I21: =SUM(IF(S1AccNO=B21,IF(S1FieldRank<=S1Choice,S1Amount,0),0)) -> 0 | J21: =SUM(IF(S_2AccNO=$B21,IF(S_2FieldRank<=S_2Choice,S_2Amount,0),0)) -> 0 | K21: =SUM(IF(S_6AccNO=$B21,IF(S_6FieldRank<=s_6Choice,S_6Amount,0),0)) -> 0 | L21: =SUM(IF(S_7AccNO=$B21,IF(S_7FieldRank<=S_7Choice,S_7Amount,0),0)) -> 0 | M21: =SUM(IF(S_8AccNO=$B21,IF(S_8FieldRank<=S_8Choice,S_8Amount,0),0)) -> 17550 | N21: Program Fees | O21: =SUM(IF(S_11AccNO=$B21,IF(S_11FieldRank<=S_11Choice,S_11Amount,0),0)) -> 0 | P21: =SUM(IF(S_3AccNO=$B21,IF(S_3FieldRank<=S_3Choice,S_3Amount,0),0)) -> 37800 | Q21: =SUM(IF(S_4AccNO=$B21,IF(S_4FieldRank<=S_4Choice,S_4Amount,0),0)) -> 6000 | R21: =SUM(IF(S_10AccNO=$B21,IF(S_10FieldRank<=S_10Choice,S_10Amount,0),0)) -> 0 | S21: =SUM(IF(S_13AccNO=$B21,IF(S_13FieldRank<=S_13Choice,S_13Amount,0),0)) -> 0 | T21: =SUM(IF(S_15AccNO=$B21,IF(S_15FieldRank<=S_15Choice,S_15Amount,0),0)) -> 0 | U21: =SUM(IF(S_16AccNO=$B21,IF(S_16FieldRank<=S_16Choice,S_16Amount,0),0)) -> 0 | V21: =SUM(IF(S_17AccNO=$B21,IF(S_17FieldRank<=S_17Choice,S_17Amount,0),0)) -> 15190 | W21: Program Fees | X21: =SUM(IF(S_18AccNO=$B21,IF(S_18FieldRank<=S_18Choice,S_18Amount,0),0)) -> 2000 | Y21: =SUM(IF(S_9AccNO=$B21,IF(S_9FieldRank<=S_9Choice,S_9Amount,0),0)) -> 0 | Z21: =SUM(IF(S_19AccNO=$B21,IF(S_19FieldRank<=S_19Choice,S_19Amount,0),0)) -> 0 | AA21: =SUM(IF(S_20AccNo=$B21,IF(S_20FieldRank<=S_20Choice,S_20Amount,0),0)) -> 0 | AB21: =SUM(IF(S_21AccNo=$B21,IF(S_21FieldRank<=S_21Choice,S_21Amount,0),0)) -> 0 | AC21: =SUM(IF(S_22AccNo=$B21,IF(S_22FieldRank<=S_22Choice,S_22Amount,0),0)) -> 0 | AE21: =SUM(IF(S_23AccNo=$B21,IF(S_23FieldRank<=S_23Choice,S_23Amount,0),0)) -> 0 | AF21: 0 | AG21: =SUM(IF(S_5AccNO=$B21,IF(S_5FieldRank<=S_5Choice,S_5Amount,0),0)) -> 0
B22: 6210 | C22: Rental Income | D22: 122000 | E22: 0 | F22: 134750 | G22: 6000 | H22: Rental Income | I22: =SUM(IF(S1AccNO=B22,IF(S1FieldRank<=S1Choice,S1Amount,0),0)) -> 0 | J22: =SUM(IF(S_2AccNO=$B22,IF(S_2FieldRank<=S_2Choice,S_2Amount,0),0)) -> 0 | K22: =SUM(IF(S_6AccNO=$B22,IF(S_6FieldRank<=s_6Choice,S_6Amount,0),0)) -> 0 | L22: =SUM(IF(S_7AccNO=$B22,IF(S_7FieldRank<=S_7Choice,S_7Amount,0),0)) -> 0 | M22: =SUM(IF(S_8AccNO=$B22,IF(S_8FieldRank<=S_8Choice,S_8Amount,0),0)) -> 0 | N22: Rental Income | O22: =SUM(IF(S_11AccNO=$B22,IF(S_11FieldRank<=S_11Choice,S_11Amount,0),0)) -> 0 | P22: =SUM(IF(S_3AccNO=$B22,IF(S_3FieldRank<=S_3Choice,S_3Amount,0),0)) -> 0 | Q22: =SUM(IF(S_4AccNO=$B22,IF(S_4FieldRank<=S_4Choice,S_4Amount,0),0)) -> 0 | R22: =SUM(IF(S_10AccNO=$B22,IF(S_10FieldRank<=S_10Choice,S_10Amount,0),0)) -> 0 | S22: =SUM(IF(S_13AccNO=$B22,IF(S_13FieldRank<=S_13Choice,S_13Amount,0),0)) -> 0 | T22: =SUM(IF(S_15AccNO=$B22,IF(S_15FieldRank<=S_15Choice,S_15Amount,0),0)) -> 128750 | U22: =SUM(IF(S_16AccNO=$B22,IF(S_16FieldRank<=S_16Choice,S_16Amount,0),0)) -> 0 | V22: =SUM(IF(S_17AccNO=$B22,IF(S_17FieldRank<=S_17Choice,S_17Amount,0),0)) -> 0 | W22: Rental Income | X22: 6000 | Y22: =SUM(IF(S_9AccNO=$B22,IF(S_9FieldRank<=S_9Choice,S_9Amount,0),0)) -> 0 | Z22: =SUM(IF(S_19AccNO=$B22,IF(S_19FieldRank<=S_19Choice,S_19Amount,0),0)) -> 0 | AA22: =SUM(IF(S_20AccNo=$B22,IF(S_20FieldRank<=S_20Choice,S_20Amount,0),0)) -> 0 | AB22: =SUM(IF(S_21AccNo=$B22,IF(S_21FieldRank<=S_21Choice,S_21Amount,0),0)) -> 0 | AC22: =SUM(IF(S_22AccNo=$B22,IF(S_22FieldRank<=S_22Choice,S_22Amount,0),0)) -> 0 | AE22: =SUM(IF(S_23AccNo=$B22,IF(S_23FieldRank<=S_23Choice,S_23Amount,0),0)) -> 0 | AF22: 0 | AG22: =SUM(IF(S_5AccNO=$B22,IF(S_5FieldRank<=S_5Choice,S_5Amount,0),0)) -> 0
B23: 6400 | C23: Sales | D23: 400 | E23: 400 | F23: 500 | G23: 500 | H23: Sales | I23: =SUM(IF(S1AccNO=B23,IF(S1FieldRank<=S1Choice,S1Amount,0),0)) -> 0 | J23: =SUM(IF(S_2AccNO=$B23,IF(S_2FieldRank<=S_2Choice,S_2Amount,0),0)) -> 0 | K23: =SUM(IF(S_6AccNO=$B23,IF(S_6FieldRank<=s_6Choice,S_6Amount,0),0)) -> 0 | L23: =SUM(IF(S_7AccNO=$B23,IF(S_7FieldRank<=S_7Choice,S_7Amount,0),0)) -> 0 | M23: =SUM(IF(S_8AccNO=$B23,IF(S_8FieldRank<=S_8Choice,S_8Amount,0),0)) -> 0 | N23: Sales | O23: =SUM(IF(S_11AccNO=$B23,IF(S_11FieldRank<=S_11Choice,S_11Amount,0),0)) -> 0 | P23: =SUM(IF(S_3AccNO=$B23,IF(S_3FieldRank<=S_3Choice,S_3Amount,0),0)) -> 0 | Q23: =SUM(IF(S_4AccNO=$B23,IF(S_4FieldRank<=S_4Choice,S_4Amount,0),0)) -> 0 | R23: =SUM(IF(S_10AccNO=$B23,IF(S_10FieldRank<=S_10Choice,S_10Amount,0),0)) -> 0 | S23: =SUM(IF(S_13AccNO=$B23,IF(S_13FieldRank<=S_13Choice,S_13Amount,0),0)) -> 0 | T23: =SUM(IF(S_15AccNO=$B23,IF(S_15FieldRank<=S_15Choice,S_15Amount,0),0)) -> 0 | U23: =SUM(IF(S_16AccNO=$B23,IF(S_16FieldRank<=S_16Choice,S_16Amount,0),0)) -> 0 | V23: =SUM(IF(S_17AccNO=$B23,IF(S_17FieldRank<=S_17Choice,S_17Amount,0),0)) -> 0 | W23: Sales | X23: =SUM(IF(S_18AccNO=$B23,IF(S_18FieldRank<=S_18Choice,S_18Amount,0),0)) -> 0 | Y23: =SUM(IF(S_9AccNO=$B23,IF(S_9FieldRank<=S_9Choice,S_9Amount,0),0)) -> 500 | Z23: =SUM(IF(S_19AccNO=$B23,IF(S_19FieldRank<=S_19Choice,S_19Amount,0),0)) -> 0 | AA23: =SUM(IF(S_20AccNo=$B23,IF(S_20FieldRank<=S_20Choice,S_20Amount,0),0)) -> 0 | AB23: =SUM(IF(S_21AccNo=$B23,IF(S_21FieldRank<=S_21Choice,S_21Amount,0),0)) -> 0 | AC23: =SUM(IF(S_22AccNo=$B23,IF(S_22FieldRank<=S_22Choice,S_22Amount,0),0)) -> 0 | AE23: =SUM(IF(S_23AccNo=$B23,IF(S_23FieldRank<=S_23Choice,S_23Amount,0),0)) -> 0 | AF23: 0 | AG23: =SUM(IF(S_5AccNO=$B23,IF(S_5FieldRank<=S_5Choice,S_5Amount,0),0)) -> 0
B24: 6500 | C24: Interest Income | D24: 96000 | E24: 96000 | F24: 100000 | G24: 100000 | H24: Interest Income | I24: =SUM(IF(S1AccNO=B24,IF(S1FieldRank<=S1Choice,S1Amount,0),0)) -> 0 | J24: =SUM(IF(S_2AccNO=$B24,IF(S_2FieldRank<=S_2Choice,S_2Amount,0),0)) -> 0 | K24: =SUM(IF(S_6AccNO=$B24,IF(S_6FieldRank<=s_6Choice,S_6Amount,0),0)) -> 0 | L24: =SUM(IF(S_7AccNO=$B24,IF(S_7FieldRank<=S_7Choice,S_7Amount,0),0)) -> 0 | M24: =SUM(IF(S_8AccNO=$B24,IF(S_8FieldRank<=S_8Choice,S_8Amount,0),0)) -> 0 | N24: Interest Income | O24: =SUM(IF(S_11AccNO=$B24,IF(S_11FieldRank<=S_11Choice,S_11Amount,0),0)) -> 0 | P24: =SUM(IF(S_3AccNO=$B24,IF(S_3FieldRank<=S_3Choice,S_3Amount,0),0)) -> 0 | Q24: =SUM(IF(S_4AccNO=$B24,IF(S_4FieldRank<=S_4Choice,S_4Amount,0),0)) -> 0 | R24: =SUM(IF(S_10AccNO=$B24,IF(S_10FieldRank<=S_10Choice,S_10Amount,0),0)) -> 0 | S24: =SUM(IF(S_13AccNO=$B24,IF(S_13FieldRank<=S_13Choice,S_13Amount,0),0)) -> 0 | T24: =SUM(IF(S_15AccNO=$B24,IF(S_15FieldRank<=S_15Choice,S_15Amount,0),0)) -> 0 | U24: =SUM(IF(S_16AccNO=$B24,IF(S_16FieldRank<=S_16Choice,S_16Amount,0),0)) -> 0 | V24: =SUM(IF(S_17AccNO=$B24,IF(S_17FieldRank<=S_17Choice,S_17Amount,0),0)) -> 0 | W24: Interest Income | X24: =SUM(IF(S_18AccNO=$B24,IF(S_18FieldRank<=S_18Choice,S_18Amount,0),0)) -> 100000 | Y24: =SUM(IF(S_9AccNO=$B24,IF(S_9FieldRank<=S_9Choice,S_9Amount,0),0)) -> 0 | Z24: =SUM(IF(S_19AccNO=$B24,IF(S_19FieldRank<=S_19Choice,S_19Amount,0),0)) -> 0 | AA24: =SUM(IF(S_20AccNo=$B24,IF(S_20FieldRank<=S_20Choice,S_20Amount,0),0)) -> 0 | AB24: =SUM(IF(S_21AccNo=$B24,IF(S_21FieldRank<=S_21Choice,S_21Amount,0),0)) -> 0 | AC24: =SUM(IF(S_22AccNo=$B24,IF(S_22FieldRank<=S_22Choice,S_22Amount,0),0)) -> 0 | AE24: =SUM(IF(S_23AccNo=$B24,IF(S_23FieldRank<=S_23Choice,S_23Amount,0),0)) -> 0 | AF24: 0 | AG24: =SUM(IF(S_5AccNO=$B24,IF(S_5FieldRank<=S_5Choice,S_5Amount,0),0)) -> 0
B25: 6510 | C25: Market Change | D25: 0 | E25: 0 | F25: 0 | G25: 0 | H25: Market Change | I25: =SUM(IF(S1AccNO=B25,IF(S1FieldRank<=S1Choice,S1Amount,0),0)) -> 0 | J25: =SUM(IF(S_2AccNO=$B25,IF(S_2FieldRank<=S_2Choice,S_2Amount,0),0)) -> 0 | K25: =SUM(IF(S_6AccNO=$B25,IF(S_6FieldRank<=s_6Choice,S_6Amount,0),0)) -> 0 | L25: =SUM(IF(S_7AccNO=$B25,IF(S_7FieldRank<=S_7Choice,S_7Amount,0),0)) -> 0 | M25: =SUM(IF(S_8AccNO=$B25,IF(S_8FieldRank<=S_8Choice,S_8Amount,0),0)) -> 0 | N25: Market Change | O25: =SUM(IF(S_11AccNO=$B25,IF(S_11FieldRank<=S_11Choice,S_11Amount,0),0)) -> 0 | P25: =SUM(IF(S_3AccNO=$B25,IF(S_3FieldRank<=S_3Choice,S_3Amount,0),0)) -> 0 | Q25: =SUM(IF(S_4AccNO=$B25,IF(S_4FieldRank<=S_4Choice,S_4Amount,0),0)) -> 0 | R25: =SUM(IF(S_10AccNO=$B25,IF(S_10FieldRank<=S_10Choice,S_10Amount,0),0)) -> 0 | S25: =SUM(IF(S_13AccNO=$B25,IF(S_13FieldRank<=S_13Choice,S_13Amount,0),0)) -> 0 | T25: =SUM(IF(S_15AccNO=$B25,IF(S_15FieldRank<=S_15Choice,S_15Amount,0),0)) -> 0 | U25: =SUM(IF(S_16AccNO=$B25,IF(S_16FieldRank<=S_16Choice,S_16Amount,0),0)) -> 0 | V25: =SUM(IF(S_17AccNO=$B25,IF(S_17FieldRank<=S_17Choice,S_17Amount,0),0)) -> 0 | W25: Market Change | X25: =SUM(IF(S_18AccNO=$B25,IF(S_18FieldRank<=S_18Choice,S_18Amount,0),0)) -> 0 | Y25: =SUM(IF(S_9AccNO=$B25,IF(S_9FieldRank<=S_9Choice,S_9Amount,0),0)) -> 0 | Z25: =SUM(IF(S_19AccNO=$B25,IF(S_19FieldRank<=S_19Choice,S_19Amount,0),0)) -> 0 | AA25: =SUM(IF(S_20AccNo=$B25,IF(S_20FieldRank<=S_20Choice,S_20Amount,0),0)) -> 0 | AB25: =SUM(IF(S_21AccNo=$B25,IF(S_21FieldRank<=S_21Choice,S_21Amount,0),0)) -> 0 | AC25: =SUM(IF(S_22AccNo=$B25,IF(S_22FieldRank<=S_22Choice,S_22Amount,0),0)) -> 0 | AE25: =SUM(IF(S_23AccNo=$B25,IF(S_23FieldRank<=S_23Choice,S_23Amount,0),0)) -> 0 | AF25: 0 | AG25: =SUM(IF(S_5AccNO=$B25,IF(S_5FieldRank<=S_5Choice,S_5Amount,0),0)) -> 0
B26: 6710 | C26: Gain (Loss) on Assets | D26: 0 | E26: 0 | F26: 0 | G26: 0 | H26: Gain (Loss) on Assets | I26: =SUM(IF(S1AccNO=B26,IF(S1FieldRank<=S1Choice,S1Amount,0),0)) -> 0 | J26: =SUM(IF(S_2AccNO=$B26,IF(S_2FieldRank<=S_2Choice,S_2Amount,0),0)) -> 0 | K26: =SUM(IF(S_6AccNO=$B26,IF(S_6FieldRank<=s_6Choice,S_6Amount,0),0)) -> 0 | L26: =SUM(IF(S_7AccNO=$B26,IF(S_7FieldRank<=S_7Choice,S_7Amount,0),0)) -> 0 | M26: =SUM(IF(S_8AccNO=$B26,IF(S_8FieldRank<=S_8Choice,S_8Amount,0),0)) -> 0 | N26: Gain (Loss) on Assets | O26: =SUM(IF(S_11AccNO=$B26,IF(S_11FieldRank<=S_11Choice,S_11Amount,0),0)) -> 0 | P26: =SUM(IF(S_3AccNO=$B26,IF(S_3FieldRank<=S_3Choice,S_3Amount,0),0)) -> 0 | Q26: =SUM(IF(S_4AccNO=$B26,IF(S_4FieldRank<=S_4Choice,S_4Amount,0),0)) -> 0 | R26: =SUM(IF(S_10AccNO=$B26,IF(S_10FieldRank<=S_10Choice,S_10Amount,0),0)) -> 0 | S26: =SUM(IF(S_13AccNO=$B26,IF(S_13FieldRank<=S_13Choice,S_13Amount,0),0)) -> 0 | T26: =SUM(IF(S_15AccNO=$B26,IF(S_15FieldRank<=S_15Choice,S_15Amount,0),0)) -> 0 | U26: =SUM(IF(S_16AccNO=$B26,IF(S_16FieldRank<=S_16Choice,S_16Amount,0),0)) -> 0 | V26: =SUM(IF(S_17AccNO=$B26,IF(S_17FieldRank<=S_17Choice,S_17Amount,0),0)) -> 0 | W26: Gain (Loss) on Assets | X26: =SUM(IF(S_18AccNO=$B26,IF(S_18FieldRank<=S_18Choice,S_18Amount,0),0)) -> 0 | Y26: =SUM(IF(S_9AccNO=$B26,IF(S_9FieldRank<=S_9Choice,S_9Amount,0),0)) -> 0 | Z26: =SUM(IF(S_19AccNO=$B26,IF(S_19FieldRank<=S_19Choice,S_19Amount,0),0)) -> 0 | AA26: =SUM(IF(S_20AccNo=$B26,IF(S_20FieldRank<=S_20Choice,S_20Amount,0),0)) -> 0 | AB26: =SUM(IF(S_21AccNo=$B26,IF(S_21FieldRank<=S_21Choice,S_21Amount,0),0)) -> 0 | AC26: =SUM(IF(S_22AccNo=$B26,IF(S_22FieldRank<=S_22Choice,S_22Amount,0),0)) -> 0 | AE26: =SUM(IF(S_23AccNo=$B26,IF(S_23FieldRank<=S_23Choice,S_23Amount,0),0)) -> 0 | AF26: 0 | AG26: =SUM(IF(S_5AccNO=$B26,IF(S_5FieldRank<=S_5Choice,S_5Amount,0),0)) -> 0
B27: 6900 | C27: Other income | D27: 200 | E27: 200 | F27: 0 | G27: 0 | H27: Other income | I27: =SUM(IF(S1AccNO=B27,IF(S1FieldRank<=S1Choice,S1Amount,0),0)) -> 0 | J27: =SUM(IF(S_2AccNO=$B27,IF(S_2FieldRank<=S_2Choice,S_2Amount,0),0)) -> 0 | K27: =SUM(IF(S_6AccNO=$B27,IF(S_6FieldRank<=s_6Choice,S_6Amount,0),0)) -> 0 | L27: =SUM(IF(S_7AccNO=$B27,IF(S_7FieldRank<=S_7Choice,S_7Amount,0),0)) -> 0 | M27: =SUM(IF(S_8AccNO=$B27,IF(S_8FieldRank<=S_8Choice,S_8Amount,0),0)) -> 0 | N27: Other income | O27: =SUM(IF(S_11AccNO=$B27,IF(S_11FieldRank<=S_11Choice,S_11Amount,0),0)) -> 0 | P27: =SUM(IF(S_3AccNO=$B27,IF(S_3FieldRank<=S_3Choice,S_3Amount,0),0)) -> 0 | Q27: =SUM(IF(S_4AccNO=$B27,IF(S_4FieldRank<=S_4Choice,S_4Amount,0),0)) -> 0 | R27: =SUM(IF(S_10AccNO=$B27,IF(S_10FieldRank<=S_10Choice,S_10Amount,0),0)) -> 0 | S27: =SUM(IF(S_13AccNO=$B27,IF(S_13FieldRank<=S_13Choice,S_13Amount,0),0)) -> 0 | T27: =SUM(IF(S_15AccNO=$B27,IF(S_15FieldRank<=S_15Choice,S_15Amount,0),0)) -> 0 | U27: =SUM(IF(S_16AccNO=$B27,IF(S_16FieldRank<=S_16Choice,S_16Amount,0),0)) -> 0 | V27: =SUM(IF(S_17AccNO=$B27,IF(S_17FieldRank<=S_17Choice,S_17Amount,0),0)) -> 0 | W27: Other income | X27: =SUM(IF(S_18AccNO=$B27,IF(S_18FieldRank<=S_18Choice,S_18Amount,0),0)) -> 0 | Y27: =SUM(IF(S_9AccNO=$B27,IF(S_9FieldRank<=S_9Choice,S_9Amount,0),0)) -> 0 | Z27: =SUM(IF(S_19AccNO=$B27,IF(S_19FieldRank<=S_19Choice,S_19Amount,0),0)) -> 0 | AA27: =SUM(IF(S_20AccNo=$B27,IF(S_20FieldRank<=S_20Choice,S_20Amount,0),0)) -> 0 | AB27: =SUM(IF(S_21AccNo=$B27,IF(S_21FieldRank<=S_21Choice,S_21Amount,0),0)) -> 0 | AC27: =SUM(IF(S_22AccNo=$B27,IF(S_22FieldRank<=S_22Choice,S_22Amount,0),0)) -> 0 | AE27: =SUM(IF(S_23AccNo=$B27,IF(S_23FieldRank<=S_23Choice,S_23Amount,0),0)) -> 0 | AF27: 0 | AG27: =SUM(IF(S_5AccNO=$B27,IF(S_5FieldRank<=S_5Choice,S_5Amount,0),0)) -> 0
B29: 7001 | C29: Executive Salaries | D29: 212000 | E29: 212000 | F29: =SUM(I29:AE29) -> 270862.55 | G29: 270862.55 | H29: =C29 -> Executive Salaries | I29: =SUM(IF(S1AccNO=B29,IF(S1FieldRank<=S1Choice,S1Amount,0),0)) -> 0 | J29: =SUM(IF(S_2AccNO=$B29,IF(S_2FieldRank<=S_2Choice,S_2Amount,0),0)) -> 0 | K29: =SUM(IF(S_6AccNO=$B29,IF(S_6FieldRank<=s_6Choice,S_6Amount,0),0)) -> 0 | L29: =SUM(IF(S_7AccNO=$B29,IF(S_7FieldRank<=S_7Choice,S_7Amount,0),0)) -> 0 | M29: =SUM(IF(S_8AccNO=$B29,IF(S_8FieldRank<=S_8Choice,S_8Amount,0),0)) -> 0 | N29: =C29 -> Executive Salaries | O29: =SUM(IF(S_11AccNO=$B29,IF(S_11FieldRank<=S_11Choice,S_11Amount,0),0)) -> 0 | P29: =SUM(IF(S_3AccNO=$B29,IF(S_3FieldRank<=S_3Choice,S_3Amount,0),0)) -> 0 | Q29: =SUM(IF(S_4AccNO=$B29,IF(S_4FieldRank<=S_4Choice,S_4Amount,0),0)) -> 0 | R29: =SUM(IF(S_10AccNO=$B29,IF(S_10FieldRank<=S_10Choice,S_10Amount,0),0)) -> 0 | S29: =SUM(IF(S_13AccNO=$B29,IF(S_13FieldRank<=S_13Choice,S_13Amount,0),0)) -> 0 | T29: =SUM(IF(S_15AccNO=$B29,IF(S_15FieldRank<=S_15Choice,S_15Amount,0),0)) -> 0 | U29: =SUM(IF(S_16AccNO=$B29,IF(S_16FieldRank<=S_16Choice,S_16Amount,0),0)) -> 0 | V29: =SUM(IF(S_17AccNO=$B29,IF(S_17FieldRank<=S_17Choice,S_17Amount,0),0)) -> 0 | W29: =C29 -> Executive Salaries | X29: =SUM(IF(S_18AccNO=$B29,IF(S_18FieldRank<=S_18Choice,S_18Amount,0),0)) -> 61112.55 | Y29: =SUM(IF(S_9AccNO=$B29,IF(S_9FieldRank<=S_9Choice,S_9Amount,0),0)) -> 22500 | Z29: =SUM(IF(S_19AccNO=$B29,IF(S_19FieldRank<=S_19Choice,S_19Amount,0),0)) -> 0 | AA29: =SUM(IF(S_20AccNo=$B29,IF(S_20FieldRank<=S_20Choice,S_20Amount,0),0)) -> 107750 | AB29: =SUM(IF(S_21AccNo=$B29,IF(S_21FieldRank<=S_21Choice,S_21Amount,0),0)) -> 0 | AC29: =SUM(IF(S_22AccNo=$B29,IF(S_22FieldRank<=S_22Choice,S_22Amount,0),0)) -> 57000 | AD29: =GETPIVOTDATA("Amount",'S25'!$J$5,"Acc_NO",7001) -> 0 | AE29: =GETPIVOTDATA("Amount",'S23'!$J$7,"Acc_NO",7001) -> 22500 | AF29: =SUM(IF(S_12AccNO=$B29,IF(S_12FieldRank<=S_12Choice,S_12Amount,0),0)) -> 0 | AG29: =SUM(IF(S_5AccNO=$B29,IF(S_5FieldRank<=S_5Choice,S_5Amount,0),0)) -> 0
B30: 7003 | C30: Clerical Salaries | D30: 56732 | E30: 56732 | F30: 63141 | G30: 63141 | H30: Clerical Salaries | I30: =SUM(IF(S1AccNO=B30,IF(S1FieldRank<=S1Choice,S1Amount,0),0)) -> 0 | J30: =SUM(IF(S_2AccNO=$B30,IF(S_2FieldRank<=S_2Choice,S_2Amount,0),0)) -> 0 | K30: =SUM(IF(S_6AccNO=$B30,IF(S_6FieldRank<=s_6Choice,S_6Amount,0),0)) -> 0 | L30: =SUM(IF(S_7AccNO=$B30,IF(S_7FieldRank<=S_7Choice,S_7Amount,0),0)) -> 0 | M30: =SUM(IF(S_8AccNO=$B30,IF(S_8FieldRank<=S_8Choice,S_8Amount,0),0)) -> 0 | N30: Clerical Salaries | O30: =SUM(IF(S_11AccNO=$B30,IF(S_11FieldRank<=S_11Choice,S_11Amount,0),0)) -> 0 | P30: =SUM(IF(S_3AccNO=$B30,IF(S_3FieldRank<=S_3Choice,S_3Amount,0),0)) -> 0 | Q30: =SUM(IF(S_4AccNO=$B30,IF(S_4FieldRank<=S_4Choice,S_4Amount,0),0)) -> 0 | R30: =SUM(IF(S_10AccNO=$B30,IF(S_10FieldRank<=S_10Choice,S_10Amount,0),0)) -> 0 | S30: =SUM(IF(S_13AccNO=$B30,IF(S_13FieldRank<=S_13Choice,S_13Amount,0),0)) -> 0 | T30: =SUM(IF(S_15AccNO=$B30,IF(S_15FieldRank<=S_15Choice,S_15Amount,0),0)) -> 0 | U30: =SUM(IF(S_16AccNO=$B30,IF(S_16FieldRank<=S_16Choice,S_16Amount,0),0)) -> 0 | V30: =SUM(IF(S_17AccNO=$B30,IF(S_17FieldRank<=S_17Choice,S_17Amount,0),0)) -> 0 | W30: Clerical Salaries | X30: =SUM(IF(S_18AccNO=$B30,IF(S_18FieldRank<=S_18Choice,S_18Amount,0),0)) -> 38064 | Y30: =SUM(IF(S_9AccNO=$B30,IF(S_9FieldRank<=S_9Choice,S_9Amount,0),0)) -> 25077 | Z30: =SUM(IF(S_19AccNO=$B30,IF(S_19FieldRank<=S_19Choice,S_19Amount,0),0)) -> 0 | AA30: =SUM(IF(S_20AccNo=$B30,IF(S_20FieldRank<=S_20Choice,S_20Amount,0),0)) -> 0 | AB30: =SUM(IF(S_21AccNo=$B30,IF(S_21FieldRank<=S_21Choice,S_21Amount,0),0)) -> 0 | AC30: =SUM(IF(S_22AccNo=$B30,IF(S_22FieldRank<=S_22Choice,S_22Amount,0),0)) -> 0 | AE30: =SUM(IF(S_23AccNo=$B30,IF(S_23FieldRank<=S_23Choice,S_23Amount,0),0)) -> 0 | AF30: 0 | AG30: =SUM(IF(S_5AccNO=$B30,IF(S_5FieldRank<=S_5Choice,S_5Amount,0),0)) -> 0
B31: 7004 | C31: Other Salaries | D31: 10235 | E31: 1735 | F31: 13266.25 | G31: =SUM(X31:AE31) -> 1766.25 | H31: Other Salaries | I31: =SUM(IF(S1AccNO=B31,IF(S1FieldRank<=S1Choice,S1Amount,0),0)) -> 0 | J31: =SUM(IF(S_2AccNO=$B31,IF(S_2FieldRank<=S_2Choice,S_2Amount,0),0)) -> 0 | K31: =SUM(IF(S_6AccNO=$B31,IF(S_6FieldRank<=s_6Choice,S_6Amount,0),0)) -> 0 | L31: =SUM(IF(S_7AccNO=$B31,IF(S_7FieldRank<=S_7Choice,S_7Amount,0),0)) -> 0 | M31: =SUM(IF(S_8AccNO=$B31,IF(S_8FieldRank<=S_8Choice,S_8Amount,0),0)) -> 0 | N31: Other Salaries | O31: =SUM(IF(S_11AccNO=$B31,IF(S_11FieldRank<=S_11Choice,S_11Amount,0),0)) -> 0 | P31: =SUM(IF(S_3AccNO=$B31,IF(S_3FieldRank<=S_3Choice,S_3Amount,0),0)) -> 0 | Q31: =SUM(IF(S_4AccNO=$B31,IF(S_4FieldRank<=S_4Choice,S_4Amount,0),0)) -> 0 | S31: =SUM(IF(S_13AccNO=$B31,IF(S_13FieldRank<=S_13Choice,S_13Amount,0),0)) -> 0 | T31: =SUM(IF(S_15AccNO=$B31,IF(S_15FieldRank<=S_15Choice,S_15Amount,0),0)) -> 6000 | U31: =SUM(IF(S_16AccNO=$B31,IF(S_16FieldRank<=S_16Choice,S_16Amount,0),0)) -> 0 | V31: =SUM(IF(S_17AccNO=$B31,IF(S_17FieldRank<=S_17Choice,S_17Amount,0),0)) -> 5500 | W31: Other Salaries | X31: =SUM(IF(S_18AccNO=$B31,IF(S_18FieldRank<=S_18Choice,S_18Amount,0),0)) -> 1766.25 | Y31: =SUM(IF(S_9AccNO=$B31,IF(S_9FieldRank<=S_9Choice,S_9Amount,0),0)) -> 0 | Z31: =SUM(IF(S_19AccNO=$B31,IF(S_19FieldRank<=S_19Choice,S_19Amount,0),0)) -> 0 | AA31: =SUM(IF(S_20AccNo=$B31,IF(S_20FieldRank<=S_20Choice,S_20Amount,0),0)) -> 0 | AB31: =SUM(IF(S_21AccNo=$B31,IF(S_21FieldRank<=S_21Choice,S_21Amount,0),0)) -> 0 | AC31: =SUM(IF(S_22AccNo=$B31,IF(S_22FieldRank<=S_22Choice,S_22Amount,0),0)) -> 0 | AE31: =SUM(IF(S_23AccNo=$B31,IF(S_23FieldRank<=S_23Choice,S_23Amount,0),0)) -> 0 | AF31: 0 | AG31: =SUM(IF(S_5AccNO=$B31,IF(S_5FieldRank<=S_5Choice,S_5Amount,0),0)) -> 0
B32: 7005 | C32: Missionary Salaries | D32: 670283 | E32: 41403 | F32: 712059.4 | G32: 39798.4 | H32: Missionary Salaries | I32: =SUM(IF(S1AccNO=B32,IF(S1FieldRank<=S1Choice,S1Amount,0),0)) -> 72600 | J32: =SUM(IF(S_2AccNO=$B32,IF(S_2FieldRank<=S_2Choice,S_2Amount,0),0)) -> 383381 | K32: =SUM(IF(S_6AccNO=$B32,IF(S_6FieldRank<=s_6Choice,S_6Amount,0),0)) -> 0 | L32: =SUM(IF(S_7AccNO=$B32,IF(S_7FieldRank<=S_7Choice,S_7Amount,0),0)) -> 80460 | M32: =SUM(IF(S_8AccNO=$B32,IF(S_8FieldRank<=S_8Choice,S_8Amount,0),0)) -> 0 | N32: Missionary Salaries | O32: =SUM(IF(S_11AccNO=$B32,IF(S_11FieldRank<=S_11Choice,S_11Amount,0),0)) -> 0 | P32: =SUM(IF(S_3AccNO=$B32,IF(S_3FieldRank<=S_3Choice,S_3Amount,0),0)) -> 0 | Q32: =SUM(IF(S_4AccNO=$B32,IF(S_4FieldRank<=S_4Choice,S_4Amount,0),0)) -> 0 | R32: =SUM(IF(S_10AccNO=$B32,IF(S_10FieldRank<=S_10Choice,S_10Amount,0),0)) -> 0 | S32: =SUM(IF(S_13AccNO=$B32,IF(S_13FieldRank<=S_13Choice,S_13Amount,0),0)) -> 39720 | T32: =SUM(IF(S_15AccNO=$B32,IF(S_15FieldRank<=S_15Choice,S_15Amount,0),0)) -> 0 | U32: =SUM(IF(S_16AccNO=$B32,IF(S_16FieldRank<=S_16Choice,S_16Amount,0),0)) -> 96100 | V32: =SUM(IF(S_17AccNO=$B32,IF(S_17FieldRank<=S_17Choice,S_17Amount,0),0)) -> 0 | W32: Missionary Salaries | X32: =SUM(IF(S_18AccNO=$B32,IF(S_18FieldRank<=S_18Choice,S_18Amount,0),0)) -> 12798.4 | Y32: =SUM(IF(S_9AccNO=$B32,IF(S_9FieldRank<=S_9Choice,S_9Amount,0),0)) -> 0 | Z32: =SUM(IF(S_19AccNO=$B32,IF(S_19FieldRank<=S_19Choice,S_19Amount,0),0)) -> 0 | AA32: =SUM(IF(S_20AccNo=$B32,IF(S_20FieldRank<=S_20Choice,S_20Amount,0),0)) -> 0 | AB32: =SUM(IF(S_21AccNo=$B32,IF(S_21FieldRank<=S_21Choice,S_21Amount,0),0)) -> 0 | AC32: =SUM(IF(S_22AccNo=$B32,IF(S_22FieldRank<=S_22Choice,S_22Amount,0),0)) -> 27000 | AE32: =SUM(IF(S_23AccNo=$B32,IF(S_23FieldRank<=S_23Choice,S_23Amount,0),0)) -> 0 | AF32: 0 | AG32: =SUM(IF(S_5AccNO=$B32,IF(S_5FieldRank<=S_5Choice,S_5Amount,0),0)) -> 0
B33: 7103 | C33: Medical Insurance | D33: 300 | E33: 0 | F33: 0 | G33: 0 | H33: Medical Insurance | I33: =SUM(IF(S1AccNO=B33,IF(S1FieldRank<=S1Choice,S1Amount,0),0)) -> 0 | J33: =SUM(IF(S_2AccNO=$B33,IF(S_2FieldRank<=S_2Choice,S_2Amount,0),0)) -> 0 | K33: =SUM(IF(S_6AccNO=$B33,IF(S_6FieldRank<=s_6Choice,S_6Amount,0),0)) -> 0 | L33: =SUM(IF(S_7AccNO=$B33,IF(S_7FieldRank<=S_7Choice,S_7Amount,0),0)) -> 0 | M33: =SUM(IF(S_8AccNO=$B33,IF(S_8FieldRank<=S_8Choice,S_8Amount,0),0)) -> 0 | N33: Medical Insurance | O33: =SUM(IF(S_11AccNO=$B33,IF(S_11FieldRank<=S_11Choice,S_11Amount,0),0)) -> 0 | P33: =SUM(IF(S_3AccNO=$B33,IF(S_3FieldRank<=S_3Choice,S_3Amount,0),0)) -> 0 | Q33: =SUM(IF(S_4AccNO=$B33,IF(S_4FieldRank<=S_4Choice,S_4Amount,0),0)) -> 0 | R33: =SUM(IF(S_10AccNO=$B33,IF(S_10FieldRank<=S_10Choice,S_10Amount,0),0)) -> 0 | S33: =SUM(IF(S_13AccNO=$B33,IF(S_13FieldRank<=S_13Choice,S_13Amount,0),0)) -> 0 | T33: =SUM(IF(S_15AccNO=$B33,IF(S_15FieldRank<=S_15Choice,S_15Amount,0),0)) -> 0 | U33: =SUM(IF(S_16AccNO=$B33,IF(S_16FieldRank<=S_16Choice,S_16Amount,0),0)) -> 0 | V33: =SUM(IF(S_17AccNO=$B33,IF(S_17FieldRank<=S_17Choice,S_17Amount,0),0)) -> 0 | W33: Medical Insurance | X33: =SUM(IF(S_18AccNO=$B33,IF(S_18FieldRank<=S_18Choice,S_18Amount,0),0)) -> 0 | Y33: =SUM(IF(S_9AccNO=$B33,IF(S_9FieldRank<=S_9Choice,S_9Amount,0),0)) -> 0 | Z33: =SUM(IF(S_19AccNO=$B33,IF(S_19FieldRank<=S_19Choice,S_19Amount,0),0)) -> 0 | AA33: =SUM(IF(S_20AccNo=$B33,IF(S_20FieldRank<=S_20Choice,S_20Amount,0),0)) -> 0 | AB33: =SUM(IF(S_21AccNo=$B33,IF(S_21FieldRank<=S_21Choice,S_21Amount,0),0)) -> 0 | AC33: =SUM(IF(S_22AccNo=$B33,IF(S_22FieldRank<=S_22Choice,S_22Amount,0),0)) -> 0 | AE33: =SUM(IF(S_23AccNo=$B33,IF(S_23FieldRank<=S_23Choice,S_23Amount,0),0)) -> 0 | AF33: 0 | AG33: =SUM(IF(S_5AccNO=$B33,IF(S_5FieldRank<=S_5Choice,S_5Amount,0),0)) -> 0
B34: 7201 | C34: Payroll Tax | D34: 17439 | E34: 16789 | F34: 26983.5155 | G34: 26103.7655 | H34: Payroll Tax | I34: =SUM(IF(S1AccNO=B34,IF(S1FieldRank<=S1Choice,S1Amount,0),0)) -> 0 | J34: =SUM(IF(S_2AccNO=$B34,IF(S_2FieldRank<=S_2Choice,S_2Amount,0),0)) -> 0 | K34: =SUM(IF(S_6AccNO=$B34,IF(S_6FieldRank<=s_6Choice,S_6Amount,0),0)) -> 0 | L34: =SUM(IF(S_7AccNO=$B34,IF(S_7FieldRank<=S_7Choice,S_7Amount,0),0)) -> 0 | M34: =SUM(IF(S_8AccNO=$B34,IF(S_8FieldRank<=S_8Choice,S_8Amount,0),0)) -> 0 | N34: Payroll Tax | O34: =SUM(IF(S_11AccNO=$B34,IF(S_11FieldRank<=S_11Choice,S_11Amount,0),0)) -> 0 | P34: =SUM(IF(S_3AccNO=$B34,IF(S_3FieldRank<=S_3Choice,S_3Amount,0),0)) -> 0 | Q34: =SUM(IF(S_4AccNO=$B34,IF(S_4FieldRank<=S_4Choice,S_4Amount,0),0)) -> 0 | R34: =SUM(IF(S_10AccNO=$B34,IF(S_10FieldRank<=S_10Choice,S_10Amount,0),0)) -> 0 | S34: =SUM(IF(S_13AccNO=$B34,IF(S_13FieldRank<=S_13Choice,S_13Amount,0),0)) -> 0 | T34: =SUM(IF(S_15AccNO=$B34,IF(S_15FieldRank<=S_15Choice,S_15Amount,0),0)) -> 459 | U34: =SUM(IF(S_16AccNO=$B34,IF(S_16FieldRank<=S_16Choice,S_16Amount,0),0)) -> 0 | V34: =SUM(IF(S_17AccNO=$B34,IF(S_17FieldRank<=S_17Choice,S_17Amount,0),0)) -> 420.75 | W34: Payroll Tax | X34: =SUM(IF(S_18AccNO=$B34,IF(S_18FieldRank<=S_18Choice,S_18Amount,0),0)) -> 6000 | Y34: =SUM(IF(S_9AccNO=$B34,IF(S_9FieldRank<=S_9Choice,S_9Amount,0),0)) -> 3639.6405 | Z34: =SUM(IF(S_19AccNO=$B34,IF(S_19FieldRank<=S_19Choice,S_19Amount,0),0)) -> 0 | AA34: =SUM(IF(S_20AccNo=$B34,IF(S_20FieldRank<=S_20Choice,S_20Amount,0),0)) -> 8242.875 | AB34: =SUM(IF(S_21AccNo=$B34,IF(S_21FieldRank<=S_21Choice,S_21Amount,0),0)) -> 0 | AC34: =SUM(IF(S_22AccNo=$B34,IF(S_22FieldRank<=S_22Choice,S_22Amount,0),0)) -> 6500 | AE34: =GETPIVOTDATA("Amount",'S23'!$J$7,"Acc_NO",7201) -> 1721.25 | AF34: 0 | AG34: =SUM(IF(S_5AccNO=$B34,IF(S_5FieldRank<=S_5Choice,S_5Amount,0),0)) -> 0
B35: 7203 | C35: Employment Insurance | D35: 4350 | E35: 450 | F35: 4600 | G35: 800 | H35: Employment Insurance | I35: =SUM(IF(S1AccNO=B35,IF(S1FieldRank<=S1Choice,S1Amount,0),0)) -> 3800 | J35: =SUM(IF(S_2AccNO=$B35,IF(S_2FieldRank<=S_2Choice,S_2Amount,0),0)) -> 0 | K35: =SUM(IF(S_6AccNO=$B35,IF(S_6FieldRank<=s_6Choice,S_6Amount,0),0)) -> 0 | L35: =SUM(IF(S_7AccNO=$B35,IF(S_7FieldRank<=S_7Choice,S_7Amount,0),0)) -> 0 | M35: =SUM(IF(S_8AccNO=$B35,IF(S_8FieldRank<=S_8Choice,S_8Amount,0),0)) -> 0 | N35: Employment Insurance | O35: =SUM(IF(S_11AccNO=$B35,IF(S_11FieldRank<=S_11Choice,S_11Amount,0),0)) -> 0 | P35: =SUM(IF(S_3AccNO=$B35,IF(S_3FieldRank<=S_3Choice,S_3Amount,0),0)) -> 0 | Q35: =SUM(IF(S_4AccNO=$B35,IF(S_4FieldRank<=S_4Choice,S_4Amount,0),0)) -> 0 | R35: =SUM(IF(S_10AccNO=$B35,IF(S_10FieldRank<=S_10Choice,S_10Amount,0),0)) -> 0 | S35: =SUM(IF(S_13AccNO=$B35,IF(S_13FieldRank<=S_13Choice,S_13Amount,0),0)) -> 0 | T35: =SUM(IF(S_15AccNO=$B35,IF(S_15FieldRank<=S_15Choice,S_15Amount,0),0)) -> 0 | U35: =SUM(IF(S_16AccNO=$B35,IF(S_16FieldRank<=S_16Choice,S_16Amount,0),0)) -> 0 | V35: =SUM(IF(S_17AccNO=$B35,IF(S_17FieldRank<=S_17Choice,S_17Amount,0),0)) -> 0 | W35: Employment Insurance | X35: =SUM(IF(S_18AccNO=$B35,IF(S_18FieldRank<=S_18Choice,S_18Amount,0),0)) -> 800 | Y35: =SUM(IF(S_9AccNO=$B35,IF(S_9FieldRank<=S_9Choice,S_9Amount,0),0)) -> 0 | Z35: =SUM(IF(S_19AccNO=$B35,IF(S_19FieldRank<=S_19Choice,S_19Amount,0),0)) -> 0 | AA35: =SUM(IF(S_20AccNo=$B35,IF(S_20FieldRank<=S_20Choice,S_20Amount,0),0)) -> 0 | AB35: =SUM(IF(S_21AccNo=$B35,IF(S_21FieldRank<=S_21Choice,S_21Amount,0),0)) -> 0 | AC35: =SUM(IF(S_22AccNo=$B35,IF(S_22FieldRank<=S_22Choice,S_22Amount,0),0)) -> 0 | AE35: =SUM(IF(S_23AccNo=$B35,IF(S_23FieldRank<=S_23Choice,S_23Amount,0),0)) -> 0 | AF35: 0 | AG35: =SUM(IF(S_5AccNO=$B35,IF(S_5FieldRank<=S_5Choice,S_5Amount,0),0)) -> 0
B36: 8003 | C36: Staff Training | D36: 2500 | E36: 1800 | F36: 16150 | G36: 2300 | H36: Staff Training | I36: =SUM(IF(S1AccNO=B36,IF(S1FieldRank<=S1Choice,S1Amount,0),0)) -> 0 | J36: =SUM(IF(S_2AccNO=$B36,IF(S_2FieldRank<=S_2Choice,S_2Amount,0),0)) -> 4100 | K36: =SUM(IF(S_6AccNO=$B36,IF(S_6FieldRank<=s_6Choice,S_6Amount,0),0)) -> 150 | L36: =SUM(IF(S_7AccNO=$B36,IF(S_7FieldRank<=S_7Choice,S_7Amount,0),0)) -> 5000 | M36: =SUM(IF(S_8AccNO=$B36,IF(S_8FieldRank<=S_8Choice,S_8Amount,0),0)) -> 0 | N36: Staff Training | O36: =SUM(IF(S_11AccNO=$B36,IF(S_11FieldRank<=S_11Choice,S_11Amount,0),0)) -> 4600 | P36: =SUM(IF(S_3AccNO=$B36,IF(S_3FieldRank<=S_3Choice,S_3Amount,0),0)) -> 0 | Q36: =SUM(IF(S_4AccNO=$B36,IF(S_4FieldRank<=S_4Choice,S_4Amount,0),0)) -> 0 | R36: =SUM(IF(S_10AccNO=$B36,IF(S_10FieldRank<=S_10Choice,S_10Amount,0),0)) -> 0 | S36: =SUM(IF(S_13AccNO=$B36,IF(S_13FieldRank<=S_13Choice,S_13Amount,0),0)) -> 0 | T36: =SUM(IF(S_15AccNO=$B36,IF(S_15FieldRank<=S_15Choice,S_15Amount,0),0)) -> 0 | U36: =SUM(IF(S_16AccNO=$B36,IF(S_16FieldRank<=S_16Choice,S_16Amount,0),0)) -> 0 | V36: =SUM(IF(S_17AccNO=$B36,IF(S_17FieldRank<=S_17Choice,S_17Amount,0),0)) -> 0 | W36: Staff Training | X36: =SUM(IF(S_18AccNO=$B36,IF(S_18FieldRank<=S_18Choice,S_18Amount,0),0)) -> 300 | Y36: =SUM(IF(S_9AccNO=$B36,IF(S_9FieldRank<=S_9Choice,S_9Amount,0),0)) -> 0 | Z36: =SUM(IF(S_19AccNO=$B36,IF(S_19FieldRank<=S_19Choice,S_19Amount,0),0)) -> 0 | AA36: =SUM(IF(S_20AccNo=$B36,IF(S_20FieldRank<=S_20Choice,S_20Amount,0),0)) -> 2000 | AB36: =SUM(IF(S_21AccNo=$B36,IF(S_21FieldRank<=S_21Choice,S_21Amount,0),0)) -> 0 | AC36: =SUM(IF(S_22AccNo=$B36,IF(S_22FieldRank<=S_22Choice,S_22Amount,0),0)) -> 0 | AE36: =SUM(IF(S_23AccNo=$B36,IF(S_23FieldRank<=S_23Choice,S_23Amount,0),0)) -> 0 | AF36: 0 | AG36: =SUM(IF(S_5AccNO=$B36,IF(S_5FieldRank<=S_5Choice,S_5Amount,0),0)) -> 0
B37: 8004 | C37: Member Care | D37: 970 | E37: 820 | F37: 3500 | G37: 2800 | H37: Member Care | I37: =SUM(IF(S1AccNO=B37,IF(S1FieldRank<=S1Choice,S1Amount,0),0)) -> 600 | J37: =SUM(IF(S_2AccNO=$B37,IF(S_2FieldRank<=S_2Choice,S_2Amount,0),0)) -> 0 | K37: =SUM(IF(S_6AccNO=$B37,IF(S_6FieldRank<=s_6Choice,S_6Amount,0),0)) -> 100 | L37: =SUM(IF(S_7AccNO=$B37,IF(S_7FieldRank<=S_7Choice,S_7Amount,0),0)) -> 0 | M37: =SUM(IF(S_8AccNO=$B37,IF(S_8FieldRank<=S_8Choice,S_8Amount,0),0)) -> 0 | N37: Member Care | O37: =SUM(IF(S_11AccNO=$B37,IF(S_11FieldRank<=S_11Choice,S_11Amount,0),0)) -> 0 | P37: =SUM(IF(S_3AccNO=$B37,IF(S_3FieldRank<=S_3Choice,S_3Amount,0),0)) -> 0 | Q37: =SUM(IF(S_4AccNO=$B37,IF(S_4FieldRank<=S_4Choice,S_4Amount,0),0)) -> 0 | R37: =SUM(IF(S_10AccNO=$B37,IF(S_10FieldRank<=S_10Choice,S_10Amount,0),0)) -> 0 | S37: =SUM(IF(S_13AccNO=$B37,IF(S_13FieldRank<=S_13Choice,S_13Amount,0),0)) -> 0 | T37: =SUM(IF(S_15AccNO=$B37,IF(S_15FieldRank<=S_15Choice,S_15Amount,0),0)) -> 0 | U37: =SUM(IF(S_16AccNO=$B37,IF(S_16FieldRank<=S_16Choice,S_16Amount,0),0)) -> 0 | V37: =SUM(IF(S_17AccNO=$B37,IF(S_17FieldRank<=S_17Choice,S_17Amount,0),0)) -> 0 | W37: Member Care | X37: =SUM(IF(S_18AccNO=$B37,IF(S_18FieldRank<=S_18Choice,S_18Amount,0),0)) -> 300 | Y37: =SUM(IF(S_9AccNO=$B37,IF(S_9FieldRank<=S_9Choice,S_9Amount,0),0)) -> 0 | Z37: =SUM(IF(S_19AccNO=$B37,IF(S_19FieldRank<=S_19Choice,S_19Amount,0),0)) -> 0 | AA37: =SUM(IF(S_20AccNo=$B37,IF(S_20FieldRank<=S_20Choice,S_20Amount,0),0)) -> 1000 | AB37: =SUM(IF(S_21AccNo=$B37,IF(S_21FieldRank<=S_21Choice,S_21Amount,0),0)) -> 0 | AC37: =SUM(IF(S_22AccNo=$B37,IF(S_22FieldRank<=S_22Choice,S_22Amount,0),0)) -> 1500 | AE37: =SUM(IF(S_23AccNo=$B37,IF(S_23FieldRank<=S_23Choice,S_23Amount,0),0)) -> 0 | AF37: 0 | AG37: =SUM(IF(S_5AccNO=$B37,IF(S_5FieldRank<=S_5Choice,S_5Amount,0),0)) -> 0
B38: 8005 | C38: Public Relations | D38: 2600 | E38: 1100 | F38: 1100 | G38: 1100 | H38: Public Relations | I38: =SUM(IF(S1AccNO=B38,IF(S1FieldRank<=S1Choice,S1Amount,0),0)) -> 0 | J38: =SUM(IF(S_2AccNO=$B38,IF(S_2FieldRank<=S_2Choice,S_2Amount,0),0)) -> 0 | K38: =SUM(IF(S_6AccNO=$B38,IF(S_6FieldRank<=s_6Choice,S_6Amount,0),0)) -> 0 | L38: =SUM(IF(S_7AccNO=$B38,IF(S_7FieldRank<=S_7Choice,S_7Amount,0),0)) -> 0 | M38: =SUM(IF(S_8AccNO=$B38,IF(S_8FieldRank<=S_8Choice,S_8Amount,0),0)) -> 0 | N38: Public Relations | O38: =SUM(IF(S_11AccNO=$B38,IF(S_11FieldRank<=S_11Choice,S_11Amount,0),0)) -> 0 | P38: =SUM(IF(S_3AccNO=$B38,IF(S_3FieldRank<=S_3Choice,S_3Amount,0),0)) -> 0 | Q38: =SUM(IF(S_4AccNO=$B38,IF(S_4FieldRank<=S_4Choice,S_4Amount,0),0)) -> 0 | R38: =SUM(IF(S_10AccNO=$B38,IF(S_10FieldRank<=S_10Choice,S_10Amount,0),0)) -> 0 | S38: =SUM(IF(S_13AccNO=$B38,IF(S_13FieldRank<=S_13Choice,S_13Amount,0),0)) -> 0 | T38: =SUM(IF(S_15AccNO=$B38,IF(S_15FieldRank<=S_15Choice,S_15Amount,0),0)) -> 0 | U38: =SUM(IF(S_16AccNO=$B38,IF(S_16FieldRank<=S_16Choice,S_16Amount,0),0)) -> 0 | V38: =SUM(IF(S_17AccNO=$B38,IF(S_17FieldRank<=S_17Choice,S_17Amount,0),0)) -> 0 | W38: Public Relations | X38: =SUM(IF(S_18AccNO=$B38,IF(S_18FieldRank<=S_18Choice,S_18Amount,0),0)) -> 0 | Y38: =SUM(IF(S_9AccNO=$B38,IF(S_9FieldRank<=S_9Choice,S_9Amount,0),0)) -> 500 | Z38: =SUM(IF(S_19AccNO=$B38,IF(S_19FieldRank<=S_19Choice,S_19Amount,0),0)) -> 0 | AA38: =SUM(IF(S_20AccNo=$B38,IF(S_20FieldRank<=S_20Choice,S_20Amount,0),0)) -> 0 | AB38: =SUM(IF(S_21AccNo=$B38,IF(S_21FieldRank<=S_21Choice,S_21Amount,0),0)) -> 0 | AC38: =SUM(IF(S_22AccNo=$B38,IF(S_22FieldRank<=S_22Choice,S_22Amount,0),0)) -> 0 | AD38: =GETPIVOTDATA("Amount",'S25'!$J$5,"Acc_NO",8005) -> 600 | AE38: =SUM(IF(S_23AccNo=$B38,IF(S_23FieldRank<=S_23Choice,S_23Amount,0),0)) -> 0 | AF38: 0 | AG38: =SUM(IF(S_5AccNO=$B38,IF(S_5FieldRank<=S_5Choice,S_5Amount,0),0)) -> 0
B39: 8008 | C39: Professional Fees | D39: 15660 | E39: 10600 | F39: 17540 | G39: 10700 | H39: Professional Fees | I39: =SUM(IF(S1AccNO=B39,IF(S1FieldRank<=S1Choice,S1Amount,0),0)) -> 0 | J39: =SUM(IF(S_2AccNO=$B39,IF(S_2FieldRank<=S_2Choice,S_2Amount,0),0)) -> 0 | K39: =SUM(IF(S_6AccNO=$B39,IF(S_6FieldRank<=s_6Choice,S_6Amount,0),0)) -> 0 | L39: =SUM(IF(S_7AccNO=$B39,IF(S_7FieldRank<=S_7Choice,S_7Amount,0),0)) -> 0 | M39: =SUM(IF(S_8AccNO=$B39,IF(S_8FieldRank<=S_8Choice,S_8Amount,0),0)) -> 3000 | N39: Professional Fees | O39: =SUM(IF(S_11AccNO=$B39,IF(S_11FieldRank<=S_11Choice,S_11Amount,0),0)) -> 300 | P39: =SUM(IF(S_3AccNO=$B39,IF(S_3FieldRank<=S_3Choice,S_3Amount,0),0)) -> 500 | Q39: =SUM(IF(S_4AccNO=$B39,IF(S_4FieldRank<=S_4Choice,S_4Amount,0),0)) -> 40 | R39: =SUM(IF(S_10AccNO=$B39,IF(S_10FieldRank<=S_10Choice,S_10Amount,0),0)) -> 0 | S39: =SUM(IF(S_13AccNO=$B39,IF(S_13FieldRank<=S_13Choice,S_13Amount,0),0)) -> 0 | T39: =SUM(IF(S_15AccNO=$B39,IF(S_15FieldRank<=S_15Choice,S_15Amount,0),0)) -> 3000 | U39: =SUM(IF(S_16AccNO=$B39,IF(S_16FieldRank<=S_16Choice,S_16Amount,0),0)) -> 0 | V39: =SUM(IF(S_17AccNO=$B39,IF(S_17FieldRank<=S_17Choice,S_17Amount,0),0)) -> 0 | W39: Professional Fees | X39: =SUM(IF(S_18AccNO=$B39,IF(S_18FieldRank<=S_18Choice,S_18Amount,0),0)) -> 10550 | Y39: =SUM(IF(S_9AccNO=$B39,IF(S_9FieldRank<=S_9Choice,S_9Amount,0),0)) -> 150 | Z39: =SUM(IF(S_19AccNO=$B39,IF(S_19FieldRank<=S_19Choice,S_19Amount,0),0)) -> 0 | AA39: =SUM(IF(S_20AccNo=$B39,IF(S_20FieldRank<=S_20Choice,S_20Amount,0),0)) -> 0 | AB39: =SUM(IF(S_21AccNo=$B39,IF(S_21FieldRank<=S_21Choice,S_21Amount,0),0)) -> 0 | AC39: =SUM(IF(S_22AccNo=$B39,IF(S_22FieldRank<=S_22Choice,S_22Amount,0),0)) -> 0 | AE39: =SUM(IF(S_23AccNo=$B39,IF(S_23FieldRank<=S_23Choice,S_23Amount,0),0)) -> 0 | AF39: 0 | AG39: =SUM(IF(S_5AccNO=$B39,IF(S_5FieldRank<=S_5Choice,S_5Amount,0),0)) -> 0
B40: 8009 | C40: Liability Insurance | D40: 3950 | E40: 2600 | F40: 6175 | G40: 2800 | H40: Liability Insurance | I40: =SUM(IF(S1AccNO=B40,IF(S1FieldRank<=S1Choice,S1Amount,0),0)) -> 1375 | J40: =SUM(IF(S_2AccNO=$B40,IF(S_2FieldRank<=S_2Choice,S_2Amount,0),0)) -> 0 | K40: =SUM(IF(S_6AccNO=$B40,IF(S_6FieldRank<=s_6Choice,S_6Amount,0),0)) -> 0 | L40: =SUM(IF(S_7AccNO=$B40,IF(S_7FieldRank<=S_7Choice,S_7Amount,0),0)) -> 0 | M40: =SUM(IF(S_8AccNO=$B40,IF(S_8FieldRank<=S_8Choice,S_8Amount,0),0)) -> 0 | N40: Liability Insurance | O40: =SUM(IF(S_11AccNO=$B40,IF(S_11FieldRank<=S_11Choice,S_11Amount,0),0)) -> 2000 | P40: =SUM(IF(S_3AccNO=$B40,IF(S_3FieldRank<=S_3Choice,S_3Amount,0),0)) -> 0 | Q40: =SUM(IF(S_4AccNO=$B40,IF(S_4FieldRank<=S_4Choice,S_4Amount,0),0)) -> 0 | R40: =SUM(IF(S_10AccNO=$B40,IF(S_10FieldRank<=S_10Choice,S_10Amount,0),0)) -> 0 | S40: =SUM(IF(S_13AccNO=$B40,IF(S_13FieldRank<=S_13Choice,S_13Amount,0),0)) -> 0 | T40: =SUM(IF(S_15AccNO=$B40,IF(S_15FieldRank<=S_15Choice,S_15Amount,0),0)) -> 0 | U40: =SUM(IF(S_16AccNO=$B40,IF(S_16FieldRank<=S_16Choice,S_16Amount,0),0)) -> 0 | V40: =SUM(IF(S_17AccNO=$B40,IF(S_17FieldRank<=S_17Choice,S_17Amount,0),0)) -> 0 | W40: Liability Insurance | X40: =SUM(IF(S_18AccNO=$B40,IF(S_18FieldRank<=S_18Choice,S_18Amount,0),0)) -> 2800 | Y40: =SUM(IF(S_9AccNO=$B40,IF(S_9FieldRank<=S_9Choice,S_9Amount,0),0)) -> 0 | Z40: =SUM(IF(S_19AccNO=$B40,IF(S_19FieldRank<=S_19Choice,S_19Amount,0),0)) -> 0 | AA40: =SUM(IF(S_20AccNo=$B40,IF(S_20FieldRank<=S_20Choice,S_20Amount,0),0)) -> 0 | AB40: =SUM(IF(S_21AccNo=$B40,IF(S_21FieldRank<=S_21Choice,S_21Amount,0),0)) -> 0 | AC40: =SUM(IF(S_22AccNo=$B40,IF(S_22FieldRank<=S_22Choice,S_22Amount,0),0)) -> 0 | AE40: =SUM(IF(S_23AccNo=$B40,IF(S_23FieldRank<=S_23Choice,S_23Amount,0),0)) -> 0 | AF40: 0 | AG40: =SUM(IF(S_5AccNO=$B40,IF(S_5FieldRank<=S_5Choice,S_5Amount,0),0)) -> 0
B41: 8106 | C41: Office Supply | D41: 4050 | E41: 2600 | F41: 6300 | G41: 2500 | H41: Office Supply | I41: =SUM(IF(S1AccNO=B41,IF(S1FieldRank<=S1Choice,S1Amount,0),0)) -> 2500 | J41: =SUM(IF(S_2AccNO=$B41,IF(S_2FieldRank<=S_2Choice,S_2Amount,0),0)) -> 0 | K41: =SUM(IF(S_6AccNO=$B41,IF(S_6FieldRank<=s_6Choice,S_6Amount,0),0)) -> 300 | L41: =SUM(IF(S_7AccNO=$B41,IF(S_7FieldRank<=S_7Choice,S_7Amount,0),0)) -> 0 | M41: =SUM(IF(S_8AccNO=$B41,IF(S_8FieldRank<=S_8Choice,S_8Amount,0),0)) -> 0 | N41: Office Supply | O41: =SUM(IF(S_11AccNO=$B41,IF(S_11FieldRank<=S_11Choice,S_11Amount,0),0)) -> 1000 | P41: =SUM(IF(S_3AccNO=$B41,IF(S_3FieldRank<=S_3Choice,S_3Amount,0),0)) -> 0 | Q41: =SUM(IF(S_4AccNO=$B41,IF(S_4FieldRank<=S_4Choice,S_4Amount,0),0)) -> 0 | R41: =SUM(IF(S_10AccNO=$B41,IF(S_10FieldRank<=S_10Choice,S_10Amount,0),0)) -> 0 | S41: =SUM(IF(S_13AccNO=$B41,IF(S_13FieldRank<=S_13Choice,S_13Amount,0),0)) -> 0 | T41: =SUM(IF(S_15AccNO=$B41,IF(S_15FieldRank<=S_15Choice,S_15Amount,0),0)) -> 0 | U41: =SUM(IF(S_16AccNO=$B41,IF(S_16FieldRank<=S_16Choice,S_16Amount,0),0)) -> 0 | V41: =SUM(IF(S_17AccNO=$B41,IF(S_17FieldRank<=S_17Choice,S_17Amount,0),0)) -> 0 | W41: Office Supply | X41: =SUM(IF(S_18AccNO=$B41,IF(S_18FieldRank<=S_18Choice,S_18Amount,0),0)) -> 1800 | Y41: =SUM(IF(S_9AccNO=$B41,IF(S_9FieldRank<=S_9Choice,S_9Amount,0),0)) -> 500 | Z41: =SUM(IF(S_19AccNO=$B41,IF(S_19FieldRank<=S_19Choice,S_19Amount,0),0)) -> 0 | AA41: =SUM(IF(S_20AccNo=$B41,IF(S_20FieldRank<=S_20Choice,S_20Amount,0),0)) -> 0 | AB41: =SUM(IF(S_21AccNo=$B41,IF(S_21FieldRank<=S_21Choice,S_21Amount,0),0)) -> 0 | AC41: =SUM(IF(S_22AccNo=$B41,IF(S_22FieldRank<=S_22Choice,S_22Amount,0),0)) -> 0 | AE41: =GETPIVOTDATA("Amount",'S23'!$J$7,"Acc_NO",8106) -> 200 | AF41: 0 | AG41: =SUM(IF(S_5AccNO=$B41,IF(S_5FieldRank<=S_5Choice,S_5Amount,0),0)) -> 0
B42: 8107 | C42: Printing and Supplies | D42: 61525 | E42: 61375 | F42: 38900 | G42: 38600 | H42: Printing and Supplies | I42: =SUM(IF(S1AccNO=B42,IF(S1FieldRank<=S1Choice,S1Amount,0),0)) -> 0 | J42: =SUM(IF(S_2AccNO=$B42,IF(S_2FieldRank<=S_2Choice,S_2Amount,0),0)) -> 0 | K42: =SUM(IF(S_6AccNO=$B42,IF(S_6FieldRank<=s_6Choice,S_6Amount,0),0)) -> 0 | L42: =SUM(IF(S_7AccNO=$B42,IF(S_7FieldRank<=S_7Choice,S_7Amount,0),0)) -> 0 | M42: =SUM(IF(S_8AccNO=$B42,IF(S_8FieldRank<=S_8Choice,S_8Amount,0),0)) -> 300 | N42: Printing and Supplies | O42: =SUM(IF(S_11AccNO=$B42,IF(S_11FieldRank<=S_11Choice,S_11Amount,0),0)) -> 0 | P42: =SUM(IF(S_3AccNO=$B42,IF(S_3FieldRank<=S_3Choice,S_3Amount,0),0)) -> 0 | Q42: =SUM(IF(S_4AccNO=$B42,IF(S_4FieldRank<=S_4Choice,S_4Amount,0),0)) -> 0 | R42: =SUM(IF(S_10AccNO=$B42,IF(S_10FieldRank<=S_10Choice,S_10Amount,0),0)) -> 0 | S42: =SUM(IF(S_13AccNO=$B42,IF(S_13FieldRank<=S_13Choice,S_13Amount,0),0)) -> 0 | T42: =SUM(IF(S_15AccNO=$B42,IF(S_15FieldRank<=S_15Choice,S_15Amount,0),0)) -> 0 | U42: =SUM(IF(S_16AccNO=$B42,IF(S_16FieldRank<=S_16Choice,S_16Amount,0),0)) -> 0 | V42: =SUM(IF(S_17AccNO=$B42,IF(S_17FieldRank<=S_17Choice,S_17Amount,0),0)) -> 0 | W42: Printing and Supplies | X42: =SUM(IF(S_18AccNO=$B42,IF(S_18FieldRank<=S_18Choice,S_18Amount,0),0)) -> 1500 | Y42: =SUM(IF(S_9AccNO=$B42,IF(S_9FieldRank<=S_9Choice,S_9Amount,0),0)) -> 25100 | Z42: =SUM(IF(S_19AccNO=$B42,IF(S_19FieldRank<=S_19Choice,S_19Amount,0),0)) -> 0 | AA42: =SUM(IF(S_20AccNo=$B42,IF(S_20FieldRank<=S_20Choice,S_20Amount,0),0)) -> 0 | AB42: =SUM(IF(S_21AccNo=$B42,IF(S_21FieldRank<=S_21Choice,S_21Amount,0),0)) -> 0 | AC42: =SUM(IF(S_22AccNo=$B42,IF(S_22FieldRank<=S_22Choice,S_22Amount,0),0)) -> 0 | AE42: =SUM(IF(S_23AccNo=$B42,IF(S_23FieldRank<=S_23Choice,S_23Amount,0),0)) -> 12000 | AF42: 0 | AG42: =SUM(IF(S_5AccNO=$B42,IF(S_5FieldRank<=S_5Choice,S_5Amount,0),0)) -> 0
B43: 8108 | C43: General Ministry Supply | D43: 23970 | E43: 100 | F43: 22250 | G43: 200 | H43: General Ministry Supply | I43: =SUM(IF(S1AccNO=B43,IF(S1FieldRank<=S1Choice,S1Amount,0),0)) -> 1000 | J43: =SUM(IF(S_2AccNO=$B43,IF(S_2FieldRank<=S_2Choice,S_2Amount,0),0)) -> 0 | K43: =SUM(IF(S_6AccNO=$B43,IF(S_6FieldRank<=s_6Choice,S_6Amount,0),0)) -> 0 | L43: =SUM(IF(S_7AccNO=$B43,IF(S_7FieldRank<=S_7Choice,S_7Amount,0),0)) -> 750 | M43: =SUM(IF(S_8AccNO=$B43,IF(S_8FieldRank<=S_8Choice,S_8Amount,0),0)) -> 1350 | N43: General Ministry Supply | O43: =SUM(IF(S_11AccNO=$B43,IF(S_11FieldRank<=S_11Choice,S_11Amount,0),0)) -> 1000 | P43: =SUM(IF(S_3AccNO=$B43,IF(S_3FieldRank<=S_3Choice,S_3Amount,0),0)) -> 11950 | Q43: =SUM(IF(S_4AccNO=$B43,IF(S_4FieldRank<=S_4Choice,S_4Amount,0),0)) -> 400 | R43: =SUM(IF(S_10AccNO=$B43,IF(S_10FieldRank<=S_10Choice,S_10Amount,0),0)) -> 0 | S43: =SUM(IF(S_13AccNO=$B43,IF(S_13FieldRank<=S_13Choice,S_13Amount,0),0)) -> 0 | T43: =SUM(IF(S_15AccNO=$B43,IF(S_15FieldRank<=S_15Choice,S_15Amount,0),0)) -> 0 | U43: =SUM(IF(S_16AccNO=$B43,IF(S_16FieldRank<=S_16Choice,S_16Amount,0),0)) -> 1100 | V43: =SUM(IF(S_17AccNO=$B43,IF(S_17FieldRank<=S_17Choice,S_17Amount,0),0)) -> 4500 | W43: General Ministry Supply | X43: =SUM(IF(S_18AccNO=$B43,IF(S_18FieldRank<=S_18Choice,S_18Amount,0),0)) -> 0 | Y43: =SUM(IF(S_9AccNO=$B43,IF(S_9FieldRank<=S_9Choice,S_9Amount,0),0)) -> 0 | Z43: =SUM(IF(S_19AccNO=$B43,IF(S_19FieldRank<=S_19Choice,S_19Amount,0),0)) -> 0 | AA43: =SUM(IF(S_20AccNo=$B43,IF(S_20FieldRank<=S_20Choice,S_20Amount,0),0)) -> 0 | AB43: =SUM(IF(S_21AccNo=$B43,IF(S_21FieldRank<=S_21Choice,S_21Amount,0),0)) -> 0 | AC43: =SUM(IF(S_22AccNo=$B43,IF(S_22FieldRank<=S_22Choice,S_22Amount,0),0)) -> 0 | AE43: =GETPIVOTDATA("Amount",'S23'!$J$7,"Acc_NO",8108) -> 200 | AF43: 0 | AG43: =SUM(IF(S_5AccNO=$B43,IF(S_5FieldRank<=S_5Choice,S_5Amount,0),0)) -> 0
B44: 8201 | C44: Telephone | D44: 7300 | E44: 3800 | F44: 7000 | G44: 4000 | H44: Telephone | I44: =SUM(IF(S1AccNO=B44,IF(S1FieldRank<=S1Choice,S1Amount,0),0)) -> 3000 | J44: =SUM(IF(S_2AccNO=$B44,IF(S_2FieldRank<=S_2Choice,S_2Amount,0),0)) -> 0 | K44: =SUM(IF(S_6AccNO=$B44,IF(S_6FieldRank<=s_6Choice,S_6Amount,0),0)) -> 0 | L44: =SUM(IF(S_7AccNO=$B44,IF(S_7FieldRank<=S_7Choice,S_7Amount,0),0)) -> 0 | M44: =SUM(IF(S_8AccNO=$B44,IF(S_8FieldRank<=S_8Choice,S_8Amount,0),0)) -> 0 | N44: Telephone | O44: =SUM(IF(S_11AccNO=$B44,IF(S_11FieldRank<=S_11Choice,S_11Amount,0),0)) -> 0 | P44: =SUM(IF(S_3AccNO=$B44,IF(S_3FieldRank<=S_3Choice,S_3Amount,0),0)) -> 0 | Q44: =SUM(IF(S_4AccNO=$B44,IF(S_4FieldRank<=S_4Choice,S_4Amount,0),0)) -> 0 | R44: =SUM(IF(S_10AccNO=$B44,IF(S_10FieldRank<=S_10Choice,S_10Amount,0),0)) -> 0 | S44: =SUM(IF(S_13AccNO=$B44,IF(S_13FieldRank<=S_13Choice,S_13Amount,0),0)) -> 0 | T44: =SUM(IF(S_15AccNO=$B44,IF(S_15FieldRank<=S_15Choice,S_15Amount,0),0)) -> 0 | U44: =SUM(IF(S_16AccNO=$B44,IF(S_16FieldRank<=S_16Choice,S_16Amount,0),0)) -> 0 | V44: =SUM(IF(S_17AccNO=$B44,IF(S_17FieldRank<=S_17Choice,S_17Amount,0),0)) -> 0 | W44: Telephone | X44: =SUM(IF(S_18AccNO=$B44,IF(S_18FieldRank<=S_18Choice,S_18Amount,0),0)) -> 4000 | Y44: =SUM(IF(S_9AccNO=$B44,IF(S_9FieldRank<=S_9Choice,S_9Amount,0),0)) -> 0 | Z44: =SUM(IF(S_19AccNO=$B44,IF(S_19FieldRank<=S_19Choice,S_19Amount,0),0)) -> 0 | AA44: =SUM(IF(S_20AccNo=$B44,IF(S_20FieldRank<=S_20Choice,S_20Amount,0),0)) -> 0 | AB44: =SUM(IF(S_21AccNo=$B44,IF(S_21FieldRank<=S_21Choice,S_21Amount,0),0)) -> 0 | AC44: =SUM(IF(S_22AccNo=$B44,IF(S_22FieldRank<=S_22Choice,S_22Amount,0),0)) -> 0 | AE44: =SUM(IF(S_23AccNo=$B44,IF(S_23FieldRank<=S_23Choice,S_23Amount,0),0)) -> 0 | AF44: 0 | AG44: =SUM(IF(S_5AccNO=$B44,IF(S_5FieldRank<=S_5Choice,S_5Amount,0),0)) -> 0
B45: 8211 | C45: Computer & Technology | D45: 23411 | E45: 23411 | F45: 24613 | G45: 23813 | H45: Computer & Technology | I45: =SUM(IF(S1AccNO=B45,IF(S1FieldRank<=S1Choice,S1Amount,0),0)) -> 800 | J45: =SUM(IF(S_2AccNO=$B45,IF(S_2FieldRank<=S_2Choice,S_2Amount,0),0)) -> 0 | K45: =SUM(IF(S_6AccNO=$B45,IF(S_6FieldRank<=s_6Choice,S_6Amount,0),0)) -> 0 | L45: =SUM(IF(S_7AccNO=$B45,IF(S_7FieldRank<=S_7Choice,S_7Amount,0),0)) -> 0 | M45: =SUM(IF(S_8AccNO=$B45,IF(S_8FieldRank<=S_8Choice,S_8Amount,0),0)) -> 0 | N45: Computer & Technology | O45: =SUM(IF(S_11AccNO=$B45,IF(S_11FieldRank<=S_11Choice,S_11Amount,0),0)) -> 0 | P45: =SUM(IF(S_3AccNO=$B45,IF(S_3FieldRank<=S_3Choice,S_3Amount,0),0)) -> 0 | Q45: =SUM(IF(S_4AccNO=$B45,IF(S_4FieldRank<=S_4Choice,S_4Amount,0),0)) -> 0 | R45: =SUM(IF(S_10AccNO=$B45,IF(S_10FieldRank<=S_10Choice,S_10Amount,0),0)) -> 0 | S45: =SUM(IF(S_13AccNO=$B45,IF(S_13FieldRank<=S_13Choice,S_13Amount,0),0)) -> 0 | T45: =SUM(IF(S_15AccNO=$B45,IF(S_15FieldRank<=S_15Choice,S_15Amount,0),0)) -> 0 | U45: =SUM(IF(S_16AccNO=$B45,IF(S_16FieldRank<=S_16Choice,S_16Amount,0),0)) -> 0 | V45: =SUM(IF(S_17AccNO=$B45,IF(S_17FieldRank<=S_17Choice,S_17Amount,0),0)) -> 0 | W45: Computer & Technology | X45: =SUM(IF(S_18AccNO=$B45,IF(S_18FieldRank<=S_18Choice,S_18Amount,0),0)) -> 0 | Y45: =SUM(IF(S_9AccNO=$B45,IF(S_9FieldRank<=S_9Choice,S_9Amount,0),0)) -> 200 | Z45: =SUM(IF(S_19AccNO=$B45,IF(S_19FieldRank<=S_19Choice,S_19Amount,0),0)) -> 0 | AA45: =SUM(IF(S_20AccNo=$B45,IF(S_20FieldRank<=S_20Choice,S_20Amount,0),0)) -> 0 | AB45: =SUM(IF(S_21AccNo=$B45,IF(S_21FieldRank<=S_21Choice,S_21Amount,0),0)) -> 23613 | AC45: =SUM(IF(S_22AccNo=$B45,IF(S_22FieldRank<=S_22Choice,S_22Amount,0),0)) -> 0 | AE45: =SUM(IF(S_23AccNo=$B45,IF(S_23FieldRank<=S_23Choice,S_23Amount,0),0)) -> 0 | AF45: 0 | AG45: =SUM(IF(S_5AccNO=$B45,IF(S_5FieldRank<=S_5Choice,S_5Amount,0),0)) -> 0
B46: 8301 | C46: Postage & Shipping | D46: 15325 | E46: 14025 | F46: 12900 | G46: 12100 | H46: Postage & Shipping | I46: =SUM(IF(S1AccNO=B46,IF(S1FieldRank<=S1Choice,S1Amount,0),0)) -> 300 | J46: =SUM(IF(S_2AccNO=$B46,IF(S_2FieldRank<=S_2Choice,S_2Amount,0),0)) -> 0 | K46: =SUM(IF(S_6AccNO=$B46,IF(S_6FieldRank<=s_6Choice,S_6Amount,0),0)) -> 0 | L46: =SUM(IF(S_7AccNO=$B46,IF(S_7FieldRank<=S_7Choice,S_7Amount,0),0)) -> 0 | M46: =SUM(IF(S_8AccNO=$B46,IF(S_8FieldRank<=S_8Choice,S_8Amount,0),0)) -> 0 | N46: Postage & Shipping | O46: =SUM(IF(S_11AccNO=$B46,IF(S_11FieldRank<=S_11Choice,S_11Amount,0),0)) -> 0 | P46: =SUM(IF(S_3AccNO=$B46,IF(S_3FieldRank<=S_3Choice,S_3Amount,0),0)) -> 500 | Q46: =SUM(IF(S_4AccNO=$B46,IF(S_4FieldRank<=S_4Choice,S_4Amount,0),0)) -> 0 | R46: =SUM(IF(S_10AccNO=$B46,IF(S_10FieldRank<=S_10Choice,S_10Amount,0),0)) -> 0 | S46: =SUM(IF(S_13AccNO=$B46,IF(S_13FieldRank<=S_13Choice,S_13Amount,0),0)) -> 0 | T46: =SUM(IF(S_15AccNO=$B46,IF(S_15FieldRank<=S_15Choice,S_15Amount,0),0)) -> 0 | U46: =SUM(IF(S_16AccNO=$B46,IF(S_16FieldRank<=S_16Choice,S_16Amount,0),0)) -> 0 | V46: =SUM(IF(S_17AccNO=$B46,IF(S_17FieldRank<=S_17Choice,S_17Amount,0),0)) -> 0 | W46: Postage & Shipping | X46: =SUM(IF(S_18AccNO=$B46,IF(S_18FieldRank<=S_18Choice,S_18Amount,0),0)) -> 8500 | Y46: =SUM(IF(S_9AccNO=$B46,IF(S_9FieldRank<=S_9Choice,S_9Amount,0),0)) -> 3600 | Z46: =SUM(IF(S_19AccNO=$B46,IF(S_19FieldRank<=S_19Choice,S_19Amount,0),0)) -> 0 | AA46: =SUM(IF(S_20AccNo=$B46,IF(S_20FieldRank<=S_20Choice,S_20Amount,0),0)) -> 0 | AB46: =SUM(IF(S_21AccNo=$B46,IF(S_21FieldRank<=S_21Choice,S_21Amount,0),0)) -> 0 | AC46: =SUM(IF(S_22AccNo=$B46,IF(S_22FieldRank<=S_22Choice,S_22Amount,0),0)) -> 0 | AE46: =SUM(IF(S_23AccNo=$B46,IF(S_23FieldRank<=S_23Choice,S_23Amount,0),0)) -> 0 | AF46: 0 | AG46: =SUM(IF(S_5AccNO=$B46,IF(S_5FieldRank<=S_5Choice,S_5Amount,0),0)) -> 0
B47: 8402 | C47: Rent Expense | D47: 12640 | E47: 0 | F47: 17539 | G47: 6000 | H47: Rent Expense | I47: =SUM(IF(S1AccNO=B47,IF(S1FieldRank<=S1Choice,S1Amount,0),0)) -> 0 | J47: =SUM(IF(S_2AccNO=$B47,IF(S_2FieldRank<=S_2Choice,S_2Amount,0),0)) -> 0 | K47: =SUM(IF(S_6AccNO=$B47,IF(S_6FieldRank<=s_6Choice,S_6Amount,0),0)) -> 0 | L47: =SUM(IF(S_7AccNO=$B47,IF(S_7FieldRank<=S_7Choice,S_7Amount,0),0)) -> 0 | M47: =SUM(IF(S_8AccNO=$B47,IF(S_8FieldRank<=S_8Choice,S_8Amount,0),0)) -> 2250 | N47: Rent Expense | O47: =SUM(IF(S_11AccNO=$B47,IF(S_11FieldRank<=S_11Choice,S_11Amount,0),0)) -> 0 | P47: =SUM(IF(S_3AccNO=$B47,IF(S_3FieldRank<=S_3Choice,S_3Amount,0),0)) -> 8044 | Q47: =SUM(IF(S_4AccNO=$B47,IF(S_4FieldRank<=S_4Choice,S_4Amount,0),0)) -> 1245 | R47: =SUM(IF(S_10AccNO=$B47,IF(S_10FieldRank<=S_10Choice,S_10Amount,0),0)) -> 0 | S47: =SUM(IF(S_13AccNO=$B47,IF(S_13FieldRank<=S_13Choice,S_13Amount,0),0)) -> 0 | T47: =SUM(IF(S_15AccNO=$B47,IF(S_15FieldRank<=S_15Choice,S_15Amount,0),0)) -> 0 | U47: =SUM(IF(S_16AccNO=$B47,IF(S_16FieldRank<=S_16Choice,S_16Amount,0),0)) -> 0 | V47: =SUM(IF(S_17AccNO=$B47,IF(S_17FieldRank<=S_17Choice,S_17Amount,0),0)) -> 0 | W47: Rent Expense | X47: =SUM(IF(S_18AccNO=$B47,IF(S_18FieldRank<=S_18Choice,S_18Amount,0),0)) -> 0 | Y47: 3000 | Z47: =SUM(IF(S_19AccNO=$B47,IF(S_19FieldRank<=S_19Choice,S_19Amount,0),0)) -> 0 | AA47: =SUM(IF(S_20AccNo=$B47,IF(S_20FieldRank<=S_20Choice,S_20Amount,0),0)) -> 0 | AB47: =SUM(IF(S_21AccNo=$B47,IF(S_21FieldRank<=S_21Choice,S_21Amount,0),0)) -> 0 | AC47: =SUM(IF(S_22AccNo=$B47,IF(S_22FieldRank<=S_22Choice,S_22Amount,0),0)) -> 0 | AE47: 3000 | AF47: 0 | AG47: =SUM(IF(S_5AccNO=$B47,IF(S_5FieldRank<=S_5Choice,S_5Amount,0),0)) -> 0
B48: 8403 | C48: Bldg. & Equip Insurance | D48: 7400 | E48: 3400 | F48: 7700 | G48: 3500 | H48: Bldg. & Equip Insurance | I48: =SUM(IF(S1AccNO=B48,IF(S1FieldRank<=S1Choice,S1Amount,0),0)) -> 0 | J48: =SUM(IF(S_2AccNO=$B48,IF(S_2FieldRank<=S_2Choice,S_2Amount,0),0)) -> 0 | K48: =SUM(IF(S_6AccNO=$B48,IF(S_6FieldRank<=s_6Choice,S_6Amount,0),0)) -> 0 | L48: =SUM(IF(S_7AccNO=$B48,IF(S_7FieldRank<=S_7Choice,S_7Amount,0),0)) -> 0 | M48: =SUM(IF(S_8AccNO=$B48,IF(S_8FieldRank<=S_8Choice,S_8Amount,0),0)) -> 0 | N48: Bldg. & Equip Insurance | O48: =SUM(IF(S_11AccNO=$B48,IF(S_11FieldRank<=S_11Choice,S_11Amount,0),0)) -> 0 | P48: =SUM(IF(S_3AccNO=$B48,IF(S_3FieldRank<=S_3Choice,S_3Amount,0),0)) -> 0 | Q48: =SUM(IF(S_4AccNO=$B48,IF(S_4FieldRank<=S_4Choice,S_4Amount,0),0)) -> 0 | R48: =SUM(IF(S_10AccNO=$B48,IF(S_10FieldRank<=S_10Choice,S_10Amount,0),0)) -> 0 | S48: =SUM(IF(S_13AccNO=$B48,IF(S_13FieldRank<=S_13Choice,S_13Amount,0),0)) -> 0 | T48: =SUM(IF(S_15AccNO=$B48,IF(S_15FieldRank<=S_15Choice,S_15Amount,0),0)) -> 4200 | U48: =SUM(IF(S_16AccNO=$B48,IF(S_16FieldRank<=S_16Choice,S_16Amount,0),0)) -> 0 | V48: =SUM(IF(S_17AccNO=$B48,IF(S_17FieldRank<=S_17Choice,S_17Amount,0),0)) -> 0 | W48: Bldg. & Equip Insurance | X48: =SUM(IF(S_18AccNO=$B48,IF(S_18FieldRank<=S_18Choice,S_18Amount,0),0)) -> 3500 | Y48: =SUM(IF(S_9AccNO=$B48,IF(S_9FieldRank<=S_9Choice,S_9Amount,0),0)) -> 0 | Z48: =SUM(IF(S_19AccNO=$B48,IF(S_19FieldRank<=S_19Choice,S_19Amount,0),0)) -> 0 | AA48: =SUM(IF(S_20AccNo=$B48,IF(S_20FieldRank<=S_20Choice,S_20Amount,0),0)) -> 0 | AB48: =SUM(IF(S_21AccNo=$B48,IF(S_21FieldRank<=S_21Choice,S_21Amount,0),0)) -> 0 | AC48: =SUM(IF(S_22AccNo=$B48,IF(S_22FieldRank<=S_22Choice,S_22Amount,0),0)) -> 0 | AE48: =SUM(IF(S_23AccNo=$B48,IF(S_23FieldRank<=S_23Choice,S_23Amount,0),0)) -> 0 | AF48: 0 | AG48: =SUM(IF(S_5AccNO=$B48,IF(S_5FieldRank<=S_5Choice,S_5Amount,0),0)) -> 0
B49: 8405 | C49: Utilities | D49: 22669 | E49: 3169 | F49: 31960 | G49: 3400 | H49: Utilities | I49: =SUM(IF(S1AccNO=B49,IF(S1FieldRank<=S1Choice,S1Amount,0),0)) -> 0 | J49: =SUM(IF(S_2AccNO=$B49,IF(S_2FieldRank<=S_2Choice,S_2Amount,0),0)) -> 0 | K49: =SUM(IF(S_6AccNO=$B49,IF(S_6FieldRank<=s_6Choice,S_6Amount,0),0)) -> 0 | L49: =SUM(IF(S_7AccNO=$B49,IF(S_7FieldRank<=S_7Choice,S_7Amount,0),0)) -> 0 | M49: =SUM(IF(S_8AccNO=$B49,IF(S_8FieldRank<=S_8Choice,S_8Amount,0),0)) -> 0 | N49: Utilities | O49: =SUM(IF(S_11AccNO=$B49,IF(S_11FieldRank<=S_11Choice,S_11Amount,0),0)) -> 0 | P49: =SUM(IF(S_3AccNO=$B49,IF(S_3FieldRank<=S_3Choice,S_3Amount,0),0)) -> 3500 | Q49: =SUM(IF(S_4AccNO=$B49,IF(S_4FieldRank<=S_4Choice,S_4Amount,0),0)) -> 0 | R49: =SUM(IF(S_10AccNO=$B49,IF(S_10FieldRank<=S_10Choice,S_10Amount,0),0)) -> 0 | S49: =SUM(IF(S_13AccNO=$B49,IF(S_13FieldRank<=S_13Choice,S_13Amount,0),0)) -> 0 | T49: =SUM(IF(S_15AccNO=$B49,IF(S_15FieldRank<=S_15Choice,S_15Amount,0),0)) -> 25060 | U49: =SUM(IF(S_16AccNO=$B49,IF(S_16FieldRank<=S_16Choice,S_16Amount,0),0)) -> 0 | V49: =SUM(IF(S_17AccNO=$B49,IF(S_17FieldRank<=S_17Choice,S_17Amount,0),0)) -> 0 | W49: Utilities | X49: =SUM(IF(S_18AccNO=$B49,IF(S_18FieldRank<=S_18Choice,S_18Amount,0),0)) -> 3400 | Y49: =SUM(IF(S_9AccNO=$B49,IF(S_9FieldRank<=S_9Choice,S_9Amount,0),0)) -> 0 | Z49: =SUM(IF(S_19AccNO=$B49,IF(S_19FieldRank<=S_19Choice,S_19Amount,0),0)) -> 0 | AA49: =SUM(IF(S_20AccNo=$B49,IF(S_20FieldRank<=S_20Choice,S_20Amount,0),0)) -> 0 | AB49: =SUM(IF(S_21AccNo=$B49,IF(S_21FieldRank<=S_21Choice,S_21Amount,0),0)) -> 0 | AC49: =SUM(IF(S_22AccNo=$B49,IF(S_22FieldRank<=S_22Choice,S_22Amount,0),0)) -> 0 | AE49: =SUM(IF(S_23AccNo=$B49,IF(S_23FieldRank<=S_23Choice,S_23Amount,0),0)) -> 0 | AF49: 0 | AG49: =SUM(IF(S_5AccNO=$B49,IF(S_5FieldRank<=S_5Choice,S_5Amount,0),0)) -> 0
B50: 8408 | C50: Annuitant Payments | D50: 17000 | E50: 17000 | F50: 17000 | G50: 17000 | H50: Annuitant Payments | I50: =SUM(IF(S1AccNO=B50,IF(S1FieldRank<=S1Choice,S1Amount,0),0)) -> 0 | J50: =SUM(IF(S_2AccNO=$B50,IF(S_2FieldRank<=S_2Choice,S_2Amount,0),0)) -> 0 | K50: =SUM(IF(S_6AccNO=$B50,IF(S_6FieldRank<=s_6Choice,S_6Amount,0),0)) -> 0 | L50: =SUM(IF(S_7AccNO=$B50,IF(S_7FieldRank<=S_7Choice,S_7Amount,0),0)) -> 0 | M50: =SUM(IF(S_8AccNO=$B50,IF(S_8FieldRank<=S_8Choice,S_8Amount,0),0)) -> 0 | N50: Annuitant Payments | O50: =SUM(IF(S_11AccNO=$B50,IF(S_11FieldRank<=S_11Choice,S_11Amount,0),0)) -> 0 | P50: =SUM(IF(S_3AccNO=$B50,IF(S_3FieldRank<=S_3Choice,S_3Amount,0),0)) -> 0 | Q50: =SUM(IF(S_4AccNO=$B50,IF(S_4FieldRank<=S_4Choice,S_4Amount,0),0)) -> 0 | R50: =SUM(IF(S_10AccNO=$B50,IF(S_10FieldRank<=S_10Choice,S_10Amount,0),0)) -> 0 | S50: =SUM(IF(S_13AccNO=$B50,IF(S_13FieldRank<=S_13Choice,S_13Amount,0),0)) -> 0 | T50: =SUM(IF(S_15AccNO=$B50,IF(S_15FieldRank<=S_15Choice,S_15Amount,0),0)) -> 0 | U50: =SUM(IF(S_16AccNO=$B50,IF(S_16FieldRank<=S_16Choice,S_16Amount,0),0)) -> 0 | V50: =SUM(IF(S_17AccNO=$B50,IF(S_17FieldRank<=S_17Choice,S_17Amount,0),0)) -> 0 | W50: Annuitant Payments | X50: =SUM(IF(S_18AccNO=$B50,IF(S_18FieldRank<=S_18Choice,S_18Amount,0),0)) -> 0 | Y50: =SUM(IF(S_9AccNO=$B50,IF(S_9FieldRank<=S_9Choice,S_9Amount,0),0)) -> 0 | Z50: =SUM(IF(S_19AccNO=$B50,IF(S_19FieldRank<=S_19Choice,S_19Amount,0),0)) -> 0 | AA50: =SUM(IF(S_20AccNo=$B50,IF(S_20FieldRank<=S_20Choice,S_20Amount,0),0)) -> 0 | AB50: =SUM(IF(S_21AccNo=$B50,IF(S_21FieldRank<=S_21Choice,S_21Amount,0),0)) -> 0 | AC50: =SUM(IF(S_22AccNo=$B50,IF(S_22FieldRank<=S_22Choice,S_22Amount,0),0)) -> 0 | AE50: =GETPIVOTDATA("Amount",'S23'!$J$7,"Acc_NO",8408) -> 17000 | AF50: 0 | AG50: =SUM(IF(S_5AccNO=$B50,IF(S_5FieldRank<=S_5Choice,S_5Amount,0),0)) -> 0
B51: 8410 | C51: Real Estate Tax | D51: 33000 | E51: 3000 | F51: 35000 | G51: 3200 | H51: Real Estate Tax | I51: =SUM(IF(S1AccNO=B51,IF(S1FieldRank<=S1Choice,S1Amount,0),0)) -> 0 | J51: =SUM(IF(S_2AccNO=$B51,IF(S_2FieldRank<=S_2Choice,S_2Amount,0),0)) -> 0 | K51: =SUM(IF(S_6AccNO=$B51,IF(S_6FieldRank<=s_6Choice,S_6Amount,0),0)) -> 0 | L51: =SUM(IF(S_7AccNO=$B51,IF(S_7FieldRank<=S_7Choice,S_7Amount,0),0)) -> 0 | M51: =SUM(IF(S_8AccNO=$B51,IF(S_8FieldRank<=S_8Choice,S_8Amount,0),0)) -> 0 | N51: Real Estate Tax | O51: =SUM(IF(S_11AccNO=$B51,IF(S_11FieldRank<=S_11Choice,S_11Amount,0),0)) -> 0 | P51: =SUM(IF(S_3AccNO=$B51,IF(S_3FieldRank<=S_3Choice,S_3Amount,0),0)) -> 0 | Q51: =SUM(IF(S_4AccNO=$B51,IF(S_4FieldRank<=S_4Choice,S_4Amount,0),0)) -> 0 | R51: =SUM(IF(S_10AccNO=$B51,IF(S_10FieldRank<=S_10Choice,S_10Amount,0),0)) -> 0 | S51: =SUM(IF(S_13AccNO=$B51,IF(S_13FieldRank<=S_13Choice,S_13Amount,0),0)) -> 0 | T51: =SUM(IF(S_15AccNO=$B51,IF(S_15FieldRank<=S_15Choice,S_15Amount,0),0)) -> 31800 | U51: =SUM(IF(S_16AccNO=$B51,IF(S_16FieldRank<=S_16Choice,S_16Amount,0),0)) -> 0 | V51: =SUM(IF(S_17AccNO=$B51,IF(S_17FieldRank<=S_17Choice,S_17Amount,0),0)) -> 0 | W51: Real Estate Tax | X51: =SUM(IF(S_18AccNO=$B51,IF(S_18FieldRank<=S_18Choice,S_18Amount,0),0)) -> 3200 | Y51: =SUM(IF(S_9AccNO=$B51,IF(S_9FieldRank<=S_9Choice,S_9Amount,0),0)) -> 0 | Z51: =SUM(IF(S_19AccNO=$B51,IF(S_19FieldRank<=S_19Choice,S_19Amount,0),0)) -> 0 | AA51: =SUM(IF(S_20AccNo=$B51,IF(S_20FieldRank<=S_20Choice,S_20Amount,0),0)) -> 0 | AB51: =SUM(IF(S_21AccNo=$B51,IF(S_21FieldRank<=S_21Choice,S_21Amount,0),0)) -> 0 | AC51: =SUM(IF(S_22AccNo=$B51,IF(S_22FieldRank<=S_22Choice,S_22Amount,0),0)) -> 0 | AE51: =SUM(IF(S_23AccNo=$B51,IF(S_23FieldRank<=S_23Choice,S_23Amount,0),0)) -> 0 | AF51: 0 | AG51: =SUM(IF(S_5AccNO=$B51,IF(S_5FieldRank<=S_5Choice,S_5Amount,0),0)) -> 0
B52: 8411 | C52: Grounds Maint. | D52: 15300 | E52: 2300 | F52: 16650 | G52: 2450 | H52: Grounds Maint. | I52: =SUM(IF(S1AccNO=B52,IF(S1FieldRank<=S1Choice,S1Amount,0),0)) -> 0 | J52: =SUM(IF(S_2AccNO=$B52,IF(S_2FieldRank<=S_2Choice,S_2Amount,0),0)) -> 0 | K52: =SUM(IF(S_6AccNO=$B52,IF(S_6FieldRank<=s_6Choice,S_6Amount,0),0)) -> 0 | L52: =SUM(IF(S_7AccNO=$B52,IF(S_7FieldRank<=S_7Choice,S_7Amount,0),0)) -> 0 | M52: =SUM(IF(S_8AccNO=$B52,IF(S_8FieldRank<=S_8Choice,S_8Amount,0),0)) -> 0 | N52: Grounds Maint. | O52: =SUM(IF(S_11AccNO=$B52,IF(S_11FieldRank<=S_11Choice,S_11Amount,0),0)) -> 0 | P52: =SUM(IF(S_3AccNO=$B52,IF(S_3FieldRank<=S_3Choice,S_3Amount,0),0)) -> 0 | Q52: =SUM(IF(S_4AccNO=$B52,IF(S_4FieldRank<=S_4Choice,S_4Amount,0),0)) -> 0 | R52: =SUM(IF(S_10AccNO=$B52,IF(S_10FieldRank<=S_10Choice,S_10Amount,0),0)) -> 0 | S52: =SUM(IF(S_13AccNO=$B52,IF(S_13FieldRank<=S_13Choice,S_13Amount,0),0)) -> 0 | T52: =SUM(IF(S_15AccNO=$B52,IF(S_15FieldRank<=S_15Choice,S_15Amount,0),0)) -> 14200 | U52: =SUM(IF(S_16AccNO=$B52,IF(S_16FieldRank<=S_16Choice,S_16Amount,0),0)) -> 0 | V52: =SUM(IF(S_17AccNO=$B52,IF(S_17FieldRank<=S_17Choice,S_17Amount,0),0)) -> 0 | W52: Grounds Maint. | X52: =SUM(IF(S_18AccNO=$B52,IF(S_18FieldRank<=S_18Choice,S_18Amount,0),0)) -> 2450 | Y52: =SUM(IF(S_9AccNO=$B52,IF(S_9FieldRank<=S_9Choice,S_9Amount,0),0)) -> 0 | Z52: =SUM(IF(S_19AccNO=$B52,IF(S_19FieldRank<=S_19Choice,S_19Amount,0),0)) -> 0 | AA52: =SUM(IF(S_20AccNo=$B52,IF(S_20FieldRank<=S_20Choice,S_20Amount,0),0)) -> 0 | AB52: =SUM(IF(S_21AccNo=$B52,IF(S_21FieldRank<=S_21Choice,S_21Amount,0),0)) -> 0 | AC52: =SUM(IF(S_22AccNo=$B52,IF(S_22FieldRank<=S_22Choice,S_22Amount,0),0)) -> 0 | AE52: =SUM(IF(S_23AccNo=$B52,IF(S_23FieldRank<=S_23Choice,S_23Amount,0),0)) -> 0 | AF52: 0 | AG52: =SUM(IF(S_5AccNO=$B52,IF(S_5FieldRank<=S_5Choice,S_5Amount,0),0)) -> 0
B53: 8413 | C53: Building Maint. | D53: 83650 | E53: 1200 | F53: 103700 | G53: 1800 | H53: Building Maint. | I53: =SUM(IF(S1AccNO=B53,IF(S1FieldRank<=S1Choice,S1Amount,0),0)) -> 0 | J53: =SUM(IF(S_2AccNO=$B53,IF(S_2FieldRank<=S_2Choice,S_2Amount,0),0)) -> 0 | K53: =SUM(IF(S_6AccNO=$B53,IF(S_6FieldRank<=s_6Choice,S_6Amount,0),0)) -> 0 | L53: =SUM(IF(S_7AccNO=$B53,IF(S_7FieldRank<=S_7Choice,S_7Amount,0),0)) -> 0 | M53: =SUM(IF(S_8AccNO=$B53,IF(S_8FieldRank<=S_8Choice,S_8Amount,0),0)) -> 0 | N53: Building Maint. | O53: =SUM(IF(S_11AccNO=$B53,IF(S_11FieldRank<=S_11Choice,S_11Amount,0),0)) -> 0 | P53: =SUM(IF(S_3AccNO=$B53,IF(S_3FieldRank<=S_3Choice,S_3Amount,0),0)) -> 0 | Q53: =SUM(IF(S_4AccNO=$B53,IF(S_4FieldRank<=S_4Choice,S_4Amount,0),0)) -> 0 | R53: =SUM(IF(S_10AccNO=$B53,IF(S_10FieldRank<=S_10Choice,S_10Amount,0),0)) -> 0 | S53: =SUM(IF(S_13AccNO=$B53,IF(S_13FieldRank<=S_13Choice,S_13Amount,0),0)) -> 0 | T53: =SUM(IF(S_15AccNO=$B53,IF(S_15FieldRank<=S_15Choice,S_15Amount,0),0)) -> 101400 | U53: =SUM(IF(S_16AccNO=$B53,IF(S_16FieldRank<=S_16Choice,S_16Amount,0),0)) -> 0 | V53: =SUM(IF(S_17AccNO=$B53,IF(S_17FieldRank<=S_17Choice,S_17Amount,0),0)) -> 500 | W53: Building Maint. | X53: =SUM(IF(S_18AccNO=$B53,IF(S_18FieldRank<=S_18Choice,S_18Amount,0),0)) -> 1800 | Y53: =SUM(IF(S_9AccNO=$B53,IF(S_9FieldRank<=S_9Choice,S_9Amount,0),0)) -> 0 | Z53: =SUM(IF(S_19AccNO=$B53,IF(S_19FieldRank<=S_19Choice,S_19Amount,0),0)) -> 0 | AA53: =SUM(IF(S_20AccNo=$B53,IF(S_20FieldRank<=S_20Choice,S_20Amount,0),0)) -> 0 | AB53: =SUM(IF(S_21AccNo=$B53,IF(S_21FieldRank<=S_21Choice,S_21Amount,0),0)) -> 0 | AC53: =SUM(IF(S_22AccNo=$B53,IF(S_22FieldRank<=S_22Choice,S_22Amount,0),0)) -> 0 | AE53: =SUM(IF(S_23AccNo=$B53,IF(S_23FieldRank<=S_23Choice,S_23Amount,0),0)) -> 0 | AF53: 0 | AG53: =SUM(IF(S_5AccNO=$B53,IF(S_5FieldRank<=S_5Choice,S_5Amount,0),0)) -> 0
B54: 8502 | C54: Equipment Maint. | D54: 4675 | E54: 2975 | F54: 13675 | G54: 3075 | H54: Equipment Maint. | I54: =SUM(IF(S1AccNO=B54,IF(S1FieldRank<=S1Choice,S1Amount,0),0)) -> 600 | J54: =SUM(IF(S_2AccNO=$B54,IF(S_2FieldRank<=S_2Choice,S_2Amount,0),0)) -> 0 | K54: =SUM(IF(S_6AccNO=$B54,IF(S_6FieldRank<=s_6Choice,S_6Amount,0),0)) -> 0 | L54: =SUM(IF(S_7AccNO=$B54,IF(S_7FieldRank<=S_7Choice,S_7Amount,0),0)) -> 0 | M54: =SUM(IF(S_8AccNO=$B54,IF(S_8FieldRank<=S_8Choice,S_8Amount,0),0)) -> 0 | N54: Equipment Maint. | O54: =SUM(IF(S_11AccNO=$B54,IF(S_11FieldRank<=S_11Choice,S_11Amount,0),0)) -> 0 | P54: =SUM(IF(S_3AccNO=$B54,IF(S_3FieldRank<=S_3Choice,S_3Amount,0),0)) -> 0 | Q54: =SUM(IF(S_4AccNO=$B54,IF(S_4FieldRank<=S_4Choice,S_4Amount,0),0)) -> 0 | R54: =SUM(IF(S_10AccNO=$B54,IF(S_10FieldRank<=S_10Choice,S_10Amount,0),0)) -> 0 | S54: =SUM(IF(S_13AccNO=$B54,IF(S_13FieldRank<=S_13Choice,S_13Amount,0),0)) -> 0 | T54: =SUM(IF(S_15AccNO=$B54,IF(S_15FieldRank<=S_15Choice,S_15Amount,0),0)) -> 10000 | U54: =SUM(IF(S_16AccNO=$B54,IF(S_16FieldRank<=S_16Choice,S_16Amount,0),0)) -> 0 | V54: =SUM(IF(S_17AccNO=$B54,IF(S_17FieldRank<=S_17Choice,S_17Amount,0),0)) -> 0 | W54: Equipment Maint. | X54: =SUM(IF(S_18AccNO=$B54,IF(S_18FieldRank<=S_18Choice,S_18Amount,0),0)) -> 3075 | Y54: =SUM(IF(S_9AccNO=$B54,IF(S_9FieldRank<=S_9Choice,S_9Amount,0),0)) -> 0 | Z54: =SUM(IF(S_19AccNO=$B54,IF(S_19FieldRank<=S_19Choice,S_19Amount,0),0)) -> 0 | AA54: =SUM(IF(S_20AccNo=$B54,IF(S_20FieldRank<=S_20Choice,S_20Amount,0),0)) -> 0 | AB54: =SUM(IF(S_21AccNo=$B54,IF(S_21FieldRank<=S_21Choice,S_21Amount,0),0)) -> 0 | AC54: =SUM(IF(S_22AccNo=$B54,IF(S_22FieldRank<=S_22Choice,S_22Amount,0),0)) -> 0 | AE54: =SUM(IF(S_23AccNo=$B54,IF(S_23FieldRank<=S_23Choice,S_23Amount,0),0)) -> 0 | AF54: 0 | AG54: =SUM(IF(S_5AccNO=$B54,IF(S_5FieldRank<=S_5Choice,S_5Amount,0),0)) -> 0
B55: 8510 | C55: Small Equip. Purchase | D55: 21400 | E55: 300 | F55: 19700 | G55: 700 | H55: Small Equip. Purchase | I55: =SUM(IF(S1AccNO=B55,IF(S1FieldRank<=S1Choice,S1Amount,0),0)) -> 0 | J55: =SUM(IF(S_2AccNO=$B55,IF(S_2FieldRank<=S_2Choice,S_2Amount,0),0)) -> 0 | K55: =SUM(IF(S_6AccNO=$B55,IF(S_6FieldRank<=s_6Choice,S_6Amount,0),0)) -> 0 | L55: =SUM(IF(S_7AccNO=$B55,IF(S_7FieldRank<=S_7Choice,S_7Amount,0),0)) -> 0 | M55: =SUM(IF(S_8AccNO=$B55,IF(S_8FieldRank<=S_8Choice,S_8Amount,0),0)) -> 0 | N55: Small Equip. Purchase | O55: =SUM(IF(S_11AccNO=$B55,IF(S_11FieldRank<=S_11Choice,S_11Amount,0),0)) -> 0 | P55: =SUM(IF(S_3AccNO=$B55,IF(S_3FieldRank<=S_3Choice,S_3Amount,0),0)) -> 0 | Q55: =SUM(IF(S_4AccNO=$B55,IF(S_4FieldRank<=S_4Choice,S_4Amount,0),0)) -> 0 | R55: =SUM(IF(S_10AccNO=$B55,IF(S_10FieldRank<=S_10Choice,S_10Amount,0),0)) -> 0 | S55: =SUM(IF(S_13AccNO=$B55,IF(S_13FieldRank<=S_13Choice,S_13Amount,0),0)) -> 0 | T55: =SUM(IF(S_15AccNO=$B55,IF(S_15FieldRank<=S_15Choice,S_15Amount,0),0)) -> 15000 | U55: =SUM(IF(S_16AccNO=$B55,IF(S_16FieldRank<=S_16Choice,S_16Amount,0),0)) -> 0 | V55: =SUM(IF(S_17AccNO=$B55,IF(S_17FieldRank<=S_17Choice,S_17Amount,0),0)) -> 4000 | W55: Small Equip. Purchase | X55: =SUM(IF(S_18AccNO=$B55,IF(S_18FieldRank<=S_18Choice,S_18Amount,0),0)) -> 0 | Y55: =SUM(IF(S_9AccNO=$B55,IF(S_9FieldRank<=S_9Choice,S_9Amount,0),0)) -> 700 | Z55: =SUM(IF(S_19AccNO=$B55,IF(S_19FieldRank<=S_19Choice,S_19Amount,0),0)) -> 0 | AA55: =SUM(IF(S_20AccNo=$B55,IF(S_20FieldRank<=S_20Choice,S_20Amount,0),0)) -> 0 | AB55: =SUM(IF(S_21AccNo=$B55,IF(S_21FieldRank<=S_21Choice,S_21Amount,0),0)) -> 0 | AC55: =SUM(IF(S_22AccNo=$B55,IF(S_22FieldRank<=S_22Choice,S_22Amount,0),0)) -> 0 | AE55: =SUM(IF(S_23AccNo=$B55,IF(S_23FieldRank<=S_23Choice,S_23Amount,0),0)) -> 0 | AF55: 0 | AG55: =SUM(IF(S_5AccNO=$B55,IF(S_5FieldRank<=S_5Choice,S_5Amount,0),0)) -> 0
B56: 8602 | C56: Artwork & Graphics | D56: 200 | E56: 200 | F56: 1400 | G56: 1400 | H56: Artwork & Graphics | I56: =SUM(IF(S1AccNO=B56,IF(S1FieldRank<=S1Choice,S1Amount,0),0)) -> 0 | J56: =SUM(IF(S_2AccNO=$B56,IF(S_2FieldRank<=S_2Choice,S_2Amount,0),0)) -> 0 | K56: =SUM(IF(S_6AccNO=$B56,IF(S_6FieldRank<=s_6Choice,S_6Amount,0),0)) -> 0 | L56: =SUM(IF(S_7AccNO=$B56,IF(S_7FieldRank<=S_7Choice,S_7Amount,0),0)) -> 0 | M56: =SUM(IF(S_8AccNO=$B56,IF(S_8FieldRank<=S_8Choice,S_8Amount,0),0)) -> 0 | N56: Artwork & Graphics | O56: =SUM(IF(S_11AccNO=$B56,IF(S_11FieldRank<=S_11Choice,S_11Amount,0),0)) -> 0 | P56: =SUM(IF(S_3AccNO=$B56,IF(S_3FieldRank<=S_3Choice,S_3Amount,0),0)) -> 0 | Q56: =SUM(IF(S_4AccNO=$B56,IF(S_4FieldRank<=S_4Choice,S_4Amount,0),0)) -> 0 | R56: =SUM(IF(S_10AccNO=$B56,IF(S_10FieldRank<=S_10Choice,S_10Amount,0),0)) -> 0 | S56: =SUM(IF(S_13AccNO=$B56,IF(S_13FieldRank<=S_13Choice,S_13Amount,0),0)) -> 0 | T56: =SUM(IF(S_15AccNO=$B56,IF(S_15FieldRank<=S_15Choice,S_15Amount,0),0)) -> 0 | U56: =SUM(IF(S_16AccNO=$B56,IF(S_16FieldRank<=S_16Choice,S_16Amount,0),0)) -> 0 | V56: =SUM(IF(S_17AccNO=$B56,IF(S_17FieldRank<=S_17Choice,S_17Amount,0),0)) -> 0 | W56: Artwork & Graphics | X56: =SUM(IF(S_18AccNO=$B56,IF(S_18FieldRank<=S_18Choice,S_18Amount,0),0)) -> 0 | Y56: =SUM(IF(S_9AccNO=$B56,IF(S_9FieldRank<=S_9Choice,S_9Amount,0),0)) -> 1400 | Z56: =SUM(IF(S_19AccNO=$B56,IF(S_19FieldRank<=S_19Choice,S_19Amount,0),0)) -> 0 | AA56: =SUM(IF(S_20AccNo=$B56,IF(S_20FieldRank<=S_20Choice,S_20Amount,0),0)) -> 0 | AB56: =SUM(IF(S_21AccNo=$B56,IF(S_21FieldRank<=S_21Choice,S_21Amount,0),0)) -> 0 | AC56: =SUM(IF(S_22AccNo=$B56,IF(S_22FieldRank<=S_22Choice,S_22Amount,0),0)) -> 0 | AE56: =SUM(IF(S_23AccNo=$B56,IF(S_23FieldRank<=S_23Choice,S_23Amount,0),0)) -> 0 | AF56: 0 | AG56: =SUM(IF(S_5AccNO=$B56,IF(S_5FieldRank<=S_5Choice,S_5Amount,0),0)) -> 0
B57: 8606 | C57: Subscriptions & Periodicals | D57: 700 | E57: 700 | F57: 700 | G57: 700 | H57: Subscriptions & Periodicals | I57: =SUM(IF(S1AccNO=B57,IF(S1FieldRank<=S1Choice,S1Amount,0),0)) -> 0 | J57: =SUM(IF(S_2AccNO=$B57,IF(S_2FieldRank<=S_2Choice,S_2Amount,0),0)) -> 0 | K57: =SUM(IF(S_6AccNO=$B57,IF(S_6FieldRank<=s_6Choice,S_6Amount,0),0)) -> 0 | L57: =SUM(IF(S_7AccNO=$B57,IF(S_7FieldRank<=S_7Choice,S_7Amount,0),0)) -> 0 | M57: =SUM(IF(S_8AccNO=$B57,IF(S_8FieldRank<=S_8Choice,S_8Amount,0),0)) -> 0 | N57: Subscriptions & Periodicals | O57: =SUM(IF(S_11AccNO=$B57,IF(S_11FieldRank<=S_11Choice,S_11Amount,0),0)) -> 0 | P57: =SUM(IF(S_3AccNO=$B57,IF(S_3FieldRank<=S_3Choice,S_3Amount,0),0)) -> 0 | Q57: =SUM(IF(S_4AccNO=$B57,IF(S_4FieldRank<=S_4Choice,S_4Amount,0),0)) -> 0 | R57: =SUM(IF(S_10AccNO=$B57,IF(S_10FieldRank<=S_10Choice,S_10Amount,0),0)) -> 0 | S57: =SUM(IF(S_13AccNO=$B57,IF(S_13FieldRank<=S_13Choice,S_13Amount,0),0)) -> 0 | T57: =SUM(IF(S_15AccNO=$B57,IF(S_15FieldRank<=S_15Choice,S_15Amount,0),0)) -> 0 | U57: =SUM(IF(S_16AccNO=$B57,IF(S_16FieldRank<=S_16Choice,S_16Amount,0),0)) -> 0 | V57: =SUM(IF(S_17AccNO=$B57,IF(S_17FieldRank<=S_17Choice,S_17Amount,0),0)) -> 0 | W57: Subscriptions & Periodicals | X57: =SUM(IF(S_18AccNO=$B57,IF(S_18FieldRank<=S_18Choice,S_18Amount,0),0)) -> 0 | Y57: =SUM(IF(S_9AccNO=$B57,IF(S_9FieldRank<=S_9Choice,S_9Amount,0),0)) -> 0 | Z57: =SUM(IF(S_19AccNO=$B57,IF(S_19FieldRank<=S_19Choice,S_19Amount,0),0)) -> 700 | AA57: =SUM(IF(S_20AccNo=$B57,IF(S_20FieldRank<=S_20Choice,S_20Amount,0),0)) -> 0 | AB57: =SUM(IF(S_21AccNo=$B57,IF(S_21FieldRank<=S_21Choice,S_21Amount,0),0)) -> 0 | AC57: =SUM(IF(S_22AccNo=$B57,IF(S_22FieldRank<=S_22Choice,S_22Amount,0),0)) -> 0 | AE57: =GETPIVOTDATA("Amount",'S23'!$J$7,"Acc_NO",8606) -> 0 | AF57: 0 | AG57: =SUM(IF(S_5AccNO=$B57,IF(S_5FieldRank<=S_5Choice,S_5Amount,0),0)) -> 0
B58: 8608 | C58: Advertising | D58: 4300 | E58: 3300 | F58: 13650 | G58: 12650 | H58: Advertising | I58: =SUM(IF(S1AccNO=B58,IF(S1FieldRank<=S1Choice,S1Amount,0),0)) -> 0 | J58: =SUM(IF(S_2AccNO=$B58,IF(S_2FieldRank<=S_2Choice,S_2Amount,0),0)) -> 0 | K58: =SUM(IF(S_6AccNO=$B58,IF(S_6FieldRank<=s_6Choice,S_6Amount,0),0)) -> 0 | L58: =SUM(IF(S_7AccNO=$B58,IF(S_7FieldRank<=S_7Choice,S_7Amount,0),0)) -> 0 | M58: =SUM(IF(S_8AccNO=$B58,IF(S_8FieldRank<=S_8Choice,S_8Amount,0),0)) -> 0 | N58: Advertising | O58: =SUM(IF(S_11AccNO=$B58,IF(S_11FieldRank<=S_11Choice,S_11Amount,0),0)) -> 0 | P58: =SUM(IF(S_3AccNO=$B58,IF(S_3FieldRank<=S_3Choice,S_3Amount,0),0)) -> 1000 | Q58: =SUM(IF(S_4AccNO=$B58,IF(S_4FieldRank<=S_4Choice,S_4Amount,0),0)) -> 0 | R58: =SUM(IF(S_10AccNO=$B58,IF(S_10FieldRank<=S_10Choice,S_10Amount,0),0)) -> 0 | S58: =SUM(IF(S_13AccNO=$B58,IF(S_13FieldRank<=S_13Choice,S_13Amount,0),0)) -> 0 | T58: =SUM(IF(S_15AccNO=$B58,IF(S_15FieldRank<=S_15Choice,S_15Amount,0),0)) -> 0 | U58: =SUM(IF(S_16AccNO=$B58,IF(S_16FieldRank<=S_16Choice,S_16Amount,0),0)) -> 0 | V58: =SUM(IF(S_17AccNO=$B58,IF(S_17FieldRank<=S_17Choice,S_17Amount,0),0)) -> 0 | W58: Advertising | X58: =SUM(IF(S_18AccNO=$B58,IF(S_18FieldRank<=S_18Choice,S_18Amount,0),0)) -> 0 | Y58: =SUM(IF(S_9AccNO=$B58,IF(S_9FieldRank<=S_9Choice,S_9Amount,0),0)) -> 10000 | Z58: =SUM(IF(S_19AccNO=$B58,IF(S_19FieldRank<=S_19Choice,S_19Amount,0),0)) -> 0 | AA58: =SUM(IF(S_20AccNo=$B58,IF(S_20FieldRank<=S_20Choice,S_20Amount,0),0)) -> 0 | AB58: =SUM(IF(S_21AccNo=$B58,IF(S_21FieldRank<=S_21Choice,S_21Amount,0),0)) -> 0 | AC58: =SUM(IF(S_22AccNo=$B58,IF(S_22FieldRank<=S_22Choice,S_22Amount,0),0)) -> 0 | AD58: =GETPIVOTDATA("Amount",'S25'!$J$5,"Acc_NO",8608) -> 2650 | AE58: =SUM(IF(S_23AccNo=$B58,IF(S_23FieldRank<=S_23Choice,S_23Amount,0),0)) -> 0 | AF58: 0 | AG58: =SUM(IF(S_5AccNO=$B58,IF(S_5FieldRank<=S_5Choice,S_5Amount,0),0)) -> 0
B59: 8609 | C59: Mailing Service | D59: 0 | E59: 0 | F59: 0 | G59: 0 | H59: Mailing Service | I59: =SUM(IF(S1AccNO=B59,IF(S1FieldRank<=S1Choice,S1Amount,0),0)) -> 0 | J59: =SUM(IF(S_2AccNO=$B59,IF(S_2FieldRank<=S_2Choice,S_2Amount,0),0)) -> 0 | K59: =SUM(IF(S_6AccNO=$B59,IF(S_6FieldRank<=s_6Choice,S_6Amount,0),0)) -> 0 | L59: =SUM(IF(S_7AccNO=$B59,IF(S_7FieldRank<=S_7Choice,S_7Amount,0),0)) -> 0 | M59: =SUM(IF(S_8AccNO=$B59,IF(S_8FieldRank<=S_8Choice,S_8Amount,0),0)) -> 0 | N59: Mailing Service | O59: =SUM(IF(S_11AccNO=$B59,IF(S_11FieldRank<=S_11Choice,S_11Amount,0),0)) -> 0 | P59: =SUM(IF(S_3AccNO=$B59,IF(S_3FieldRank<=S_3Choice,S_3Amount,0),0)) -> 0 | Q59: =SUM(IF(S_4AccNO=$B59,IF(S_4FieldRank<=S_4Choice,S_4Amount,0),0)) -> 0 | R59: =SUM(IF(S_10AccNO=$B59,IF(S_10FieldRank<=S_10Choice,S_10Amount,0),0)) -> 0 | S59: =SUM(IF(S_13AccNO=$B59,IF(S_13FieldRank<=S_13Choice,S_13Amount,0),0)) -> 0 | T59: =SUM(IF(S_15AccNO=$B59,IF(S_15FieldRank<=S_15Choice,S_15Amount,0),0)) -> 0 | U59: =SUM(IF(S_16AccNO=$B59,IF(S_16FieldRank<=S_16Choice,S_16Amount,0),0)) -> 0 | V59: =SUM(IF(S_17AccNO=$B59,IF(S_17FieldRank<=S_17Choice,S_17Amount,0),0)) -> 0 | W59: Mailing Service | X59: =SUM(IF(S_18AccNO=$B59,IF(S_18FieldRank<=S_18Choice,S_18Amount,0),0)) -> 0 | Y59: =SUM(IF(S_9AccNO=$B59,IF(S_9FieldRank<=S_9Choice,S_9Amount,0),0)) -> 0 | Z59: =SUM(IF(S_19AccNO=$B59,IF(S_19FieldRank<=S_19Choice,S_19Amount,0),0)) -> 0 | AA59: =SUM(IF(S_20AccNo=$B59,IF(S_20FieldRank<=S_20Choice,S_20Amount,0),0)) -> 0 | AB59: =SUM(IF(S_21AccNo=$B59,IF(S_21FieldRank<=S_21Choice,S_21Amount,0),0)) -> 0 | AC59: =SUM(IF(S_22AccNo=$B59,IF(S_22FieldRank<=S_22Choice,S_22Amount,0),0)) -> 0 | AE59: =GETPIVOTDATA("Amount",'S23'!$J$7,"Acc_NO",8609) -> 0 | AF59: 0 | AG59: =SUM(IF(S_5AccNO=$B59,IF(S_5FieldRank<=S_5Choice,S_5Amount,0),0)) -> 0
B60: 8702 | C60: Vehicle Fuel & Oil | D60: 12280 | E60: 5780 | F60: 16795 | G60: 7895 | H60: Vehicle Fuel & Oil | I60: =SUM(IF(S1AccNO=B60,IF(S1FieldRank<=S1Choice,S1Amount,0),0)) -> 500 | J60: =SUM(IF(S_2AccNO=$B60,IF(S_2FieldRank<=S_2Choice,S_2Amount,0),0)) -> 400 | K60: =SUM(IF(S_6AccNO=$B60,IF(S_6FieldRank<=s_6Choice,S_6Amount,0),0)) -> 0 | L60: =SUM(IF(S_7AccNO=$B60,IF(S_7FieldRank<=S_7Choice,S_7Amount,0),0)) -> 0 | M60: =SUM(IF(S_8AccNO=$B60,IF(S_8FieldRank<=S_8Choice,S_8Amount,0),0)) -> 0 | N60: Vehicle Fuel & Oil | O60: =SUM(IF(S_11AccNO=$B60,IF(S_11FieldRank<=S_11Choice,S_11Amount,0),0)) -> 0 | P60: =SUM(IF(S_3AccNO=$B60,IF(S_3FieldRank<=S_3Choice,S_3Amount,0),0)) -> 5000 | Q60: =SUM(IF(S_4AccNO=$B60,IF(S_4FieldRank<=S_4Choice,S_4Amount,0),0)) -> 0 | R60: =SUM(IF(S_10AccNO=$B60,IF(S_10FieldRank<=S_10Choice,S_10Amount,0),0)) -> 0 | S60: =SUM(IF(S_13AccNO=$B60,IF(S_13FieldRank<=S_13Choice,S_13Amount,0),0)) -> 0 | T60: =SUM(IF(S_15AccNO=$B60,IF(S_15FieldRank<=S_15Choice,S_15Amount,0),0)) -> 3000 | U60: =SUM(IF(S_16AccNO=$B60,IF(S_16FieldRank<=S_16Choice,S_16Amount,0),0)) -> 0 | V60: =SUM(IF(S_17AccNO=$B60,IF(S_17FieldRank<=S_17Choice,S_17Amount,0),0)) -> 0 | W60: Vehicle Fuel & Oil | X60: =SUM(IF(S_18AccNO=$B60,IF(S_18FieldRank<=S_18Choice,S_18Amount,0),0)) -> 0 | Y60: =SUM(IF(S_9AccNO=$B60,IF(S_9FieldRank<=S_9Choice,S_9Amount,0),0)) -> 530 | Z60: =SUM(IF(S_19AccNO=$B60,IF(S_19FieldRank<=S_19Choice,S_19Amount,0),0)) -> 0 | AA60: =SUM(IF(S_20AccNo=$B60,IF(S_20FieldRank<=S_20Choice,S_20Amount,0),0)) -> 4700 | AB60: =SUM(IF(S_21AccNo=$B60,IF(S_21FieldRank<=S_21Choice,S_21Amount,0),0)) -> 0 | AC60: =SUM(IF(S_22AccNo=$B60,IF(S_22FieldRank<=S_22Choice,S_22Amount,0),0)) -> 0 | AD60: =GETPIVOTDATA("Amount",'S25'!$J$5,"Acc_NO",8702) -> 1665 | AE60: =GETPIVOTDATA("Amount",'S23'!$J$7,"Acc_NO",8702) -> 1000 | AF60: 0 | AG60: =SUM(IF(S_5AccNO=$B60,IF(S_5FieldRank<=S_5Choice,S_5Amount,0),0)) -> 0
B61: 8703 | C61: Vehicle Repair/Ins./Lic. | D61: 8000 | E61: 0 | F61: =SUM(I61:AE61) -> 13000 | G61: 0 | H61: Vehicle Repair/Ins./Lic. | I61: =SUM(IF(S1AccNO=B61,IF(S1FieldRank<=S1Choice,S1Amount,0),0)) -> 0 | J61: =SUM(IF(S_2AccNO=$B61,IF(S_2FieldRank<=S_2Choice,S_2Amount,0),0)) -> 0 | K61: =SUM(IF(S_6AccNO=$B61,IF(S_6FieldRank<=s_6Choice,S_6Amount,0),0)) -> 0 | L61: =SUM(IF(S_7AccNO=$B61,IF(S_7FieldRank<=S_7Choice,S_7Amount,0),0)) -> 0 | M61: =SUM(IF(S_8AccNO=$B61,IF(S_8FieldRank<=S_8Choice,S_8Amount,0),0)) -> 0 | N61: Vehicle Repair/Ins./Lic. | O61: =SUM(IF(S_11AccNO=$B61,IF(S_11FieldRank<=S_11Choice,S_11Amount,0),0)) -> 0 | P61: =SUM(IF(S_3AccNO=$B61,IF(S_3FieldRank<=S_3Choice,S_3Amount,0),0)) -> 0 | Q61: =SUM(IF(S_4AccNO=$B61,IF(S_4FieldRank<=S_4Choice,S_4Amount,0),0)) -> 0 | R61: =SUM(IF(S_10AccNO=$B61,IF(S_10FieldRank<=S_10Choice,S_10Amount,0),0)) -> 0 | S61: =SUM(IF(S_13AccNO=$B61,IF(S_13FieldRank<=S_13Choice,S_13Amount,0),0)) -> 0 | T61: =SUM(IF(S_15AccNO=$B61,IF(S_15FieldRank<=S_15Choice,S_15Amount,0),0)) -> 13000 | U61: =SUM(IF(S_16AccNO=$B61,IF(S_16FieldRank<=S_16Choice,S_16Amount,0),0)) -> 0 | V61: =SUM(IF(S_17AccNO=$B61,IF(S_17FieldRank<=S_17Choice,S_17Amount,0),0)) -> 0 | W61: =C61 -> Vehicle Repair/Ins./Lic. | X61: =SUM(IF(S_18AccNO=$B61,IF(S_18FieldRank<=S_18Choice,S_18Amount,0),0)) -> 0 | Y61: =SUM(IF(S_9AccNO=$B61,IF(S_9FieldRank<=S_9Choice,S_9Amount,0),0)) -> 0 | Z61: =SUM(IF(S_19AccNO=$B61,IF(S_19FieldRank<=S_19Choice,S_19Amount,0),0)) -> 0 | AA61: =SUM(IF(S_20AccNo=$B61,IF(S_20FieldRank<=S_20Choice,S_20Amount,0),0)) -> 0 | AB61: =SUM(IF(S_21AccNo=$B61,IF(S_21FieldRank<=S_21Choice,S_21Amount,0),0)) -> 0 | AC61: =SUM(IF(S_22AccNo=$B61,IF(S_22FieldRank<=S_22Choice,S_22Amount,0),0)) -> 0 | AE61: =SUM(IF(S_23AccNo=$B61,IF(S_23FieldRank<=S_23Choice,S_23Amount,0),0)) -> 0 | AF61: =SUM(IF(S_12AccNO=$B61,IF(S_12FieldRank<=S_12Choice,S_12Amount,0),0)) -> 0 | AG61: =SUM(IF(S_5AccNO=$B61,IF(S_5FieldRank<=S_5Choice,S_5Amount,0),0)) -> 0
B62: 8706 | C62: Vehicle Rental | D62: 4450 | E62: 4250 | F62: 5950 | G62: =SUM(X62:AE62) -> 4950 | H62: Vehicle Rental | I62: =SUM(IF(S1AccNO=B62,IF(S1FieldRank<=S1Choice,S1Amount,0),0)) -> 1000 | J62: =SUM(IF(S_2AccNO=$B62,IF(S_2FieldRank<=S_2Choice,S_2Amount,0),0)) -> 0 | K62: =SUM(IF(S_6AccNO=$B62,IF(S_6FieldRank<=s_6Choice,S_6Amount,0),0)) -> 0 | L62: =SUM(IF(S_7AccNO=$B62,IF(S_7FieldRank<=S_7Choice,S_7Amount,0),0)) -> 0 | M62: =SUM(IF(S_8AccNO=$B62,IF(S_8FieldRank<=S_8Choice,S_8Amount,0),0)) -> 0 | N62: Vehicle Rental | O62: =SUM(IF(S_11AccNO=$B62,IF(S_11FieldRank<=S_11Choice,S_11Amount,0),0)) -> 0 | P62: =SUM(IF(S_3AccNO=$B62,IF(S_3FieldRank<=S_3Choice,S_3Amount,0),0)) -> 0 | Q62: =SUM(IF(S_4AccNO=$B62,IF(S_4FieldRank<=S_4Choice,S_4Amount,0),0)) -> 0 | S62: =SUM(IF(S_13AccNO=$B62,IF(S_13FieldRank<=S_13Choice,S_13Amount,0),0)) -> 0 | T62: =SUM(IF(S_15AccNO=$B62,IF(S_15FieldRank<=S_15Choice,S_15Amount,0),0)) -> 0 | U62: =SUM(IF(S_16AccNO=$B62,IF(S_16FieldRank<=S_16Choice,S_16Amount,0),0)) -> 0 | V62: =SUM(IF(S_17AccNO=$B62,IF(S_17FieldRank<=S_17Choice,S_17Amount,0),0)) -> 0 | W62: Vehicle Rental | X62: =SUM(IF(S_18AccNO=$B62,IF(S_18FieldRank<=S_18Choice,S_18Amount,0),0)) -> 0 | Y62: =SUM(IF(S_9AccNO=$B62,IF(S_9FieldRank<=S_9Choice,S_9Amount,0),0)) -> 0 | Z62: =SUM(IF(S_19AccNO=$B62,IF(S_19FieldRank<=S_19Choice,S_19Amount,0),0)) -> 600 | AA62: =SUM(IF(S_20AccNo=$B62,IF(S_20FieldRank<=S_20Choice,S_20Amount,0),0)) -> 1500 | AB62: =SUM(IF(S_21AccNo=$B62,IF(S_21FieldRank<=S_21Choice,S_21Amount,0),0)) -> 0 | AC62: =SUM(IF(S_22AccNo=$B62,IF(S_22FieldRank<=S_22Choice,S_22Amount,0),0)) -> 0 | AD62: =GETPIVOTDATA("Amount",'S25'!$J$5,"Acc_NO",8706) -> 2250 | AE62: =GETPIVOTDATA("Amount",'S23'!$J$7,"Acc_NO",8706) -> 600 | AF62: 0 | AG62: =SUM(IF(S_5AccNO=$B62,IF(S_5FieldRank<=S_5Choice,S_5Amount,0),0)) -> 0
B63: 8707 | C63: Auto Mileage Reimb | D63: 6400 | E63: 1400 | F63: 3700 | G63: 1400 | H63: Auto Mileage Reimb | I63: =SUM(IF(S1AccNO=B63,IF(S1FieldRank<=S1Choice,S1Amount,0),0)) -> 1000 | J63: =SUM(IF(S_2AccNO=$B63,IF(S_2FieldRank<=S_2Choice,S_2Amount,0),0)) -> 0 | K63: =SUM(IF(S_6AccNO=$B63,IF(S_6FieldRank<=s_6Choice,S_6Amount,0),0)) -> 0 | L63: =SUM(IF(S_7AccNO=$B63,IF(S_7FieldRank<=S_7Choice,S_7Amount,0),0)) -> 0 | M63: =SUM(IF(S_8AccNO=$B63,IF(S_8FieldRank<=S_8Choice,S_8Amount,0),0)) -> 0 | N63: =C63 -> Auto Mileage Reimb | O63: =SUM(IF(S_11AccNO=$B63,IF(S_11FieldRank<=S_11Choice,S_11Amount,0),0)) -> 0 | P63: =SUM(IF(S_3AccNO=$B63,IF(S_3FieldRank<=S_3Choice,S_3Amount,0),0)) -> 800 | Q63: =SUM(IF(S_4AccNO=$B63,IF(S_4FieldRank<=S_4Choice,S_4Amount,0),0)) -> 0 | R63: =SUM(IF(S_10AccNO=$B63,IF(S_10FieldRank<=S_10Choice,S_10Amount,0),0)) -> 0 | S63: =SUM(IF(S_13AccNO=$B63,IF(S_13FieldRank<=S_13Choice,S_13Amount,0),0)) -> 0 | T63: =SUM(IF(S_15AccNO=$B63,IF(S_15FieldRank<=S_15Choice,S_15Amount,0),0)) -> 0 | U63: =SUM(IF(S_16AccNO=$B63,IF(S_16FieldRank<=S_16Choice,S_16Amount,0),0)) -> 500 | V63: =SUM(IF(S_17AccNO=$B63,IF(S_17FieldRank<=S_17Choice,S_17Amount,0),0)) -> 0 | W63: Auto Mileage Reimb | X63: =SUM(IF(S_18AccNO=$B63,IF(S_18FieldRank<=S_18Choice,S_18Amount,0),0)) -> 0 | Y63: =SUM(IF(S_9AccNO=$B63,IF(S_9FieldRank<=S_9Choice,S_9Amount,0),0)) -> 0 | Z63: =SUM(IF(S_19AccNO=$B63,IF(S_19FieldRank<=S_19Choice,S_19Amount,0),0)) -> 1400 | AA63: =SUM(IF(S_20AccNo=$B63,IF(S_20FieldRank<=S_20Choice,S_20Amount,0),0)) -> 0 | AB63: =SUM(IF(S_21AccNo=$B63,IF(S_21FieldRank<=S_21Choice,S_21Amount,0),0)) -> 0 | AC63: =SUM(IF(S_22AccNo=$B63,IF(S_22FieldRank<=S_22Choice,S_22Amount,0),0)) -> 0 | AE63: =SUM(IF(S_23AccNo=$B63,IF(S_23FieldRank<=S_23Choice,S_23Amount,0),0)) -> 0 | AF63: 0 | AG63: =SUM(IF(S_5AccNO=$B63,IF(S_5FieldRank<=S_5Choice,S_5Amount,0),0)) -> 0
B64: 8709 | C64: Meals & Entertainment | D64: 7050 | E64: 3200 | F64: 9000 | G64: 4200 | H64: Meals & Entertainment | I64: =SUM(IF(S1AccNO=B64,IF(S1FieldRank<=S1Choice,S1Amount,0),0)) -> 1000 | J64: =SUM(IF(S_2AccNO=$B64,IF(S_2FieldRank<=S_2Choice,S_2Amount,0),0)) -> 0 | K64: =SUM(IF(S_6AccNO=$B64,IF(S_6FieldRank<=s_6Choice,S_6Amount,0),0)) -> 300 | L64: =SUM(IF(S_7AccNO=$B64,IF(S_7FieldRank<=S_7Choice,S_7Amount,0),0)) -> 0 | M64: =SUM(IF(S_8AccNO=$B64,IF(S_8FieldRank<=S_8Choice,S_8Amount,0),0)) -> 0 | N64: Meals & Entertainment | O64: =SUM(IF(S_11AccNO=$B64,IF(S_11FieldRank<=S_11Choice,S_11Amount,0),0)) -> 0 | P64: =SUM(IF(S_3AccNO=$B64,IF(S_3FieldRank<=S_3Choice,S_3Amount,0),0)) -> 3500 | Q64: =SUM(IF(S_4AccNO=$B64,IF(S_4FieldRank<=S_4Choice,S_4Amount,0),0)) -> 0 | R64: =SUM(IF(S_10AccNO=$B64,IF(S_10FieldRank<=S_10Choice,S_10Amount,0),0)) -> 0 | S64: =SUM(IF(S_13AccNO=$B64,IF(S_13FieldRank<=S_13Choice,S_13Amount,0),0)) -> 0 | T64: =SUM(IF(S_15AccNO=$B64,IF(S_15FieldRank<=S_15Choice,S_15Amount,0),0)) -> 0 | U64: =SUM(IF(S_16AccNO=$B64,IF(S_16FieldRank<=S_16Choice,S_16Amount,0),0)) -> 0 | V64: =SUM(IF(S_17AccNO=$B64,IF(S_17FieldRank<=S_17Choice,S_17Amount,0),0)) -> 0 | W64: Meals & Entertainment | X64: =SUM(IF(S_18AccNO=$B64,IF(S_18FieldRank<=S_18Choice,S_18Amount,0),0)) -> 0 | Y64: =SUM(IF(S_9AccNO=$B64,IF(S_9FieldRank<=S_9Choice,S_9Amount,0),0)) -> 0 | Z64: =SUM(IF(S_19AccNO=$B64,IF(S_19FieldRank<=S_19Choice,S_19Amount,0),0)) -> 700 | AA64: =SUM(IF(S_20AccNo=$B64,IF(S_20FieldRank<=S_20Choice,S_20Amount,0),0)) -> 3100 | AB64: =SUM(IF(S_21AccNo=$B64,IF(S_21FieldRank<=S_21Choice,S_21Amount,0),0)) -> 0 | AC64: =SUM(IF(S_22AccNo=$B64,IF(S_22FieldRank<=S_22Choice,S_22Amount,0),0)) -> 0 | AE64: =GETPIVOTDATA("Amount",'S23'!$J$7,"Acc_NO",8709) -> 400 | AF64: 0 | AG64: =SUM(IF(S_5AccNO=$B64,IF(S_5FieldRank<=S_5Choice,S_5Amount,0),0)) -> 0
B65: 8710 | C65: Commercial Travel | D65: 52100 | E65: 23000 | F65: 57050 | G65: 24750 | H65: Commercial Travel | I65: =SUM(IF(S1AccNO=B65,IF(S1FieldRank<=S1Choice,S1Amount,0),0)) -> 5000 | J65: =SUM(IF(S_2AccNO=$B65,IF(S_2FieldRank<=S_2Choice,S_2Amount,0),0)) -> 4500 | K65: =SUM(IF(S_6AccNO=$B65,IF(S_6FieldRank<=s_6Choice,S_6Amount,0),0)) -> 900 | L65: =SUM(IF(S_7AccNO=$B65,IF(S_7FieldRank<=S_7Choice,S_7Amount,0),0)) -> 5000 | M65: =SUM(IF(S_8AccNO=$B65,IF(S_8FieldRank<=S_8Choice,S_8Amount,0),0)) -> 10500 | N65: Commercial Travel | O65: =SUM(IF(S_11AccNO=$B65,IF(S_11FieldRank<=S_11Choice,S_11Amount,0),0)) -> 0 | P65: =SUM(IF(S_3AccNO=$B65,IF(S_3FieldRank<=S_3Choice,S_3Amount,0),0)) -> 3000 | Q65: =SUM(IF(S_4AccNO=$B65,IF(S_4FieldRank<=S_4Choice,S_4Amount,0),0)) -> 2400 | R65: =SUM(IF(S_10AccNO=$B65,IF(S_10FieldRank<=S_10Choice,S_10Amount,0),0)) -> 0 | S65: =SUM(IF(S_13AccNO=$B65,IF(S_13FieldRank<=S_13Choice,S_13Amount,0),0)) -> 0 | T65: =SUM(IF(S_15AccNO=$B65,IF(S_15FieldRank<=S_15Choice,S_15Amount,0),0)) -> 0 | U65: =SUM(IF(S_16AccNO=$B65,IF(S_16FieldRank<=S_16Choice,S_16Amount,0),0)) -> 1000 | V65: =SUM(IF(S_17AccNO=$B65,IF(S_17FieldRank<=S_17Choice,S_17Amount,0),0)) -> 0 | W65: Commercial Travel | X65: =SUM(IF(S_18AccNO=$B65,IF(S_18FieldRank<=S_18Choice,S_18Amount,0),0)) -> 0 | Y65: =SUM(IF(S_9AccNO=$B65,IF(S_9FieldRank<=S_9Choice,S_9Amount,0),0)) -> 1300 | Z65: =SUM(IF(S_19AccNO=$B65,IF(S_19FieldRank<=S_19Choice,S_19Amount,0),0)) -> 7600 | AA65: =SUM(IF(S_20AccNo=$B65,IF(S_20FieldRank<=S_20Choice,S_20Amount,0),0)) -> 7500 | AB65: =SUM(IF(S_21AccNo=$B65,IF(S_21FieldRank<=S_21Choice,S_21Amount,0),0)) -> 0 | AC65: =SUM(IF(S_22AccNo=$B65,IF(S_22FieldRank<=S_22Choice,S_22Amount,0),0)) -> 0 | AD65: =GETPIVOTDATA("Amount",'S25'!$J$5,"Acc_NO",8710) -> 7750 | AE65: =GETPIVOTDATA("Amount",'S23'!$J$7,"Acc_NO",8710) -> 600 | AF65: 0 | AG65: =SUM(IF(S_5AccNO=$B65,IF(S_5FieldRank<=S_5Choice,S_5Amount,0),0)) -> 0
B66: 8711 | C66: Motel/Hotel & Room Rent | D66: 15000 | E66: 11910 | F66: 15850 | G66: 12150 | H66: Motel/Hotel & Room Rent | I66: =SUM(IF(S1AccNO=B66,IF(S1FieldRank<=S1Choice,S1Amount,0),0)) -> 0 | J66: =SUM(IF(S_2AccNO=$B66,IF(S_2FieldRank<=S_2Choice,S_2Amount,0),0)) -> 400 | K66: =SUM(IF(S_6AccNO=$B66,IF(S_6FieldRank<=s_6Choice,S_6Amount,0),0)) -> 300 | L66: =SUM(IF(S_7AccNO=$B66,IF(S_7FieldRank<=S_7Choice,S_7Amount,0),0)) -> 3000 | M66: =SUM(IF(S_8AccNO=$B66,IF(S_8FieldRank<=S_8Choice,S_8Amount,0),0)) -> 0 | N66: Motel/Hotel & Room Rent | O66: =SUM(IF(S_11AccNO=$B66,IF(S_11FieldRank<=S_11Choice,S_11Amount,0),0)) -> 0 | P66: =SUM(IF(S_3AccNO=$B66,IF(S_3FieldRank<=S_3Choice,S_3Amount,0),0)) -> 0 | Q66: =SUM(IF(S_4AccNO=$B66,IF(S_4FieldRank<=S_4Choice,S_4Amount,0),0)) -> 0 | R66: =SUM(IF(S_10AccNO=$B66,IF(S_10FieldRank<=S_10Choice,S_10Amount,0),0)) -> 0 | S66: =SUM(IF(S_13AccNO=$B66,IF(S_13FieldRank<=S_13Choice,S_13Amount,0),0)) -> 0 | T66: =SUM(IF(S_15AccNO=$B66,IF(S_15FieldRank<=S_15Choice,S_15Amount,0),0)) -> 0 | U66: =SUM(IF(S_16AccNO=$B66,IF(S_16FieldRank<=S_16Choice,S_16Amount,0),0)) -> 0 | V66: =SUM(IF(S_17AccNO=$B66,IF(S_17FieldRank<=S_17Choice,S_17Amount,0),0)) -> 0 | W66: Motel/Hotel & Room Rent | X66: =SUM(IF(S_18AccNO=$B66,IF(S_18FieldRank<=S_18Choice,S_18Amount,0),0)) -> 0 | Y66: =SUM(IF(S_9AccNO=$B66,IF(S_9FieldRank<=S_9Choice,S_9Amount,0),0)) -> 0 | Z66: =SUM(IF(S_19AccNO=$B66,IF(S_19FieldRank<=S_19Choice,S_19Amount,0),0)) -> 6900 | AA66: =SUM(IF(S_20AccNo=$B66,IF(S_20FieldRank<=S_20Choice,S_20Amount,0),0)) -> 1700 | AB66: =SUM(IF(S_21AccNo=$B66,IF(S_21FieldRank<=S_21Choice,S_21Amount,0),0)) -> 0 | AC66: =SUM(IF(S_22AccNo=$B66,IF(S_22FieldRank<=S_22Choice,S_22Amount,0),0)) -> 0 | AD66: =GETPIVOTDATA("Amount",'S25'!$J$5,"Acc_NO",8711) -> 3050 | AE66: =GETPIVOTDATA("Amount",'S23'!$J$7,"Acc_NO",8711) -> 500 | AF66: 0 | AG66: =SUM(IF(S_5AccNO=$B66,IF(S_5FieldRank<=S_5Choice,S_5Amount,0),0)) -> 0
B67: 8803 | C67: Food for Meetings | D67: 7700 | E67: 1150 | F67: 8250 | G67: 1350 | H67: Food for Meetings | I67: =SUM(IF(S1AccNO=B67,IF(S1FieldRank<=S1Choice,S1Amount,0),0)) -> 0 | J67: =SUM(IF(S_2AccNO=$B67,IF(S_2FieldRank<=S_2Choice,S_2Amount,0),0)) -> 500 | K67: =SUM(IF(S_6AccNO=$B67,IF(S_6FieldRank<=s_6Choice,S_6Amount,0),0)) -> 0 | L67: =SUM(IF(S_7AccNO=$B67,IF(S_7FieldRank<=S_7Choice,S_7Amount,0),0)) -> 700 | M67: =SUM(IF(S_8AccNO=$B67,IF(S_8FieldRank<=S_8Choice,S_8Amount,0),0)) -> 2100 | N67: Food for Meetings | O67: =SUM(IF(S_11AccNO=$B67,IF(S_11FieldRank<=S_11Choice,S_11Amount,0),0)) -> 0 | P67: =SUM(IF(S_3AccNO=$B67,IF(S_3FieldRank<=S_3Choice,S_3Amount,0),0)) -> 100 | Q67: =SUM(IF(S_4AccNO=$B67,IF(S_4FieldRank<=S_4Choice,S_4Amount,0),0)) -> 2500 | R67: =SUM(IF(S_10AccNO=$B67,IF(S_10FieldRank<=S_10Choice,S_10Amount,0),0)) -> 0 | S67: =SUM(IF(S_13AccNO=$B67,IF(S_13FieldRank<=S_13Choice,S_13Amount,0),0)) -> 0 | T67: =SUM(IF(S_15AccNO=$B67,IF(S_15FieldRank<=S_15Choice,S_15Amount,0),0)) -> 0 | U67: =SUM(IF(S_16AccNO=$B67,IF(S_16FieldRank<=S_16Choice,S_16Amount,0),0)) -> 0 | V67: =SUM(IF(S_17AccNO=$B67,IF(S_17FieldRank<=S_17Choice,S_17Amount,0),0)) -> 1000 | W67: Food for Meetings | X67: =SUM(IF(S_18AccNO=$B67,IF(S_18FieldRank<=S_18Choice,S_18Amount,0),0)) -> 0 | Y67: =SUM(IF(S_9AccNO=$B67,IF(S_9FieldRank<=S_9Choice,S_9Amount,0),0)) -> 0 | Z67: =SUM(IF(S_19AccNO=$B67,IF(S_19FieldRank<=S_19Choice,S_19Amount,0),0)) -> 1050 | AA67: =SUM(IF(S_20AccNo=$B67,IF(S_20FieldRank<=S_20Choice,S_20Amount,0),0)) -> 0 | AB67: =SUM(IF(S_21AccNo=$B67,IF(S_21FieldRank<=S_21Choice,S_21Amount,0),0)) -> 0 | AC67: =SUM(IF(S_22AccNo=$B67,IF(S_22FieldRank<=S_22Choice,S_22Amount,0),0)) -> 300 | AE67: =SUM(IF(S_23AccNo=$B67,IF(S_23FieldRank<=S_23Choice,S_23Amount,0),0)) -> 0 | AF67: 0 | AG67: =SUM(IF(S_5AccNO=$B67,IF(S_5FieldRank<=S_5Choice,S_5Amount,0),0)) -> 0
B68: 8804 | C68: Speaker Honorarium | D68: 800 | E68: 0 | F68: 2000 | G68: 0 | H68: Speaker Honorarium | I68: =SUM(IF(S1AccNO=B68,IF(S1FieldRank<=S1Choice,S1Amount,0),0)) -> 0 | J68: =SUM(IF(S_2AccNO=$B68,IF(S_2FieldRank<=S_2Choice,S_2Amount,0),0)) -> 2000 | K68: =SUM(IF(S_6AccNO=$B68,IF(S_6FieldRank<=s_6Choice,S_6Amount,0),0)) -> 0 | L68: =SUM(IF(S_7AccNO=$B68,IF(S_7FieldRank<=S_7Choice,S_7Amount,0),0)) -> 0 | M68: =SUM(IF(S_8AccNO=$B68,IF(S_8FieldRank<=S_8Choice,S_8Amount,0),0)) -> 0 | N68: Speaker Honorarium | O68: =SUM(IF(S_11AccNO=$B68,IF(S_11FieldRank<=S_11Choice,S_11Amount,0),0)) -> 0 | P68: =SUM(IF(S_3AccNO=$B68,IF(S_3FieldRank<=S_3Choice,S_3Amount,0),0)) -> 0 | Q68: =SUM(IF(S_4AccNO=$B68,IF(S_4FieldRank<=S_4Choice,S_4Amount,0),0)) -> 0 | R68: =SUM(IF(S_10AccNO=$B68,IF(S_10FieldRank<=S_10Choice,S_10Amount,0),0)) -> 0 | S68: =SUM(IF(S_13AccNO=$B68,IF(S_13FieldRank<=S_13Choice,S_13Amount,0),0)) -> 0 | T68: =SUM(IF(S_15AccNO=$B68,IF(S_15FieldRank<=S_15Choice,S_15Amount,0),0)) -> 0 | U68: =SUM(IF(S_16AccNO=$B68,IF(S_16FieldRank<=S_16Choice,S_16Amount,0),0)) -> 0 | V68: =SUM(IF(S_17AccNO=$B68,IF(S_17FieldRank<=S_17Choice,S_17Amount,0),0)) -> 0 | W68: Speaker Honorarium | X68: =SUM(IF(S_18AccNO=$B68,IF(S_18FieldRank<=S_18Choice,S_18Amount,0),0)) -> 0 | Y68: =SUM(IF(S_9AccNO=$B68,IF(S_9FieldRank<=S_9Choice,S_9Amount,0),0)) -> 0 | Z68: =SUM(IF(S_19AccNO=$B68,IF(S_19FieldRank<=S_19Choice,S_19Amount,0),0)) -> 0 | AA68: =SUM(IF(S_20AccNo=$B68,IF(S_20FieldRank<=S_20Choice,S_20Amount,0),0)) -> 0 | AB68: =SUM(IF(S_21AccNo=$B68,IF(S_21FieldRank<=S_21Choice,S_21Amount,0),0)) -> 0 | AC68: =SUM(IF(S_22AccNo=$B68,IF(S_22FieldRank<=S_22Choice,S_22Amount,0),0)) -> 0 | AE68: =SUM(IF(S_23AccNo=$B68,IF(S_23FieldRank<=S_23Choice,S_23Amount,0),0)) -> 0 | AF68: 0 | AG68: =SUM(IF(S_5AccNO=$B68,IF(S_5FieldRank<=S_5Choice,S_5Amount,0),0)) -> 0
B69: 8805 | C69: Missionary Conference | D69: 11920 | E69: 2340 | F69: 12105 | G69: 2500 | H69: Missionary Conference | I69: =SUM(IF(S1AccNO=B69,IF(S1FieldRank<=S1Choice,S1Amount,0),0)) -> 6000 | J69: =SUM(IF(S_2AccNO=$B69,IF(S_2FieldRank<=S_2Choice,S_2Amount,0),0)) -> 0 | K69: =SUM(IF(S_6AccNO=$B69,IF(S_6FieldRank<=s_6Choice,S_6Amount,0),0)) -> 3605 | L69: =SUM(IF(S_7AccNO=$B69,IF(S_7FieldRank<=S_7Choice,S_7Amount,0),0)) -> 0 | M69: =SUM(IF(S_8AccNO=$B69,IF(S_8FieldRank<=S_8Choice,S_8Amount,0),0)) -> 0 | N69: Missionary Conference | O69: =SUM(IF(S_11AccNO=$B69,IF(S_11FieldRank<=S_11Choice,S_11Amount,0),0)) -> 0 | P69: =SUM(IF(S_3AccNO=$B69,IF(S_3FieldRank<=S_3Choice,S_3Amount,0),0)) -> 0 | Q69: =SUM(IF(S_4AccNO=$B69,IF(S_4FieldRank<=S_4Choice,S_4Amount,0),0)) -> 0 | R69: =SUM(IF(S_10AccNO=$B69,IF(S_10FieldRank<=S_10Choice,S_10Amount,0),0)) -> 0 | S69: =SUM(IF(S_13AccNO=$B69,IF(S_13FieldRank<=S_13Choice,S_13Amount,0),0)) -> 0 | T69: =SUM(IF(S_15AccNO=$B69,IF(S_15FieldRank<=S_15Choice,S_15Amount,0),0)) -> 0 | U69: =SUM(IF(S_16AccNO=$B69,IF(S_16FieldRank<=S_16Choice,S_16Amount,0),0)) -> 0 | V69: =SUM(IF(S_17AccNO=$B69,IF(S_17FieldRank<=S_17Choice,S_17Amount,0),0)) -> 0 | W69: Missionary Conference | X69: =SUM(IF(S_18AccNO=$B69,IF(S_18FieldRank<=S_18Choice,S_18Amount,0),0)) -> 1200 | Y69: =SUM(IF(S_9AccNO=$B69,IF(S_9FieldRank<=S_9Choice,S_9Amount,0),0)) -> 300 | Z69: =SUM(IF(S_19AccNO=$B69,IF(S_19FieldRank<=S_19Choice,S_19Amount,0),0)) -> 0 | AA69: =SUM(IF(S_20AccNo=$B69,IF(S_20FieldRank<=S_20Choice,S_20Amount,0),0)) -> 0 | AB69: =SUM(IF(S_21AccNo=$B69,IF(S_21FieldRank<=S_21Choice,S_21Amount,0),0)) -> 0 | AC69: =SUM(IF(S_22AccNo=$B69,IF(S_22FieldRank<=S_22Choice,S_22Amount,0),0)) -> 500 | AE69: =GETPIVOTDATA("Amount",'S23'!$J$7,"Acc_NO",8805) -> 500 | AF69: 0 | AG69: =SUM(IF(S_5AccNO=$B69,IF(S_5FieldRank<=S_5Choice,S_5Amount,0),0)) -> 0
B70: 8806 | C70: Seminars & Registrations | D70: 11400 | E70: 7900 | F70: 6500 | G70: 3200 | H70: Seminars & Registrations | I70: =SUM(IF(S1AccNO=B70,IF(S1FieldRank<=S1Choice,S1Amount,0),0)) -> 0 | J70: =SUM(IF(S_2AccNO=$B70,IF(S_2FieldRank<=S_2Choice,S_2Amount,0),0)) -> 2500 | K70: =SUM(IF(S_6AccNO=$B70,IF(S_6FieldRank<=s_6Choice,S_6Amount,0),0)) -> 0 | L70: =SUM(IF(S_7AccNO=$B70,IF(S_7FieldRank<=S_7Choice,S_7Amount,0),0)) -> 0 | M70: =SUM(IF(S_8AccNO=$B70,IF(S_8FieldRank<=S_8Choice,S_8Amount,0),0)) -> 0 | N70: Seminars & Registrations | O70: =SUM(IF(S_11AccNO=$B70,IF(S_11FieldRank<=S_11Choice,S_11Amount,0),0)) -> 800 | P70: =SUM(IF(S_3AccNO=$B70,IF(S_3FieldRank<=S_3Choice,S_3Amount,0),0)) -> 0 | Q70: =SUM(IF(S_4AccNO=$B70,IF(S_4FieldRank<=S_4Choice,S_4Amount,0),0)) -> 0 | R70: =SUM(IF(S_10AccNO=$B70,IF(S_10FieldRank<=S_10Choice,S_10Amount,0),0)) -> 0 | S70: =SUM(IF(S_13AccNO=$B70,IF(S_13FieldRank<=S_13Choice,S_13Amount,0),0)) -> 0 | T70: =SUM(IF(S_15AccNO=$B70,IF(S_15FieldRank<=S_15Choice,S_15Amount,0),0)) -> 0 | U70: =SUM(IF(S_16AccNO=$B70,IF(S_16FieldRank<=S_16Choice,S_16Amount,0),0)) -> 0 | V70: =SUM(IF(S_17AccNO=$B70,IF(S_17FieldRank<=S_17Choice,S_17Amount,0),0)) -> 0 | W70: Seminars & Registrations | X70: =SUM(IF(S_18AccNO=$B70,IF(S_18FieldRank<=S_18Choice,S_18Amount,0),0)) -> 0 | Y70: =SUM(IF(S_9AccNO=$B70,IF(S_9FieldRank<=S_9Choice,S_9Amount,0),0)) -> 0 | Z70: =SUM(IF(S_19AccNO=$B70,IF(S_19FieldRank<=S_19Choice,S_19Amount,0),0)) -> 500 | AA70: =SUM(IF(S_20AccNo=$B70,IF(S_20FieldRank<=S_20Choice,S_20Amount,0),0)) -> 500 | AB70: =SUM(IF(S_21AccNo=$B70,IF(S_21FieldRank<=S_21Choice,S_21Amount,0),0)) -> 0 | AC70: =SUM(IF(S_22AccNo=$B70,IF(S_22FieldRank<=S_22Choice,S_22Amount,0),0)) -> 0 | AD70: =GETPIVOTDATA("Amount",'S25'!$J$5,"Acc_NO",8806) -> 1000 | AE70: =GETPIVOTDATA("Amount",'S23'!$J$7,"Acc_NO",8806) -> 1200 | AF70: 0 | AG70: =SUM(IF(S_5AccNO=$B70,IF(S_5FieldRank<=S_5Choice,S_5Amount,0),0)) -> 0
B71: 8902 | C71: Organization Dues & Fees | D71: 4500 | E71: 4500 | F71: 5200 | G71: 4700 | H71: Organization Dues & Fees | I71: =SUM(IF(S1AccNO=B71,IF(S1FieldRank<=S1Choice,S1Amount,0),0)) -> 0 | J71: =SUM(IF(S_2AccNO=$B71,IF(S_2FieldRank<=S_2Choice,S_2Amount,0),0)) -> 0 | K71: =SUM(IF(S_6AccNO=$B71,IF(S_6FieldRank<=s_6Choice,S_6Amount,0),0)) -> 0 | L71: =SUM(IF(S_7AccNO=$B71,IF(S_7FieldRank<=S_7Choice,S_7Amount,0),0)) -> 0 | M71: =SUM(IF(S_8AccNO=$B71,IF(S_8FieldRank<=S_8Choice,S_8Amount,0),0)) -> 0 | N71: Organization Dues & Fees | O71: =SUM(IF(S_11AccNO=$B71,IF(S_11FieldRank<=S_11Choice,S_11Amount,0),0)) -> 500 | P71: =SUM(IF(S_3AccNO=$B71,IF(S_3FieldRank<=S_3Choice,S_3Amount,0),0)) -> 0 | Q71: =SUM(IF(S_4AccNO=$B71,IF(S_4FieldRank<=S_4Choice,S_4Amount,0),0)) -> 0 | R71: =SUM(IF(S_10AccNO=$B71,IF(S_10FieldRank<=S_10Choice,S_10Amount,0),0)) -> 0 | S71: =SUM(IF(S_13AccNO=$B71,IF(S_13FieldRank<=S_13Choice,S_13Amount,0),0)) -> 0 | T71: =SUM(IF(S_15AccNO=$B71,IF(S_15FieldRank<=S_15Choice,S_15Amount,0),0)) -> 0 | U71: =SUM(IF(S_16AccNO=$B71,IF(S_16FieldRank<=S_16Choice,S_16Amount,0),0)) -> 0 | V71: =SUM(IF(S_17AccNO=$B71,IF(S_17FieldRank<=S_17Choice,S_17Amount,0),0)) -> 0 | W71: Organization Dues & Fees | X71: =SUM(IF(S_18AccNO=$B71,IF(S_18FieldRank<=S_18Choice,S_18Amount,0),0)) -> 300 | Y71: =SUM(IF(S_9AccNO=$B71,IF(S_9FieldRank<=S_9Choice,S_9Amount,0),0)) -> 0 | Z71: =SUM(IF(S_19AccNO=$B71,IF(S_19FieldRank<=S_19Choice,S_19Amount,0),0)) -> 0 | AA71: =SUM(IF(S_20AccNo=$B71,IF(S_20FieldRank<=S_20Choice,S_20Amount,0),0)) -> 0 | AB71: =SUM(IF(S_21AccNo=$B71,IF(S_21FieldRank<=S_21Choice,S_21Amount,0),0)) -> 0 | AC71: =SUM(IF(S_22AccNo=$B71,IF(S_22FieldRank<=S_22Choice,S_22Amount,0),0)) -> 600 | AE71: =GETPIVOTDATA("Amount",'S23'!$J$7,"Acc_NO",8902) -> 3800 | AF71: 0 | AG71: =SUM(IF(S_5AccNO=$B71,IF(S_5FieldRank<=S_5Choice,S_5Amount,0),0)) -> 0
B72: 8903 | C72: Founder Honorarium | D72: 6600 | E72: 6600 | F72: 6600 | G72: 6600 | H72: Founder Honorarium | I72: =SUM(IF(S1AccNO=B72,IF(S1FieldRank<=S1Choice,S1Amount,0),0)) -> 0 | J72: =SUM(IF(S_2AccNO=$B72,IF(S_2FieldRank<=S_2Choice,S_2Amount,0),0)) -> 0 | K72: =SUM(IF(S_6AccNO=$B72,IF(S_6FieldRank<=s_6Choice,S_6Amount,0),0)) -> 0 | L72: =SUM(IF(S_7AccNO=$B72,IF(S_7FieldRank<=S_7Choice,S_7Amount,0),0)) -> 0 | M72: =SUM(IF(S_8AccNO=$B72,IF(S_8FieldRank<=S_8Choice,S_8Amount,0),0)) -> 0 | N72: Founder Honorarium | O72: =SUM(IF(S_11AccNO=$B72,IF(S_11FieldRank<=S_11Choice,S_11Amount,0),0)) -> 0 | P72: =SUM(IF(S_3AccNO=$B72,IF(S_3FieldRank<=S_3Choice,S_3Amount,0),0)) -> 0 | Q72: =SUM(IF(S_4AccNO=$B72,IF(S_4FieldRank<=S_4Choice,S_4Amount,0),0)) -> 0 | R72: =SUM(IF(S_10AccNO=$B72,IF(S_10FieldRank<=S_10Choice,S_10Amount,0),0)) -> 0 | S72: =SUM(IF(S_13AccNO=$B72,IF(S_13FieldRank<=S_13Choice,S_13Amount,0),0)) -> 0 | T72: =SUM(IF(S_15AccNO=$B72,IF(S_15FieldRank<=S_15Choice,S_15Amount,0),0)) -> 0 | U72: =SUM(IF(S_16AccNO=$B72,IF(S_16FieldRank<=S_16Choice,S_16Amount,0),0)) -> 0 | V72: =SUM(IF(S_17AccNO=$B72,IF(S_17FieldRank<=S_17Choice,S_17Amount,0),0)) -> 0 | W72: Founder Honorarium | X72: =SUM(IF(S_18AccNO=$B72,IF(S_18FieldRank<=S_18Choice,S_18Amount,0),0)) -> 6600 | Y72: =SUM(IF(S_9AccNO=$B72,IF(S_9FieldRank<=S_9Choice,S_9Amount,0),0)) -> 0 | Z72: =SUM(IF(S_19AccNO=$B72,IF(S_19FieldRank<=S_19Choice,S_19Amount,0),0)) -> 0 | AA72: =SUM(IF(S_20AccNo=$B72,IF(S_20FieldRank<=S_20Choice,S_20Amount,0),0)) -> 0 | AB72: =SUM(IF(S_21AccNo=$B72,IF(S_21FieldRank<=S_21Choice,S_21Amount,0),0)) -> 0 | AC72: =SUM(IF(S_22AccNo=$B72,IF(S_22FieldRank<=S_22Choice,S_22Amount,0),0)) -> 0 | AE72: =SUM(IF(S_23AccNo=$B72,IF(S_23FieldRank<=S_23Choice,S_23Amount,0),0)) -> 0 | AF72: 0 | AG72: =SUM(IF(S_5AccNO=$B72,IF(S_5FieldRank<=S_5Choice,S_5Amount,0),0)) -> 0
B73: 8940 | C73: Moving Expense | D73: 10000 | E73: 10000 | F73: 0 | G73: 0 | H73: Moving Expense | I73: =SUM(IF(S1AccNO=B73,IF(S1FieldRank<=S1Choice,S1Amount,0),0)) -> 0 | J73: =SUM(IF(S_2AccNO=$B73,IF(S_2FieldRank<=S_2Choice,S_2Amount,0),0)) -> 0 | K73: =SUM(IF(S_6AccNO=$B73,IF(S_6FieldRank<=s_6Choice,S_6Amount,0),0)) -> 0 | L73: =SUM(IF(S_7AccNO=$B73,IF(S_7FieldRank<=S_7Choice,S_7Amount,0),0)) -> 0 | M73: =SUM(IF(S_8AccNO=$B73,IF(S_8FieldRank<=S_8Choice,S_8Amount,0),0)) -> 0 | N73: Moving Expense | O73: =SUM(IF(S_11AccNO=$B73,IF(S_11FieldRank<=S_11Choice,S_11Amount,0),0)) -> 0 | P73: =SUM(IF(S_3AccNO=$B73,IF(S_3FieldRank<=S_3Choice,S_3Amount,0),0)) -> 0 | Q73: =SUM(IF(S_4AccNO=$B73,IF(S_4FieldRank<=S_4Choice,S_4Amount,0),0)) -> 0 | R73: =SUM(IF(S_10AccNO=$B73,IF(S_10FieldRank<=S_10Choice,S_10Amount,0),0)) -> 0 | S73: =SUM(IF(S_13AccNO=$B73,IF(S_13FieldRank<=S_13Choice,S_13Amount,0),0)) -> 0 | T73: =SUM(IF(S_15AccNO=$B73,IF(S_15FieldRank<=S_15Choice,S_15Amount,0),0)) -> 0 | U73: =SUM(IF(S_16AccNO=$B73,IF(S_16FieldRank<=S_16Choice,S_16Amount,0),0)) -> 0 | V73: =SUM(IF(S_17AccNO=$B73,IF(S_17FieldRank<=S_17Choice,S_17Amount,0),0)) -> 0 | W73: Moving Expense | X73: =SUM(IF(S_18AccNO=$B73,IF(S_18FieldRank<=S_18Choice,S_18Amount,0),0)) -> 0 | Y73: =SUM(IF(S_9AccNO=$B73,IF(S_9FieldRank<=S_9Choice,S_9Amount,0),0)) -> 0 | Z73: =SUM(IF(S_19AccNO=$B73,IF(S_19FieldRank<=S_19Choice,S_19Amount,0),0)) -> 0 | AA73: =SUM(IF(S_20AccNo=$B73,IF(S_20FieldRank<=S_20Choice,S_20Amount,0),0)) -> 0 | AB73: =SUM(IF(S_21AccNo=$B73,IF(S_21FieldRank<=S_21Choice,S_21Amount,0),0)) -> 0 | AC73: =SUM(IF(S_22AccNo=$B73,IF(S_22FieldRank<=S_22Choice,S_22Amount,0),0)) -> 0 | AE73: =SUM(IF(S_23AccNo=$B73,IF(S_23FieldRank<=S_23Choice,S_23Amount,0),0)) -> 0 | AF73: 0 | AG73: =SUM(IF(S_5AccNO=$B73,IF(S_5FieldRank<=S_5Choice,S_5Amount,0),0)) -> 0
B74: 8941 | C74: Miscellaneous | D74: 1600 | E74: 1600 | F74: 2050 | G74: 1750 | H74: Miscellaneous | I74: =SUM(IF(S1AccNO=B74,IF(S1FieldRank<=S1Choice,S1Amount,0),0)) -> 0 | J74: =SUM(IF(S_2AccNO=$B74,IF(S_2FieldRank<=S_2Choice,S_2Amount,0),0)) -> 0 | K74: =SUM(IF(S_6AccNO=$B74,IF(S_6FieldRank<=s_6Choice,S_6Amount,0),0)) -> 300 | L74: =SUM(IF(S_7AccNO=$B74,IF(S_7FieldRank<=S_7Choice,S_7Amount,0),0)) -> 0 | M74: =SUM(IF(S_8AccNO=$B74,IF(S_8FieldRank<=S_8Choice,S_8Amount,0),0)) -> 0 | N74: Miscellaneous | O74: =SUM(IF(S_11AccNO=$B74,IF(S_11FieldRank<=S_11Choice,S_11Amount,0),0)) -> 0 | P74: =SUM(IF(S_3AccNO=$B74,IF(S_3FieldRank<=S_3Choice,S_3Amount,0),0)) -> 0 | Q74: =SUM(IF(S_4AccNO=$B74,IF(S_4FieldRank<=S_4Choice,S_4Amount,0),0)) -> 0 | R74: =SUM(IF(S_10AccNO=$B74,IF(S_10FieldRank<=S_10Choice,S_10Amount,0),0)) -> 0 | S74: =SUM(IF(S_13AccNO=$B74,IF(S_13FieldRank<=S_13Choice,S_13Amount,0),0)) -> 0 | T74: =SUM(IF(S_15AccNO=$B74,IF(S_15FieldRank<=S_15Choice,S_15Amount,0),0)) -> 0 | U74: =SUM(IF(S_16AccNO=$B74,IF(S_16FieldRank<=S_16Choice,S_16Amount,0),0)) -> 0 | V74: =SUM(IF(S_17AccNO=$B74,IF(S_17FieldRank<=S_17Choice,S_17Amount,0),0)) -> 0 | W74: Miscellaneous | X74: =SUM(IF(S_18AccNO=$B74,IF(S_18FieldRank<=S_18Choice,S_18Amount,0),0)) -> 1750 | Y74: =SUM(IF(S_9AccNO=$B74,IF(S_9FieldRank<=S_9Choice,S_9Amount,0),0)) -> 0 | Z74: =SUM(IF(S_19AccNO=$B74,IF(S_19FieldRank<=S_19Choice,S_19Amount,0),0)) -> 0 | AA74: =SUM(IF(S_20AccNo=$B74,IF(S_20FieldRank<=S_20Choice,S_20Amount,0),0)) -> 0 | AB74: =SUM(IF(S_21AccNo=$B74,IF(S_21FieldRank<=S_21Choice,S_21Amount,0),0)) -> 0 | AC74: =SUM(IF(S_22AccNo=$B74,IF(S_22FieldRank<=S_22Choice,S_22Amount,0),0)) -> 0 | AE74: =SUM(IF(S_23AccNo=$B74,IF(S_23FieldRank<=S_23Choice,S_23Amount,0),0)) -> 0 | AF74: 0 | AG74: =SUM(IF(S_5AccNO=$B74,IF(S_5FieldRank<=S_5Choice,S_5Amount,0),0)) -> 0
B75: 8951 | C75: Grants to US Affiliates | D75: 0 | E75: 0 | F75: 0 | G75: 0 | H75: Grants to US Affiliates | I75: =SUM(IF(S1AccNO=B75,IF(S1FieldRank<=S1Choice,S1Amount,0),0)) -> 0 | J75: =SUM(IF(S_2AccNO=$B75,IF(S_2FieldRank<=S_2Choice,S_2Amount,0),0)) -> 0 | K75: =SUM(IF(S_6AccNO=$B75,IF(S_6FieldRank<=s_6Choice,S_6Amount,0),0)) -> 0 | L75: =SUM(IF(S_7AccNO=$B75,IF(S_7FieldRank<=S_7Choice,S_7Amount,0),0)) -> 0 | M75: =SUM(IF(S_8AccNO=$B75,IF(S_8FieldRank<=S_8Choice,S_8Amount,0),0)) -> 0 | N75: Grants to US Affiliates | O75: =SUM(IF(S_11AccNO=$B75,IF(S_11FieldRank<=S_11Choice,S_11Amount,0),0)) -> 0 | P75: =SUM(IF(S_3AccNO=$B75,IF(S_3FieldRank<=S_3Choice,S_3Amount,0),0)) -> 0 | Q75: =SUM(IF(S_4AccNO=$B75,IF(S_4FieldRank<=S_4Choice,S_4Amount,0),0)) -> 0 | R75: =SUM(IF(S_10AccNO=$B75,IF(S_10FieldRank<=S_10Choice,S_10Amount,0),0)) -> 0 | S75: =SUM(IF(S_13AccNO=$B75,IF(S_13FieldRank<=S_13Choice,S_13Amount,0),0)) -> 0 | T75: =SUM(IF(S_15AccNO=$B75,IF(S_15FieldRank<=S_15Choice,S_15Amount,0),0)) -> 0 | U75: =SUM(IF(S_16AccNO=$B75,IF(S_16FieldRank<=S_16Choice,S_16Amount,0),0)) -> 0 | V75: =SUM(IF(S_17AccNO=$B75,IF(S_17FieldRank<=S_17Choice,S_17Amount,0),0)) -> 0 | W75: Grants to US Affiliates | X75: =SUM(IF(S_18AccNO=$B75,IF(S_18FieldRank<=S_18Choice,S_18Amount,0),0)) -> 0 | Y75: =SUM(IF(S_9AccNO=$B75,IF(S_9FieldRank<=S_9Choice,S_9Amount,0),0)) -> 0 | Z75: =SUM(IF(S_19AccNO=$B75,IF(S_19FieldRank<=S_19Choice,S_19Amount,0),0)) -> 0 | AA75: =SUM(IF(S_20AccNo=$B75,IF(S_20FieldRank<=S_20Choice,S_20Amount,0),0)) -> 0 | AB75: =SUM(IF(S_21AccNo=$B75,IF(S_21FieldRank<=S_21Choice,S_21Amount,0),0)) -> 0 | AC75: =SUM(IF(S_22AccNo=$B75,IF(S_22FieldRank<=S_22Choice,S_22Amount,0),0)) -> 0 | AE75: =SUM(IF(S_23AccNo=$B75,IF(S_23FieldRank<=S_23Choice,S_23Amount,0),0)) -> 0 | AF75: 0 | AG75: =SUM(IF(S_5AccNO=$B75,IF(S_5FieldRank<=S_5Choice,S_5Amount,0),0)) -> 0
B76: 8952 | C76: Grants to Canada Affiliates | D76: 778436 | E76: 0 | F76: 760000 | G76: 0 | H76: Grants to Canada Affiliates | I76: =SUM(IF(S1AccNO=B76,IF(S1FieldRank<=S1Choice,S1Amount,0),0)) -> 0 | J76: =SUM(IF(S_2AccNO=$B76,IF(S_2FieldRank<=S_2Choice,S_2Amount,0),0)) -> 0 | K76: =SUM(IF(S_6AccNO=$B76,IF(S_6FieldRank<=s_6Choice,S_6Amount,0),0)) -> 0 | L76: =SUM(IF(S_7AccNO=$B76,IF(S_7FieldRank<=S_7Choice,S_7Amount,0),0)) -> 0 | M76: =SUM(IF(S_8AccNO=$B76,IF(S_8FieldRank<=S_8Choice,S_8Amount,0),0)) -> 0 | N76: Grants to Canada Affiliates | O76: =SUM(IF(S_11AccNO=$B76,IF(S_11FieldRank<=S_11Choice,S_11Amount,0),0)) -> 0 | P76: =SUM(IF(S_3AccNO=$B76,IF(S_3FieldRank<=S_3Choice,S_3Amount,0),0)) -> 0 | Q76: =SUM(IF(S_4AccNO=$B76,IF(S_4FieldRank<=S_4Choice,S_4Amount,0),0)) -> 0 | R76: =SUM(IF(S_10AccNO=$B76,IF(S_10FieldRank<=S_10Choice,S_10Amount,0),0)) -> 0 | S76: =SUM(IF(S_13AccNO=$B76,IF(S_13FieldRank<=S_13Choice,S_13Amount,0),0)) -> 760000 | T76: =SUM(IF(S_15AccNO=$B76,IF(S_15FieldRank<=S_15Choice,S_15Amount,0),0)) -> 0 | U76: =SUM(IF(S_16AccNO=$B76,IF(S_16FieldRank<=S_16Choice,S_16Amount,0),0)) -> 0 | V76: =SUM(IF(S_17AccNO=$B76,IF(S_17FieldRank<=S_17Choice,S_17Amount,0),0)) -> 0 | W76: Grants to Canada Affiliates | X76: =SUM(IF(S_18AccNO=$B76,IF(S_18FieldRank<=S_18Choice,S_18Amount,0),0)) -> 0 | Y76: =SUM(IF(S_9AccNO=$B76,IF(S_9FieldRank<=S_9Choice,S_9Amount,0),0)) -> 0 | Z76: =SUM(IF(S_19AccNO=$B76,IF(S_19FieldRank<=S_19Choice,S_19Amount,0),0)) -> 0 | AA76: =SUM(IF(S_20AccNo=$B76,IF(S_20FieldRank<=S_20Choice,S_20Amount,0),0)) -> 0 | AB76: =SUM(IF(S_21AccNo=$B76,IF(S_21FieldRank<=S_21Choice,S_21Amount,0),0)) -> 0 | AC76: =SUM(IF(S_22AccNo=$B76,IF(S_22FieldRank<=S_22Choice,S_22Amount,0),0)) -> 0 | AE76: =SUM(IF(S_23AccNo=$B76,IF(S_23FieldRank<=S_23Choice,S_23Amount,0),0)) -> 0 | AF76: 0 | AG76: =SUM(IF(S_5AccNO=$B76,IF(S_5FieldRank<=S_5Choice,S_5Amount,0),0)) -> 0
B77: 8953 | C77: Grants to Russia Affiliates | D77: 0 | E77: 0 | F77: 0 | G77: 0 | H77: Grants to Russia Affiliates | I77: =SUM(IF(S1AccNO=B77,IF(S1FieldRank<=S1Choice,S1Amount,0),0)) -> 0 | J77: =SUM(IF(S_2AccNO=$B77,IF(S_2FieldRank<=S_2Choice,S_2Amount,0),0)) -> 0 | K77: =SUM(IF(S_6AccNO=$B77,IF(S_6FieldRank<=s_6Choice,S_6Amount,0),0)) -> 0 | L77: =SUM(IF(S_7AccNO=$B77,IF(S_7FieldRank<=S_7Choice,S_7Amount,0),0)) -> 0 | M77: =SUM(IF(S_8AccNO=$B77,IF(S_8FieldRank<=S_8Choice,S_8Amount,0),0)) -> 0 | N77: Grants to Russia Affiliates | O77: =SUM(IF(S_11AccNO=$B77,IF(S_11FieldRank<=S_11Choice,S_11Amount,0),0)) -> 0 | P77: =SUM(IF(S_3AccNO=$B77,IF(S_3FieldRank<=S_3Choice,S_3Amount,0),0)) -> 0 | Q77: =SUM(IF(S_4AccNO=$B77,IF(S_4FieldRank<=S_4Choice,S_4Amount,0),0)) -> 0 | R77: =SUM(IF(S_10AccNO=$B77,IF(S_10FieldRank<=S_10Choice,S_10Amount,0),0)) -> 0 | S77: =SUM(IF(S_13AccNO=$B77,IF(S_13FieldRank<=S_13Choice,S_13Amount,0),0)) -> 0 | T77: =SUM(IF(S_15AccNO=$B77,IF(S_15FieldRank<=S_15Choice,S_15Amount,0),0)) -> 0 | U77: =SUM(IF(S_16AccNO=$B77,IF(S_16FieldRank<=S_16Choice,S_16Amount,0),0)) -> 0 | V77: =SUM(IF(S_17AccNO=$B77,IF(S_17FieldRank<=S_17Choice,S_17Amount,0),0)) -> 0 | W77: Grants to Russia Affiliates | X77: =SUM(IF(S_18AccNO=$B77,IF(S_18FieldRank<=S_18Choice,S_18Amount,0),0)) -> 0 | Y77: =SUM(IF(S_9AccNO=$B77,IF(S_9FieldRank<=S_9Choice,S_9Amount,0),0)) -> 0 | Z77: =SUM(IF(S_19AccNO=$B77,IF(S_19FieldRank<=S_19Choice,S_19Amount,0),0)) -> 0 | AA77: =SUM(IF(S_20AccNo=$B77,IF(S_20FieldRank<=S_20Choice,S_20Amount,0),0)) -> 0 | AB77: =SUM(IF(S_21AccNo=$B77,IF(S_21FieldRank<=S_21Choice,S_21Amount,0),0)) -> 0 | AC77: =SUM(IF(S_22AccNo=$B77,IF(S_22FieldRank<=S_22Choice,S_22Amount,0),0)) -> 0 | AE77: =SUM(IF(S_23AccNo=$B77,IF(S_23FieldRank<=S_23Choice,S_23Amount,0),0)) -> 0 | AF77: 0 | AG77: =SUM(IF(S_5AccNO=$B77,IF(S_5FieldRank<=S_5Choice,S_5Amount,0),0)) -> 0
B78: 8980 | C78: Research & Development | D78: 3000 | E78: 0 | F78: 6000 | G78: 0 | H78: Research & Development | I78: =SUM(IF(S1AccNO=B78,IF(S1FieldRank<=S1Choice,S1Amount,0),0)) -> 0 | J78: =SUM(IF(S_2AccNO=$B78,IF(S_2FieldRank<=S_2Choice,S_2Amount,0),0)) -> 5000 | K78: =SUM(IF(S_6AccNO=$B78,IF(S_6FieldRank<=s_6Choice,S_6Amount,0),0)) -> 0 | L78: =SUM(IF(S_7AccNO=$B78,IF(S_7FieldRank<=S_7Choice,S_7Amount,0),0)) -> 1000 | M78: =SUM(IF(S_8AccNO=$B78,IF(S_8FieldRank<=S_8Choice,S_8Amount,0),0)) -> 0 | N78: Research & Development | O78: =SUM(IF(S_11AccNO=$B78,IF(S_11FieldRank<=S_11Choice,S_11Amount,0),0)) -> 0 | P78: =SUM(IF(S_3AccNO=$B78,IF(S_3FieldRank<=S_3Choice,S_3Amount,0),0)) -> 0 | Q78: =SUM(IF(S_4AccNO=$B78,IF(S_4FieldRank<=S_4Choice,S_4Amount,0),0)) -> 0 | R78: =SUM(IF(S_10AccNO=$B78,IF(S_10FieldRank<=S_10Choice,S_10Amount,0),0)) -> 0 | S78: =SUM(IF(S_13AccNO=$B78,IF(S_13FieldRank<=S_13Choice,S_13Amount,0),0)) -> 0 | T78: =SUM(IF(S_15AccNO=$B78,IF(S_15FieldRank<=S_15Choice,S_15Amount,0),0)) -> 0 | U78: =SUM(IF(S_16AccNO=$B78,IF(S_16FieldRank<=S_16Choice,S_16Amount,0),0)) -> 0 | V78: =SUM(IF(S_17AccNO=$B78,IF(S_17FieldRank<=S_17Choice,S_17Amount,0),0)) -> 0 | W78: Research & Development | X78: =SUM(IF(S_18AccNO=$B78,IF(S_18FieldRank<=S_18Choice,S_18Amount,0),0)) -> 0 | Y78: =SUM(IF(S_9AccNO=$B78,IF(S_9FieldRank<=S_9Choice,S_9Amount,0),0)) -> 0 | Z78: =SUM(IF(S_19AccNO=$B78,IF(S_19FieldRank<=S_19Choice,S_19Amount,0),0)) -> 0 | AA78: =SUM(IF(S_20AccNo=$B78,IF(S_20FieldRank<=S_20Choice,S_20Amount,0),0)) -> 0 | AB78: =SUM(IF(S_21AccNo=$B78,IF(S_21FieldRank<=S_21Choice,S_21Amount,0),0)) -> 0 | AC78: =SUM(IF(S_22AccNo=$B78,IF(S_22FieldRank<=S_22Choice,S_22Amount,0),0)) -> 0 | AE78: =SUM(IF(S_23AccNo=$B78,IF(S_23FieldRank<=S_23Choice,S_23Amount,0),0)) -> 0
B79: 8990 | C79: Ministry Expense | D79: 49553 | E79: 0 | F79: 67520 | G79: 0 | H79: Ministry Expense | I79: =SUM(IF(S1AccNO=B79,IF(S1FieldRank<=S1Choice,S1Amount,0),0)) -> 8400 | J79: =SUM(IF(S_2AccNO=$B79,IF(S_2FieldRank<=S_2Choice,S_2Amount,0),0)) -> 30800 | K79: =SUM(IF(S_6AccNO=$B79,IF(S_6FieldRank<=s_6Choice,S_6Amount,0),0)) -> 0 | L79: =SUM(IF(S_7AccNO=$B79,IF(S_7FieldRank<=S_7Choice,S_7Amount,0),0)) -> 17640 | M79: =SUM(IF(S_8AccNO=$B79,IF(S_8FieldRank<=S_8Choice,S_8Amount,0),0)) -> 0 | N79: Ministry Expense | O79: =SUM(IF(S_11AccNO=$B79,IF(S_11FieldRank<=S_11Choice,S_11Amount,0),0)) -> 0 | P79: =SUM(IF(S_3AccNO=$B79,IF(S_3FieldRank<=S_3Choice,S_3Amount,0),0)) -> 0 | Q79: =SUM(IF(S_4AccNO=$B79,IF(S_4FieldRank<=S_4Choice,S_4Amount,0),0)) -> 0 | R79: =SUM(IF(S_10AccNO=$B79,IF(S_10FieldRank<=S_10Choice,S_10Amount,0),0)) -> 0 | S79: =SUM(IF(S_13AccNO=$B79,IF(S_13FieldRank<=S_13Choice,S_13Amount,0),0)) -> 2280 | T79: =SUM(IF(S_15AccNO=$B79,IF(S_15FieldRank<=S_15Choice,S_15Amount,0),0)) -> 0 | U79: =SUM(IF(S_16AccNO=$B79,IF(S_16FieldRank<=S_16Choice,S_16Amount,0),0)) -> 8400 | V79: =SUM(IF(S_17AccNO=$B79,IF(S_17FieldRank<=S_17Choice,S_17Amount,0),0)) -> 0 | W79: Ministry Expense | X79: =SUM(IF(S_18AccNO=$B79,IF(S_18FieldRank<=S_18Choice,S_18Amount,0),0)) -> 0 | Y79: =SUM(IF(S_9AccNO=$B79,IF(S_9FieldRank<=S_9Choice,S_9Amount,0),0)) -> 0 | Z79: =SUM(IF(S_19AccNO=$B79,IF(S_19FieldRank<=S_19Choice,S_19Amount,0),0)) -> 0 | AA79: =SUM(IF(S_20AccNo=$B79,IF(S_20FieldRank<=S_20Choice,S_20Amount,0),0)) -> 0 | AB79: =SUM(IF(S_21AccNo=$B79,IF(S_21FieldRank<=S_21Choice,S_21Amount,0),0)) -> 0 | AC79: =SUM(IF(S_22AccNo=$B79,IF(S_22FieldRank<=S_22Choice,S_22Amount,0),0)) -> 0 | AD79: =GETPIVOTDATA("Amount",'S25'!$J$5,"Acc_NO",8990) -> 0 | AE79: =SUM(IF(S_23AccNo=$B79,IF(S_23FieldRank<=S_23Choice,S_23Amount,0),0)) -> 0 | AF79: 0 | AG79: =SUM(IF(S_5AccNO=$B79,IF(S_5FieldRank<=S_5Choice,S_5Amount,0),0)) -> 0
B80: 8999 | C80: Special Projects | D80: 0 | E80: 0 | F80: 0 | G80: 0 | H80: Special Projects | I80: =SUM(IF(S1AccNO=B80,IF(S1FieldRank<=S1Choice,S1Amount,0),0)) -> 0 | J80: =SUM(IF(S_2AccNO=$B80,IF(S_2FieldRank<=S_2Choice,S_2Amount,0),0)) -> 0 | K80: =SUM(IF(S_6AccNO=$B80,IF(S_6FieldRank<=s_6Choice,S_6Amount,0),0)) -> 0 | L80: =SUM(IF(S_7AccNO=$B80,IF(S_7FieldRank<=S_7Choice,S_7Amount,0),0)) -> 0 | M80: =SUM(IF(S_8AccNO=$B80,IF(S_8FieldRank<=S_8Choice,S_8Amount,0),0)) -> 0 | N80: Special Projects | O80: =SUM(IF(S_11AccNO=$B80,IF(S_11FieldRank<=S_11Choice,S_11Amount,0),0)) -> 0 | P80: =SUM(IF(S_3AccNO=$B80,IF(S_3FieldRank<=S_3Choice,S_3Amount,0),0)) -> 0 | Q80: =SUM(IF(S_4AccNO=$B80,IF(S_4FieldRank<=S_4Choice,S_4Amount,0),0)) -> 0 | R80: =SUM(IF(S_10AccNO=$B80,IF(S_10FieldRank<=S_10Choice,S_10Amount,0),0)) -> 0 | S80: =SUM(IF(S_13AccNO=$B80,IF(S_13FieldRank<=S_13Choice,S_13Amount,0),0)) -> 0 | T80: =SUM(IF(S_15AccNO=$B80,IF(S_15FieldRank<=S_15Choice,S_15Amount,0),0)) -> 0 | U80: =SUM(IF(S_16AccNO=$B80,IF(S_16FieldRank<=S_16Choice,S_16Amount,0),0)) -> 0 | V80: =SUM(IF(S_17AccNO=$B80,IF(S_17FieldRank<=S_17Choice,S_17Amount,0),0)) -> 0 | W80: Special Projects | X80: =SUM(IF(S_18AccNO=$B80,IF(S_18FieldRank<=S_18Choice,S_18Amount,0),0)) -> 0 | Y80: =SUM(IF(S_9AccNO=$B80,IF(S_9FieldRank<=S_9Choice,S_9Amount,0),0)) -> 0 | Z80: =SUM(IF(S_19AccNO=$B80,IF(S_19FieldRank<=S_19Choice,S_19Amount,0),0)) -> 0 | AA80: =SUM(IF(S_20AccNo=$B80,IF(S_20FieldRank<=S_20Choice,S_20Amount,0),0)) -> 0 | AB80: =SUM(IF(S_21AccNo=$B80,IF(S_21FieldRank<=S_21Choice,S_21Amount,0),0)) -> 0 | AC80: =SUM(IF(S_22AccNo=$B80,IF(S_22FieldRank<=S_22Choice,S_22Amount,0),0)) -> 0 | AE80: =SUM(IF(S_23AccNo=$B80,IF(S_23FieldRank<=S_23Choice,S_23Amount,0),0)) -> 0 | AF80: 0 | AG80: =SUM(IF(S_5AccNO=$B80,IF(S_5FieldRank<=S_5Choice,S_5Amount,0),0)) -> 0

Sheet S1
B1: AK Field Office | C1: 41780 | D1: =Main_BGT!F5 -> 2021-2022 | G1: 10
D2: Total Income | E2: =SUM(IF(S_1FieldRank<=S1Choice,IF(S1AccNO<=LastIncome,S1Amount,0),0)) -> 81000
D3: Total Expense | E3: =SUM(IF(S1FieldRank<=S1Choice,IF(S1AccNO>LastIncome,S1Amount,0),0)) -> 109475
D4: Difference | E4: =E2-E3 -> -28475
B5: Account Description | C5: Acc_NO | D5: Field Detail | E5: Amount | F5: Month | G5: Rank | H5: Out
B6: =IF(C6<1," ",VLOOKUP(C6,MainAccountNO:MainAccounts,2,FALSE)) ->  | H6: =IF(G6<=$G$1,"","OUT") -> 
A7: =A5+1 -> 1 | B7: =IF(C7<1," ",VLOOKUP(C7,MainAccountNO:MainAccounts,2,FALSE)) -> Vehicle Fuel & Oil | C7: 8702 | D7: Field related travel, using campus vehicles | E7: 500 | H7: =IF(G7<=$G$1,"","OUT") -> 
A8: =A7+1 -> 2 | B8: =IF(C8<1," ",VLOOKUP(C8,MainAccountNO:MainAccounts,2,FALSE)) -> General Ministry Supply | C8: 8108 | D8: General ministry supplies | E8: 1000 | H8: =IF(G8<=$G$1,"","OUT") -> 
A9: =A8+1 -> 3 | B9: =IF(C9<1," ",VLOOKUP(C9,MainAccountNO:MainAccounts,2,FALSE)) -> Employment Insurance | C9: 7203 | D9: Workers Comp on Alaska Staff | E9: 3800
A10: 4 | B10: =IF(C10<1," ",VLOOKUP(C10,MainAccountNO:MainAccounts,2,FALSE)) -> Vehicle Rental | C10: 8706 | D10: Field Director Car Rental while traveling | E10: 1000
A11: 5 | B11: =IF(C11<1," ",VLOOKUP(C11,MainAccountNO:MainAccounts,2,FALSE)) -> Commercial Travel | C11: 8710 | D11: Field Director in state travel (village flights etc) | E11: 5000
A12: 6 | B12: =IF(C12<1," ",VLOOKUP(C12,MainAccountNO:MainAccounts,2,FALSE)) -> Auto Mileage Reimb | C12: 8707 | D12: Field Director to ELT - 2 trips | E12: 1000
A13: 7 | B13: =IF(C13<1," ",VLOOKUP(C13,MainAccountNO:MainAccounts,2,FALSE)) -> Telephone | C13: 8201 | D13: Field Office & campus phones & Internet | E13: 3000
A14: 8 | B14: =IF(C14<1," ",VLOOKUP(C14,MainAccountNO:MainAccounts,2,FALSE)) -> Meals & Entertainment | C14: 8709 | D14: Field Director field meals & entertainment | E14: 1000
A15: 9 | B15: =IF(C15<1," ",VLOOKUP(C15,MainAccountNO:MainAccounts,2,FALSE)) -> Office Supply | C15: 8106 | D15: Field Director off-site office supplies & small equipment | E15: 500
A16: 10 | B16: =IF(C16<1," ",VLOOKUP(C16,MainAccountNO:MainAccounts,2,FALSE)) -> Office Supply | C16: 8106 | D16: Alaska Office/printer/copier Supplies | E16: 2000
A17: 11 | B17: =IF(C17<1," ",VLOOKUP(C17,MainAccountNO:MainAccounts,2,FALSE)) -> Postage & Shipping | C17: 8301 | D17: Postage | E17: 300
A18: 12 | B18: =IF(C18<1," ",VLOOKUP(C18,MainAccountNO:MainAccounts,2,FALSE)) -> Liability Insurance | C18: 8009 | D18: Field Liability Insurance (Brotherhood Mutual) | E18: 1375
A19: 13 | B19: =IF(C19<1," ",VLOOKUP(C19,MainAccountNO:MainAccounts,2,FALSE)) -> Equipment Maint. | C19: 8502 | D19: Copier Maintenance | E19: 600
A20: 14 | B20: =IF(C20<1," ",VLOOKUP(C20,MainAccountNO:MainAccounts,2,FALSE)) -> Missionary Conference | C20: 8805 | D20: Field Conf. Speaker & Child Care providers | E20: 2000
A21: 15 | B21: =IF(C21<1," ",VLOOKUP(C21,MainAccountNO:MainAccounts,2,FALSE)) -> Missionary Conference | C21: 8805 | D21: Field Conference Food & Housing/tent (incl cook) | E21: 2000
A22: 16 | B22: =IF(C22<1," ",VLOOKUP(C22,MainAccountNO:MainAccounts,2,FALSE)) -> Missionary Conference | C22: 8805 | D22: Staff Travel To Field Conference | E22: 2000
A23: 17 | B23: =IF(C23<1," ",VLOOKUP(C23,MainAccountNO:MainAccounts,2,FALSE)) -> Member Care | C23: 8004 | D23: Random acts of kindness | E23: 600
A24: 18 | B24: =IF(C24<1," ",VLOOKUP(C24,MainAccountNO:MainAccounts,2,FALSE)) -> Meals & Entertainment | C24: 8709 | D24: Alaska FLT meet in Alaska
A25: 19 | B25: =IF(C25<1," ",VLOOKUP(C25,MainAccountNO:MainAccounts,2,FALSE)) -> Computer & Technology | C25: 8211 | D25: Bookkeeping Software | E25: 800
A26: 20 | H26: =IF(G26<=$G$1,"","OUT") -> 
A27: 21
A28: 22
A29: 23 | B29: =IF(C29<1," ",VLOOKUP(C29,MainAccountNO:MainAccounts,2,FALSE)) ->  | D29: Staffing
A30: 24 | B30: =IF(C30<1," ",VLOOKUP(C30,MainAccountNO:MainAccounts,2,FALSE)) -> Cash Gifts - Staff Support | C30: 5001 | D30: Horsman Support | E30: 90000
A31: 25 | B31: =IF(C31<1," ",VLOOKUP(C31,MainAccountNO:MainAccounts,2,FALSE)) -> Missionary Salaries | C31: 7005 | D31: Horsman Salary | E31: =+E30-E32+E33 -> 72600
A32: 26 | B32: =IF(C32<1," ",VLOOKUP(C32,MainAccountNO:MainAccounts,2,FALSE)) -> Ministry Expense | C32: 8990 | D32: Horsman MER | E32: 8400
A33: 27 | B33: =IF(C33<1," ",VLOOKUP(C33,MainAccountNO:MainAccounts,2,FALSE)) -> Operations Assessment | C33: 4100 | D33: Horsman Assessment | E33: =-E30*0.1 -> -9000
A34: 28 | B34: =IF(C34<1," ",VLOOKUP(C34,MainAccountNO:MainAccounts,2,FALSE)) -> 
A35: 29 | B35: =IF(C35<1," ",VLOOKUP(C35,MainAccountNO:MainAccounts,2,FALSE)) ->  | D35: Pink fields will be completed by Mike
A36: 30 | B36: =IF(C36<1," ",VLOOKUP(C36,MainAccountNO:MainAccounts,2,FALSE)) ->  | H36: =IF(G36<=$G$1,"","OUT") -> 

Sheet S2
B1: AK Field Ministries | C1: 40946 | D1: =Main_BGT!F5 -> 2021-2022 | G1: 10
D2: Total Income | E2: =SUM(IF(S_2FieldRank<=S_2Choice,IF(S_2AccNO<=LastIncome,S_2Amount,0),0)) -> 467181
D3: Total Expense | E3: =SUM(IF(S_2FieldRank<=S_2Choice,IF(S_2AccNO>LastIncome,S_2Amount,0),0)) -> 433581
D4: Difference | E4: =E2-E3 -> 33600
A5: line | B5: Account Description | C5: Acc_NO | D5: Field Detail | E5: Amount | F5: Month | G5: Rank | H5: Out
A6: 1 | B6: =IF(C6<1," ",VLOOKUP(C6,MainAccountNO:MainAccounts,2,FALSE)) ->  | H6: =IF(G6<=$G$1,"","OUT") -> 
A7: =A6+1 -> 2 | B7: =IF(C7<1," ",VLOOKUP(C7,MainAccountNO:MainAccounts,2,FALSE)) -> Beginning Fund Balances | C7: 3100 | D7: AK Field Ministries balance at 3/31/21 (currently $52,945) | E7: 53000
A8: =A7+1 -> 3 | B8: =IF(C8<1," ",VLOOKUP(C8,MainAccountNO:MainAccounts,2,FALSE)) -> 
A9: =A8+1 -> 4
A10: 5 | B10: =IF(C10<1," ",VLOOKUP(C10,MainAccountNO:MainAccounts,2,FALSE)) -> Commercial Travel | C10: 8710 | D10: Commerical Travel - Leadership | E10: 2000
A11: 6 | B11: =IF(C11<1," ",VLOOKUP(C11,MainAccountNO:MainAccounts,2,FALSE)) -> Vehicle Fuel & Oil | C11: 8702 | D11: fuel and oil - Leadership | E11: 400
A12: 7 | B12: =IF(C12<1," ",VLOOKUP(C12,MainAccountNO:MainAccounts,2,FALSE)) -> Motel/Hotel & Room Rent | C12: 8711 | D12: lodging - Leadership | E12: 400
A13: 8 | B13: =IF(C13<1," ",VLOOKUP(C13,MainAccountNO:MainAccounts,2,FALSE)) -> Food for Meetings | C13: 8803 | D13: meals - Leadership | E13: 500
A14: 9 | B14: =IF(C14<1," ",VLOOKUP(C14,MainAccountNO:MainAccounts,2,FALSE)) -> Staff Training | C14: 8003 | D14: leadership materials | E14: 600
A15: 10 | B15: =IF(C15<1," ",VLOOKUP(C15,MainAccountNO:MainAccounts,2,FALSE)) -> Research & Development | C15: 8980 | D15: Research and development :) | E15: 5000
A16: 11 | B16: =IF(C16<1," ",VLOOKUP(C16,MainAccountNO:MainAccounts,2,FALSE)) -> Speaker Honorarium | C16: 8804 | D16: Staff training honorariums | E16: 2000
A17: 12 | B17: =IF(C17<1," ",VLOOKUP(C17,MainAccountNO:MainAccounts,2,FALSE)) -> Seminars & Registrations | C17: 8806 | D17: Staff training | E17: 2500
A18: 13 | B18: =IF(C18<1," ",VLOOKUP(C18,MainAccountNO:MainAccounts,2,FALSE)) -> Commercial Travel | C18: 8710 | D18: Staff Training travel | E18: 2500
A19: 14 | B19: =IF(C19<1," ",VLOOKUP(C19,MainAccountNO:MainAccounts,2,FALSE)) -> Staff Training | C19: 8003 | D19: ANA/ Biblical Counseling/ On Boarding | E19: 2000 | H19: =IF(G19<=$G$1,"","OUT") -> 
A20: 15 | B20: =IF(C20<1," ",VLOOKUP(C20,MainAccountNO:MainAccounts,2,FALSE)) -> Staff Training | C20: 8003 | D20: Training new missionaries | E20: 1500 | H20: =IF(G20<=$G$1,"","OUT") -> 
A21: 16 | B21: =IF(C21<1," ",VLOOKUP(C21,MainAccountNO:MainAccounts,2,FALSE)) ->  | D21: STAFFING
A22: 17 | B22: =IF(C22<1," ",VLOOKUP(C22,MainAccountNO:MainAccounts,2,FALSE)) -> Cash Gifts - Staff Support | C22: 5001 | D22: Curtis T. Support | E22: 42000 | H22: =IF(G22<=$G$1,"","OUT") -> 
A23: =A22+1 -> 18 | B23: =IF(C23<1," ",VLOOKUP(C23,MainAccountNO:MainAccounts,2,FALSE)) -> Missionary Salaries | C23: 7005 | D23: Curtis T. Salary | E23: =+E22-E24+E25 -> 35400
A24: 19 | B24: =IF(C24<1," ",VLOOKUP(C24,MainAccountNO:MainAccounts,2,FALSE)) -> Ministry Expense | C24: 8990 | D24: Curtis T. MER | E24: 2400
A25: 20 | B25: =IF(C25<1," ",VLOOKUP(C25,MainAccountNO:MainAccounts,2,FALSE)) -> Operations Assessment | C25: 4100 | D25: Curtis T Assessment | E25: =-E22*0.1 -> -4200
A26: 21 | B26: =IF(C26<1," ",VLOOKUP(C26,MainAccountNO:MainAccounts,2,FALSE)) -> Cash Gifts - Staff Support | C26: 5001 | D26: Curtis C. Support | E26: 33240
A27: 22 | B27: =IF(C27<1," ",VLOOKUP(C27,MainAccountNO:MainAccounts,2,FALSE)) -> Missionary Salaries | C27: 7005 | D27: Curtis C. Salary | E27: =+E26-E28+E29 -> 29816
A28: 23 | B28: =IF(C28<1," ",VLOOKUP(C28,MainAccountNO:MainAccounts,2,FALSE)) -> Ministry Expense | C28: 8990 | D28: Curtis C. MER | E28: 100
A29: 24 | B29: =IF(C29<1," ",VLOOKUP(C29,MainAccountNO:MainAccounts,2,FALSE)) -> Operations Assessment | C29: 4100 | D29: Curtis C. Assessment | E29: =-E26*0.1 -> -3324
A30: 25 | B30: =IF(C30<1," ",VLOOKUP(C30,MainAccountNO:MainAccounts,2,FALSE)) -> Cash Gifts - Staff Support | C30: 5001 | D30: Dalton Support | E30: 61000
A31: 26 | B31: =IF(C31<1," ",VLOOKUP(C31,MainAccountNO:MainAccounts,2,FALSE)) -> Missionary Salaries | C31: 7005 | D31: Dalton Salary | E31: =+E30-E32+E33 -> 48900
A32: 27 | B32: =IF(C32<1," ",VLOOKUP(C32,MainAccountNO:MainAccounts,2,FALSE)) -> Ministry Expense | C32: 8990 | D32: Dalton MER | E32: 6000
A33: 28 | B33: =IF(C33<1," ",VLOOKUP(C33,MainAccountNO:MainAccounts,2,FALSE)) -> Operations Assessment | C33: 4100 | D33: Dalton Assessment | E33: =-E30*0.1 -> -6100
A34: 29 | B34: =IF(C34<1," ",VLOOKUP(C34,MainAccountNO:MainAccounts,2,FALSE)) -> Cash Gifts - Staff Support | C34: 5001 | D34: DeVries Support | E34: 78000 | H34: =IF(G34<=$G$1,"","OUT") -> 
A35: 30 | B35: =IF(C35<1," ",VLOOKUP(C35,MainAccountNO:MainAccounts,2,FALSE)) -> Missionary Salaries | C35: 7005 | D35: DeVries Salary | E35: =+E34-E36+E37 -> 69000
A36: 31 | B36: =IF(C36<1," ",VLOOKUP(C36,MainAccountNO:MainAccounts,2,FALSE)) -> Ministry Expense | C36: 8990 | D36: DeVries MER | E36: 1200
A37: 32 | B37: =IF(C37<1," ",VLOOKUP(C37,MainAccountNO:MainAccounts,2,FALSE)) -> Operations Assessment | C37: 4100 | D37: DeVries Assessment | E37: =-E34*0.1 -> -7800
A38: 33 | B38: =IF(C38<1," ",VLOOKUP(C38,MainAccountNO:MainAccounts,2,FALSE)) -> Cash Gifts - Staff Support | C38: 5001 | D38: Mole Support | E38: 24000
A39: 34 | B39: =IF(C39<1," ",VLOOKUP(C39,MainAccountNO:MainAccounts,2,FALSE)) -> Missionary Salaries | C39: 7005 | D39: Mole Salary | E39: =+E38-E40+E41 -> 21600
A40: 35 | B40: =IF(C40<1," ",VLOOKUP(C40,MainAccountNO:MainAccounts,2,FALSE)) -> Ministry Expense | C40: 8990 | D40: Mole MER
A41: 36 | B41: =IF(C41<1," ",VLOOKUP(C41,MainAccountNO:MainAccounts,2,FALSE)) -> Operations Assessment | C41: 4100 | D41: Mole Assessment | E41: =-E38*0.1 -> -2400
A42: 37 | B42: =IF(C42<1," ",VLOOKUP(C42,MainAccountNO:MainAccounts,2,FALSE)) -> Cash Gifts - Staff Support | C42: 5001 | D42: Paull Support | E42: 15000
A43: 38 | B43: =IF(C43<1," ",VLOOKUP(C43,MainAccountNO:MainAccounts,2,FALSE)) -> Missionary Salaries | C43: 7005 | D43: Paull Salary | E43: =+E42-E44+E45 -> 13300
A44: 39 | B44: =IF(C44<1," ",VLOOKUP(C44,MainAccountNO:MainAccounts,2,FALSE)) -> Ministry Expense | C44: 8990 | D44: Paull MER | E44: 200
A45: 40 | B45: =IF(C45<1," ",VLOOKUP(C45,MainAccountNO:MainAccounts,2,FALSE)) -> Operations Assessment | C45: 4100 | D45: Paull Assessment | E45: =-E42*0.1 -> -1500
A46: 41 | B46: =IF(C46<1," ",VLOOKUP(C46,MainAccountNO:MainAccounts,2,FALSE)) -> Cash Gifts - Staff Support | C46: 5001 | D46: Richardson D Support | E46: 37000
A47: 42 | B47: =IF(C47<1," ",VLOOKUP(C47,MainAccountNO:MainAccounts,2,FALSE)) -> Missionary Salaries | C47: 7005 | D47: Richardson D Salary | E47: =+E46-E48+E49 -> 33300
A48: 43 | B48: =IF(C48<1," ",VLOOKUP(C48,MainAccountNO:MainAccounts,2,FALSE)) -> Ministry Expense | C48: 8990 | D48: Richardson D MER | H48: =IF(G48<=$G$1,"","OUT") -> 
A49: 44 | B49: =IF(C49<1," ",VLOOKUP(C49,MainAccountNO:MainAccounts,2,FALSE)) -> Operations Assessment | C49: 4100 | D49: Richardson D Assessment | E49: =-E46*0.1 -> -3700
A50: 45 | B50: =IF(C50<1," ",VLOOKUP(C50,MainAccountNO:MainAccounts,2,FALSE)) -> Cash Gifts - Staff Support | C50: 5001 | D50: Roderick Support | E50: 30000
A51: 46 | B51: =IF(C51<1," ",VLOOKUP(C51,MainAccountNO:MainAccounts,2,FALSE)) -> Missionary Salaries | C51: 7005 | D51: Roderick Salary | E51: =+E50-E52+E53 -> 26800
A52: 47 | B52: =IF(C52<1," ",VLOOKUP(C52,MainAccountNO:MainAccounts,2,FALSE)) -> Ministry Expense | C52: 8990 | D52: Roderick MER | E52: 200
A53: 48 | B53: =IF(C53<1," ",VLOOKUP(C53,MainAccountNO:MainAccounts,2,FALSE)) -> Operations Assessment | C53: 4100 | D53: Roderick Assessment | E53: =-E50*0.1 -> -3000
A54: 49 | B54: =IF(C54<1," ",VLOOKUP(C54,MainAccountNO:MainAccounts,2,FALSE)) -> Cash Gifts - Staff Support | C54: 5001 | D54: Ross Support | E54: 55000
A55: 50 | B55: =IF(C55<1," ",VLOOKUP(C55,MainAccountNO:MainAccounts,2,FALSE)) -> Missionary Salaries | C55: 7005 | D55: Ross Salary | E55: =+E54-E56+E57 -> 42300
A56: 51 | B56: =IF(C56<1," ",VLOOKUP(C56,MainAccountNO:MainAccounts,2,FALSE)) -> Ministry Expense | C56: 8990 | D56: Ross MER | E56: 7200
A57: 52 | B57: =IF(C57<1," ",VLOOKUP(C57,MainAccountNO:MainAccounts,2,FALSE)) -> Operations Assessment | C57: 4100 | D57: Ross Assessment | E57: =-E54*0.1 -> -5500
A58: 53 | B58: =IF(C58<1," ",VLOOKUP(C58,MainAccountNO:MainAccounts,2,FALSE)) -> Cash Gifts - Staff Support | C58: 5001 | D58: Watts Support | E58: 3000
A59: 54 | B59: =IF(C59<1," ",VLOOKUP(C59,MainAccountNO:MainAccounts,2,FALSE)) -> Ministry Expense | C59: 8990 | D59: Watts MER | E59: =+E58+E60 -> 2700
A60: 55 | B60: =IF(C60<1," ",VLOOKUP(C60,MainAccountNO:MainAccounts,2,FALSE)) -> Operations Assessment | C60: 4100 | D60: Watts Assessment | E60: =-E58*0.1 -> -300
A61: 56 | B61: =IF(C61<1," ",VLOOKUP(C61,MainAccountNO:MainAccounts,2,FALSE)) -> Cash Gifts - Staff Support | C61: 5001 | D61: Zook Support | E61: 12000
A62: 57 | B62: =IF(C62<1," ",VLOOKUP(C62,MainAccountNO:MainAccounts,2,FALSE)) -> Ministry Expense | C62: 8990 | D62: Zook MER | E62: =+E61+E63 -> 10800
A63: 58 | B63: =IF(C63<1," ",VLOOKUP(C63,MainAccountNO:MainAccounts,2,FALSE)) -> Operations Assessment | C63: 4100 | D63: Zook Assessment | E63: =-E61*0.1 -> -1200
A64: 59 | B64: =IF(C64<1," ",VLOOKUP(C64,MainAccountNO:MainAccounts,2,FALSE)) ->  | D64: Retired Staff
A65: 60 | B65: =IF(C65<1," ",VLOOKUP(C65,MainAccountNO:MainAccounts,2,FALSE)) -> Cash Gifts - Staff Support | C65: 5001 | D65: Abbey Support | E65: 5000 | H65: =IF(G65<=$G$1,"","OUT") -> 
A66: 61 | B66: =IF(C66<1," ",VLOOKUP(C66,MainAccountNO:MainAccounts,2,FALSE)) -> Missionary Salaries | C66: 7005 | D66: Abbey Salary | E66: =+E65+E67 -> 4750
A67: 62 | B67: =IF(C67<1," ",VLOOKUP(C67,MainAccountNO:MainAccounts,2,FALSE)) -> Operations Assessment | C67: 4100 | D67: Abbey Assessment | E67: =-E65*0.05 -> -250
A68: 63 | B68: =IF(C68<1," ",VLOOKUP(C68,MainAccountNO:MainAccounts,2,FALSE)) -> Cash Gifts - Staff Support | C68: 5001 | D68: Henry Support | E68: 6000
A69: 64 | B69: =IF(C69<1," ",VLOOKUP(C69,MainAccountNO:MainAccounts,2,FALSE)) -> Missionary Salaries | C69: 7005 | D69: Henry Salary | E69: =+E68+E70 -> 5700
A70: 65 | B70: =IF(C70<1," ",VLOOKUP(C70,MainAccountNO:MainAccounts,2,FALSE)) -> Operations Assessment | C70: 4100 | D70: Henry Assessment | E70: =-E68*0.05 -> -300
A71: 66 | B71: =IF(C71<1," ",VLOOKUP(C71,MainAccountNO:MainAccounts,2,FALSE)) -> Cash Gifts - Staff Support | C71: 5001 | D71: Hagedorn Support | E71: 25000
A72: 67 | B72: =IF(C72<1," ",VLOOKUP(C72,MainAccountNO:MainAccounts,2,FALSE)) -> Missionary Salaries | C72: 7005 | D72: Hagedorn Salary | E72: =+E71+E73 -> 23750
A73: 68 | B73: =IF(C73<1," ",VLOOKUP(C73,MainAccountNO:MainAccounts,2,FALSE)) -> Operations Assessment | C73: 4100 | D73: Hagedorn Assessment | E73: =-E71*0.05 -> -1250
A74: 69 | B74: =IF(C74<1," ",VLOOKUP(C74,MainAccountNO:MainAccounts,2,FALSE)) -> Cash Gifts - Staff Support | C74: 5001 | D74: Hill Support | E74: 1600 | H74: =IF(G74<=$G$1,"","OUT") -> 
A75: =A74+1 -> 70 | B75: =IF(C75<1," ",VLOOKUP(C75,MainAccountNO:MainAccounts,2,FALSE)) -> Missionary Salaries | C75: 7005 | D75: Hill Salary | E75: =+E74+E76 -> 1440 | H75: =IF(G75<=$G$1,"","OUT") -> 
A76: =A75+1 -> 71 | B76: =IF(C76<1," ",VLOOKUP(C76,MainAccountNO:MainAccounts,2,FALSE)) -> Operations Assessment | C76: 4100 | D76: Hill Assessment | E76: =-E74*0.1 -> -160 | H76: =IF(G76<=$G$1,"","OUT") -> 
A77: =A76+1 -> 72 | B77: =IF(C77<1," ",VLOOKUP(C77,MainAccountNO:MainAccounts,2,FALSE)) -> Cash Gifts - Staff Support | C77: 5001 | D77: Hughes Support | E77: 7500
A78: 73 | B78: =IF(C78<1," ",VLOOKUP(C78,MainAccountNO:MainAccounts,2,FALSE)) -> Missionary Salaries | C78: 7005 | D78: Hughes Salary | E78: =+E77+E79 -> 7125 | H78: =IF(G78<=$G$1,"","OUT") -> 
A79: =A78+1 -> 74 | B79: =IF(C79<1," ",VLOOKUP(C79,MainAccountNO:MainAccounts,2,FALSE)) -> Operations Assessment | C79: 4100 | D79: Hughes Assessment | E79: =-E77*0.05 -> -375
A80: 75 | B80: =IF(C80<1," ",VLOOKUP(C80,MainAccountNO:MainAccounts,2,FALSE)) -> Cash Gifts - Staff Support | C80: 5001 | D80: Morgan Support | E80: 14000 | H80: =IF(G80<=$G$1,"","OUT") -> 
A81: =A80+1 -> 76 | B81: =IF(C81<1," ",VLOOKUP(C81,MainAccountNO:MainAccounts,2,FALSE)) -> Missionary Salaries | C81: 7005 | D81: Morgan Salary | E81: =+E80+E82 -> 12600 | H81: =IF(G81<=$G$1,"","OUT") -> 
A82: =A81+1 -> 77 | B82: =IF(C82<1," ",VLOOKUP(C82,MainAccountNO:MainAccounts,2,FALSE)) -> Operations Assessment | C82: 4100 | D82: Morgan Assessment | E82: =-E80*0.1 -> -1400 | H82: =IF(G82<=$G$1,"","OUT") -> 
A83: =A82+1 -> 78 | B83: =IF(C83<1," ",VLOOKUP(C83,MainAccountNO:MainAccounts,2,FALSE)) -> Cash Gifts - Staff Support | C83: 5001 | D83: Voran Support | E83: 8000 | H83: =IF(G83<='S15'!$G$1,"","OUT") -> 
A84: =A83+1 -> 79 | B84: =IF(C84<1," ",VLOOKUP(C84,MainAccountNO:MainAccounts,2,FALSE)) -> Missionary Salaries | C84: 7005 | D84: Voran Salary | E84: =+E83+E85 -> 7600 | H84: =IF(G84<='S15'!$G$1,"","OUT") -> 
A85: =A84+1 -> 80 | B85: =IF(C85<1," ",VLOOKUP(C85,MainAccountNO:MainAccounts,2,FALSE)) -> Operations Assessment | C85: 4100 | D85: Voran Assessment | E85: =-E83*0.05 -> -400 | H85: =IF(G85<='S15'!$G$1,"","OUT") -> 
B86: =IF(C86<1," ",VLOOKUP(C86,MainAccountNO:MainAccounts,2,FALSE)) ->  | D86: Pink fields will be completed by Mike

Sheet S6
B1: RU Field Office | C1: 41790 | D1: =Main_BGT!F5 -> 2021-2022 | G1: 10
D2: Total Income | E2: =SUM(IF(S_6FieldRank<=s_6Choice,IF(S_6AccNO<=LastIncome,S_6Amount,0),0)) -> 0
D3: Total Expense | E3: =SUM(IF(S_6FieldRank<=s_6Choice,IF(S_6AccNO>LastIncome,S_6Amount,0),0)) -> 5955
D4: Difference | E4: =E2-E3 -> -5955
B5: Account Description | C5: Acc_NO | D5: Field Detail | E5: Amount | F5: Month | G5: Rank | H5: Out
A6: 1 | B6: =IF(C6<1," ",VLOOKUP(C6,MainAccountNO:MainAccounts,2,FALSE)) ->  | H6: =IF(G6<=$G$1,"","OUT") -> 
A7: =A6+1 -> 2 | B7: =IF(C7<1," ",VLOOKUP(C7,MainAccountNO:MainAccounts,2,FALSE)) ->  | D7: 2019 Field Conference | H7: =IF(G7<=$G$1,"","OUT") -> 
A8: =A7+1 -> 3 | B8: =IF(C8<1," ",VLOOKUP(C8,MainAccountNO:MainAccounts,2,FALSE)) -> Missionary Conference | C8: 8805 | D8: Travel: 6 people at $200 | E8: 1200 | F8: 10 | G8: 1
A9: 4 | B9: =IF(C9<1," ",VLOOKUP(C9,MainAccountNO:MainAccounts,2,FALSE)) -> Missionary Conference | C9: 8805 | D9: Food – 4 people x $40 per day per person x 3 days | E9: =4*40*3 -> 480 | F9: 10 | G9: 1
A10: 5 | B10: =IF(C10<1," ",VLOOKUP(C10,MainAccountNO:MainAccounts,2,FALSE)) -> Missionary Conference | C10: 8805 | D10: Lodging: 5 people at $95 per day for 3 days | E10: =5*95*3 -> 1425 | F10: 10 | G10: 1
A11: 6 | B11: =IF(C11<1," ",VLOOKUP(C11,MainAccountNO:MainAccounts,2,FALSE)) -> Missionary Conference | C11: 8805 | D11: Misc. expenses/Group Activity | E11: 500 | F11: 10 | G11: 2
A12: 7 | B12: =IF(C12<1," ",VLOOKUP(C12,MainAccountNO:MainAccounts,2,FALSE)) -> Member Care | C12: 8004 | D12: Random Acts of Kindness | E12: 100 | F12: 10 | G12: 2
A13: 8 | B13: =IF(C13<1," ",VLOOKUP(C13,MainAccountNO:MainAccounts,2,FALSE)) -> 
A14: 9 | B14: =IF(C14<1," ",VLOOKUP(C14,MainAccountNO:MainAccounts,2,FALSE)) ->  | D14: Field Leader Travel
A15: 10 | B15: =IF(C15<1," ",VLOOKUP(C15,MainAccountNO:MainAccounts,2,FALSE)) -> Commercial Travel | C15: 8710 | D15: Travel to Teammates (3 trips, 3 round-trip tickets @ $300) | E15: 900 | G15: 1
A16: 11 | B16: =IF(C16<1," ",VLOOKUP(C16,MainAccountNO:MainAccounts,2,FALSE)) -> Motel/Hotel & Room Rent | C16: 8711 | D16: Lodging during travels | E16: 300 | G16: 1
A17: 12 | B17: =IF(C17<1," ",VLOOKUP(C17,MainAccountNO:MainAccounts,2,FALSE)) -> Staff Training | C17: 8003 | D17: Member Care/Materials for Team Development | E17: 150 | G17: 1
A18: 13 | D18: Admin/Ministry Advancement
A19: 14 | B19: =IF(C19<1," ",VLOOKUP(C19,MainAccountNO:MainAccounts,2,FALSE)) -> Office Supply | C19: 8106 | D19: Office Supplies | E19: 300 | G19: 1
A20: 15 | B20: =IF(C20<1," ",VLOOKUP(C20,MainAccountNO:MainAccounts,2,FALSE)) -> Meals & Entertainment | C20: 8709 | D20: Ministry advancement hospitality | E20: 300 | G20: 2
A21: 16 | B21: =IF(C21<1," ",VLOOKUP(C21,MainAccountNO:MainAccounts,2,FALSE)) -> Miscellaneous | C21: 8941 | D21: Hourly/Temp Admin help | E21: 300 | G21: 3
A22: 17 | B22: =IF(C22<1," ",VLOOKUP(C22,MainAccountNO:MainAccounts,2,FALSE)) -> 
A23: 18 | B23: =IF(C23<1," ",VLOOKUP(C23,MainAccountNO:MainAccounts,2,FALSE)) -> 
A24: 19 | B24: =IF(C24<1," ",VLOOKUP(C24,MainAccountNO:MainAccounts,2,FALSE)) -> 

Sheet S7
B1: RU Field Ministries | C1: 40978 | D1: =Main_BGT!F5 -> 2021-2022 | G1: 10
D2: Total Income | E2: =SUM(IF(S_7FieldRank<=S_7Choice,IF(S_7AccNO<=LastIncome,S_7Amount,0),0)) -> 162300
D3: Total Expense | E3: =SUM(IF(S_7FieldRank<=S_7Choice,IF(S_7AccNO>LastIncome,S_7Amount,0),0)) -> 113550
D4: Difference | E4: =E2-E3 -> 48750
A5: Line | B5: Account Description | C5: Acc_NO | D5: Field Detail | E5: Amount | F5: Month | G5: Rank | H5: Out | J5: Row Labels | K5: Sum of Amount
A6: 1 | B6: =IF(C6<1," ",VLOOKUP(C6,MainAccountNO:MainAccounts,2,FALSE)) -> Beginning Fund Balances | C6: 3100 | D6: RU Field Ministries Balance 3/31/2021 (currently $16,203) | E6: 16500 | H6: =IF(G6<=$G$1,"","OUT") ->  | J6: 3100 | K6: 61500
A7: =A6+1 -> 2 | B7: =IF(C7<1," ",VLOOKUP(C7,MainAccountNO:MainAccounts,2,FALSE)) -> Beginning Fund Balances | C7: 3100 | D7: RU Discipleship Fund Bal 3/31/2021 (currently $43,493) | E7: 45000 | J7: 4100 | K7: -11200
A8: =A7+1 -> 3 | B8: =IF(C8<1," ",VLOOKUP(C8,MainAccountNO:MainAccounts,2,FALSE)) -> Cash Gifts - Programs | C8: 5004 | D8: RU Field Ministries Donations | E8: 500 | H8: =IF(G8<=$G$1,"","OUT") ->  | J8: 5001 | K8: 109000
A9: =A8+1 -> 4 | B9: =IF(C9<1," ",VLOOKUP(C9,MainAccountNO:MainAccounts,2,FALSE)) -> Operations Assessment | C9: 4100 | D9: RU Field Ministries Assessment | E9: =-E8*0.1 -> -50 | J9: 5004 | K9: 3000
A10: 5 | B10: =IF(C10<1," ",VLOOKUP(C10,MainAccountNO:MainAccounts,2,FALSE)) -> Cash Gifts - Programs | C10: 5004 | D10: RU Discipleship | E10: 2500 | H10: =IF(G10<=$G$1,"","OUT") ->  | J10: 7005 | K10: 80460
A11: 6 | B11: =IF(C11<1," ",VLOOKUP(C11,MainAccountNO:MainAccounts,2,FALSE)) -> Operations Assessment | C11: 4100 | D11: RU Discipleship Assessment | E11: =-E10*0.1 -> -250 | J11: 8108 | K11: 750
A12: 7 | D12: English/PT Tentmaking | J12: 8710 | K12: 5000
A13: 8 | B13: =IF(C13<1," ",VLOOKUP(C13,MainAccountNO:MainAccounts,2,FALSE)) -> Research & Development | C13: 8980 | D13: Development of English Teaching Ministry | E13: 1000 | G13: 3 | J13: 8711 | K13: 3000
A14: 9 | B14: =IF(C14<1," ",VLOOKUP(C14,MainAccountNO:MainAccounts,2,FALSE)) ->  | J14: 8803 | K14: 700
A15: 10 | E15: 0 | J15: 8980 | K15: 1000
A16: 11 | B16: =IF(C16<1," ",VLOOKUP(C16,MainAccountNO:MainAccounts,2,FALSE)) ->  | D16: Ulan-Ude | J16: 8990 | K16: 17640
A17: 12 | B17: =IF(C17<1," ",VLOOKUP(C17,MainAccountNO:MainAccounts,2,FALSE)) -> General Ministry Supply | C17: 8108 | D17: Discipleship Ministry Materials and Development | E17: 750 | G17: 2 | J17: 8003 | K17: 5000
A18: 13 | B18: =IF(C18<1," ",VLOOKUP(C18,MainAccountNO:MainAccounts,2,FALSE)) ->  | D18: Ministry Research Trips | J18: Grand Total | K18: 275850
A19: 14 | B19: =IF(C19<1," ",VLOOKUP(C19,MainAccountNO:MainAccounts,2,FALSE)) -> Commercial Travel | C19: 8710 | D19: Travel | E19: 5000 | G19: 2
A20: 15 | B20: =IF(C20<1," ",VLOOKUP(C20,MainAccountNO:MainAccounts,2,FALSE)) -> Motel/Hotel & Room Rent | C20: 8711 | D20: Lodging in New areas for vision/team planning 3 trips @ 5 nights @ $70/night | E20: 3000 | G20: 2
A21: 16 | B21: =IF(C21<1," ",VLOOKUP(C21,MainAccountNO:MainAccounts,2,FALSE)) -> Food for Meetings | C21: 8803 | D21: Meeting with strategic partners (meals) | E21: 700 | G21: 2 | H21: =IF(G21<=$G$1,"","OUT") -> 
A22: 17 | D22: Biblical Counseling
A23: 18 | B23: =IF(C23<1," ",VLOOKUP(C23,MainAccountNO:MainAccounts,2,FALSE)) -> Staff Training | C23: 8003 | D23: Training for missionaries | E23: 1000 | G23: 3
A24: 19 | B24: =IF(C24<1," ",VLOOKUP(C24,MainAccountNO:MainAccounts,2,FALSE)) -> Staff Training | C24: 8003 | D24: MABC Cource | E24: 1000 | G24: 3
A25: 20 | B25: =IF(C25<1," ",VLOOKUP(C25,MainAccountNO:MainAccounts,2,FALSE)) -> Staff Training | C25: 8003 | D25: Training for ministry partners | E25: 3000 | G25: 3
A26: 21 | B26: =IF(C26<1," ",VLOOKUP(C26,MainAccountNO:MainAccounts,2,FALSE)) ->  | D26: STAFFING
A27: 22 | B27: =IF(C27<1," ",VLOOKUP(C27,MainAccountNO:MainAccounts,2,FALSE)) -> Cash Gifts - Staff Support | C27: 5001 | D27: Emrick Support | E27: 25000
A28: 23 | B28: =IF(C28<1," ",VLOOKUP(C28,MainAccountNO:MainAccounts,2,FALSE)) -> Missionary Salaries | C28: 7005 | D28: Emrick Salary | E28: =E27-E29+E30 -> 18300
A29: 24 | B29: =IF(C29<1," ",VLOOKUP(C29,MainAccountNO:MainAccounts,2,FALSE)) -> Ministry Expense | C29: 8990 | D29: Emrick MER | E29: 4200
A30: 25 | B30: =IF(C30<1," ",VLOOKUP(C30,MainAccountNO:MainAccounts,2,FALSE)) -> Operations Assessment | C30: 4100 | D30: Emrick Assessment | E30: =-E27*0.1 -> -2500
A31: 26 | B31: =IF(C31<1," ",VLOOKUP(C31,MainAccountNO:MainAccounts,2,FALSE)) -> Cash Gifts - Staff Support | C31: 5001 | D31: Hess Support | E31: 24000
A32: 27 | B32: =IF(C32<1," ",VLOOKUP(C32,MainAccountNO:MainAccounts,2,FALSE)) -> Missionary Salaries | C32: 7005 | D32: Hess Salary | E32: =+E31-E33+E34 -> 14160
A33: 28 | B33: =IF(C33<1," ",VLOOKUP(C33,MainAccountNO:MainAccounts,2,FALSE)) -> Ministry Expense | C33: 8990 | D33: Hess MER | E33: 7440
A34: 29 | B34: =IF(C34<1," ",VLOOKUP(C34,MainAccountNO:MainAccounts,2,FALSE)) -> Operations Assessment | C34: 4100 | D34: Hess Assessment | E34: =-E31*0.1 -> -2400
A35: 30 | B35: =IF(C35<1," ",VLOOKUP(C35,MainAccountNO:MainAccounts,2,FALSE)) -> Cash Gifts - Staff Support | C35: 5001 | D35: Orner Support | E35: 60000
A36: 31 | B36: =IF(C36<1," ",VLOOKUP(C36,MainAccountNO:MainAccounts,2,FALSE)) -> Missionary Salaries | C36: 7005 | D36: Orner Salary | E36: =+E35-E37+E38 -> 48000
A37: 32 | B37: =IF(C37<1," ",VLOOKUP(C37,MainAccountNO:MainAccounts,2,FALSE)) -> Ministry Expense | C37: 8990 | D37: Orner MER | E37: 6000
A38: 33 | B38: =IF(C38<1," ",VLOOKUP(C38,MainAccountNO:MainAccounts,2,FALSE)) -> Operations Assessment | C38: 4100 | D38: Orner Assessment | E38: =-E35*0.1 -> -6000
A39: 34
A40: 35 | D40: Pink fields will be completed by Mike

Sheet S8
B1: RU EnGage! | C1: 42601 | D1: =Main_BGT!F5 -> 2021-2022 | G1: 10
D2: Total Income | E2: =SUM(IF(S_8FieldRank<=S_8Choice,IF(S_8AccNO<=LastIncome,S_8Amount,0),0)) -> 23800
D3: Total Expense | E3: =SUM(IF(S_8FieldRank<=S_8Choice,IF(S_8AccNO>LastIncome,S_8Amount,0),0)) -> 19500
D4: Difference | E4: =E2-E3 -> 4300
A5: 1 | B5: Account Description | C5: Acc_NO | D5: Field Detail | E5: Amount | F5: Month | G5: Rank | H5: Out
A6: =+A5+1 -> 2 | B6: =IF(C6<1," ",VLOOKUP(C6,MainAccountNO:MainAccounts,2,FALSE)) -> Beginning Fund Balances | C6: 3100 | D6: RU EnGage! Schol fund 3/31/21 (currently$8,122) | E6: 8200
A7: =A6+1 -> 3
A8: =A7+1 -> 4 | B8: =IF(C8<1," ",VLOOKUP(C8,MainAccountNO:MainAccounts,2,FALSE)) ->  | D8: EnGage! Krasnoyarsk | H8: =IF(G8<=$G$1,"","OUT") -> 
A9: 5 | B9: =IF(C9<1," ",VLOOKUP(C9,MainAccountNO:MainAccounts,2,FALSE)) -> Program Fees | C9: 6200 | D9: Participant Fees | E9: =SUM(E10:E19) -> 17550
A10: 6 | B10: =IF(C10<1," ",VLOOKUP(C10,MainAccountNO:MainAccounts,2,FALSE)) -> Operations Assessment | C10: 4100 | D10: Assessment | E10: =-SUM(E11:E19)*0.1 -> -1950
A11: 7 | B11: =IF(C11<1," ",VLOOKUP(C11,MainAccountNO:MainAccounts,2,FALSE)) -> Printing and Supplies | C11: 8107 | D11: Prefield Materials $50 x 6 | E11: 300
A12: 8 | B12: =IF(C12<1," ",VLOOKUP(C12,MainAccountNO:MainAccounts,2,FALSE)) -> Professional Fees | C12: 8008 | D12: Visa Processing $500 x 6 | E12: 3000
A13: 9 | B13: =IF(C13<1," ",VLOOKUP(C13,MainAccountNO:MainAccounts,2,FALSE)) -> Commercial Travel | C13: 8710 | D13: US - Krasnoyarsk roundtrip airfare $1600 x 6 | E13: =1600*6 -> 9600
A14: 10 | B14: =IF(C14<1," ",VLOOKUP(C14,MainAccountNO:MainAccounts,2,FALSE)) -> Rent Expense | C14: 8402 | D14: Lodging $375 x 6 | E14: =375*6 -> 2250
A15: 11 | B15: =IF(C15<1," ",VLOOKUP(C15,MainAccountNO:MainAccounts,2,FALSE)) -> Food for Meetings | C15: 8803 | D15: Food $350 x 6 | E15: =350*6 -> 2100
A16: 12 | B16: =IF(C16<1," ",VLOOKUP(C16,MainAccountNO:MainAccounts,2,FALSE)) -> Commercial Travel | C16: 8710 | D16: Misc. Travel (bus, taxi) $50 x 6 | E16: 300
A17: 13 | B17: =IF(C17<1," ",VLOOKUP(C17,MainAccountNO:MainAccounts,2,FALSE)) -> Commercial Travel | C17: 8710 | D17: Trip to Unreached People Group $100 x 6 | E17: 600
A18: 14 | B18: =IF(C18<1," ",VLOOKUP(C18,MainAccountNO:MainAccounts,2,FALSE)) -> General Ministry Supply | C18: 8108 | D18: Russian Language Study $125 x 6 | E18: =125*6 -> 750
A19: 15 | B19: =IF(C19<1," ",VLOOKUP(C19,MainAccountNO:MainAccounts,2,FALSE)) -> General Ministry Supply | C19: 8108 | D19: Ministry Event Expenses $100 x 6 | E19: 600
A20: 16
A21: 17 | B21: =IF(C21<1," ",VLOOKUP(C21,MainAccountNO:MainAccounts,2,FALSE)) -> Commercial Travel | C21: 8710
A22: 18 | B22: =IF(C22<1," ",VLOOKUP(C22,MainAccountNO:MainAccounts,2,FALSE)) -> Commercial Travel | C22: 8710
A23: =A19+1 -> 16 | B23: =IF(C23<1," ",VLOOKUP(C23,MainAccountNO:MainAccounts,2,FALSE)) -> 
A24: 17 | B24: =IF(C24<1," ",VLOOKUP(C24,MainAccountNO:MainAccounts,2,FALSE)) ->  | D24: Travel for Trip Supervisor
A25: 18 | B25: =IF(C25<1," ",VLOOKUP(C25,MainAccountNO:MainAccounts,2,FALSE)) -> Commercial Travel | C25: 8710 | D25: To/From UPG
A26: 19 | B26: =IF(C26<1," ",VLOOKUP(C26,MainAccountNO:MainAccounts,2,FALSE)) ->  | D26: Pink fields will be completed by Mike

Sheet S11
B1: Counseling Center & Professional Educaction | C1: 40941 | D1: =Main_BGT!F5 -> 2021-2022 | G1: 10
D2: Total Income | E2: =SUM(IF(S_11FieldRank<=S_11Choice,IF(S_11AccNO<=LastIncome,S_11Amount,0),0)) -> 11000
D3: Total Expense | E3: =SUM(IF(S_11FieldRank<=S_11Choice,IF(S_11AccNO>LastIncome,S_11Amount,0),0)) -> 10200
D4: Difference | E4: =E2-E3 -> 800
B5: Account Description | C5: Acc_NO | D5: Field Detail | E5: Amount | F5: Month | G5: Rank | H5: Out
A6: 1 | B6: =IF(C6<1," ",VLOOKUP(C6,MainAccountNO:MainAccounts,2,FALSE)) ->  | H6: =IF(G6<=$G$1,"","OUT") -> 
A7: =A6+1 -> 2 | B7: =IF(C7<1," ",VLOOKUP(C7,MainAccountNO:MainAccounts,2,FALSE)) -> Beginning Fund Balances | C7: 3100 | D7: Beginning balance per Board | E7: 11000 | H7: =IF(G7<=$G$1,"","OUT") -> 
A8: =A7+1 -> 3
A9: =A8+1 -> 4 | B9: =IF(C9<1," ",VLOOKUP(C9,MainAccountNO:MainAccounts,2,FALSE)) ->  | D9: Counseling Center
A10: 5 | B10: =IF(C10<1," ",VLOOKUP(C10,MainAccountNO:MainAccounts,2,FALSE)) -> Office Supply | C10: 8106 | D10: Office Furniture, chairs & Supplies | E10: 1000
A11: 6 | B11: =IF(C11<1," ",VLOOKUP(C11,MainAccountNO:MainAccounts,2,FALSE)) -> Staff Training | C11: 8003 | D11: ACBC Certification - Support for 2 staff | E11: 2600
A12: 7 | B12: =IF(C12<1," ",VLOOKUP(C12,MainAccountNO:MainAccounts,2,FALSE)) -> Liability Insurance | C12: 8009 | D12: Liability Insurance | E12: 2000
A13: 8 | B13: =IF(C13<1," ",VLOOKUP(C13,MainAccountNO:MainAccounts,2,FALSE)) -> Staff Training | C13: 8003 | D13: 12 Stones Counseling & Facilitiation | E13: 2000
A14: 9 | B14: =IF(C14<1," ",VLOOKUP(C14,MainAccountNO:MainAccounts,2,FALSE)) -> Organization Dues & Fees | C14: 8902 | D14: State Fees - Business etc. | E14: 500
A15: 10 | B15: =IF(C15<1," ",VLOOKUP(C15,MainAccountNO:MainAccounts,2,FALSE)) -> General Ministry Supply | C15: 8108 | D15: Library -Lending | E15: 500
A16: =A15+1 -> 11 | B16: =IF(C16<1," ",VLOOKUP(C16,MainAccountNO:MainAccounts,2,FALSE)) -> General Ministry Supply | C16: 8108 | D16: Materials for free distribution | E16: 500
A17: 12 | B17: =IF(C17<1," ",VLOOKUP(C17,MainAccountNO:MainAccounts,2,FALSE)) -> 
A18: 13 | B18: =IF(C18<1," ",VLOOKUP(C18,MainAccountNO:MainAccounts,2,FALSE)) ->  | D18: Professonal Educators
A19: 14 | B19: =IF(C19<1," ",VLOOKUP(C19,MainAccountNO:MainAccounts,2,FALSE)) -> Professional Fees | C19: 8008 | D19: Start up Funding for ACE-PLC | E19: 300
A20: 15 | B20: =IF(C20<1," ",VLOOKUP(C20,MainAccountNO:MainAccounts,2,FALSE)) -> Seminars & Registrations | C20: 8806 | D20: Conference Funding | E20: 800
A21: 16 | B21: =IF(C21<1," ",VLOOKUP(C21,MainAccountNO:MainAccounts,2,FALSE)) -> 
A22: 17 | B22: =IF(C22<1," ",VLOOKUP(C22,MainAccountNO:MainAccounts,2,FALSE)) -> 
A23: 18 | B23: =IF(C23<1," ",VLOOKUP(C23,MainAccountNO:MainAccounts,2,FALSE)) -> 
A24: 19 | B24: =IF(C24<1," ",VLOOKUP(C24,MainAccountNO:MainAccounts,2,FALSE)) -> 
A25: 20 | B25: =IF(C25<1," ",VLOOKUP(C25,MainAccountNO:MainAccounts,2,FALSE)) -> 
A26: 21 | B26: =IF(C26<1," ",VLOOKUP(C26,MainAccountNO:MainAccounts,2,FALSE)) -> 
A27: 22 | B27: =IF(C27<1," ",VLOOKUP(C27,MainAccountNO:MainAccounts,2,FALSE)) -> 
A28: 23 | B28: =IF(C28<1," ",VLOOKUP(C28,MainAccountNO:MainAccounts,2,FALSE)) -> 
A29: 24 | B29: =IF(C29<1," ",VLOOKUP(C29,MainAccountNO:MainAccounts,2,FALSE)) -> 
A30: 25 | B30: =IF(C30<1," ",VLOOKUP(C30,MainAccountNO:MainAccounts,2,FALSE)) -> 
A31: 26 | B31: =IF(C31<1," ",VLOOKUP(C31,MainAccountNO:MainAccounts,2,FALSE)) -> 
A32: 27 | B32: =IF(C32<1," ",VLOOKUP(C32,MainAccountNO:MainAccounts,2,FALSE)) -> 
A33: 28 | B33: =IF(C33<1," ",VLOOKUP(C33,MainAccountNO:MainAccounts,2,FALSE)) -> 
A34: 29 | B34: =IF(C34<1," ",VLOOKUP(C34,MainAccountNO:MainAccounts,2,FALSE)) -> 
A35: 30 | B35: =IF(C35<1," ",VLOOKUP(C35,MainAccountNO:MainAccounts,2,FALSE)) -> 
A36: 31 | B36: =IF(C36<1," ",VLOOKUP(C36,MainAccountNO:MainAccounts,2,FALSE)) -> 

Sheet S3
B1: AK LEaD | C1: 40900 | D1: Choose Rank Number ------------> | G1: 10
D2: Total Income | E2: =SUM(IF(S_3FieldRank<=S_3Choice,IF(S_3AccNO<=LastIncome,S_3Amount,0),0)) -> 69960
D3: Total Expense | E3: =SUM(IF(S_3FieldRank<=S_3Choice,IF(S_3AccNO>LastIncome,S_3Amount,0),0)) -> 37894
D4: Difference | E4: =E2-E3 -> 32066
B5: Account Description | C5: Acc_NO | D5: Field Detail | E5: Amount | F5: Month | G5: Rank | H5: Out
A6: 1 | H6: =IF(G6<=$G$1,"","OUT") -> 
A7: =A6+1 -> 2 | B7: =IF(C7<1," ",VLOOKUP(C7,MainAccountNO:MainAccounts,2,FALSE)) -> Beginning Fund Balances | C7: 3100 | D7: LEaD March 31, 2021 balance Current ($17,993 ) | E7: 18000 | H7: =IF(G7<=$G$1,"","OUT") -> 
A8: =A7+1 -> 3 | B8: =IF(C8<1," ",VLOOKUP(C8,MainAccountNO:MainAccounts,2,FALSE)) -> Beginning Fund Balances | C8: 3100 | D8: LEaD Tuition March 31, 2021 balance Current ($13,002 ) | E8: 12000 | H8: =IF(G8<=$G$1,"","OUT") -> 
A9: =A8+1 -> 4 | B9: =IF(C9<1," ",VLOOKUP(C9,MainAccountNO:MainAccounts,2,FALSE)) -> Program Fees | C9: 6200 | D9: LEaD Residential Tuition - est 6 Participants ($5,500 each) | E9: 33000
A10: =A9+1 -> 5 | B10: =IF(C10<1," ",VLOOKUP(C10,MainAccountNO:MainAccounts,2,FALSE)) -> Cash Gifts - Programs | C10: 5004 | D10: Program Donations | E10: 2400
A11: 6 | B11: =IF(C11<1," ",VLOOKUP(C11,MainAccountNO:MainAccounts,2,FALSE)) -> Operations Assessment | C11: 4100 | D11: Program Donations Assessment | E11: =-(E10*0.1) -> -240
A13: =A10+1 -> 6 | B13: =IF(C13<1," ",VLOOKUP(C13,MainAccountNO:MainAccounts,2,FALSE)) -> Program Fees | C13: 6200 | D13: Tuition/Scholarship donations | E13: 4800
A14: 7 | B14: =IF(C14<1," ",VLOOKUP(C14,MainAccountNO:MainAccounts,2,FALSE)) -> 
A15: 8 | B15: =IF(C15<1," ",VLOOKUP(C15,MainAccountNO:MainAccounts,2,FALSE)) ->  | D15: RESIDENTIAL ROOM/BOARD (Susitna, 2 houses, 6 students)
A16: 9 | B16: =IF(C16<1," ",VLOOKUP(C16,MainAccountNO:MainAccounts,2,FALSE)) -> Utilities | C16: 8405 | D16: Oct - 1st week of May utilities and fees (Wifi -$10, Garbage-$10) | E16: 3500 | G16: 1
A17: 10 | B17: =IF(C17<1," ",VLOOKUP(C17,MainAccountNO:MainAccounts,2,FALSE)) -> Rent Expense | C17: 8402 | D17: Susitna $137.50, 2 houses $550 each (October-1st week of May) | E17: 8044 | G17: 1
A18: 11 | B18: =IF(C18<1," ",VLOOKUP(C18,MainAccountNO:MainAccounts,2,FALSE)) -> 
A19: 12 | B19: =IF(C19<1," ",VLOOKUP(C19,MainAccountNO:MainAccounts,2,FALSE)) -> 
A20: 13 | B20: =IF(C20<1," ",VLOOKUP(C20,MainAccountNO:MainAccounts,2,FALSE)) ->  | D20: PROGRAM TRAVEL
A21: 14 | B21: =IF(C21<1," ",VLOOKUP(C21,MainAccountNO:MainAccounts,2,FALSE)) -> Vehicle Fuel & Oil | C21: 8702 | D21: Program Travel - fuel | E21: 5000 | G21: 1
A22: 15 | B22: =IF(C22<1," ",VLOOKUP(C22,MainAccountNO:MainAccounts,2,FALSE)) -> Auto Mileage Reimb | C22: 8707 | D22: Additional Transportation cost for supplies- Staff travel | E22: 800 | G22: 1
A23: 16 | B23: =IF(C23<1," ",VLOOKUP(C23,MainAccountNO:MainAccounts,2,FALSE)) -> Commercial Travel | C23: 8710 | D23: Area Bible School Housing- Staff, students, @ 4 schools | E23: 3000
A25: =A23+1 -> 17 | B25: =IF(C25<1," ",VLOOKUP(C25,MainAccountNO:MainAccounts,2,FALSE)) ->  | D25: RESIDENTIAL PROGRAM EXPENSES
A26: 18 | B26: =IF(C26<1," ",VLOOKUP(C26,MainAccountNO:MainAccounts,2,FALSE)) -> Professional Fees | C26: 8008 | D26: Professional Counselor | E26: 500 | G26: 1
A27: 19 | B27: =IF(C27<1," ",VLOOKUP(C27,MainAccountNO:MainAccounts,2,FALSE)) -> General Ministry Supply | C27: 8108 | D27: Modular fees (ABC, HGTW, AFJ, includes limited meals) | E27: 300 | G27: 1
A28: 20 | B28: =IF(C28<1," ",VLOOKUP(C28,MainAccountNO:MainAccounts,2,FALSE)) -> General Ministry Supply | C28: 8108 | D28: Leadership and Precept Bibles | E28: 600 | G28: 1
A29: 21 | B29: =IF(C29<1," ",VLOOKUP(C29,MainAccountNO:MainAccounts,2,FALSE)) -> General Ministry Supply | C29: 8108 | D29: Specific Materials - LIFO, Precept, Genesis Process | E29: 4500 | G29: 1
A30: 22 | B30: =IF(C30<1," ",VLOOKUP(C30,MainAccountNO:MainAccounts,2,FALSE)) -> General Ministry Supply | C30: 8108 | D30: Miscellaneous materials, books, supplies, including area Bible Schools | E30: 5000 | G30: 1
A31: 23 | B31: =IF(C31<1," ",VLOOKUP(C31,MainAccountNO:MainAccounts,2,FALSE)) -> General Ministry Supply | C31: 8108 | D31: Materials and supplies for vocational and life skills | E31: 1500 | G31: 1
A32: 24 | B32: =IF(C32<1," ",VLOOKUP(C32,MainAccountNO:MainAccounts,2,FALSE)) -> Meals & Entertainment | C32: 8709 | D32: Monthly recreational activities | E32: 2000 | G32: 1
A33: 25 | B33: =IF(C33<1," ",VLOOKUP(C33,MainAccountNO:MainAccounts,2,FALSE)) -> Meals & Entertainment | C33: 8709 | D33: Program celebrations - opening, closing | E33: 1500 | G33: 1
A34: 26 | B34: =IF(C34<1," ",VLOOKUP(C34,MainAccountNO:MainAccounts,2,FALSE)) -> 
A35: 27 | D35: PROMOTION
A36: 28 | B36: =IF(C36<1," ",VLOOKUP(C36,MainAccountNO:MainAccounts,2,FALSE)) -> Advertising | C36: 8608 | D36: Program Promotional and PR Materials | E36: 1000 | G36: 1
A37: 29 | B37: =IF(C37<1," ",VLOOKUP(C37,MainAccountNO:MainAccounts,2,FALSE)) -> Postage & Shipping | C37: 8301 | D37: Tri-annual mailings, promotions, support | E37: 500 | G37: 1
A38: 30
A39: 31 | B39: =IF(C39<1," ",VLOOKUP(C39,MainAccountNO:MainAccounts,2,FALSE)) ->  | D39: GOVERNANCE COUNCIL
A40: 32 | B40: =IF(C40<1," ",VLOOKUP(C40,MainAccountNO:MainAccounts,2,FALSE)) -> Food for Meetings | C40: 8803 | D40: Council Meetings - quarterly | E40: 100 | G40: 1
A41: 33 | B41: =IF(C41<1," ",VLOOKUP(C41,MainAccountNO:MainAccounts,2,FALSE)) -> General Ministry Supply | C41: 8108 | D41: Materials | E41: 50 | G41: 1
A42: 34
A43: 35 | B43: =IF(C43<1," ",VLOOKUP(C43,MainAccountNO:MainAccounts,2,FALSE)) ->  | D43: Pink fields will be completed by Mike
A44: 36 | B44: =IF(C44<1," ",VLOOKUP(C44,MainAccountNO:MainAccounts,2,FALSE)) -> 
A45: 37 | B45: =IF(C45<1," ",VLOOKUP(C45,MainAccountNO:MainAccounts,2,FALSE)) -> 

Sheet S4
B1: AK EnGage! | C1: 40968 | D1: Choose Rank Number ------------> | G1: 10
D2: Total Income | E2: =SUM(IF(S_4FieldRank<=S_4Choice,IF(S_4AccNO<=LastIncome,S_4Amount,0),0)) -> 9400
D3: Total Expense | E3: =SUM(IF(S_4FieldRank<=S_4Choice,IF(S_4AccNO>LastIncome,S_4Amount,0),0)) -> 6585
D4: Difference | E4: =E2-E3 -> 2815
B5: Account Description | C5: Acc_NO | D5: Field Detail | E5: Amount | F5: Month | G5: Rank | H5: Out
A6: 1 | B6: =IF(C6<1," ",VLOOKUP(C6,MainAccountNO:MainAccounts,2,FALSE)) ->  | H6: =IF(G6<=$G$1,"","OUT") -> 
A7: =A6+1 -> 2 | B7: =IF(C7<1," ",VLOOKUP(C7,MainAccountNO:MainAccounts,2,FALSE)) -> Beginning Fund Balances | C7: 3100 | D7: March 31, 2021 Balance EnGage! AK (currently $5,115) | E7: 4000 | H7: =IF(G7<=$G$1,"","OUT") -> 
A8: =A7+1 -> 3 | B8: =IF(C8<1," ",VLOOKUP(C8,MainAccountNO:MainAccounts,2,FALSE)) -> Program Fees | C8: 6200 | D8: Summer EnGage! Fees (4@1500) | E8: 6000
A9: 4 | B9: =IF(C9<1," ",VLOOKUP(C9,MainAccountNO:MainAccounts,2,FALSE)) -> Operations Assessment | C9: 4100 | D9: Summer EnGage! Assessment @ 10% | E9: =-E8*0.1 -> -600
A10: 5 | B10: =IF(C10<1," ",VLOOKUP(C10,MainAccountNO:MainAccounts,2,FALSE)) -> 
A11: 6 | B11: =IF(C11<1," ",VLOOKUP(C11,MainAccountNO:MainAccounts,2,FALSE)) -> General Ministry Supply | C11: 8108 | D11: Training Supplies (4x30 ea - including flash drive for digital info) | E11: 400 | G11: 1
A12: 7 | B12: =IF(C12<1," ",VLOOKUP(C12,MainAccountNO:MainAccounts,2,FALSE)) -> Commercial Travel | C12: 8710 | D12: Summer EnGage! Participant on-field Travel | E12: 1750 | G12: 1
A13: 8 | B13: =IF(C13<1," ",VLOOKUP(C13,MainAccountNO:MainAccounts,2,FALSE)) -> Food for Meetings | C13: 8803 | D13: Summer EnGage! Food | E13: 2500 | G13: 1
A14: 9 | B14: =IF(C14<1," ",VLOOKUP(C14,MainAccountNO:MainAccounts,2,FALSE)) -> Rent Expense | C14: 8402 | D14: Summer EnGage! Facility Rent & Housing | E14: 1000 | G14: 1
A15: 10 | B15: =IF(C15<1," ",VLOOKUP(C15,MainAccountNO:MainAccounts,2,FALSE)) -> Commercial Travel | C15: 8710 | D15: EnGage! Supervisory Travel | E15: 650 | G15: 1
A16: 11 | B16: =IF(C16<1," ",VLOOKUP(C16,MainAccountNO:MainAccounts,2,FALSE)) -> Medical Insurance | C16: 7103 | D16: Participant insurance (if needed)
A17: 12 | B17: =IF(C17<1," ",VLOOKUP(C17,MainAccountNO:MainAccounts,2,FALSE)) -> Professional Fees | C17: 8008 | D17: Participant background checks | E17: 40 | G17: 1
A18: 13 | B18: =IF(C18<1," ",VLOOKUP(C18,MainAccountNO:MainAccounts,2,FALSE)) -> Rent Expense | C18: 8402 | D18: Transfer to Hospitality for 4 participants $35/night for 7 nights | E18: 245 | G18: 1
A19: 14 | B19: =IF(C19<1," ",VLOOKUP(C19,MainAccountNO:MainAccounts,2,FALSE)) -> 
A20: =A19+1 -> 15 | B20: =IF(C20<1," ",VLOOKUP(C20,MainAccountNO:MainAccounts,2,FALSE)) ->  | D20: Pink fields will be completed by Mike
A21: 16 | B21: =IF(C21<1," ",VLOOKUP(C21,MainAccountNO:MainAccounts,2,FALSE)) -> 
A22: 17 | B22: =IF(C22<1," ",VLOOKUP(C22,MainAccountNO:MainAccounts,2,FALSE)) -> 
A23: 18 | B23: =IF(C23<1," ",VLOOKUP(C23,MainAccountNO:MainAccounts,2,FALSE)) -> 
A24: 19 | B24: =IF(C24<1," ",VLOOKUP(C24,MainAccountNO:MainAccounts,2,FALSE)) -> 
A25: 20 | B25: =IF(C25<1," ",VLOOKUP(C25,MainAccountNO:MainAccounts,2,FALSE)) -> 
A26: 21 | B26: =IF(C26<1," ",VLOOKUP(C26,MainAccountNO:MainAccounts,2,FALSE)) -> 
A27: 22 | B27: =IF(C27<1," ",VLOOKUP(C27,MainAccountNO:MainAccounts,2,FALSE)) -> 
A28: 23 | B28: =IF(C28<1," ",VLOOKUP(C28,MainAccountNO:MainAccounts,2,FALSE)) -> 
A29: 24 | B29: =IF(C29<1," ",VLOOKUP(C29,MainAccountNO:MainAccounts,2,FALSE)) -> 
A30: 25 | B30: =IF(C30<1," ",VLOOKUP(C30,MainAccountNO:MainAccounts,2,FALSE)) -> 
A31: 26 | B31: =IF(C31<1," ",VLOOKUP(C31,MainAccountNO:MainAccounts,2,FALSE)) -> 
A32: 27 | B32: =IF(C32<1," ",VLOOKUP(C32,MainAccountNO:MainAccounts,2,FALSE)) -> 
A33: 28 | B33: =IF(C33<1," ",VLOOKUP(C33,MainAccountNO:MainAccounts,2,FALSE)) -> 
A34: 29 | B34: =IF(C34<1," ",VLOOKUP(C34,MainAccountNO:MainAccounts,2,FALSE)) -> 
A35: 30 | B35: =IF(C35<1," ",VLOOKUP(C35,MainAccountNO:MainAccounts,2,FALSE)) -> 

Sheet S10
B1: Home Ministry | C1: 10 | D1: Choose Rank Number ----------> | G1: 10
D2: Total Income | E2: =SUM(IF(S_10FieldRank<=S_10Choice,IF(S_10AccNO<=LastIncome,S_10Amount,0),0)) -> 13500
D3: Total Expense | E3: =SUM(IF(S_10FieldRank<=S_10Choice,IF(S_10AccNO>LastIncome,S_10Amount,0),0)) -> 0
D4: Difference | E4: =E2-E3 -> 13500
B5: Account Description | C5: Acc_NO | D5: Field Detail | E5: Amount | F5: Month | G5: Rank | H5: Out
A6: =A5+1 -> 1 | B6: =IF(C6<1," ",VLOOKUP(C6,MainAccountNO:MainAccounts,2,FALSE)) -> Beginning Fund Balances | C6: 3100 | D6: March 31, 2021 Balance (currently $22,563) | H6: =IF(G6<=$G$1,"","OUT") -> 
A7: =A6+1 -> 2 | B7: =IF(C7<1," ",VLOOKUP(C7,MainAccountNO:MainAccounts,2,FALSE)) -> Cash Gifts - Staff Support | C7: 5001 | D7: Sebald Support | E7: 0 | H7: =IF(G7<=$G$1,"","OUT") -> 
A8: 3 | B8: =IF(C8<1," ",VLOOKUP(C8,MainAccountNO:MainAccounts,2,FALSE)) -> Ministry Expense | C8: 8990 | D8: Sebald MER | E8: =E7+E9 -> 0
A9: 4 | B9: =IF(C9<1," ",VLOOKUP(C9,MainAccountNO:MainAccounts,2,FALSE)) -> Operations Assessment | C9: 4100 | D9: Sebald Assessment | E9: =-0.1*E7 -> 0
A10: 5 | B10: =IF(C10<1," ",VLOOKUP(C10,MainAccountNO:MainAccounts,2,FALSE)) -> Cash Gifts - Staff Support | C10: 5001 | D10: Emrick Support | E10: 0
A11: 6 | B11: =IF(C11<1," ",VLOOKUP(C11,MainAccountNO:MainAccounts,2,FALSE)) -> Ministry Expense | C11: 8990 | D11: Emrick MER | E11: =+E10+E12 -> 0
A12: 7 | B12: =IF(C12<1," ",VLOOKUP(C12,MainAccountNO:MainAccounts,2,FALSE)) -> Operations Assessment | C12: 4100 | D12: Emrick Assessment | E12: =-0.1*E10 -> 0
A13: 8 | B13: =IF(C13<1," ",VLOOKUP(C13,MainAccountNO:MainAccounts,2,FALSE)) -> Cash Gifts - Staff Support | C13: 5001 | D13: Peterson, Chad & Andrea Support | E13: 0
A14: 9 | B14: =IF(C14<1," ",VLOOKUP(C14,MainAccountNO:MainAccounts,2,FALSE)) -> Ministry Expense | C14: 8990 | D14: Peterson, Chad & Andrea MER | E14: =+E13+E15 -> 0
A15: 10 | B15: =IF(C15<1," ",VLOOKUP(C15,MainAccountNO:MainAccounts,2,FALSE)) -> Operations Assessment | C15: 4100 | D15: Peterson, Chad & Andrea Assessment | E15: =-0.1*E13 -> 0
A16: 11 | B16: =IF(C16<1," ",VLOOKUP(C16,MainAccountNO:MainAccounts,2,FALSE)) -> Cash Gifts - Staff Support | C16: 5001 | D16: Wortham Support | E16: 15000 | H16: =IF(G16<=$G$1,"","OUT") -> 
A17: 12 | B17: =IF(C17<1," ",VLOOKUP(C17,MainAccountNO:MainAccounts,2,FALSE)) -> Ministry Expense | C17: 8990 | D17: Wortham MER
A18: 13 | B18: =IF(C18<1," ",VLOOKUP(C18,MainAccountNO:MainAccounts,2,FALSE)) -> Operations Assessment | C18: 4100 | D18: Wortham Assessment | E18: =-E16*0.1 -> -1500
A19: 14 | B19: =IF(C19<1," ",VLOOKUP(C19,MainAccountNO:MainAccounts,2,FALSE)) -> 
A20: 15 | B20: =IF(C20<1," ",VLOOKUP(C20,MainAccountNO:MainAccounts,2,FALSE)) -> 
A21: 16 | B21: =IF(C21<1," ",VLOOKUP(C21,MainAccountNO:MainAccounts,2,FALSE)) -> 
A22: 17 | B22: =IF(C22<1," ",VLOOKUP(C22,MainAccountNO:MainAccounts,2,FALSE)) -> 
A23: 18 | B23: =IF(C23<1," ",VLOOKUP(C23,MainAccountNO:MainAccounts,2,FALSE)) -> 
A24: 19 | B24: =IF(C24<1," ",VLOOKUP(C24,MainAccountNO:MainAccounts,2,FALSE)) -> 
A25: 20 | B25: =IF(C25<1," ",VLOOKUP(C25,MainAccountNO:MainAccounts,2,FALSE)) -> 
A26: 21 | B26: =IF(C26<1," ",VLOOKUP(C26,MainAccountNO:MainAccounts,2,FALSE)) -> 
A27: 22 | B27: =IF(C27<1," ",VLOOKUP(C27,MainAccountNO:MainAccounts,2,FALSE)) -> 
A28: 23 | B28: =IF(C28<1," ",VLOOKUP(C28,MainAccountNO:MainAccounts,2,FALSE)) -> 
A29: 24 | B29: =IF(C29<1," ",VLOOKUP(C29,MainAccountNO:MainAccounts,2,FALSE)) -> 
A30: 25 | B30: =IF(C30<1," ",VLOOKUP(C30,MainAccountNO:MainAccounts,2,FALSE)) -> 
A31: 26 | B31: =IF(C31<1," ",VLOOKUP(C31,MainAccountNO:MainAccounts,2,FALSE)) -> 
A32: 27 | B32: =IF(C32<1," ",VLOOKUP(C32,MainAccountNO:MainAccounts,2,FALSE)) -> 
A33: 28 | B33: =IF(C33<1," ",VLOOKUP(C33,MainAccountNO:MainAccounts,2,FALSE)) -> 

Sheet S13
B1: Other Programs | C1: 13 | D1: =Main_BGT!F5 -> 2021-2022 | G1: 10
D2: Total Income | E2: =SUM(IF(S_13FieldRank<=S_13Choice,IF(S_13AccNO<=LastIncome,S_13Amount,0),0)) -> 802000
D3: Total Expense | E3: =SUM(IF(S_13FieldRank<=S_13Choice,IF(S_13AccNO>LastIncome,S_13Amount,0),0)) -> 802000
D4: Difference | E4: =E2-E3 -> 0
B5: Account Description | C5: Acc_NO | D5: Field Detail | E5: Amount | F5: Month | G5: Rank | H5: Out
A6: 1 | B6: =IF(C6<1," ",VLOOKUP(C6,MainAccountNO:MainAccounts,2,FALSE)) ->  | H6: =IF(G6<=$G$1,"","OUT") -> 
A7: =A6+1 -> 2 | B7: =IF(C7<1," ",VLOOKUP(C7,MainAccountNO:MainAccounts,2,FALSE)) -> Cash Gifts - Staff Support | C7: 5001 | D7: Funds received for InterAct Canada | E7: 760000 | H7: =IF(G7<=$G$1,"","OUT") -> 
A8: =A7+1 -> 3 | B8: =IF(C8<1," ",VLOOKUP(C8,MainAccountNO:MainAccounts,2,FALSE)) -> Grants to Canada Affiliates | C8: 8952 | D8: Funds transferred to InterAct Canada | E8: =+E7 -> 760000
A9: 4 | B9: =IF(C9<1," ",VLOOKUP(C9,MainAccountNO:MainAccounts,2,FALSE)) -> Operations Assessment | C9: 4100 | D9: Canada Assessment Fees | E9: 0
A10: 5 | B10: =IF(C10<1," ",VLOOKUP(C10,MainAccountNO:MainAccounts,2,FALSE)) -> Cash Gifts - Staff Support | C10: 5001 | D10: Brumbelow Support | E10: 34000 | M10: =E10+E13-E11-E12 -> 0
A11: 6 | B11: =IF(C11<1," ",VLOOKUP(C11,MainAccountNO:MainAccounts,2,FALSE)) -> Missionary Salaries | C11: 7005 | D11: Brumbelow Salary | E11: =+E10-E12+E13 -> 28320
A12: 7 | B12: =IF(C12<1," ",VLOOKUP(C12,MainAccountNO:MainAccounts,2,FALSE)) -> Ministry Expense | C12: 8990 | D12: Brumbelow MER | E12: 2280
A13: 8 | B13: =IF(C13<1," ",VLOOKUP(C13,MainAccountNO:MainAccounts,2,FALSE)) -> Operations Assessment | C13: 4100 | D13: Brumbelow Assessment | E13: =-E10*0.1 -> -3400
A14: 9 | B14: =IF(C14<1," ",VLOOKUP(C14,MainAccountNO:MainAccounts,2,FALSE)) -> Cash Gifts - Staff Support | C14: 5001 | D14: Cook Support | E14: 12000
A15: 10 | B15: =IF(C15<1," ",VLOOKUP(C15,MainAccountNO:MainAccounts,2,FALSE)) -> Missionary Salaries | C15: 7005 | D15: Cook Salary | E15: =E14+E16 -> 11400
A16: 11 | B16: =IF(C16<1," ",VLOOKUP(C16,MainAccountNO:MainAccounts,2,FALSE)) -> Operations Assessment | C16: 4100 | D16: Cook Assessment | E16: =-E14*0.05 -> -600
A17: 12 | B17: =IF(C17<1," ",VLOOKUP(C17,MainAccountNO:MainAccounts,2,FALSE)) -> 
A18: 13 | B18: =IF(C18<1," ",VLOOKUP(C18,MainAccountNO:MainAccounts,2,FALSE)) -> 
A19: 14 | B19: =IF(C19<1," ",VLOOKUP(C19,MainAccountNO:MainAccounts,2,FALSE)) -> 
A20: 15 | B20: =IF(C20<1," ",VLOOKUP(C20,MainAccountNO:MainAccounts,2,FALSE)) -> 
A21: 16 | B21: =IF(C21<1," ",VLOOKUP(C21,MainAccountNO:MainAccounts,2,FALSE)) -> 
A22: 17 | B22: =IF(C22<1," ",VLOOKUP(C22,MainAccountNO:MainAccounts,2,FALSE)) -> 
A23: 18 | B23: =IF(C23<1," ",VLOOKUP(C23,MainAccountNO:MainAccounts,2,FALSE)) -> 
A24: 19 | B24: =IF(C24<1," ",VLOOKUP(C24,MainAccountNO:MainAccounts,2,FALSE)) -> 
A25: 20 | B25: =IF(C25<1," ",VLOOKUP(C25,MainAccountNO:MainAccounts,2,FALSE)) -> 
A26: 21 | B26: =IF(C26<1," ",VLOOKUP(C26,MainAccountNO:MainAccounts,2,FALSE)) -> 
A27: 22 | B27: =IF(C27<1," ",VLOOKUP(C27,MainAccountNO:MainAccounts,2,FALSE)) -> 
A28: 23 | B28: =IF(C28<1," ",VLOOKUP(C28,MainAccountNO:MainAccounts,2,FALSE)) -> 
A29: 24 | B29: =IF(C29<1," ",VLOOKUP(C29,MainAccountNO:MainAccounts,2,FALSE)) -> 
A30: 25 | B30: =IF(C30<1," ",VLOOKUP(C30,MainAccountNO:MainAccounts,2,FALSE)) -> 
A31: 26 | B31: =IF(C31<1," ",VLOOKUP(C31,MainAccountNO:MainAccounts,2,FALSE)) -> 
A32: 27 | B32: =IF(C32<1," ",VLOOKUP(C32,MainAccountNO:MainAccounts,2,FALSE)) -> 
A33: 28 | B33: =IF(C33<1," ",VLOOKUP(C33,MainAccountNO:MainAccounts,2,FALSE)) -> 
A34: 29 | B34: =IF(C34<1," ",VLOOKUP(C34,MainAccountNO:MainAccounts,2,FALSE)) -> 
A35: 30 | B35: =IF(C35<1," ",VLOOKUP(C35,MainAccountNO:MainAccounts,2,FALSE)) -> 
A36: 31 | B36: =IF(C36<1," ",VLOOKUP(C36,MainAccountNO:MainAccounts,2,FALSE)) -> 
A37: 32 | B37: =IF(C37<1," ",VLOOKUP(C37,MainAccountNO:MainAccounts,2,FALSE)) -> 
A38: 33 | B38: =IF(C38<1," ",VLOOKUP(C38,MainAccountNO:MainAccounts,2,FALSE)) -> 
A39: 34 | B39: =IF(C39<1," ",VLOOKUP(C39,MainAccountNO:MainAccounts,2,FALSE)) -> 
A40: 35 | B40: =IF(C40<1," ",VLOOKUP(C40,MainAccountNO:MainAccounts,2,FALSE)) -> 
A41: 36 | B41: =IF(C41<1," ",VLOOKUP(C41,MainAccountNO:MainAccounts,2,FALSE)) -> 

Sheet S15
B1: Alaska Properties | C1: 40954 | D1: =Main_BGT!F5 -> 2021-2022 | G1: 10
D2: Total Income | E2: =SUM(IF(S_15FieldRank<=S_15Choice,IF(S_15AccNO<=LastIncome,S_15Amount,0),0)) -> 205865
D3: Total Expense | E3: =SUM(IF(S_15FieldRank<=S_15Choice,IF(S_15AccNO>LastIncome,S_15Amount,0),0)) -> 227119
D4: Difference | E4: =E2-E3 -> -21254
B5: Account Description | C5: Acc_NO | D5: Field Detail | E5: Amount | F5: Month | G5: Rank | H5: Out
A6: 1 | B6: =IF(C6<1," ",VLOOKUP(C6,MainAccountNO:MainAccounts,2,FALSE)) ->  | H6: =IF(G6<=$G$1,"","OUT") -> 
A7: =A6+1 -> 2 | B7: =IF(C7<1," ",VLOOKUP(C7,MainAccountNO:MainAccounts,2,FALSE)) -> Beginning Fund Balances | C7: 3100 | D7: March 31, 2021 Properties Fund Balance ($30,000) | E7: 30000 | H7: =IF(G7<=$G$1,"","OUT") -> 
A8: 3 | B8: =IF(C8<1," ",VLOOKUP(C8,MainAccountNO:MainAccounts,2,FALSE)) -> Rental Income | C8: 6210 | D8: Missionary Rent (#4 Curtis, Dalton (Grayling), ANC Duplex DeVries) | E8: 18750 | H8: =IF(G8<=$G$1,"","OUT") -> 
A9: 4 | B9: =IF(C9<1," ",VLOOKUP(C9,MainAccountNO:MainAccounts,2,FALSE)) -> Rental Income | C9: 6210 | D9: Rental income (#2A,2B,5,6,7,8,Bigelow,Joyce) | E9: 105000 | H9: =IF(G9<=$G$1,"","OUT") -> 
A10: 5 | B10: =IF(C10<1," ",VLOOKUP(C10,MainAccountNO:MainAccounts,2,FALSE)) -> Rental Income | C10: 6210 | D10: Rental income - LEaD (Susitna, Pioneer Peak) | E10: 5000
A11: 6 | B11: =IF(C11<1," ",VLOOKUP(C11,MainAccountNO:MainAccounts,2,FALSE)) -> Rental Income | C11: 6210 | D11: Rental income -
A12: 7 | B12: =IF(C12<1," ",VLOOKUP(C12,MainAccountNO:MainAccounts,2,FALSE)) -> Cash Gifts - Programs | C12: 5004 | D12: Appeal - Properties (net)
A13: 8 | B13: =IF(C13<1," ",VLOOKUP(C13,MainAccountNO:MainAccounts,2,FALSE)) -> Cash Gifts - Programs | C13: 5004 | D13: Hospitality gator appeal | E13: 16500
A14: 9 | B14: =IF(C14<1," ",VLOOKUP(C14,MainAccountNO:MainAccounts,2,FALSE)) -> Operations Assessment | C14: 4100 | D14: Hospitality gator appeal Assessment | E14: =-(E13*0.1) -> -1650
A15: 10 | B15: =IF(C15<1," ",VLOOKUP(C15,MainAccountNO:MainAccounts,2,FALSE)) -> Cash Gifts - Programs | C15: 5004 | D15: Building #1 Bathroom Remodel | E15: 3900
A16: 11 | B16: =IF(C16<1," ",VLOOKUP(C16,MainAccountNO:MainAccounts,2,FALSE)) -> Operations Assessment | C16: 4100 | D16: Building #1 Bathroom Remodel Assessment | E16: =-(E15*0.1) -> -390
A17: 12 | B17: =IF(C17<1," ",VLOOKUP(C17,MainAccountNO:MainAccounts,2,FALSE)) -> Cash Gifts - Programs | C17: 5004 | D17: Building #3 Shop Bathroom | E17: 4450
A18: 13 | B18: =IF(C18<1," ",VLOOKUP(C18,MainAccountNO:MainAccounts,2,FALSE)) -> Operations Assessment | C18: 4100 | D18: Building #3 Shop Bathroom Assessment | E18: =-(E17*0.1) -> -445
A19: 14 | B19: =IF(C19<1," ",VLOOKUP(C19,MainAccountNO:MainAccounts,2,FALSE)) -> Cash Gifts - Programs | C19: 5004 | D19: Prayer Walk Development | E19: 1100
A20: 15 | B20: =IF(C20<1," ",VLOOKUP(C20,MainAccountNO:MainAccounts,2,FALSE)) -> Operations Assessment | C20: 4100 | D20: Prayer Walk Development Assesment | E20: =-(E19*0.1) -> -110
A21: 16 | B21: =IF(C21<1," ",VLOOKUP(C21,MainAccountNO:MainAccounts,2,FALSE)) -> Cash Gifts - Programs | C21: 5004 | D21: Building #7 Furnace upgrade | E21: 22000
A22: 17 | B22: =IF(C22<1," ",VLOOKUP(C22,MainAccountNO:MainAccounts,2,FALSE)) -> Operations Assessment | C22: 4100 | D22: Building #7 Furnace upgrade Assessment | E22: =-(E21*0.1) -> -2200
A23: =A22+1 -> 18 | B23: =IF(C23<1," ",VLOOKUP(C23,MainAccountNO:MainAccounts,2,FALSE)) -> Cash Gifts - Programs | C23: 5004 | D23: Blue Spruce Development | E23: 4400
A24: 19 | B24: =IF(C24<1," ",VLOOKUP(C24,MainAccountNO:MainAccounts,2,FALSE)) -> Operations Assessment | C24: 4100 | D24: Blue Spruce Development Assesment | E24: =-(E23*0.1) -> -440
A25: 20 | B25: =IF(C25<1," ",VLOOKUP(C25,MainAccountNO:MainAccounts,2,FALSE)) -> Cash Gifts - Programs | C25: 5004
A26: 21 | B26: =IF(C26<1," ",VLOOKUP(C26,MainAccountNO:MainAccounts,2,FALSE)) -> Operations Assessment | C26: 4100 | E26: =-(E25*0.1) -> 0
A27: 22 | B27: =IF(C27<1," ",VLOOKUP(C27,MainAccountNO:MainAccounts,2,FALSE)) ->  | H27: =IF(G27<=$G$1,"","OUT") -> 
A28: 23 | B28: =IF(C28<1," ",VLOOKUP(C28,MainAccountNO:MainAccounts,2,FALSE)) -> Building Maint. | C28: 8413 | D28: Bldg. #1 - Sound barrier for main mtg room | H28: =IF(G28<=$G$1,"","OUT") -> 
A29: 24 | B29: =IF(C29<1," ",VLOOKUP(C29,MainAccountNO:MainAccounts,2,FALSE)) -> Building Maint. | C29: 8413 | D29: Anchorage duplex (complete 2020 repairs | E29: 5500 | G29: 1
A30: 25 | B30: =IF(C30<1," ",VLOOKUP(C30,MainAccountNO:MainAccounts,2,FALSE)) -> Building Maint. | C30: 8413 | D30: Stump House-Roof | E30: 9000 | G30: 1 | H30: =IF(G30<=$G$1,"","OUT") -> 
A31: 26 | B31: =IF(C31<1," ",VLOOKUP(C31,MainAccountNO:MainAccounts,2,FALSE)) -> Building Maint. | C31: 8413 | D31: Building #1 | E31: 3500 | G31: 3
A32: 27 | B32: =IF(C32<1," ",VLOOKUP(C32,MainAccountNO:MainAccounts,2,FALSE)) -> Building Maint. | C32: 8413 | D32: Buildding #2A Natural Gas to stove (reno apartment if vacant
A33: 28 | B33: =IF(C33<1," ",VLOOKUP(C33,MainAccountNO:MainAccounts,2,FALSE)) -> Building Maint. | C33: 8413 | D33: Building #2B | E33: 900 | G33: 2
A34: 29 | B34: =IF(C34<1," ",VLOOKUP(C34,MainAccountNO:MainAccounts,2,FALSE)) -> Building Maint. | C34: 8413 | D34: Building #3 Shop Bathroom | E34: 4000 | G34: 3
A35: 30 | B35: =IF(C35<1," ",VLOOKUP(C35,MainAccountNO:MainAccounts,2,FALSE)) -> Building Maint. | C35: 8413 | D35: Building #6 Bathroom reno | E35: 1000 | G35: 1
A36: 31 | B36: =IF(C36<1," ",VLOOKUP(C36,MainAccountNO:MainAccounts,2,FALSE)) -> Building Maint. | C36: 8413 | D36: Building #7 Furnace upgrade | E36: 20000 | G36: 3
A37: 32 | B37: =IF(C37<1," ",VLOOKUP(C37,MainAccountNO:MainAccounts,2,FALSE)) -> Building Maint. | C37: 8413 | D37: Building #7 Foundation Repair | E37: 3000 | G37: 1
A38: 33 | B38: =IF(C38<1," ",VLOOKUP(C38,MainAccountNO:MainAccounts,2,FALSE)) -> Building Maint. | C38: 8413 | D38: Bldg. #9 Replace Wiondows | E38: 4000 | G38: 1
A39: 34 | B39: =IF(C39<1," ",VLOOKUP(C39,MainAccountNO:MainAccounts,2,FALSE)) -> Building Maint. | C39: 8413 | D39: Building #9 Add Kitchen | E39: 4000 | G39: 2
A40: 35 | B40: =IF(C40<1," ",VLOOKUP(C40,MainAccountNO:MainAccounts,2,FALSE)) -> Building Maint. | C40: 8413 | D40: Building #10 Laundry Room wall | E40: 1500 | G40: 1
A41: 36 | B41: =IF(C41<1," ",VLOOKUP(C41,MainAccountNO:MainAccounts,2,FALSE)) -> Building Maint. | C41: 8413 | D41: Building #10A (VV South) Bathroom reno | E41: 2000 | G41: 1
A42: 37 | B42: =IF(C42<1," ",VLOOKUP(C42,MainAccountNO:MainAccounts,2,FALSE)) -> Building Maint. | C42: 8413 | D42: Building #10B (VV West) Bathroom reno | E42: 2500 | G42: 1
A43: 38 | B43: =IF(C43<1," ",VLOOKUP(C43,MainAccountNO:MainAccounts,2,FALSE)) -> Building Maint. | C43: 8413 | D43: Building #10C (Pioneer Peak) Bathroom reno | E43: 2500 | G43: 2
A44: 39 | B44: =IF(C44<1," ",VLOOKUP(C44,MainAccountNO:MainAccounts,2,FALSE)) -> Building Maint. | C44: 8413 | D44: Building #10B (Susitina) Bathroom reno | E44: 1500 | G44: 2
A45: 40 | B45: =IF(C45<1," ",VLOOKUP(C45,MainAccountNO:MainAccounts,2,FALSE)) -> Building Maint. | C45: 8413 | D45: Prayer Walk Development | E45: 1000 | G45: 3
A46: 41 | B46: =IF(C46<1," ",VLOOKUP(C46,MainAccountNO:MainAccounts,2,FALSE)) -> Building Maint. | C46: 8413 | D46: Blue Spruce Development | E46: 4000 | G46: 3
A47: 42 | B47: =IF(C47<1," ",VLOOKUP(C47,MainAccountNO:MainAccounts,2,FALSE)) -> Building Maint. | C47: 8413 | D47: Campus Security System | E47: 6500 | H47: =IF(G53<=$G$1,"","OUT") -> 
A48: 43 | B48: =IF(C48<1," ",VLOOKUP(C48,MainAccountNO:MainAccounts,2,FALSE)) -> Building Maint. | C48: 8413 | D48: Chignik House Repairs | E48: 5000 | G48: 1 | H48: =IF(G54<=$G$1,"","OUT") -> 
A49: 44 | B49: =IF(C49<1," ",VLOOKUP(C49,MainAccountNO:MainAccounts,2,FALSE)) -> Building Maint. | C49: 8413 | D49: Grayling House Repairs | E49: 10000 | G49: 1
A50: 45 | B50: =IF(C50<1," ",VLOOKUP(C50,MainAccountNO:MainAccounts,2,FALSE)) -> Building Maint. | C50: 8413 | G50: 1
A51: 46 | B51: =IF(C51<1," ",VLOOKUP(C51,MainAccountNO:MainAccounts,2,FALSE)) -> Building Maint. | C51: 8413 | D51: General Building Repair | E51: 10000 | G51: 2
A52: 47 | B52: =IF(C52<1," ",VLOOKUP(C52,MainAccountNO:MainAccounts,2,FALSE)) -> Utilities | C52: 8405 | D52: Storage System for ground water storage | E52: 1500 | G52: 1
A53: =A46+1 -> 42 | B53: =IF(C53<1," ",VLOOKUP(C53,MainAccountNO:MainAccounts,2,FALSE)) -> Building Maint. | C53: 8413 | D53: Building #7 Foundation Repair
A54: =A37+1 -> 33 | B54: =IF(C54<1," ",VLOOKUP(C54,MainAccountNO:MainAccounts,2,FALSE)) -> Bldg. & Equip Insurance | C54: 8403 | D54: Anchorage Comm.Prop.Insurance | E54: 4200
A55: 34 | B55: =IF(C55<1," ",VLOOKUP(C55,MainAccountNO:MainAccounts,2,FALSE)) -> Equipment Maint. | C55: 8502 | D55: Equipment Repair & Parts | E55: 10000 | G55: 1
A56: 35 | B56: =IF(C56<1," ",VLOOKUP(C56,MainAccountNO:MainAccounts,2,FALSE)) -> Grounds Maint. | C56: 8411 | D56: Gravel for Driveway at Lazy Mt repair & upkeep | E56: 13000 | G56: 1
A57: 36 | B57: =IF(C57<1," ",VLOOKUP(C57,MainAccountNO:MainAccounts,2,FALSE)) -> Grounds Maint. | C57: 8411 | D57: Grounds Maint.(Grass/Flowers) | E57: 1200 | G57: 1
A58: 37 | B58: =IF(C58<1," ",VLOOKUP(C58,MainAccountNO:MainAccounts,2,FALSE)) -> Real Estate Tax | C58: 8410 | D58: Property Tax -- Anchorage Homes | E58: 12300
A59: 38 | B59: =IF(C59<1," ",VLOOKUP(C59,MainAccountNO:MainAccounts,2,FALSE)) -> Real Estate Tax | C59: 8410 | D59: Property Tax - Lazy Mountain | E59: 19500
A60: 39 | B60: =IF(C60<1," ",VLOOKUP(C60,MainAccountNO:MainAccounts,2,FALSE)) -> Utilities | C60: 8405 | D60: Dumpster - Weekly use | E60: 4560
A61: 40 | B61: =IF(C61<1," ",VLOOKUP(C61,MainAccountNO:MainAccounts,2,FALSE)) -> Utilities | C61: 8405 | D61: Utilities --Lazy Mt/ANC | E61: 19000
A62: 41 | B62: =IF(C62<1," ",VLOOKUP(C62,MainAccountNO:MainAccounts,2,FALSE)) -> Vehicle Fuel & Oil | C62: 8702 | D62: Van, PU & Equipment Fuel | E62: 3000 | G62: 1 | H62: =IF(G68<=$G$1,"","OUT") -> 
A63: 42 | B63: =IF(C63<1," ",VLOOKUP(C63,MainAccountNO:MainAccounts,2,FALSE)) -> Vehicle Repair/Ins./Lic. | C63: 8703 | D63: Van/PU/Saturn (vehicle Insurance)
A64: 43 | B64: =IF(C64<1," ",VLOOKUP(C64,MainAccountNO:MainAccounts,2,FALSE)) -> Vehicle Repair/Ins./Lic. | C64: 8703 | D64: Vehicle repair & upkeep | E64: 13000 | G64: 1
A65: 44 | B65: =IF(C65<1," ",VLOOKUP(C65,MainAccountNO:MainAccounts,2,FALSE)) -> Professional Fees | C65: 8008 | D65: Water Testing - monthly | E65: 3000
A66: 45 | B66: =IF(C66<1," ",VLOOKUP(C66,MainAccountNO:MainAccounts,2,FALSE)) -> Small Equip. Purchase | C66: 8510 | D66: Equipment purchases - hospitality gator | E66: 15000 | G66: 3 | H66: =IF(G72<=$G$1,"","OUT") -> 
A67: 46 | B67: =IF(C67<1," ",VLOOKUP(C67,MainAccountNO:MainAccounts,2,FALSE)) -> Printing and Supplies | C67: 8107 | D67: Printing | H67: =IF(G73<=$G$1,"","OUT") -> 
A68: 47 | B68: =IF(C68<1," ",VLOOKUP(C68,MainAccountNO:MainAccounts,2,FALSE)) ->  | D68: STAFFING | H68: =IF(G74<=$G$1,"","OUT") -> 
A69: =A68+1 -> 48 | H69: =IF(G75<=$G$1,"","OUT") -> 
A70: 49
A71: 50
A72: 51 | B72: =IF(C72<1," ",VLOOKUP(C72,MainAccountNO:MainAccounts,2,FALSE)) -> 
A73: 52 | B73: =IF(C73<1," ",VLOOKUP(C73,MainAccountNO:MainAccounts,2,FALSE)) -> Other Salaries | C73: 7004 | D73: Lawn Mowing/general campus labor | E73: 6000
A74: 53 | B74: =IF(C74<1," ",VLOOKUP(C74,MainAccountNO:MainAccounts,2,FALSE)) -> Payroll Tax | C74: 7201 | D74: FICA on Lawn Mower | E74: =+E73*0.0765 -> 459
A75: 54 | B75: =IF(C75<1," ",VLOOKUP(C75,MainAccountNO:MainAccounts,2,FALSE)) -> 
D77: Pink fields will be completed by Mike

Sheet S16
B1: Member Care | C1: 41795 | D1: =Main_BGT!F5 -> 2021-2022 | G1: 10
D2: Total Income | E2: =SUM(IF(S_16FieldRank<=S_16Choice,IF(S_16AccNO<=LastIncome,S_16Amount,0),0)) -> 108000
D3: Total Expense | E3: =SUM(IF(S_16FieldRank<=S_16Choice,IF(S_16AccNO>LastIncome,S_16Amount,0),0)) -> 107100
D4: Difference | E4: =E2-E3 -> 900
B5: Account Description | C5: Acc_NO | D5: Field Detail | E5: Amount | F5: Month | G5: Rank | H5: Out
A6: =A5+1 -> 1 | B6: =IF(C6<1," ",VLOOKUP(C6,MainAccountNO:MainAccounts,2,FALSE)) -> Cash Gifts - Programs | C6: 5004 | D6: From Canada | E6: 3500 | H6: =IF(G6<=$G$1,"","OUT") -> 
A7: 2 | B7: =IF(C7<1," ",VLOOKUP(C7,MainAccountNO:MainAccounts,2,FALSE)) -> Commercial Travel | C7: 8710 | D7: Seminars, airfare | E7: 1000 | G7: 2
A8: 3 | B8: =IF(C8<1," ",VLOOKUP(C8,MainAccountNO:MainAccounts,2,FALSE)) -> Commercial Travel | C8: 8710 | D8: Airfare Village (2 people, 2 trips)
A9: 4 | B9: =IF(C9<1," ",VLOOKUP(C9,MainAccountNO:MainAccounts,2,FALSE)) -> Commercial Travel | C9: 8710 | D9: Seminars, airfare
A10: 5 | B10: =IF(C10<1," ",VLOOKUP(C10,MainAccountNO:MainAccounts,2,FALSE)) -> General Ministry Supply | C10: 8108 | D10: Books, resource materials | E10: 400 | G10: 1
A11: 6 | B11: =IF(C11<1," ",VLOOKUP(C11,MainAccountNO:MainAccounts,2,FALSE)) -> General Ministry Supply | C11: 8108 | D11: Flowers, Gifts, Etc. | E11: 400 | G11: 1
A12: 7 | B12: =IF(C12<1," ",VLOOKUP(C12,MainAccountNO:MainAccounts,2,FALSE)) -> General Ministry Supply | C12: 8108 | D12: Gifts to missionaries/MK's at conference | E12: 300 | G12: 2
A13: 8 | B13: =IF(C13<1," ",VLOOKUP(C13,MainAccountNO:MainAccounts,2,FALSE)) -> Auto Mileage Reimb | C13: 8707 | D13: Vehicle gas/mileage to visit staff | E13: 500 | G13: 1
A14: 9
A15: 10 | B15: =IF(C15<1," ",VLOOKUP(C15,MainAccountNO:MainAccounts,2,FALSE)) ->  | D15: STAFFING
A16: =A12+1 -> 8 | B16: =IF(C16<1," ",VLOOKUP(C16,MainAccountNO:MainAccounts,2,FALSE)) -> Cash Gifts - Staff Support | C16: 5001 | D16: Twichell Support | E16: 49000 | H16: =IF(G16<=$G$1,"","OUT") -> 
A17: 9 | B17: =IF(C17<1," ",VLOOKUP(C17,MainAccountNO:MainAccounts,2,FALSE)) -> Missionary Salaries | C17: 7005 | D17: Twichell. Salary | E17: =+E16+E18-E19 -> 38150
A18: 10 | B18: =IF(C18<1," ",VLOOKUP(C18,MainAccountNO:MainAccounts,2,FALSE)) -> Operations Assessment | C18: 4100 | D18: Twichell Assessment | E18: =-E16*0.05 -> -2450
A19: 11 | B19: =IF(C19<1," ",VLOOKUP(C19,MainAccountNO:MainAccounts,2,FALSE)) -> Ministry Expense | C19: 8990 | D19: Twichell MER | E19: 8400
A20: =A15+1 -> 11 | B20: =IF(C20<1," ",VLOOKUP(C20,MainAccountNO:MainAccounts,2,FALSE)) -> Cash Gifts - Staff Support | C20: 5001 | D20: Richardson G. Support | E20: 28000
A21: 12 | B21: =IF(C21<1," ",VLOOKUP(C21,MainAccountNO:MainAccounts,2,FALSE)) -> Missionary Salaries | C21: 7005 | D21: Richardson G. Salary | E21: =+E20+E22 -> 26600
A22: 13 | B22: =IF(C22<1," ",VLOOKUP(C22,MainAccountNO:MainAccounts,2,FALSE)) -> Operations Assessment | C22: 4100 | D22: Richardson G Assessment | E22: =-E20*0.05 -> -1400
A23: 14 | B23: =IF(C23<1," ",VLOOKUP(C23,MainAccountNO:MainAccounts,2,FALSE)) -> Cash Gifts - Staff Support | C23: 5001 | D23: Moffat Support | E23: 15000
A24: 15 | B24: =IF(C24<1," ",VLOOKUP(C24,MainAccountNO:MainAccounts,2,FALSE)) -> Missionary Salaries | C24: 7005 | D24: Moffat Salary | E24: =+E23+E25 -> 14250
A25: 16 | B25: =IF(C25<1," ",VLOOKUP(C25,MainAccountNO:MainAccounts,2,FALSE)) -> Operations Assessment | C25: 4100 | D25: Moffat Assessment | E25: =-E23*0.05 -> -750
A26: 17 | B26: =IF(C26<1," ",VLOOKUP(C26,MainAccountNO:MainAccounts,2,FALSE)) -> Cash Gifts - Staff Support | C26: 5001 | D26: Arnold, R Support | E26: 18000
A27: 18 | B27: =IF(C27<1," ",VLOOKUP(C27,MainAccountNO:MainAccounts,2,FALSE)) -> Missionary Salaries | C27: 7005 | D27: Arnold, R Salary | E27: =+E26+E28 -> 17100
A28: 19 | B28: =IF(C28<1," ",VLOOKUP(C28,MainAccountNO:MainAccounts,2,FALSE)) -> Operations Assessment | C28: 4100 | D28: Arnold, R Assessment | E28: =-E26*0.05 -> -900
A29: 20 | B29: =IF(C29<1," ",VLOOKUP(C29,MainAccountNO:MainAccounts,2,FALSE)) -> 
C32: Pink fields will be completed by Mike

Sheet S17
B1: AK Hospitality | C1: 40930 | D1: =Main_BGT!F5 -> 2021-2022 | G1: 10
D2: Total Income | E2: =SUM(IF(S_17FieldRank<=S_17Choice,IF(S_17AccNO<=LastIncome,S_17Amount,0),0)) -> 30190
D3: Total Expense | E3: =SUM(IF(S_17FieldRank<=S_17Choice,IF(S_17AccNO>LastIncome,S_17Amount,0),0)) -> 15920.75
D4: Difference | E4: =E2-E3 -> 14269.25
B5: Account Description | C5: Acc_NO | D5: Field Detail | E5: Amount | F5: Month | G5: Rank | H5: Out
A7: 1 | B7: =IF(C7<1," ",VLOOKUP(C7,MainAccountNO:MainAccounts,2,FALSE)) ->  | H7: =IF(G7<=$G$1,"","OUT") -> 
A8: =A7+1 -> 2 | B8: =IF(C8<1," ",VLOOKUP(C8,MainAccountNO:MainAccounts,2,FALSE)) -> Program Fees | C8: 6200 | D8: Transfer from EnGage for housing Full Program | E8: 490
A9: =A8+1 -> 3 | B9: =IF(C9<1," ",VLOOKUP(C9,MainAccountNO:MainAccounts,2,FALSE)) -> Cash Gifts - Programs | C9: 5004 | D9: Hospitality Donations from individuals | E9: 15000
A10: =A9+1 -> 4 | B10: =IF(C10<1," ",VLOOKUP(C10,MainAccountNO:MainAccounts,2,FALSE)) -> Program Fees | C10: 6200 | D10: Transfer from EnGage for housing Full Program | E10: 8700
A11: =A10+1 -> 5 | B11: =IF(C11<1," ",VLOOKUP(C11,MainAccountNO:MainAccounts,2,FALSE)) -> Program Fees | C11: 6200 | D11: Group Use Fees | E11: 6000 | H11: =IF(G11<=$G$1,"","OUT") -> 
A12: =A10+1 -> 5 | B12: =IF(C12<1," ",VLOOKUP(C12,MainAccountNO:MainAccounts,2,FALSE)) -> 
A13: =A12+1 -> 6 | B13: =IF(C13<1," ",VLOOKUP(C13,MainAccountNO:MainAccounts,2,FALSE)) -> General Ministry Supply | C13: 8108 | D13: Kitchen Supplies | E13: 1000 | G13: 1
A14: =A13+1 -> 7 | B14: =IF(C14<1," ",VLOOKUP(C14,MainAccountNO:MainAccounts,2,FALSE)) -> General Ministry Supply | C14: 8108 | D14: Linens | E14: 1000 | G14: 1
A15: 8 | B15: =IF(C15<1," ",VLOOKUP(C15,MainAccountNO:MainAccounts,2,FALSE)) -> General Ministry Supply | C15: 8108 | D15: Décor | E15: 500 | G15: 1
A16: 9 | B16: =IF(C16<1," ",VLOOKUP(C16,MainAccountNO:MainAccounts,2,FALSE)) -> General Ministry Supply | C16: 8108 | D16: Paper Supplies | E16: 1000 | G16: 1
A17: 10 | B17: =IF(C17<1," ",VLOOKUP(C17,MainAccountNO:MainAccounts,2,FALSE)) -> General Ministry Supply | C17: 8108 | D17: Small Cleaning Equipment & supplies | E17: 1000 | G17: 1
A18: 11 | B18: =IF(C18<1," ",VLOOKUP(C18,MainAccountNO:MainAccounts,2,FALSE)) -> Small Equip. Purchase | C18: 8510 | D18: Furnishings & Kitchen equipment | E18: 4000 | G18: 1
A19: 12 | B19: =IF(C19<1," ",VLOOKUP(C19,MainAccountNO:MainAccounts,2,FALSE)) -> Food for Meetings | C19: 8803 | D19: Guest Food | E19: 1000 | G19: 1
A20: 13
A21: 14 | B21: =IF(C21<1," ",VLOOKUP(C21,MainAccountNO:MainAccounts,2,FALSE)) -> Other Salaries | C21: 7004 | D21: Housekeeping Salary | E21: 5500 | G21: 1
A22: 15 | B22: =IF(C22<1," ",VLOOKUP(C22,MainAccountNO:MainAccounts,2,FALSE)) -> Payroll Tax | C22: 7201 | D22: Housekeeping FICA | E22: =+E21*0.0765 -> 420.75 | G22: 1
A23: 16 | B23: =IF(C23<1," ",VLOOKUP(C23,MainAccountNO:MainAccounts,2,FALSE)) -> Building Maint. | C23: 8413 | D23: Carpet Cleaning | E23: 500 | G23: 1
A24: 17 | B24: =IF(C24<1," ",VLOOKUP(C24,MainAccountNO:MainAccounts,2,FALSE)) -> 
A25: 18 | B25: =IF(C25<1," ",VLOOKUP(C25,MainAccountNO:MainAccounts,2,FALSE)) -> 
A26: 19 | B26: =IF(C26<1," ",VLOOKUP(C26,MainAccountNO:MainAccounts,2,FALSE)) -> 
A27: 20 | B27: =IF(C27<1," ",VLOOKUP(C27,MainAccountNO:MainAccounts,2,FALSE)) -> 
A28: 21 | B28: =IF(C28<1," ",VLOOKUP(C28,MainAccountNO:MainAccounts,2,FALSE)) -> 
A29: 22 | B29: =IF(C29<1," ",VLOOKUP(C29,MainAccountNO:MainAccounts,2,FALSE)) -> 
A30: 23 | B30: =IF(C30<1," ",VLOOKUP(C30,MainAccountNO:MainAccounts,2,FALSE)) -> 
A31: 24 | B31: =IF(C31<1," ",VLOOKUP(C31,MainAccountNO:MainAccounts,2,FALSE)) -> 
A32: 25 | B32: =IF(C32<1," ",VLOOKUP(C32,MainAccountNO:MainAccounts,2,FALSE)) -> 
A33: 26 | B33: =IF(C33<1," ",VLOOKUP(C33,MainAccountNO:MainAccounts,2,FALSE)) -> 
A34: 27 | B34: =IF(C34<1," ",VLOOKUP(C34,MainAccountNO:MainAccounts,2,FALSE)) -> 
A35: 28 | B35: =IF(C35<1," ",VLOOKUP(C35,MainAccountNO:MainAccounts,2,FALSE)) -> 
A36: 29 | B36: =IF(C36<1," ",VLOOKUP(C36,MainAccountNO:MainAccounts,2,FALSE)) -> 
A37: 30 | B37: =IF(C37<1," ",VLOOKUP(C37,MainAccountNO:MainAccounts,2,FALSE)) -> 

Sheet S18
B1: Admin | C1: 41700 | D1: =Main_BGT!F5 -> 2021-2022 | G1: 10
D2: Total Income | E2: =SUM(IF(S_18FieldRank<=S_18Choice,IF(S_18AccNO<=LastIncome,S_18Amount,0),0)) -> 295398.4
D3: Total Expense | E3: =SUM(IF(S_18FieldRank<=S_18Choice,IF(S_18AccNO>LastIncome,S_18Amount,0),0)) -> 177566.2
D4: Difference | E4: =E2-E3 -> 117832.2
B5: Account Description | C5: Acc_NO | D5: Field Detail | E5: Amount | F5: Month | G5: Rank | H5: Out
A6: =A5+1 -> 1 | B6: =IF(C6<1," ",VLOOKUP(C6,MainAccountNO:MainAccounts,2,FALSE)) ->  | D6: REVENUE | H6: =IF(G6<=$G$1,"","OUT") -> 
A7: =A6+1 -> 2 | B7: =IF(C7<1," ",VLOOKUP(C7,MainAccountNO:MainAccounts,2,FALSE)) -> Beginning Fund Balances | C7: 3100 | D7: Operational Ministries Balance at March 31, 2021 | E7: 74000
A8: 3 | B8: =IF(C8<1," ",VLOOKUP(C8,MainAccountNO:MainAccounts,2,FALSE)) -> Operations Assessment | C8: 4100 | D8: Member & Project Assessments | E8: 95000
A9: 4 | B9: =IF(C9<1," ",VLOOKUP(C9,MainAccountNO:MainAccounts,2,FALSE)) -> Operations Assessment | C9: 4100 | D9: EnGage! Assessments | E9: 600
A10: 5 | B10: =IF(C10<1," ",VLOOKUP(C10,MainAccountNO:MainAccounts,2,FALSE)) -> Operations Assessment | C10: 4100 | D10: Appeal assessments | E10: 0
A11: 6 | B11: =IF(C11<1," ",VLOOKUP(C11,MainAccountNO:MainAccounts,2,FALSE)) -> Operations Assessment | C11: 4100 | D11: Canada Assessments | E11: 0
A12: 7 | B12: =IF(C12<1," ",VLOOKUP(C12,MainAccountNO:MainAccounts,2,FALSE)) -> Interest Income | C12: 6500 | D12: Investment earnings Transfer ($8,333x12) | E12: 100000
A13: 8 | B13: =IF(C13<1," ",VLOOKUP(C13,MainAccountNO:MainAccounts,2,FALSE)) -> Cash Gifts - Programs | C13: 5004 | D13: Operational Ministries white mail
A14: 9 | B14: =IF(C14<1," ",VLOOKUP(C14,MainAccountNO:MainAccounts,2,FALSE)) -> Cash Gifts - Programs | C14: 5004 | D14: STEER donations | E14: 5000
A15: 10 | B15: =IF(C15<1," ",VLOOKUP(C15,MainAccountNO:MainAccounts,2,FALSE)) -> Inter-fund Transfers | C15: 4400 | D15: Net proceeds on letters 2 & 3 | E15: 0
A16: 11 | B16: =IF(C16<1," ",VLOOKUP(C16,MainAccountNO:MainAccounts,2,FALSE)) -> Program Fees | C16: 6200 | D16: Guest House/Apartment use donations | E16: 2000
A17: 12 | B17: =IF(C17<1," ",VLOOKUP(C17,MainAccountNO:MainAccounts,2,FALSE)) -> Rental Income | C17: 6210 | D17: Office Apartment/Apartment use donations | E17: 6000
A18: 13 | B18: =IF(C18<1," ",VLOOKUP(C18,MainAccountNO:MainAccounts,2,FALSE)) -> Inter-fund Transfers | C18: 4400 | D18: From BDF for U.S. Office equipment upgrade
A19: 14 | B19: =IF(C19<1," ",VLOOKUP(C19,MainAccountNO:MainAccounts,2,FALSE)) ->  | D19: EXPENSES
A20: 15 | B20: Executive Salaries | C20: 7001 | D20: Finance Director Salary | E20: 61112.55
A21: 16 | B21: =IF(C21<1," ",VLOOKUP(C21,MainAccountNO:MainAccounts,2,FALSE)) -> Clerical Salaries | C21: 7003 | D21: Donor Relations Salary (52*32*17.25) Diane | E21: =52*32*17.25 -> 28704
A22: 17 | B22: =IF(C22<1," ",VLOOKUP(C22,MainAccountNO:MainAccounts,2,FALSE)) -> Clerical Salaries | C22: 7003 | D22: Admin Assistant Salary (52x12x15) | E22: =52*12*15 -> 9360 | G22: 3
A23: 18 | B23: =IF(C23<1," ",VLOOKUP(C23,MainAccountNO:MainAccounts,2,FALSE)) -> Other Salaries | C23: 7004 | D23: U.S. Office Landscaping: lawn mowing (60x12.75) | E23: 810
A24: 19 | B24: =IF(C24<1," ",VLOOKUP(C24,MainAccountNO:MainAccounts,2,FALSE)) -> Other Salaries | C24: 7004 | D24: U.S. Office housekeeping (50*1.5*12.75) | E24: =50*1.5*12.75 -> 956.25
A25: 20 | B25: =IF(C25<1," ",VLOOKUP(C25,MainAccountNO:MainAccounts,2,FALSE)) -> Payroll Tax | C25: 7201 | D25: FICA on U.S. office staff (Admin) | E25: 6000
A26: 21 | B26: =IF(C26<1," ",VLOOKUP(C26,MainAccountNO:MainAccounts,2,FALSE)) -> Employment Insurance | C26: 7203 | D26: Oregon Workers Comp and WBF | E26: 800
A27: 22 | B27: =IF(C27<1," ",VLOOKUP(C27,MainAccountNO:MainAccounts,2,FALSE)) -> Member Care | C27: 8004 | D27: Random Acts of Kindness, flowers, etc. | E27: 300
A28: 23 | B28: =IF(C28<1," ",VLOOKUP(C28,MainAccountNO:MainAccounts,2,FALSE)) -> Missionary Conference | C28: 8805 | D28: U.S. office staff travel to Canada Field Conference | E28: 600
A29: 24 | B29: =IF(C29<1," ",VLOOKUP(C29,MainAccountNO:MainAccounts,2,FALSE)) -> Missionary Conference | C29: 8805 | D29: Finance Director Travel to Alaska Conference | E29: 300 | H29: =IF(G29<=$G$1,"","OUT") -> 
A30: =A28+1 -> 24 | B30: =IF(C30<1," ",VLOOKUP(C30,MainAccountNO:MainAccounts,2,FALSE)) -> Missionary Conference | C30: 8805 | D30: U.S. Office staff at Canada Field Conference Fee (5@$250) | E30: 300
A31: 25 | B31: =IF(C31<1," ",VLOOKUP(C31,MainAccountNO:MainAccounts,2,FALSE)) -> Organization Dues & Fees | C31: 8902 | D31: Missio Nexus Dues (split w/CAN year) | E31: 300
A32: 26 | B32: =IF(C32<1," ",VLOOKUP(C32,MainAccountNO:MainAccounts,2,FALSE)) -> Professional Fees | C32: 8008 | D32: Annual Financial Audit and 990 Preparation | E32: 10500
A33: 27 | B33: =IF(C33<1," ",VLOOKUP(C33,MainAccountNO:MainAccounts,2,FALSE)) -> Professional Fees | C33: 8008 | D33: Oregon State Registration fee | E33: 50
A34: 28 | B34: =IF(C34<1," ",VLOOKUP(C34,MainAccountNO:MainAccounts,2,FALSE)) -> Liability Insurance | C34: 8009 | D34: Brotherhood Mutual Insurance (HO liability) | E34: 2800
A35: 29 | B35: =IF(C35<1," ",VLOOKUP(C35,MainAccountNO:MainAccounts,2,FALSE)) -> Bldg. & Equip Insurance | C35: 8403 | D35: Brotherhood Mutual Insurance (HO bldg/equip) | E35: 3500
A36: 30 | B36: =IF(C36<1," ",VLOOKUP(C36,MainAccountNO:MainAccounts,2,FALSE)) -> Telephone | C36: 8201 | D36: U.S. Office Local, LD & 800 Phone Service | E36: 4000
A37: 31 | B37: =IF(C37<1," ",VLOOKUP(C37,MainAccountNO:MainAccounts,2,FALSE)) -> Utilities | C37: 8405 | D37: U.S. Office and Guest House Electric | E37: 900
A38: 32 | B38: =IF(C38<1," ",VLOOKUP(C38,MainAccountNO:MainAccounts,2,FALSE)) -> Utilities | C38: 8405 | D38: U.S. Office Heat (Carson Oil) | E38: 2000
A39: 33 | B39: =IF(C39<1," ",VLOOKUP(C39,MainAccountNO:MainAccounts,2,FALSE)) -> Utilities | C39: 8405 | D39: U.S. Office Garbage & Recycle | E39: 500
A40: 34 | B40: =IF(C40<1," ",VLOOKUP(C40,MainAccountNO:MainAccounts,2,FALSE)) -> Real Estate Tax | C40: 8410 | D40: U.S. Office Property Taxes | E40: 3200
A41: 35 | B41: =IF(C41<1," ",VLOOKUP(C41,MainAccountNO:MainAccounts,2,FALSE)) -> Founder Honorarium | C41: 8903 | D41: Founder honorarium for prior years service | E41: =550*12 -> 6600
A42: 36 | B42: =IF(C42<1," ",VLOOKUP(C42,MainAccountNO:MainAccounts,2,FALSE)) -> Miscellaneous | C42: 8941 | D42: Bank Charges, ACH and CC processing fees | E42: 1750
A43: 37 | B43: =IF(C43<1," ",VLOOKUP(C43,MainAccountNO:MainAccounts,2,FALSE)) -> Grounds Maint. | C43: 8411 | D43: U.S. Office Landscaping: Mower gas & tune-up | E43: 650
A44: 38 | B44: =IF(C44<1," ",VLOOKUP(C44,MainAccountNO:MainAccounts,2,FALSE)) -> Grounds Maint. | C44: 8411 | D44: U.S. Office landscaping: general, flowers, weed control | E44: 300
A45: 39 | B45: =IF(C45<1," ",VLOOKUP(C45,MainAccountNO:MainAccounts,2,FALSE)) -> Grounds Maint. | C45: 8411 | D45: U.S. Office Annual Turf Maintenance Contract | E45: 1500
A46: 40 | B46: =IF(C46<1," ",VLOOKUP(C46,MainAccountNO:MainAccounts,2,FALSE)) -> Staff Training | C46: 8003 | D46: Lynda.com training | E46: 300
A47: 41 | B47: =IF(C47<1," ",VLOOKUP(C47,MainAccountNO:MainAccounts,2,FALSE)) -> Office Supply | C47: 8106 | D47: General Office Supplies | E47: 1800
A48: 42 | B48: =IF(C48<1," ",VLOOKUP(C48,MainAccountNO:MainAccounts,2,FALSE)) -> Printing and Supplies | C48: 8107 | D48: Letterhead (15k), Receipt Stock (15k) & Envelopes (70k) | E48: 1500
A49: 43 | B49: =IF(C49<1," ",VLOOKUP(C49,MainAccountNO:MainAccounts,2,FALSE)) -> Office Supply | C49: 8106 | D49: Shred old records at U.S. Office
A50: 44 | B50: =IF(C50<1," ",VLOOKUP(C50,MainAccountNO:MainAccounts,2,FALSE)) -> Equipment Maint. | C50: 8502 | D50: Printer/Copier maint contract (Kelley Imaging) | E50: 1600
A51: 45 | B51: =IF(C51<1," ",VLOOKUP(C51,MainAccountNO:MainAccounts,2,FALSE)) -> Equipment Maint. | C51: 8502 | D51: Postage machine and Meter Rental | E51: 1475
A52: 46 | B52: =IF(C52<1," ",VLOOKUP(C52,MainAccountNO:MainAccounts,2,FALSE)) -> Postage & Shipping | C52: 8301 | D52: Postage - receipts & general mail | E52: 8500
A53: 47 | B53: =IF(C53<1," ",VLOOKUP(C53,MainAccountNO:MainAccounts,2,FALSE)) -> Grounds Maint. | C53: 8411
A54: 48 | B54: =IF(C54<1," ",VLOOKUP(C54,MainAccountNO:MainAccounts,2,FALSE)) -> Building Maint. | C54: 8413 | D54: General Building Maintenance | E54: 500
A55: 49 | B55: =IF(C55<1," ",VLOOKUP(C55,MainAccountNO:MainAccounts,2,FALSE)) -> Building Maint. | C55: 8413 | D55: Pressure wash building/gutter cleaning | E55: 500
A56: 50 | B56: =IF(C56<1," ",VLOOKUP(C56,MainAccountNO:MainAccounts,2,FALSE)) -> Building Maint. | C56: 8413 | D56: Replace failing fence | E56: 800
A57: 51
A58: 52 | B58: =IF(C58<1," ",VLOOKUP(C58,MainAccountNO:MainAccounts,2,FALSE)) ->  | D58: Staffing
A59: 53 | B59: =IF(C59<1," ",VLOOKUP(C59,MainAccountNO:MainAccounts,2,FALSE)) -> Cash Gifts - Staff Support | C59: 5001 | D59: VanDiest Support | E59: 872 | H59: =IF(G59<=$G$1,"","OUT") -> 
A60: 54 | B60: =IF(C60<1," ",VLOOKUP(C60,MainAccountNO:MainAccounts,2,FALSE)) -> Missionary Salaries | C60: 7005 | D60: VanDiest Salary | E60: =+E59+E61 -> 828.4
A61: 55 | B61: =IF(C61<1," ",VLOOKUP(C61,MainAccountNO:MainAccounts,2,FALSE)) -> Operations Assessment | C61: 4100 | D61: VanDiest Assessment | E61: =-E59*0.05 -> -43.6
A62: 56 | B62: =IF(C62<1," ",VLOOKUP(C62,MainAccountNO:MainAccounts,2,FALSE)) -> Cash Gifts - Staff Support | C62: 5001 | D62: Hubbard Support | E62: 13300 | H62: =IF(G62<=$G$1,"","OUT") -> 
A63: 57 | B63: =IF(C63<1," ",VLOOKUP(C63,MainAccountNO:MainAccounts,2,FALSE)) -> Missionary Salaries | C63: 7005 | D63: Hubbard Salary | E63: =+E62+E64 -> 11970
A64: 58 | B64: =IF(C64<1," ",VLOOKUP(C64,MainAccountNO:MainAccounts,2,FALSE)) -> Operations Assessment | C64: 4100 | D64: Hubbard Assesment | E64: =-E62*0.1 -> -1330
A65: =A61+1 -> 56 | B65: =IF(C65<1," ",VLOOKUP(C65,MainAccountNO:MainAccounts,2,FALSE)) -> 
A66: 57 | B66: =IF(C66<1," ",VLOOKUP(C66,MainAccountNO:MainAccounts,2,FALSE)) ->  | D66: Jerry to complete pink shaded items
A67: 58 | B67: =IF(C67<1," ",VLOOKUP(C67,MainAccountNO:MainAccounts,2,FALSE)) ->  | D67: Dale to complete Yellow shaded item | H67: =IF(G67<=$G$1,"","OUT") -> 

Sheet S9
B1: Communications | C1: 41710 | D1: =Main_BGT!F5 -> 2021-2022 | G1: 10
D2: Total Income | E2: =E7+E6 -> 5500
D3: Total Expense | E3: =E48 -> 98496.6405
D4: Difference | E4: =E2-E3 -> -92996.6405
B5: Account Description | C5: Acc_NO | D5: Field Detail | E5: Amount | F5: Month | G5: Rank | H5: Out
A6: 1 | B6: =IF(C6<1," ",VLOOKUP(C6,MainAccountNO:MainAccounts,2,FALSE)) -> Sales | C6: 6400 | D6: Prayer Letters/Cards for staff (w/o postage) | E6: 500 | H6: =IF(G6<=$G$1,"","OUT") -> 
A7: =A6+1 -> 2 | B7: =IF(C7<1," ",VLOOKUP(C7,MainAccountNO:MainAccounts,2,FALSE)) -> Cash Gifts - Programs | C7: 5004 | D7: RU trip fundraiser | E7: 5000
A8: 3 | B8: =IF(C8<1," ",VLOOKUP(C8,MainAccountNO:MainAccounts,2,FALSE)) ->  | D8: PUBLICATIONS
A9: 4 | B9: =IF(C9<1," ",VLOOKUP(C9,MainAccountNO:MainAccounts,2,FALSE)) -> Printing and Supplies | C9: 8107 | D9: InterACTION - Print 2100x11 @$502 | E9: 22000
A10: 5 | B10: =IF(C10<1," ",VLOOKUP(C10,MainAccountNO:MainAccounts,2,FALSE)) -> Professional Fees | C10: 8008 | D10: InterACTION - Honorariums for contributors | E10: 150
A11: 6 | B11: =IF(C11<1," ",VLOOKUP(C11,MainAccountNO:MainAccounts,2,FALSE)) -> Printing and Supplies | C11: 8107 | D11: Annual Report - Print 4500 | E11: 100
A12: 7 | B12: =IF(C12<1," ",VLOOKUP(C12,MainAccountNO:MainAccounts,2,FALSE)) -> Office Supply | C12: 8106 | D12: Annual Report - 3000 6x9 envelopes w/logo | E12: 500
A13: 8 | B13: =IF(C13<1," ",VLOOKUP(C13,MainAccountNO:MainAccounts,2,FALSE)) -> Printing and Supplies | C13: 8107 | D13: General Brochure - Print 2000 @ $1.25 | E13: 3000
A14: 9 | B14: =IF(C14<1," ",VLOOKUP(C14,MainAccountNO:MainAccounts,2,FALSE)) -> Advertising | C14: 8608 | D14: Advertising | E14: 10000
A15: 10 | B15: =IF(C15<1," ",VLOOKUP(C15,MainAccountNO:MainAccounts,2,FALSE)) -> Postage & Shipping | C15: 8301 | D15: Mail InterCessor (TS recommends we stop InterCessor) | E15: 3600
A16: 11
A17: =A16+1 -> 12 | D17: Marketing & Media
A18: 13 | B18: =IF(C18<1," ",VLOOKUP(C18,MainAccountNO:MainAccounts,2,FALSE)) -> Artwork & Graphics | C18: 8602 | D18: Email marketing subscription (mailchimp) | E18: 900
A19: 14 | B19: =IF(C19<1," ",VLOOKUP(C19,MainAccountNO:MainAccounts,2,FALSE)) -> Computer & Technology | C19: 8211 | D19: Social Media Scheduler | E19: 200
A20: 15 | B20: =IF(C20<1," ",VLOOKUP(C20,MainAccountNO:MainAccounts,2,FALSE)) -> Public Relations | C20: 8005 | D20: Public Relations | E20: 500
A21: 16 | B21: =IF(C21<1," ",VLOOKUP(C21,MainAccountNO:MainAccounts,2,FALSE)) -> Small Equip. Purchase | C21: 8510 | D21: Video equip misc (SD cards, cables, adaptors) | E21: 700
A22: 17 | B22: =IF(C22<1," ",VLOOKUP(C22,MainAccountNO:MainAccounts,2,FALSE)) -> Artwork & Graphics | C22: 8602 | D22: Stock Media - graphics, videos, music | E22: 500
A23: 18 | B23: =IF(C23<1," ",VLOOKUP(C23,MainAccountNO:MainAccounts,2,FALSE)) -> Artwork & Graphics | C23: 8602 | D23: Vimeo Plus subscription
A24: 19
A25: 20 | D25: Travel
A26: 21 | B26: =IF(C26<1," ",VLOOKUP(C26,MainAccountNO:MainAccounts,2,FALSE)) -> Vehicle Fuel & Oil | C26: 8702 | D26: AK Field visit exploration fuel | E26: 200
A27: 22 | B27: =IF(C27<1," ",VLOOKUP(C27,MainAccountNO:MainAccounts,2,FALSE)) -> Commercial Travel | C27: 8710 | D27: CAN - - AK field visit -airfare | E27: 1300
A28: 23 | B28: =IF(C28<1," ",VLOOKUP(C28,MainAccountNO:MainAccounts,2,FALSE)) -> Vehicle Fuel & Oil | C28: 8702 | D28: CAN - Field conf fuel Erin | E28: 330
A29: 24 | B29: =IF(C29<1," ",VLOOKUP(C29,MainAccountNO:MainAccounts,2,FALSE)) -> Vehicle Fuel & Oil | C29: 8702
A30: 25 | B30: =IF(C30<1," ",VLOOKUP(C30,MainAccountNO:MainAccounts,2,FALSE)) -> Missionary Conference | C30: 8805 | D30: Canada Field Conf. fees Erin | E30: 300
A31: 26 | B31: =IF(C31<1," ",VLOOKUP(C31,MainAccountNO:MainAccounts,2,FALSE)) -> Public Relations | C31: 8005 | D31: Promo items (lip balm, hand sanitizer, pens, etc)
A32: 27 | B32: =IF(C32<1," ",VLOOKUP(C32,MainAccountNO:MainAccounts,2,FALSE)) -> Seminars & Registrations | C32: 8806 | D32: Mission Connexion table
A33: 28 | B33: =IF(C33<1," ",VLOOKUP(C33,MainAccountNO:MainAccounts,2,FALSE)) -> Printing and Supplies | C33: 8107 | D33: Mobilization supplies (banners, displays etc)
A34: 29 | B34: =IF(C34<1," ",VLOOKUP(C34,MainAccountNO:MainAccounts,2,FALSE)) -> Commercial Travel | C34: 8710 | D34: AK Field conf airfare
A35: 30
A36: 31 | B36: =IF(C36<1," ",VLOOKUP(C36,MainAccountNO:MainAccounts,2,FALSE)) ->  | D36: STAFFING
A37: 32 | B37: =IF(C37<1," ",VLOOKUP(C37,MainAccountNO:MainAccounts,2,FALSE)) -> Executive Salaries | C37: 7001 | D37: Chris Olson | E37: 22500
A38: 33 | B38: =IF(C38<1," ",VLOOKUP(C38,MainAccountNO:MainAccounts,2,FALSE)) -> Payroll Tax | C38: 7201 | D38: Communications FICA | E38: =+E37*0.0765 -> 1721.25
A39: 34 | B39: =IF(C39<1," ",VLOOKUP(C39,MainAccountNO:MainAccounts,2,FALSE)) -> Cash Gifts - Staff Support | C39: 5001
A40: 35 | B40: =IF(C40<1," ",VLOOKUP(C40,MainAccountNO:MainAccounts,2,FALSE)) -> Missionary Salaries | C40: 7005 | E40: =+E39-E41 -> 0
A41: 36 | B41: =IF(C41<1," ",VLOOKUP(C41,MainAccountNO:MainAccounts,2,FALSE)) -> Ministry Expense | C41: 8990
A42: 37 | B42: =IF(C42<1," ",VLOOKUP(C42,MainAccountNO:MainAccounts,2,FALSE)) -> Operations Assessment | C42: 4100 | E42: 0
A43: 38 | B43: =IF(C43<1," ",VLOOKUP(C43,MainAccountNO:MainAccounts,2,FALSE)) -> Clerical Salaries | C43: 7003 | D43: Communications Assistant McClelland (52 weeksX 10hr | E43: 8741
A44: 39 | B44: =IF(C44<1," ",VLOOKUP(C44,MainAccountNO:MainAccounts,2,FALSE)) -> Payroll Tax | C44: 7201 | D44: Communications Assistant FICA | E44: =+E43*0.0765 -> 668.6865
A45: 40 | B45: =IF(C45<1," ",VLOOKUP(C45,MainAccountNO:MainAccounts,2,FALSE)) -> Clerical Salaries | C45: 7003 | D45: Communications Assistant Bruzda (52 weeksX 20hr | E45: 16336
A46: 41 | B46: =IF(C46<1," ",VLOOKUP(C46,MainAccountNO:MainAccounts,2,FALSE)) -> Payroll Tax | C46: 7201 | D46: Communications Assistant FICA | E46: =+E45*0.0765 -> 1249.704
A47: 42 | B47: Rent Expense | C47: 8402 | D47: Chris Olson | E47: 3000
A48: 43 | B48: =IF(C48<1," ",VLOOKUP(C48,MainAccountNO:MainAccounts,2,FALSE)) ->  | E48: =SUM(E9:E47) -> 98496.6405
A49: 44
A50: 45 | B50: =IF(C50<1," ",VLOOKUP(C50,MainAccountNO:MainAccounts,2,FALSE)) ->  | D50: Pink fields will be completed by Mike

Sheet S19
B1: Board | C1: 41720 | D1: =Main_BGT!F5 -> 2021-2022 | G1: 10
D2: Total Income | E2: =SUM(IF(S_19FieldRank<=S_19Choice,IF(S_19AccNO<=LastIncome,S_19Amount,0),0)) -> 0
D3: Total Expense | E3: =SUM(IF(S_19FieldRank<=S_19Choice,IF(S_19AccNO>LastIncome,S_19Amount,0),0)) -> 19450
D4: Difference | E4: =E2-E3 -> -19450
B5: Account Description | C5: Acc_NO | D5: Field Detail | E5: Amount | F5: Month | G5: Rank | H5: Out
B6: =IF(C6<1," ",VLOOKUP(C6,MainAccountNO:MainAccounts,2,FALSE)) ->  | H6: =IF(G6<=$G$1,"","OUT") -> 
A7: 1 | B7: =IF(C7<1," ",VLOOKUP(C7,MainAccountNO:MainAccounts,2,FALSE)) ->  | D7: SUMMER '19 BOARD MEETING (OR) | H7: =IF(G7<=$G$1,"","OUT") -> 
A8: =A7+1 -> 2 | B8: =IF(C8<1," ",VLOOKUP(C8,MainAccountNO:MainAccounts,2,FALSE)) -> Commercial Travel | C8: 8710 | D8: Air Travel | E8: 3300 | F8: 7 | G8: 1
A9: 3 | B9: =IF(C9<1," ",VLOOKUP(C9,MainAccountNO:MainAccounts,2,FALSE)) -> Vehicle Rental | C9: 8706 | D9: Board rental cars | E9: 300 | F9: 7 | G9: 1
A10: 4 | B10: =IF(C10<1," ",VLOOKUP(C10,MainAccountNO:MainAccounts,2,FALSE)) -> Auto Mileage Reimb | C10: 8707 | D10: Ground travel | E10: 700 | F10: 7 | G10: 1
A11: 5 | B11: =IF(C11<1," ",VLOOKUP(C11,MainAccountNO:MainAccounts,2,FALSE)) -> Food for Meetings | C11: 8803 | D11: Catered Lunch & Board member meals | E11: 800 | F11: 7 | G11: 1
A12: 6 | B12: =IF(C12<1," ",VLOOKUP(C12,MainAccountNO:MainAccounts,2,FALSE)) -> Motel/Hotel & Room Rent | C12: 8711 | D12: Housing at meeting | E12: 2000 | F12: 7 | G12: 1
A13: 7
A14: 8 | B14: =IF(C14<1," ",VLOOKUP(C14,MainAccountNO:MainAccounts,2,FALSE)) ->  | D14: WINTER '20 BOARD MEETING (OR)
A15: 9 | B15: =IF(C15<1," ",VLOOKUP(C15,MainAccountNO:MainAccounts,2,FALSE)) -> Commercial Travel | C15: 8710 | D15: Air Travel | E15: 3300 | F15: 2 | G15: 1
A16: 10 | B16: =IF(C16<1," ",VLOOKUP(C16,MainAccountNO:MainAccounts,2,FALSE)) -> Vehicle Rental | C16: 8706 | D16: Board Courtesy Cars (1@300) | E16: 300 | F16: 2 | G16: 1
A17: 11 | B17: =IF(C17<1," ",VLOOKUP(C17,MainAccountNO:MainAccounts,2,FALSE)) -> Auto Mileage Reimb | C17: 8707 | D17: Ground Travel | E17: 700 | F17: 2 | G17: 1
A18: 12 | B18: =IF(C18<1," ",VLOOKUP(C18,MainAccountNO:MainAccounts,2,FALSE)) -> Motel/Hotel & Room Rent | C18: 8711 | D18: Room for early arrival & late departure | E18: 800 | F18: 2 | G18: 1
A19: 13 | B19: =IF(C19<1," ",VLOOKUP(C19,MainAccountNO:MainAccounts,2,FALSE)) -> Food for Meetings | C19: 8803 | D19: Hotel/motel meals | E19: 250 | F19: 2 | G19: 1
A20: 14 | B20: =IF(C20<1," ",VLOOKUP(C20,MainAccountNO:MainAccounts,2,FALSE)) -> Motel/Hotel & Room Rent | C20: 8711 | D20: Meeting & Conference Room | E20: 3500 | F20: 2 | G20: 1
A21: 15 | B21: =IF(C21<1," ",VLOOKUP(C21,MainAccountNO:MainAccounts,2,FALSE)) -> Commercial Travel | C21: 8710 | D21: Field Directors (Lucas $500)
A22: 16
A23: 17 | B23: =IF(C23<1," ",VLOOKUP(C23,MainAccountNO:MainAccounts,2,FALSE)) ->  | D23: MISCELLANEOUS
A24: 18 | B24: =IF(C24<1," ",VLOOKUP(C24,MainAccountNO:MainAccounts,2,FALSE)) -> Meals & Entertainment | C24: 8709 | D24: Ex Dir. meals with prospective board members | E24: 400 | G24: 1 | H24: =IF(G24<=$G$1,"","OUT") -> 
A25: 19 | B25: =IF(C25<1," ",VLOOKUP(C25,MainAccountNO:MainAccounts,2,FALSE)) -> Subscriptions & Periodicals | C25: 8606 | D25: Board development material | E25: 400 | G25: 2 | H25: =IF(G25<=$G$1,"","OUT") -> 
A26: 20 | B26: =IF(C26<1," ",VLOOKUP(C26,MainAccountNO:MainAccounts,2,FALSE)) -> Subscriptions & Periodicals | C26: 8606 | D26: Board orientation material | E26: 300 | G26: 1 | H26: =IF(G26<=$G$1,"","OUT") -> 
A27: 21 | B27: =IF(C27<1," ",VLOOKUP(C27,MainAccountNO:MainAccounts,2,FALSE)) -> 
A28: 22 | B28: =IF(C28<1," ",VLOOKUP(C28,MainAccountNO:MainAccounts,2,FALSE)) -> Motel/Hotel & Room Rent | C28: 8711 | D28: Board development activity - Lodging | E28: 600 | G28: 2
A29: 23 | B29: =IF(C29<1," ",VLOOKUP(C29,MainAccountNO:MainAccounts,2,FALSE)) -> Seminars & Registrations | C29: 8806 | D29: Board development activity - Registration | E29: 500 | G29: 2
A30: 24 | B30: =IF(C30<1," ",VLOOKUP(C30,MainAccountNO:MainAccounts,2,FALSE)) -> Commercial Travel | C30: 8710 | D30: Board development activity - Travel | E30: 1000 | G30: 2
A31: 25 | B31: =IF(C31<1," ",VLOOKUP(C31,MainAccountNO:MainAccounts,2,FALSE)) -> Meals & Entertainment | C31: 8709 | D31: Board development activity - Meals | E31: 300 | G31: 2
A32: 26 | B32: =IF(C32<1," ",VLOOKUP(C32,MainAccountNO:MainAccounts,2,FALSE)) -> Member Care | C32: 8004 | D32: Gifts for board members
A33: 27 | B33: =IF(C33<1," ",VLOOKUP(C33,MainAccountNO:MainAccounts,2,FALSE)) -> Member Care | C33: 8004 | D33: Smith vacation - at board's request | H33: =IF(G33<=$G$1,"","OUT") -> 
A34: 28 | B34: =IF(C34<1," ",VLOOKUP(C34,MainAccountNO:MainAccounts,2,FALSE)) -> 
A35: 29 | B35: =IF(C35<1," ",VLOOKUP(C35,MainAccountNO:MainAccounts,2,FALSE)) ->  | D35: Above figures Joint Board Expenses U.S 55% / CDN 45%
A36: 30 | B36: =IF(C36<1," ",VLOOKUP(C36,MainAccountNO:MainAccounts,2,FALSE)) -> 
A37: 31 | B37: =IF(C37<1," ",VLOOKUP(C37,MainAccountNO:MainAccounts,2,FALSE)) ->  | D37: 0.55

Sheet S20
B1: Executive Director | C1: 41750 | D1: =Main_BGT!F5 -> 2021-2022 | G1: 10
D2: Total Income | E2: =SUM(IF(S_20FieldRank<=S_20Choice,IF(S_20AccNo<=LastIncome,S_20Amount,0),0)) -> 120991
D3: Total Expense | E3: =SUM(IF(S_20FieldRank<=S_20Choice,IF(S_20AccNo>LastIncome,S_20Amount,0),0)) -> 137992.875
D4: Difference | E4: =E2-E3 -> -17001.875
B5: Account Description | C5: Acc_NO | D5: Field Detail | E5: Amount | F5: Month | G5: Rank | H5: Out
A6: 1 | B6: =IF(C6<1," ",VLOOKUP(C6,MainAccountNO:MainAccounts,2,FALSE)) -> Cash Gifts - Programs | C6: 5004 | D6: From Canada | E6: 115991 | H6: =IF(G6<=$G$1,"","OUT") -> 
A7: =A6+1 -> 2 | B7: =IF(C7<1," ",VLOOKUP(C7,MainAccountNO:MainAccounts,2,FALSE)) -> Cash Gifts - Programs | C7: 5004 | D7: Fundraising for RU trip | E7: 5000
A8: =A7+1 -> 3 | B8: =IF(C8<1," ",VLOOKUP(C8,MainAccountNO:MainAccounts,2,FALSE)) -> Commercial Travel | C8: 8710 | D8: Exec Dir. & wife in Russia Conference | E8: 4000 | F8: 10 | G8: 1
A9: 4 | B9: =IF(C9<1," ",VLOOKUP(C9,MainAccountNO:MainAccounts,2,FALSE)) -> Motel/Hotel & Room Rent | C9: 8711 | D9: Exec Dir. & wife at Russia | E9: 500 | F9: 10 | G9: 1
A10: 5 | B10: =IF(C10<1," ",VLOOKUP(C10,MainAccountNO:MainAccounts,2,FALSE)) -> Vehicle Rental | C10: 8706 | D10: ED Rental Cars charged through Canada | E10: 1500 | G10: 1
A11: 6 | B11: =IF(C11<1," ",VLOOKUP(C11,MainAccountNO:MainAccounts,2,FALSE)) -> Meals & Entertainment | C11: 8709 | D11: ED Meals & Entertainment through Canada | E11: 1500 | G11: 2
A12: 7 | B12: =IF(C12<1," ",VLOOKUP(C12,MainAccountNO:MainAccounts,2,FALSE)) -> Vehicle Fuel & Oil | C12: 8702 | D12: ED fuel through Canada | E12: 3700 | G12: 1
A13: 8 | B13: =IF(C13<1," ",VLOOKUP(C13,MainAccountNO:MainAccounts,2,FALSE)) -> Staff Training | C13: 8003 | D13: FLT Training Material | E13: 1000 | F13: 2,10 | G13: 1
A14: 9 | B14: =IF(C14<1," ",VLOOKUP(C14,MainAccountNO:MainAccounts,2,FALSE)) -> Commercial Travel | C14: 8710 | D14: Biblical Counseling Research & Travel | E14: 1400 | F14: 2,10 | G14: 2
A15: 10 | B15: =IF(C15<1," ",VLOOKUP(C15,MainAccountNO:MainAccounts,2,FALSE)) -> Staff Training | C15: 8003 | D15: Staff training materials (books/cds/etc) | E15: 600 | G15: 1
A16: 11 | B16: =IF(C16<1," ",VLOOKUP(C16,MainAccountNO:MainAccounts,2,FALSE)) -> Member Care | C16: 8004 | D16: Random acts of kindness | E16: 1000 | G16: 1
A17: 12 | B17: Vihicle Fuel & Oil | C17: 8702 | D17: Donor Visits | E17: 1000
A18: 13 | B18: =IF(C18<1," ",VLOOKUP(C18,MainAccountNO:MainAccounts,2,FALSE)) -> Seminars & Registrations | C18: 8806 | D18: Missio Nexus conference fee | E18: 500 | F18: 9 | G18: 1
A19: 14 | B19: =IF(C19<1," ",VLOOKUP(C19,MainAccountNO:MainAccounts,2,FALSE)) -> Commercial Travel | C19: 8710 | D19: Flights to Missio Nexus conf | E19: 500 | F19: 9 | G19: 1
A20: 15 | B20: =IF(C20<1," ",VLOOKUP(C20,MainAccountNO:MainAccounts,2,FALSE)) -> Motel/Hotel & Room Rent | C20: 8711 | D20: Missio Nexus lodging 4 nights | E20: 400 | F20: 9 | G20: 1
A21: 16 | B21: =IF(C21<1," ",VLOOKUP(C21,MainAccountNO:MainAccounts,2,FALSE)) -> Motel/Hotel & Room Rent | C21: 8711 | D21: Off site FLT (2 x 3 nights) | E21: 800 | G21: 1
A22: 17 | B22: =IF(C22<1," ",VLOOKUP(C22,MainAccountNO:MainAccounts,2,FALSE)) -> Commercial Travel | C22: 8710 | D22: Off site FLT (2 events in different locales) | E22: 1600 | G22: 1
A23: 18 | B23: =IF(C23<1," ",VLOOKUP(C23,MainAccountNO:MainAccounts,2,FALSE)) -> Meals & Entertainment | C23: 8709 | D23: Off site FLT | E23: 600 | G23: 1
A24: 19 | B24: =IF(C24<1," ",VLOOKUP(C24,MainAccountNO:MainAccounts,2,FALSE)) -> Meals & Entertainment | C24: 8709 | D24: Meals & Entertainment with donors | E24: 600
A25: 20 | B25: =IF(C25<1," ",VLOOKUP(C25,MainAccountNO:MainAccounts,2,FALSE)) -> Meals & Entertainment | C25: 8709 | D25: ELT meals | E25: 400 | G25: 1
A26: 21 | B26: =IF(C26<1," ",VLOOKUP(C26,MainAccountNO:MainAccounts,2,FALSE)) -> Staff Training | C26: 8003 | D26: ELT Activity | E26: 400 | G26: 1
A27: 22 | B27: =IF(C27<1," ",VLOOKUP(C27,MainAccountNO:MainAccounts,2,FALSE)) -> Executive Salaries | C27: 7001 | D27: Executive Director Salary | E27: 87150
A28: 23 | B28: =IF(C28<1," ",VLOOKUP(C28,MainAccountNO:MainAccounts,2,FALSE)) -> Payroll Tax | C28: 7201 | D28: Executive Director payroll taxes | E28: =+E27*0.0765 -> 6666.975
A29: 24 | B29: =IF(C29<1," ",VLOOKUP(C29,MainAccountNO:MainAccounts,2,FALSE)) -> Executive Salaries | C29: 7001 | D29: Carol Smith Salary | E29: 20600
A30: 25 | B30: =IF(C30<1," ",VLOOKUP(C30,MainAccountNO:MainAccounts,2,FALSE)) -> Payroll Tax | C30: 7201 | D30: Carol Smith payroll taxes | E30: =+E29*0.0765 -> 1575.9
A31: =A26+1 -> 22 | B31: =IF(C31<1," ",VLOOKUP(C31,MainAccountNO:MainAccounts,2,FALSE)) -> 

Sheet S21
B1: Information Systems | C1: 41755 | D1: =Main_BGT!F5 -> 2021-2022 | G1: 10
D2: Total Income | E2: =SUM(IF(S_21FieldRank<=S_21Choice,IF(S_21AccNo<=LastIncome,S_21Amount,0),0)) -> 0
D3: Total Expense | E3: =SUM(IF(S_21FieldRank<=S_21Choice,IF(S_21AccNo>LastIncome,S_21Amount,0),0)) -> 23613
D4: Difference | E4: =E2-E3 -> -23613
B5: Account Description | C5: Acc_NO | D5: Field Detail | E5: Amount | F5: Month | G5: Rank | H5: Out
A6: 1 | B6: =IF(C6<1," ",VLOOKUP(C6,MainAccountNO:MainAccounts,2,FALSE)) ->  | H6: =IF(G6<=$G$1,"","OUT") -> 
A7: =A6+1 -> 2 | B7: =IF(C7<1," ",VLOOKUP(C7,MainAccountNO:MainAccounts,2,FALSE)) -> Computer & Technology | C7: 8211 | D7: Web hosting fee | E7: 100 | H7: =IF(G7<='S18'!$G$1,"","OUT") -> 
A8: =A7+1 -> 3 | B8: =IF(C8<1," ",VLOOKUP(C8,MainAccountNO:MainAccounts,2,FALSE)) -> Computer & Technology | C8: 8211 | D8: Annual domain renewals | E8: 160 | H8: =IF(G8<='S18'!$G$1,"","OUT") -> 
A9: 4 | B9: =IF(C9<1," ",VLOOKUP(C9,MainAccountNO:MainAccounts,2,FALSE)) -> Computer & Technology | C9: 8211 | D9: Backup software license renewal | H9: =IF(G9<='S18'!$G$1,"","OUT") -> 
A10: 5 | B10: =IF(C10<1," ",VLOOKUP(C10,MainAccountNO:MainAccounts,2,FALSE)) -> Computer & Technology | C10: 8211 | D10: BlackPoint Watchguard security renewals | H10: =IF(G10<='S18'!$G$1,"","OUT") -> 
A11: 6 | B11: =IF(C11<1," ",VLOOKUP(C11,MainAccountNO:MainAccounts,2,FALSE)) -> Computer & Technology | C11: 8211 | D11: Zeth on/off-site troubleshooting (i.e., Brad) | E11: 3600 | H11: =IF(G11<='S18'!$G$1,"","OUT") -> 
A12: 7 | B12: =IF(C12<1," ",VLOOKUP(C12,MainAccountNO:MainAccounts,2,FALSE)) -> Computer & Technology | C12: 8211 | D12: Webroot anti-virus (9x4.25*12 | E12: 460 | H12: =IF(G12<='S18'!$G$1,"","OUT") -> 
A13: 8 | B13: =IF(C13<1," ",VLOOKUP(C13,MainAccountNO:MainAccounts,2,FALSE)) -> Computer & Technology | C13: 8211 | D13: QuickBooks Annual support/upgrade Fee | E13: 2200 | H13: =IF(G13<='S18'!$G$1,"","OUT") -> 
A14: 9 | B14: =IF(C14<1," ",VLOOKUP(C14,MainAccountNO:MainAccounts,2,FALSE)) -> Computer & Technology | C14: 8211 | D14: Adobe Creative Cloud annual subscription (2) | E14: 1680 | H14: =IF(G14<='S18'!$G$1,"","OUT") -> 
A15: 10 | B15: =IF(C15<1," ",VLOOKUP(C15,MainAccountNO:MainAccounts,2,FALSE)) -> Computer & Technology | C15: 8211 | D15: Server Warranty renewal | E15: 400 | H15: =IF(G15<='S18'!$G$1,"","OUT") -> 
A16: 11 | B16: =IF(C16<1," ",VLOOKUP(C16,MainAccountNO:MainAccounts,2,FALSE)) -> Computer & Technology | C16: 8211 | D16: IT Contingency (computer, printer dies, etc.) | E16: 2000 | H16: =IF(G16<='S18'!$G$1,"","OUT") -> 
A17: 12 | B17: =IF(C17<1," ",VLOOKUP(C17,MainAccountNO:MainAccounts,2,FALSE)) -> Computer & Technology | C17: 8211 | D17: Office 365 subscriptions ($25 x 6) | E17: 288 | H17: =IF(G17<='S18'!$G$1,"","OUT") -> 
A18: 13 | B18: =IF(C18<1," ",VLOOKUP(C18,MainAccountNO:MainAccounts,2,FALSE)) -> Computer & Technology | C18: 8211 | D18: Chromebox annual license | H18: =IF(G18<='S18'!$G$1,"","OUT") -> 
A19: 14 | B19: =IF(C19<1," ",VLOOKUP(C19,MainAccountNO:MainAccounts,2,FALSE)) -> Computer & Technology | C19: 8211 | D19: AVOS-Amazon web hosting services annual fee | E19: 175 | H19: =IF(G19<=[3]S18!$G$1,"","OUT") -> 
A20: 15 | B20: =IF(C20<1," ",VLOOKUP(C20,MainAccountNO:MainAccounts,2,FALSE)) -> Computer & Technology | C20: 8211 | D20: AVOS - Annual plugin subscription | E20: 150 | H20: =IF(G20<=[3]S18!$G$1,"","OUT") -> 
A21: 16 | B21: =IF(C21<1," ",VLOOKUP(C21,MainAccountNO:MainAccounts,2,FALSE)) -> Computer & Technology | C21: 8211 | D21: AVOS - allowance for Mendenhall updates | E21: 400 | H21: =IF(G21<=[3]S18!$G$1,"","OUT") -> 
A22: 17 | B22: =IF(C22<1," ",VLOOKUP(C22,MainAccountNO:MainAccounts,2,FALSE)) -> Computer & Technology | C22: 8211 | D22: Purchase of new software to replace Raisers Edge | E22: 12000 | G22: 3 | H22: =IF(G22<='S18'!$G$1,"","OUT") -> 
A23: 18 | B23: =IF(C23<1," ",VLOOKUP(C23,MainAccountNO:MainAccounts,2,FALSE)) ->  | H23: =IF(G23<='S18'!$G$1,"","OUT") -> 
A24: 19 | B24: =IF(C24<1," ",VLOOKUP(C24,MainAccountNO:MainAccounts,2,FALSE)) ->  | H24: =IF(G24<='S18'!$G$1,"","OUT") -> 
A25: =A24+1 -> 20 | B25: =IF(C25<1," ",VLOOKUP(C25,MainAccountNO:MainAccounts,2,FALSE)) ->  | H25: =IF(G25<='S18'!$G$1,"","OUT") -> 
A26: 21 | B26: =IF(C26<1," ",VLOOKUP(C26,MainAccountNO:MainAccounts,2,FALSE)) ->  | H26: =IF(G26<='S18'!$G$1,"","OUT") -> 
A27: 22 | B27: =IF(C27<1," ",VLOOKUP(C27,MainAccountNO:MainAccounts,2,FALSE)) ->  | H27: =IF(G27<='S18'!$G$1,"","OUT") -> 
A28: 23 | B28: =IF(C28<1," ",VLOOKUP(C28,MainAccountNO:MainAccounts,2,FALSE)) ->  | H28: =IF(G28<='S18'!$G$1,"","OUT") -> 
A29: 24 | B29: =IF(C29<1," ",VLOOKUP(C29,MainAccountNO:MainAccounts,2,FALSE)) ->  | H29: =IF(G29<='S18'!$G$1,"","OUT") -> 
A30: 25 | B30: =IF(C30<1," ",VLOOKUP(C30,MainAccountNO:MainAccounts,2,FALSE)) ->  | H30: =IF(G30<='S18'!$G$1,"","OUT") -> 
A31: 26 | B31: =IF(C31<1," ",VLOOKUP(C31,MainAccountNO:MainAccounts,2,FALSE)) ->  | H31: =IF(G31<='S18'!$G$1,"","OUT") -> 
A32: 27 | B32: =IF(C32<1," ",VLOOKUP(C32,MainAccountNO:MainAccounts,2,FALSE)) ->  | H32: =IF(G32<='S18'!$G$1,"","OUT") -> 
A33: 28 | B33: =IF(C33<1," ",VLOOKUP(C33,MainAccountNO:MainAccounts,2,FALSE)) ->  | H33: =IF(G33<='S18'!$G$1,"","OUT") -> 
D35: Pink fields will be completed by Mike

Sheet S22
B1: HR | C1: 41758 | D1: =Main_BGT!F5 -> 2021-2022 | G1: 10
D2: Total Income | E2: =SUM(IF(S_22FieldRank<=S_22Choice,IF(S_22AccNo<=LastIncome,S_22Amount,0),0)) -> 27000
D3: Total Expense | E3: =SUM(IF(S_22FieldRank<=S_22Choice,IF(S_22AccNo>LastIncome,S_22Amount,0),0)) -> 93400
D4: Difference | E4: =E2-E3 -> -66400
B5: Account Description | C5: Acc_NO | D5: Field Detail | E5: Amount | F5: Month | G5: Rank | H5: Out
A6: 1 | B6: =IF(C6<1," ",VLOOKUP(C6,MainAccountNO:MainAccounts,2,FALSE)) ->  | H6: =IF(G6<=$G$1,"","OUT") -> 
A7: =A6+1 -> 2 | B7: =IF(C7<1," ",VLOOKUP(C7,MainAccountNO:MainAccounts,2,FALSE)) -> Cash Gifts - Programs | C7: 5004 | D7: Appeal: Covenant Eyes for staff
A8: 3 | B8: =IF(C8<1," ",VLOOKUP(C8,MainAccountNO:MainAccounts,2,FALSE)) ->  | D8: CONFERENCES / FIELD VISITS
A9: =A8+1 -> 4 | B9: =IF(C9<1," ",VLOOKUP(C9,MainAccountNO:MainAccounts,2,FALSE)) -> Missionary Conference | C9: 8805 | D9: Canada Field Conference fee (2@ $250) | E9: 500
A10: 5 | B10: =IF(C10<1," ",VLOOKUP(C10,MainAccountNO:MainAccounts,2,FALSE)) ->  | D10: MISCELLANEOUS
A11: 6 | B11: =IF(C11<1," ",VLOOKUP(C11,MainAccountNO:MainAccounts,2,FALSE)) -> Member Care | C11: 8004 | D11: Covenant Eyes for staff | E11: 1500
A12: 7 | B12: =IF(C12<1," ",VLOOKUP(C12,MainAccountNO:MainAccounts,2,FALSE)) -> Advertising | C12: 8608 | D12: ShortTermMissions.com
A13: 8 | B13: =IF(C13<1," ",VLOOKUP(C13,MainAccountNO:MainAccounts,2,FALSE)) -> Organization Dues & Fees | C13: 8902 | D13: SHRM membership | E13: 225
A14: 9 | B14: =IF(C14<1," ",VLOOKUP(C14,MainAccountNO:MainAccounts,2,FALSE)) -> Organization Dues & Fees | C14: 8902 | D14: CIT membership (other half pd by CAN) | E14: 375
A15: 10 | B15: =IF(C15<1," ",VLOOKUP(C15,MainAccountNO:MainAccounts,2,FALSE)) -> Food for Meetings | C15: 8803 | D15: VIEW food/snacks/activities/childcare | E15: 300
A16: 11 | B16: =IF(C16<1," ",VLOOKUP(C16,MainAccountNO:MainAccounts,2,FALSE)) -> Seminars & Registrations | C16: 8806 | D16: Campus conference registration fees
A17: 12 | B17: =IF(C17<1," ",VLOOKUP(C17,MainAccountNO:MainAccounts,2,FALSE)) -> Public Relations | C17: 8005 | D17: Entertaining prospective applicants, etc.
A18: 13 | B18: =IF(C18<1," ",VLOOKUP(C18,MainAccountNO:MainAccounts,2,FALSE)) ->  | D18: STAFFING
A19: 14 | B19: =IF(C19<1," ",VLOOKUP(C19,MainAccountNO:MainAccounts,2,FALSE)) -> Cash Gifts - Staff Support | C19: 5001 | D19: Crosby Support | E19: 27000
A20: 15 | B20: =IF(C20<1," ",VLOOKUP(C20,MainAccountNO:MainAccounts,2,FALSE)) -> Missionary Salaries | C20: 7005 | D20: Crosby Salary | E20: =+E19-E21 -> 27000
A21: 16 | B21: =IF(C21<1," ",VLOOKUP(C21,MainAccountNO:MainAccounts,2,FALSE)) -> Ministry Expense | C21: 8990 | D21: Crosby MER | E21: 0
A22: =A20+1 -> 16 | B22: =IF(C22<1," ",VLOOKUP(C22,MainAccountNO:MainAccounts,2,FALSE)) -> Executive Salaries | C22: 7001 | D22: Crosby Salary Supplement | E22: 57000
A23: =A21+1 -> 17 | B23: =IF(C23<1," ",VLOOKUP(C23,MainAccountNO:MainAccounts,2,FALSE)) -> Payroll Tax | C23: 7201 | D23: Crosby Salary Supplement | E23: 6500
D25: Pink fields will be completed by Mike
B28: Click on Tab S25 at the bottom of the page to get to "Mobilization" Budget.

Sheet S25
B1: Mobilization | C1: 41760 | D1: =[2]Main_BGT!F5 -> 2021-2022 | G1: 10
D2: Total Income | E2: =SUM(IF(S_22FieldRank<=S_22Choice,IF(S_22AccNo<=LastIncome,S_22Amount,0),0)) -> 5378
D3: Total Expense | E3: =SUM(IF(S_22FieldRank<=S_22Choice,IF(S_22AccNo>LastIncome,S_22Amount,0),0)) -> 18965
D4: Difference | E4: =E2-E3 -> -13587
A5: Line | B5: Account Description | C5: Acc_NO | D5: Field Detail | E5: Amount | F5: Month | G5: Rank | H5: Out | J5: Row Labels | K5: Sum of Amount
A6: 1 | B6: =IF(C6<1," ",VLOOKUP(C6,MainAccountNO:MainAccounts,2,FALSE)) ->  | H6: =IF(G6<=$G$1,"","OUT") ->  | J6: 5001
A7: =A6+1 -> 2 | B7: Cash Gifts - Programs | C7: 5004 | D7: From Canada | E7: 5378 | J7: 5004 | K7: 5378
A8: 3 | B8: =IF(C8<1," ",VLOOKUP(C8,MainAccountNO:MainAccounts,2,FALSE)) ->  | D8: CAMPUS RECRUITMENT - | J8: 7001
A9: 4 | B9: Vehicle Fuel & Oil | C9: 8702 | D9: Shasta/Simpson U (George, 2x) | E9: 75 | J9: 7005 | K9: 0
A10: 5 | B10: Motel/Hotel & Room Rent | C10: 8711 | D10: Shasta/Simpson U (4 nights fall, 3 nights spring) | E10: 330 | J10: 8005 | K10: 600
A11: 6 | B11: =IF(C11<1," ",VLOOKUP(C11,MainAccountNO:MainAccounts,2,FALSE)) ->  | J11: 8608 | K11: 2650
A12: 7 | B12: Vehicle Fuel & Oil | C12: 8702 | D12: GNU (Andy & Josh x2) | E12: 320 | J12: 8702 | K12: 1665
A13: 8 | B13: Motel/Hotel & Room Rent | C13: 8711 | D13: GNU (Fall, Spring) 6 nights total | E13: 660 | J13: 8706 | K13: 2250
A14: 9 | B14: Vehicle Rental | C14: 8706 | D14: GNU (Andy & Josh: fall, spring) | E14: 500 | J14: 8710 | K14: 7750
A15: 10 | B15: =IF(C15<1," ",VLOOKUP(C15,MainAccountNO:MainAccounts,2,FALSE)) ->  | J15: 8711 | K15: 3050
A16: 11 | B16: Commercial Travel | C16: 8710 | D16: Montana Bible College (2x) George W or Carrie Curtis | E16: 700 | J16: 8806 | K16: 1000
A17: 12 | B17: Vehicle Fuel & Oil | C17: 8702 | D17: Montana Bible College Wilderness (2x) Greg | E17: 350 | J17: 8990 | K17: 0
A18: 13 | B18: Motel/Hotel & Room Rent | C18: 8711 | D18: Montana Bible College Wilderness (2x) Greg 6 hotel nights | E18: 600 | J18: Grand Total | K18: 24343
A19: 14 | B19: =IF(C19<1," ",VLOOKUP(C19,MainAccountNO:MainAccounts,2,FALSE)) -> 
A20: 15 | B20: Motel/Hotel & Room Rent | C20: 8711 | D20: Moody (2xFall and Spring) | E20: 700
A21: 16 | B21: Commercial Travel | C21: 8710 | D21: Moody (2xFall and Spring) Andy & Carrie | E21: 1000
A22: 17 | B22: =IF(C22<1," ",VLOOKUP(C22,MainAccountNO:MainAccounts,2,FALSE)) -> 
A23: 18 | B23: Motel/Hotel & Room Rent | C23: 8711 | D23: Emmaus 2x Fall, Spring | E23: 440
A24: 19 | B24: Vehicle Fuel & Oil | C24: 8702 | D24: Emmaus (spring) | E24: 100
A25: 20 | B25: Vehicle Rental | C25: 8706 | D25: Emmaus (spring 4 nights) | E25: 400
A26: 21
A27: 22 | B27: Commercial Travel | C27: 8710 | D27: Emmaus (Andy, Jim, George) | E27: 1400
A28: 23 | B28: =IF(C28<1," ",VLOOKUP(C28,MainAccountNO:MainAccounts,2,FALSE)) -> 
A29: 24 | B29: Commercial Travel | C29: 8710 | D29: Frontier/Denver schools (Fall & Spring) | E29: 1300
A30: 25 | B30: Vehicle Rental | C30: 8706 | D30: Frontier Denver LaGrange Return | E30: 300
A31: 26 | B31: Vehicle Fuel & Oil | C31: 8702 | D31: Frontier Denver LaGrange Return | E31: 120
A32: 27 | B32: Public Relations | C32: 8005 | D32: Frontier (3xBill & Lois-Food for student gatherings | E32: 300
A33: 28 | B33: =IF(C33<1," ",VLOOKUP(C33,MainAccountNO:MainAccounts,2,FALSE)) -> 
A34: 29 | B34: Commercial Travel | C34: 8710 | D34: Toccoa/CIU (fall) (2x Alanta) | E34: 750
A35: 30 | B35: Vehicle Rental | C35: 8706 | D35: Toccoa/CIU (2x) | E35: 550
A36: 31 | B36: Commercial Travel | C36: 8710 | D36: Toccoa/CIU (spring) | E36: 600
A37: 32 | B37: Vehicle Fuel & Oil | C37: 8702 | D37: Toccoa/CIU (spring) | E37: 225
A38: 33 | B38: Vehicle Fuel & Oil | C38: 8702 | D38: Ecola (Jerry or Dale 2x) | E38: 125
A39: 34 | B39: Vehicle Fuel & Oil | C39: 8702 | D39: travel to field | E39: 150
A40: 35 | B40: Commercial Travel | C40: 8710 | D40: Gate keeper to field | E40: 550
A41: 36 | B41: Public Relations | C41: 8005 | D41: Meals While Traveling | E41: 100
A42: 37
A43: 38 | B43: Commercial Travel | C43: 8710 | D43: Recruitment Contingency | E43: 1000
A44: 39 | B44: Motel/Hotel & Room Rent | C44: 8711 | D44: Recruitment Contingency | E44: 320
A45: 40 | B45: Vehicle Fuel & Oil | C45: 8702 | D45: Recruitment Contingency | E45: 200
A46: 41 | B46: Vehicle Rental | C46: 8706 | D46: Recruitment Contingency | E46: 500
A47: 42 | B47: =IF(C47<1," ",VLOOKUP(C47,MainAccountNO:MainAccounts,2,FALSE)) -> 
A48: 43 | D48: Mobilization Director Trip To Alaska
A49: 44 | B49: Commercial Travel | C49: 8710 | D49: Andy's Trip To Alaska | E49: 450
A50: 45 | B50: =IF(C50<1," ",VLOOKUP(C50,MainAccountNO:MainAccounts,2,FALSE)) -> 
A51: 46 | B51: =IF(C51<1," ",VLOOKUP(C51,MainAccountNO:MainAccounts,2,FALSE)) ->  | D51: MISCELLANEOUS
A52: 47 | B52: Advertising | C52: 8608 | D52: Electronic Promotion | E52: 2000
A53: 48 | B53: Advertising | C53: 8608 | D53: ShortTermMissions.com | E53: 650
A54: 49 | B54: Advertising | C54: 8806 | D54: Campus Conference Reistraion Fees (Moody, Simpson) | E54: 1000
A55: 50 | B55: Public Relations | C55: 8005 | D55: Entertaining prospective applicants, etc. | E55: 200
A56: 51 | B56: =IF(C56<1," ",VLOOKUP(C56,MainAccountNO:MainAccounts,2,FALSE)) -> 
A57: 52 | B57: =IF(C57<1," ",VLOOKUP(C57,MainAccountNO:MainAccounts,2,FALSE)) -> 
A58: 53 | B58: =IF(C58<1," ",VLOOKUP(C58,MainAccountNO:MainAccounts,2,FALSE)) -> 
A59: 54 | B59: =IF(C59<1," ",VLOOKUP(C59,MainAccountNO:MainAccounts,2,FALSE)) ->  | D59: STAFFING
A60: 55 | B60: Cash Gifts - Staff Support | C60: 5001 | L60: Andy Chinn Reports to Canada
A61: 56 | B61: Missionary Salaries | C61: 7005 | E61: =+E60-E62 -> 0
A62: 57 | B62: Ministry Expense | C62: 8990 | E62: 0
A63: 58 | B63: Executive Salaries | C63: 7001
D65: Pink fields will be completed by Mike
C71: `

Sheet S23
B1: Development | C1: 41730 | D1: =Main_BGT!F5 -> 2021-2022 | G1: 10
D2: Total Income | E2: =SUM(IF(S_23FieldRank<=S_23Choice,IF(S_23AccNo<=LastIncome,S_23Amount,0),0))+I13 -> 106000
D3: Total Expense | E3: =SUM(IF(S_23FieldRank<=S_23Choice,IF(S_23AccNo>LastIncome,S_23Amount,0),0))+E48 -> 65221.25
D4: Difference | E4: =E2-E3 -> 40778.75
A5: Line | B5: Account Description | C5: Acc_NO | D5: Field Detail | E5: Amount | F5: Month | G5: Rank | H5: Out
A6: 1 | B6: =IF(C6<1," ",VLOOKUP(C6,MainAccountNO:MainAccounts,2,FALSE)) ->  | H6: =IF(G6<=$G$1,"","OUT") -> 
A7: =A6+1 -> 2 | B7: =IF(C7<1," ",VLOOKUP(C7,MainAccountNO:MainAccounts,2,FALSE)) -> Cash Gifts - Programs | C7: 5004 | D7: Appeal 1 - | E7: 8000 | H7: =IF(G7<=$G$1,"","OUT") ->  | J7: Row Labels | K7: Sum of Amount
A8: =A7+1 -> 3 | B8: =IF(C8<1," ",VLOOKUP(C8,MainAccountNO:MainAccounts,2,FALSE)) -> Cash Gifts - Programs | C8: 5004 | D8: Appeal 2 - operations | E8: 8000 | J8: 4100
A9: 4 | B9: =IF(C9<1," ",VLOOKUP(C9,MainAccountNO:MainAccounts,2,FALSE)) -> Cash Gifts - Programs | C9: 5004 | D9: Appeal 3 - Year-end Letter - operations | J9: 4400
A10: 5 | B10: =IF(C10<1," ",VLOOKUP(C10,MainAccountNO:MainAccounts,2,FALSE)) -> Cash Gifts - Programs | C10: 5004 | D10: Misc funds raised | E10: 40000 | J10: 5004 | K10: 106000
A11: 6 | B11: =IF(C11<1," ",VLOOKUP(C11,MainAccountNO:MainAccounts,2,FALSE)) -> Cash Gifts - Programs | C11: 5004 | D11: Grant Revenue net | E11: 50000 | J11: 7001 | K11: 22500
A12: 7 | B12: =IF(C12<1," ",VLOOKUP(C12,MainAccountNO:MainAccounts,2,FALSE)) ->  | J12: 7201 | K12: 1721.25
A13: 8 | B13: =IF(C13<1," ",VLOOKUP(C13,MainAccountNO:MainAccounts,2,FALSE)) -> Printing and Supplies | C13: 8107 | D13: Cost of Appeal 1 (Printing & Postage) | E13: 6000 | J13: 8106 | K13: 200
A14: 9 | B14: =IF(C14<1," ",VLOOKUP(C14,MainAccountNO:MainAccounts,2,FALSE)) -> Printing and Supplies | C14: 8107 | D14: Cost of Appeal 2 (Printing & Postage) | E14: 6000 | J14: 8107 | K14: 12000
A15: 10 | B15: =IF(C15<1," ",VLOOKUP(C15,MainAccountNO:MainAccounts,2,FALSE)) -> Printing and Supplies | C15: 8107 | D15: Cost of Appeal 3 - Year-end letter (Printing & Postage) | J15: 8108 | K15: 200
A16: 11 | B16: =IF(C16<1," ",VLOOKUP(C16,MainAccountNO:MainAccounts,2,FALSE)) -> Printing and Supplies | C16: 8107 | D16: Cost of Appeal 4 (Printing & Postage) | J16: 8408 | K16: 17000
A17: 12 | B17: =IF(C17<1," ",VLOOKUP(C17,MainAccountNO:MainAccounts,2,FALSE)) -> Printing and Supplies | C17: 8107 | D17: Cost of Appeal 5 (Printing & Postage) | J17: 8606
A18: 13 | B18: =IF(C18<1," ",VLOOKUP(C18,MainAccountNO:MainAccounts,2,FALSE)) ->  | J18: 8609
A19: 14 | B19: =IF(C19<1," ",VLOOKUP(C19,MainAccountNO:MainAccounts,2,FALSE)) -> Operations Assessment | C19: 4100 | D19: Assessment on Appeal 1 | J19: 8702 | K19: 1000
A20: 15 | B20: =IF(C20<1," ",VLOOKUP(C20,MainAccountNO:MainAccounts,2,FALSE)) -> Operations Assessment | C20: 4100 | D20: Assessment on Appeal 2 - Operations | J20: 8706 | K20: 600
A21: 16 | B21: =IF(C21<1," ",VLOOKUP(C21,MainAccountNO:MainAccounts,2,FALSE)) -> Operations Assessment | C21: 4100 | D21: Assessment on Appeal 3 - Year-end letter - operations | J21: 8709 | K21: 400
A22: 17 | B22: =IF(C22<1," ",VLOOKUP(C22,MainAccountNO:MainAccounts,2,FALSE)) -> Operations Assessment | C22: 4100 | D22: Assessment on Appeal 4 | J22: 8710 | K22: 600
A23: 18 | B23: =IF(C23<1," ",VLOOKUP(C23,MainAccountNO:MainAccounts,2,FALSE)) -> Operations Assessment | C23: 4100 | D23: Assessment on Appeal 5 | J23: 8711 | K23: 500
A24: 19 | B24: =IF(C24<1," ",VLOOKUP(C24,MainAccountNO:MainAccounts,2,FALSE)) -> Inter-fund Transfers | C24: 4400 | D24: Transfers to Operations for letters 2 & 3 | J24: 8805 | K24: 500
A25: 20 | B25: =IF(C25<1," ",VLOOKUP(C25,MainAccountNO:MainAccounts,2,FALSE)) ->  | J25: 8806 | K25: 1200
A26: 21 | B26: =IF(C26<1," ",VLOOKUP(C26,MainAccountNO:MainAccounts,2,FALSE)) -> Cash Gifts - Programs | C26: 5004 | D26: Crowell Grant (Undesignated) | E26: 0 | J26: 8902 | K26: 3800
A27: 22 | B27: =IF(C27<1," ",VLOOKUP(C27,MainAccountNO:MainAccounts,2,FALSE)) -> Cash Gifts - Programs | C27: 5004 | D27: Trijicon (Operations & field projects) | J27: Grand Total | K27: 168221.25
A28: 23 | B28: =IF(C28<1," ",VLOOKUP(C28,MainAccountNO:MainAccounts,2,FALSE)) -> 
A29: 24 | B29: =IF(C29<1," ",VLOOKUP(C29,MainAccountNO:MainAccounts,2,FALSE)) -> Organization Dues & Fees | C29: 8902 | D29: ECFA Dues | E29: 1350
A30: 25 | B30: =IF(C30<1," ",VLOOKUP(C30,MainAccountNO:MainAccounts,2,FALSE)) -> Organization Dues & Fees | C30: 8902 | D30: STEER Dues | E30: 250
A31: 26 | B31: =IF(C31<1," ",VLOOKUP(C31,MainAccountNO:MainAccounts,2,FALSE)) -> Organization Dues & Fees | C31: 8902 | D31: State Charitable Registrations | E31: 2200
A32: 27 | B32: =IF(C32<1," ",VLOOKUP(C32,MainAccountNO:MainAccounts,2,FALSE)) -> Annuitant Payments | C32: 8408 | D32: Annuitant Payments | E32: 17000
A33: 28 | B33: =IF(C33<1," ",VLOOKUP(C33,MainAccountNO:MainAccounts,2,FALSE)) -> Executive Salaries | C33: 7001 | D33: Development Director Salary | E33: 22500
A34: 29 | B34: =IF(C34<1," ",VLOOKUP(C34,MainAccountNO:MainAccounts,2,FALSE)) -> Payroll Tax | C34: 7201 | D34: Development Director payroll taxes | E34: =+E33*0.0765 -> 1721.25
A35: =A33+1 -> 29 | B35: =IF(C35<1," ",VLOOKUP(C35,MainAccountNO:MainAccounts,2,FALSE)) -> Rent Expense | C35: 8402 | D35: Chris Olson Rent | E35: 3000
A36: =A34+1 -> 30 | B36: =IF(C36<1," ",VLOOKUP(C36,MainAccountNO:MainAccounts,2,FALSE)) -> Office Supply | C36: 8106 | D36: Development office supplies | E36: 200
A37: 31 | B37: =IF(C37<1," ",VLOOKUP(C37,MainAccountNO:MainAccounts,2,FALSE)) -> Vehicle Fuel & Oil | C37: 8702 | D37: Vehicle fuel and oil | E37: 1000
A38: 32 | B38: =IF(C38<1," ",VLOOKUP(C38,MainAccountNO:MainAccounts,2,FALSE)) -> Vehicle Rental | C38: 8706 | D38: Rental Car reimbursement | E38: 600
A39: 33 | B39: =IF(C39<1," ",VLOOKUP(C39,MainAccountNO:MainAccounts,2,FALSE)) -> Meals & Entertainment | C39: 8709 | D39: Meals & Entertainment | E39: 400
A40: 34 | B40: =IF(C40<1," ",VLOOKUP(C40,MainAccountNO:MainAccounts,2,FALSE)) -> Commercial Travel | C40: 8710 | D40: Development Travel | E40: 600
A41: 35 | B41: =IF(C41<1," ",VLOOKUP(C41,MainAccountNO:MainAccounts,2,FALSE)) -> Subscriptions & Periodicals | C41: 8606 | D41: Development grant-writing software
A42: 36 | B42: =IF(C42<1," ",VLOOKUP(C42,MainAccountNO:MainAccounts,2,FALSE)) -> Missionary Conference | C42: 8805 | D42: Canada Conference fees | E42: 300
A43: 37 | B43: =IF(C43<1," ",VLOOKUP(C43,MainAccountNO:MainAccounts,2,FALSE)) -> Missionary Conference | C43: 8805 | D43: Canada Conference Travel | E43: 200
A44: 38 | B44: =IF(C44<1," ",VLOOKUP(C44,MainAccountNO:MainAccounts,2,FALSE)) -> Seminars & Registrations | C44: 8806 | D44: Seminars & Training | E44: 1200
A45: 39 | B45: =IF(C45<1," ",VLOOKUP(C45,MainAccountNO:MainAccounts,2,FALSE)) -> Motel/Hotel & Room Rent | C45: 8711 | D45: Hotels during travel | E45: 500
A46: 40 | B46: =IF(C46<1," ",VLOOKUP(C46,MainAccountNO:MainAccounts,2,FALSE)) -> Mailing Service | C46: 8609 | D46: Mailing service (appeals)
A47: 41 | B47: =IF(C47<1," ",VLOOKUP(C47,MainAccountNO:MainAccounts,2,FALSE)) -> General Ministry Supply | C47: 8108 | D47: General Ministry supply | E47: 200
E48: =SUM(E29:E47) -> 53221.25

Sheet S5
C1: 5 | D1: Choose Rank Number ------------> | G1: 10
D2: Total Income | E2: =SUM(IF(S_5FieldRank<=S_5Choice,IF(S_5AccNO<=LastIncome,S_5Amount,0),0)) -> 0
D3: Total Expense | E3: =SUM(IF(S_5FieldRank<=S_5Choice,IF(S_5AccNO>LastIncome,S_5Amount,0),0)) -> 0
D4: Difference | E4: =E2-E3 -> 0
B5: Account Description | C5: Acc_NO | D5: Field Detail | E5: Amount | F5: Month | G5: Rank | H5: Out
A6: 1 | B6: =IF(C6<1," ",VLOOKUP(C6,MainAccountNO:MainAccounts,2,FALSE)) ->  | H6: =IF(G6<=$G$1,"","OUT") -> 
A7: 2 | B7: =IF(C7<1," ",VLOOKUP(C7,MainAccountNO:MainAccounts,2,FALSE)) -> 
A8: 3 | B8: =IF(C8<1," ",VLOOKUP(C8,MainAccountNO:MainAccounts,2,FALSE)) ->  | H8: =IF(G8<=$G$1,"","OUT") -> 
A9: 4 | B9: =IF(C9<1," ",VLOOKUP(C9,MainAccountNO:MainAccounts,2,FALSE)) ->  | D9: This Page Blank
A10: =A9+1 -> 5 | B10: =IF(C10<1," ",VLOOKUP(C10,MainAccountNO:MainAccounts,2,FALSE)) -> 
A11: 6 | B11: =IF(C11<1," ",VLOOKUP(C11,MainAccountNO:MainAccounts,2,FALSE)) -> 
A12: 7 | B12: =IF(C12<1," ",VLOOKUP(C12,MainAccountNO:MainAccounts,2,FALSE)) -> 
A13: 8 | B13: =IF(C13<1," ",VLOOKUP(C13,MainAccountNO:MainAccounts,2,FALSE)) -> 
A14: 9 | B14: =IF(C14<1," ",VLOOKUP(C14,MainAccountNO:MainAccounts,2,FALSE)) -> 
A15: 10 | B15: =IF(C15<1," ",VLOOKUP(C15,MainAccountNO:MainAccounts,2,FALSE)) -> 
A16: 11 | B16: =IF(C16<1," ",VLOOKUP(C16,MainAccountNO:MainAccounts,2,FALSE)) -> 
A17: 12 | B17: =IF(C17<1," ",VLOOKUP(C17,MainAccountNO:MainAccounts,2,FALSE)) -> 
A18: 13 | B18: =IF(C18<1," ",VLOOKUP(C18,MainAccountNO:MainAccounts,2,FALSE)) -> 
A19: 14 | B19: =IF(C19<1," ",VLOOKUP(C19,MainAccountNO:MainAccounts,2,FALSE)) -> 
A20: 15 | B20: =IF(C20<1," ",VLOOKUP(C20,MainAccountNO:MainAccounts,2,FALSE)) -> 
A21: 16 | B21: =IF(C21<1," ",VLOOKUP(C21,MainAccountNO:MainAccounts,2,FALSE)) -> 
A22: 17 | B22: =IF(C22<1," ",VLOOKUP(C22,MainAccountNO:MainAccounts,2,FALSE)) -> 
A23: 18 | B23: =IF(C23<1," ",VLOOKUP(C23,MainAccountNO:MainAccounts,2,FALSE)) -> 
A24: 19 | B24: =IF(C24<1," ",VLOOKUP(C24,MainAccountNO:MainAccounts,2,FALSE)) -> 
A25: 20 | B25: =IF(C25<1," ",VLOOKUP(C25,MainAccountNO:MainAccounts,2,FALSE)) -> 
A26: 21 | B26: =IF(C26<1," ",VLOOKUP(C26,MainAccountNO:MainAccounts,2,FALSE)) -> 
A27: 22 | B27: =IF(C27<1," ",VLOOKUP(C27,MainAccountNO:MainAccounts,2,FALSE)) -> 
A28: 23 | B28: =IF(C28<1," ",VLOOKUP(C28,MainAccountNO:MainAccounts,2,FALSE)) -> 
A29: 24 | B29: =IF(C29<1," ",VLOOKUP(C29,MainAccountNO:MainAccounts,2,FALSE)) -> 
A30: 25 | B30: =IF(C30<1," ",VLOOKUP(C30,MainAccountNO:MainAccounts,2,FALSE)) -> 
A31: 26 | B31: =IF(C31<1," ",VLOOKUP(C31,MainAccountNO:MainAccounts,2,FALSE)) -> 
A32: 27 | B32: =IF(C32<1," ",VLOOKUP(C32,MainAccountNO:MainAccounts,2,FALSE)) -> 
A33: 28 | B33: =IF(C33<1," ",VLOOKUP(C33,MainAccountNO:MainAccounts,2,FALSE)) -> 
A34: 29 | B34: =IF(C34<1," ",VLOOKUP(C34,MainAccountNO:MainAccounts,2,FALSE)) -> 
A35: 30 | B35: =IF(C35<1," ",VLOOKUP(C35,MainAccountNO:MainAccounts,2,FALSE)) -> 
A36: 31 | B36: =IF(C36<1," ",VLOOKUP(C36,MainAccountNO:MainAccounts,2,FALSE)) -> 
A37: 32 | B37: =IF(C37<1," ",VLOOKUP(C37,MainAccountNO:MainAccounts,2,FALSE)) -> 
A38: 33 | B38: =IF(C38<1," ",VLOOKUP(C38,MainAccountNO:MainAccounts,2,FALSE)) -> 
A39: 34 | B39: =IF(C39<1," ",VLOOKUP(C39,MainAccountNO:MainAccounts,2,FALSE)) -> 
A40: 35 | B40: =IF(C40<1," ",VLOOKUP(C40,MainAccountNO:MainAccounts,2,FALSE)) -> 
A41: 36 | B41: =IF(C41<1," ",VLOOKUP(C41,MainAccountNO:MainAccounts,2,FALSE)) -> 

Sheet S12
C1: 12 | G1: 10
D2: Total Income | E2: =SUM(IF(S_12FieldRank<=S_12Choice,IF(S_12AccNO<=LastIncome,S_12Amount,0),0)) -> 0
D3: Total Expense | E3: =SUM(IF(S_12FieldRank<=S_12Choice,IF(S_12AccNO>LastIncome,S_12Amount,0),0)) -> 0
D4: Difference | E4: =E2-E3 -> 0
B5: Account Description | C5: Acc_NO | D5: Field Detail | E5: Amount | F5: Month | G5: Rank | H5: Out
A6: 1 | B6: =IF(C6<1," ",VLOOKUP(C6,MainAccountNO:MainAccounts,2,FALSE)) ->  | H6: =IF(G6<=$G$1,"","OUT") -> 
A7: =A6+1 -> 2 | B7: =IF(C7<1," ",VLOOKUP(C7,MainAccountNO:MainAccounts,2,FALSE)) ->  | H7: =IF(G7<=$G$1,"","OUT") -> 
A8: =A7+1 -> 3 | B8: =IF(C8<1," ",VLOOKUP(C8,MainAccountNO:MainAccounts,2,FALSE)) -> 
A9: 4 | B9: =IF(C9<1," ",VLOOKUP(C9,MainAccountNO:MainAccounts,2,FALSE)) ->  | D9: This Page Blank
A10: 5 | B10: =IF(C10<1," ",VLOOKUP(C10,MainAccountNO:MainAccounts,2,FALSE)) -> 
A11: 6 | B11: =IF(C11<1," ",VLOOKUP(C11,MainAccountNO:MainAccounts,2,FALSE)) ->  | D11: Click on Tab S10 at the bottom of the page to get to "Home Ministry" Budget.
A12: 7 | B12: =IF(C12<1," ",VLOOKUP(C12,MainAccountNO:MainAccounts,2,FALSE)) -> 
A13: 8 | B13: =IF(C13<1," ",VLOOKUP(C13,MainAccountNO:MainAccounts,2,FALSE)) -> 
A14: 9 | B14: =IF(C14<1," ",VLOOKUP(C14,MainAccountNO:MainAccounts,2,FALSE)) -> 
A15: 10 | B15: =IF(C15<1," ",VLOOKUP(C15,MainAccountNO:MainAccounts,2,FALSE)) -> 
A16: 11 | B16: =IF(C16<1," ",VLOOKUP(C16,MainAccountNO:MainAccounts,2,FALSE)) -> 
A17: 12 | B17: =IF(C17<1," ",VLOOKUP(C17,MainAccountNO:MainAccounts,2,FALSE)) -> 
A18: 13 | B18: =IF(C18<1," ",VLOOKUP(C18,MainAccountNO:MainAccounts,2,FALSE)) -> 
A19: 14 | B19: =IF(C19<1," ",VLOOKUP(C19,MainAccountNO:MainAccounts,2,FALSE)) -> 
A20: 15 | B20: =IF(C20<1," ",VLOOKUP(C20,MainAccountNO:MainAccounts,2,FALSE)) -> 
A21: 16 | B21: =IF(C21<1," ",VLOOKUP(C21,MainAccountNO:MainAccounts,2,FALSE)) -> 
A22: 17 | B22: =IF(C22<1," ",VLOOKUP(C22,MainAccountNO:MainAccounts,2,FALSE)) -> 
A23: 18 | B23: =IF(C23<1," ",VLOOKUP(C23,MainAccountNO:MainAccounts,2,FALSE)) -> 
A24: 19 | B24: =IF(C24<1," ",VLOOKUP(C24,MainAccountNO:MainAccounts,2,FALSE)) -> 
A25: 20 | B25: =IF(C25<1," ",VLOOKUP(C25,MainAccountNO:MainAccounts,2,FALSE)) -> 
A26: 21 | B26: =IF(C26<1," ",VLOOKUP(C26,MainAccountNO:MainAccounts,2,FALSE)) -> 
A27: 22 | B27: =IF(C27<1," ",VLOOKUP(C27,MainAccountNO:MainAccounts,2,FALSE)) -> 
A28: 23 | B28: =IF(C28<1," ",VLOOKUP(C28,MainAccountNO:MainAccounts,2,FALSE)) -> 
A29: 24 | B29: =IF(C29<1," ",VLOOKUP(C29,MainAccountNO:MainAccounts,2,FALSE)) -> 
A30: 25 | B30: =IF(C30<1," ",VLOOKUP(C30,MainAccountNO:MainAccounts,2,FALSE)) -> 
A31: 26 | B31: =IF(C31<1," ",VLOOKUP(C31,MainAccountNO:MainAccounts,2,FALSE)) -> 
A32: 27 | B32: =IF(C32<1," ",VLOOKUP(C32,MainAccountNO:MainAccounts,2,FALSE)) -> 
A33: 28 | B33: =IF(C33<1," ",VLOOKUP(C33,MainAccountNO:MainAccounts,2,FALSE)) -> 
A34: 29 | B34: =IF(C34<1," ",VLOOKUP(C34,MainAccountNO:MainAccounts,2,FALSE)) -> 
A35: 30 | B35: =IF(C35<1," ",VLOOKUP(C35,MainAccountNO:MainAccounts,2,FALSE)) -> 
A36: 31 | B36: =IF(C36<1," ",VLOOKUP(C36,MainAccountNO:MainAccounts,2,FALSE)) -> 
A37: 32 | B37: =IF(C37<1," ",VLOOKUP(C37,MainAccountNO:MainAccounts,2,FALSE)) -> 
A38: 33 | B38: =IF(C38<1," ",VLOOKUP(C38,MainAccountNO:MainAccounts,2,FALSE)) -> 
A39: 34 | B39: =IF(C39<1," ",VLOOKUP(C39,MainAccountNO:MainAccounts,2,FALSE)) -> 
A40: 35 | B40: =IF(C40<1," ",VLOOKUP(C40,MainAccountNO:MainAccounts,2,FALSE)) -> 
A41: 36 | B41: =IF(C41<1," ",VLOOKUP(C41,MainAccountNO:MainAccounts,2,FALSE)) -> 
A42: 37 | B42: =IF(C42<1," ",VLOOKUP(C42,MainAccountNO:MainAccounts,2,FALSE)) -> 
A43: 38 | B43: =IF(C43<1," ",VLOOKUP(C43,MainAccountNO:MainAccounts,2,FALSE)) -> 
A44: 39 | B44: =IF(C44<1," ",VLOOKUP(C44,MainAccountNO:MainAccounts,2,FALSE)) -> 
A45: 40 | B45: =IF(C45<1," ",VLOOKUP(C45,MainAccountNO:MainAccounts,2,FALSE)) -> 
A46: 41 | B46: =IF(C46<1," ",VLOOKUP(C46,MainAccountNO:MainAccounts,2,FALSE)) -> 
A47: 42 | B47: =IF(C47<1," ",VLOOKUP(C47,MainAccountNO:MainAccounts,2,FALSE)) -> 
A48: 43 | B48: =IF(C48<1," ",VLOOKUP(C48,MainAccountNO:MainAccounts,2,FALSE)) -> 
